Workbook

Sheet Instrucciones
B3: CALIFICACIÓN DE LAS COMPETENCIAS CLAVE Y DE LAS MATERIAS 1º_BACH_GENERAL
B6: INSTRUCCIONES 1. INCORPORAR LOS CRITERIOS DE CALIFICACIÓN DE LAS COMPETENCIAS CLAVE BOTÓN: "INCORPORAR LOS CRITERIOS DE CALIFICACIÓN DE LAS COMPETENCIAS CLAVE." Para introducir los criterios de calificación de las competencias clave hay que seleccionar una opción en cada uno de los siguientes campos: -Pesos de los criterios de evaluación en el cálculo de la calificación de los descriptores operativos. -Pesos de los descriptores operativos en el cálculo de la calificación de las competencias clave. Si se considera, se puede bloquear la información introducida pulsado en el botón "PROTEGIDA" e introduciendo una contaseña. En caso de querer desbloquear la página se debe pulsar en el botón "DESPROTEGIDA" e introducir la contraseña marcada. 2. INCORPORAR EL NOMBRE DE LOS ALUMNOS QUE COMPONEN EL GRUPO. BOTÓN: "INCORPORAR EL LISTADO DE ALUMNOS" Introducir el nombre de todos los alumnos que componen el grupo-clase. Marcar las materias de opción que cursa cada alumno. Pulsando sobre el botón "informe" en cada alumnno se visualiza de forma individualizada la composición de las calificaciones de las materias y de las competencias clave a partir de las notas de los criterios de evaluación. Además, se incorporan dos botones para facilitar el trabajo colaborativo a través de TEAMS o Onedrive. El procedimiento es el siguiente: 1º Se pulsa el botón superior de esta sección TEAMS/Onedrive; 2º Una vez guardado el archivo, se comparte con las citadas aplicaciones; 3º Los docentes incorporan las céntésimas de redondeo de su materia en la pestaña "Redondeo" y las notas de los criterios de evaluación en la pestaña correspondiente a su materia; 4º Se descarga el archivo y se pulsa en el segundo botón de esta sección TEAMS/Onedrive para normalizar su funcionamiento y poder visualizar toda la información que esta herramienta ofrece. 3. INCORPORAR LAS CALIFICACIONES DE LOS CRITERIOS DE EVALUACIÓN DE LAS MATERIAS CURSADAS POR EL ALUMNO. BOTÓN: "INCORPORAR LA CALIFICACIÓN POR MATERIAS DE LOS CRITERIOS DE EVALUACIÓN " Seleccionar la materia. En la pestaña de destino introducir los pesos (ponderaciones) de cada criterio de evaluación (es decir, los criterios de calificación de la materia) y las calificaciones de los criterios de evaluación para los alumnos que cursen la materia o, en su caso, la calificación de la materia. 4. OBSERVAR LAS NOTAS DE LAS COMPETENCIAS CLAVE DE LOS ALUMNOS. BOTÓN: "VISUALIZAR LAS NOTAS DE LAS COMPETENCIAS CLAVE" Permite observar las notas de las competencias clave de cada alumno en función de los criterios de calificación de las competencias clave introducidos. Además, desde la pantalla de destino se puede generar un documento para exportar las notas de las competencias clave a STILUS. Para ello, previamente es necesario introducir las centésimas de redondeo de las notas de las competencias clave en la celda creada al efecto. 5. OBSERVAR LAS NOTAS DE LAS MATERIAS DE LOS ALUMNOS. BOTÓN: "VISUALIZAR LAS NOTAS DE LAS MATERIAS" Permite observar las notas de las materias de cada alumno, en función de los criterios de calificación de la materia introducidos. Además, desde la pantalla de destino se puede generar un documento para exportar las notas de las materias a STILUS.

Sheet Criterios de calificacion CClav
D4: CRITERIOS DE CALIFICACIÓN DE LAS COMPETENCIAS CLAVE
D6: Pesos de los criterios de evaluación en el cálculo de la calificación de los descriptores operativos
E8: MEDIA SIMPLE. Se aplica un criterio común para el cálculo de la calificación de todos los descriptores. Todos los criterios de evaluación pesan (ponderan) los mismo en la calificaión de los descriptores operativos.
E10: MEDIA PONDERADA POR CARGA HORARIA. Se aplica un criterio común para el cálculo de la calificación de todos los descriptores. El peso de los criterios de evaluación se determina en función de la carga horaria de la materia. (RECOMENDADO)
E12: LIBRE. Se aplica un criterio común para el cálculo de la calificación de todos los descriptores. El peso de cada criterio de evaluación en la calificación de los descriptores se determina por el centro.
E14: LIBRE DIFERENCIADO POR DESCRIPTORES. Se aplica un criterio diferenciado para el cálculo de la calificación de cada descriptor. El peso de cada criterio de evaluación en la calificación de cada descriptor se determina por el centro.
D16: Pesos de los descriptores operativos en el cálculo de la calificación de las competencias clave
E18: MEDIA PONDERADA. El peso de los descriptores operativos en el cálculo de la calificación de la competencia clave se determina en proporción al número de vinculaciones de cada descriptor operativo con los criterios de evaluación (RECOMENDADO)
E20: LIBRE. El peso (ponderación) de los descriptores operativos en el cálculo de la calificación de la competencia clave se determina por el centro.

Sheet Peso criterios carga horaria
F2: Mismo peso todos los descriptores
F3: Sí
E4: CALIFICACIÓN | F4: PESO TODOS
B5: Análisis Musical I | C5: Comp. Esp. 1 | D5: Criterio Evaluación 1.1 | F5: 4
D6: Criterio Evaluación 1.2 | F6: 4
C7: Comp. Esp. 2 | D7: Criterio Evaluación 2.1 | F7: 4
D8: Criterio Evaluación 2.2 | F8: 4
D9: Criterio Evaluación 2.3 | F9: 4
D10: Criterio Evaluación 2.4 | F10: 4
C11: Comp. Esp. 3 | D11: Criterio Evaluación 3.1 | F11: 4
D12: Criterio Evaluación 3.2 | F12: 4
D13: Criterio Evaluación 3.3 | F13: 4
C14: Comp. Esp. 4 | D14: Criterio Evaluación 4.1 | F14: 4
D15: Criterio Evaluación 4.2 | F15: 4
D16: Criterio Evaluación 4.3 | F16: 4
D17: Criterio Evaluación 4.4 | F17: 4
D18: Criterio Evaluación 4.5 | F18: 4
C19: Comp. Esp. 5 | D19: Criterio Evaluación 5.1 | F19: 4
D20: Criterio Evaluación 5.2 | F20: 4
B21: Anatomía Aplicada | C21: Comp. Esp. 1 | D21: Criterio Evaluación 1.1 | F21: 4
D22: Criterio Evaluación 1.2 | F22: 4
D23: Criterio Evaluación 1.3 | F23: 4
C24: Comp. Esp. 2 | D24: Criterio Evaluación 2.1 | F24: 4
D25: Criterio Evaluación 2.2 | F25: 4
D26: Criterio Evaluación 2.3 | F26: 4
C27: Comp. Esp. 3 | D27: Criterio Evaluación 3.1 | F27: 4
D28: Criterio Evaluación 3.2 | F28: 4
D29: Criterio Evaluación 3.3 | F29: 4
D30: Criterio Evaluación 3.4 | F30: 4
D31: Criterio Evaluación 3.5 | F31: 4
D32: Criterio Evaluación 3.6 | F32: 4
C33: Comp. Esp. 4 | D33: Criterio Evaluación 4.1 | F33: 4
D34: Criterio Evaluación 4.2 | F34: 4
D35: Criterio Evaluación 4.3 | F35: 4
D36: Criterio Evaluación 4.4 | F36: 4
C37: Comp. Esp. 5 | D37: Criterio Evaluación 5.1 | F37: 4
D38: Criterio Evaluación 5.2 | F38: 4
D39: Criterio Evaluación 5.3 | F39: 4
D40: Criterio Evaluación 5.4 | F40: 4
D41: Criterio Evaluación 5.5 | F41: 4
D42: Criterio Evaluación 5.6 | F42: 4
D43: Criterio Evaluación 5.7 | F43: 4
C44: Comp. Esp. 6 | D44: Criterio Evaluación 6.1 | F44: 4
D45: Criterio Evaluación 6.2 | F45: 4
D46: Criterio Evaluación 6.3 | F46: 4
D47: Criterio Evaluación 6.4 | F47: 4
D48: Criterio Evaluación 6.5 | F48: 4
D49: Criterio Evaluación 6.6 | F49: 4
D50: Criterio Evaluación 6.7 | F50: 4
D51: Criterio Evaluación 6.8 | F51: 4
D52: Criterio Evaluación 6.9 | F52: 4
B53: Artes Escénicas I | C53: Comp. Esp. 1 | D53: Criterio Evaluación 1.1 | F53: 4
D54: Criterio Evaluación 1.2 | F54: 4
C55: Comp. Esp. 2 | D55: Criterio Evaluación 2.1 | F55: 4
D56: Criterio Evaluación 2.2 | F56: 4
C57: Comp. Esp. 3 | D57: Criterio Evaluación 3.1 | F57: 4
D58: Criterio Evaluación 3.2 | F58: 4
C59: Comp. Esp. 4 | D59: Criterio Evaluación 4.1 | F59: 4
D60: Criterio Evaluación 4.2 | F60: 4
C61: Comp. Esp. 5 | D61: Criterio Evaluación 5.1 | F61: 4
D62: Criterio Evaluación 5.2 | F62: 4
B63: Biología, Geología y Ciencias Ambientales | C63: Comp. Esp. 1 | D63: Criterio Evaluación 1.1 | F63: 4
D64: Criterio Evaluación 1.2 | F64: 4
D65: Criterio Evaluación 1.3 | F65: 4
C66: Comp. Esp. 2 | D66: Criterio Evaluación 2.1 | F66: 4
D67: Criterio Evaluación 2.2 | F67: 4
D68: Criterio Evaluación 2.3 | F68: 4
C69: Comp. Esp. 3 | D69: Criterio Evaluación 3.1 | F69: 4
D70: Criterio Evaluación 3.2 | F70: 4
D71: Criterio Evaluación 3.3 | F71: 4
D72: Criterio Evaluación 3.4 | F72: 4
D73: Criterio Evaluación 3.5 | F73: 4
D74: Criterio Evaluación 3.6 | F74: 4
C75: Comp. Esp. 4 | D75: Criterio Evaluación 4.1 | F75: 4
D76: Criterio Evaluación 4.2 | F76: 4
C77: Comp. Esp. 5 | D77: Criterio Evaluación 5.1 | F77: 4
D78: Criterio Evaluación 5.2 | F78: 4
C79: Comp. Esp. 6 | D79: Criterio Evaluación 6.1 | F79: 4
D80: Criterio Evaluación 6.2 | F80: 4
D81: Criterio Evaluación 6.3 | F81: 4
B82: Coro y Técnica Vocal I | C82: Comp. Esp. 1 | D82: Criterio Evaluación 1.1 | F82: 4
D83: Criterio Evaluación 1.2 | F83: 4
D84: Criterio Evaluación 1.3 | F84: 4
C85: Comp. Esp. 2 | D85: Criterio Evaluación 2.1 | F85: 4
D86: Criterio Evaluación 2.2 | F86: 4
D87: Criterio Evaluación 2.3 | F87: 4
C88: Comp. Esp. 3 | D88: Criterio Evaluación 3.1 | F88: 4
D89: Criterio Evaluación 3.2 | F89: 4
D90: Criterio Evaluación 3.3 | F90: 4
C91: Comp. Esp. 4 | D91: Criterio Evaluación 4.1 | F91: 4
D92: Criterio Evaluación 4.2 | F92: 4
D93: Criterio Evaluación 4.3 | F93: 4
D94: Criterio Evaluación 4.4 | F94: 4
D95: Criterio Evaluación 4.5 | F95: 4
B96: Cultura Audiovisual | C96: Comp. Esp. 1 | D96: Criterio Evaluación 1.1 | F96: 4
D97: Criterio Evaluación 1.2 | F97: 4
D98: Criterio Evaluación 1.3 | F98: 4
D99: Criterio Evaluación 1.4 | F99: 4
C100: Comp. Esp. 2 | D100: Criterio Evaluación 2.1 | F100: 4
D101: Criterio Evaluación 2.2 | F101: 4
D102: Criterio Evaluación 2.3 | F102: 4
D103: Criterio Evaluación 2.4 | F103: 4
C104: Comp. Esp. 3 | D104: Criterio Evaluación 3.1 | F104: 4
D105: Criterio Evaluación 3.2 | F105: 4
D106: Criterio Evaluación 3.3 | F106: 4
D107: Criterio Evaluación 3.4 | F107: 4
D108: Criterio Evaluación 3.5 | F108: 4
D109: Criterio Evaluación 3.6 | F109: 4
C110: Comp. Esp. 4 | D110: Criterio Evaluación 4.1 | F110: 4
D111: Criterio Evaluación 4.2 | F111: 4
D112: Criterio Evaluación 4.3 | F112: 4
D113: Criterio Evaluación 4.4 | F113: 4
D114: Criterio Evaluación 4.5 | F114: 4
D115: Criterio Evaluación 4.6 | F115: 4
B116: Cultura Científica | C116: Comp. Esp. 1 | D116: Criterio Evaluación 1.1 | F116: 2
D117: Criterio Evaluación 1.2 | F117: 2
C118: Comp. Esp. 2 | D118: Criterio Evaluación 2.1 | F118: 2
D119: Criterio Evaluación 2.2 | F119: 2
C120: Comp. Esp. 3 | D120: Criterio Evaluación 3.1 | F120: 2
D121: Criterio Evaluación 3.2 | F121: 2
D122: Criterio Evaluación 3.3 | F122: 2
D123: Criterio Evaluación 3.4 | F123: 2
D124: Criterio Evaluación 3.5 | F124: 2
C125: Comp. Esp. 4 | D125: Criterio Evaluación 4.1 | F125: 2
D126: Criterio Evaluación 4.2 | F126: 2
C127: Comp. Esp. 5 | D127: Criterio Evaluación 5.1 | F127: 2
D128: Criterio Evaluación 5.2 | F128: 2
B129: Dibujo Técnico I | C129: Comp. Esp. 1 | D129: Criterio Evaluación 1.1 | F129: 4
C130: Comp. Esp. 2 | D130: Criterio Evaluación 2.1 | F130: 4
D131: Criterio Evaluación 2.2 | F131: 4
D132: Criterio Evaluación 2.3 | F132: 4
C133: Comp. Esp. 3 | D133: Criterio Evaluación 3.1 | F133: 4
D134: Criterio Evaluación 3.2 | F134: 4
D135: Criterio Evaluación 3.3 | F135: 4
D136: Criterio Evaluación 3.4 | F136: 4
D137: Criterio Evaluación 3.5 | F137: 4
D138: Criterio Evaluación 3.6 | F138: 4
D139: Criterio Evaluación 3.7 | F139: 4
C140: Comp. Esp. 4 | D140: Criterio Evaluación 4.1 | F140: 4
D141: Criterio Evaluación 4.2 | F141: 4
D142: Criterio Evaluación 4.3 | F142: 4
D143: Criterio Evaluación 4.4 | F143: 4
C144: Comp. Esp. 5 | D144: Criterio Evaluación 5.1 | F144: 4
D145: Criterio Evaluación 5.2 | F145: 4
B146: Dibujo Técnico Aplicado a las Artes Plásticas y al Diseño I | C146: Comp. Esp. 1 | D146: Criterio Evaluación 1.1 | F146: 4
D147: Criterio Evaluación 1.2 | F147: 4
D148: Criterio Evaluación 1.3 | F148: 4
C149: Comp. Esp. 2 | D149: Criterio Evaluación 2.1 | F149: 4
D150: Criterio Evaluación 2.2 | F150: 4
D151: Criterio Evaluación 2.3 | F151: 4
D152: Criterio Evaluación 2.4 | F152: 4
C153: Comp. Esp. 3 | D153: Criterio Evaluación 3.1 | F153: 4
D154: Criterio Evaluación 3.2 | F154: 4
D155: Criterio Evaluación 3.3 | F155: 4
D156: Criterio Evaluación 3.4 | F156: 4
D157: Criterio Evaluación 3.5 | F157: 4
D158: Criterio Evaluación 3.6 | F158: 4
D159: Criterio Evaluación 3.7 | F159: 4
C160: Comp. Esp. 4 | D160: Criterio Evaluación 4.1 | F160: 4
D161: Criterio Evaluación 4.2 | F161: 4
D162: Criterio Evaluación 4.3 | F162: 4
C163: Comp. Esp. 5 | D163: Criterio Evaluación 5.1 | F163: 4
D164: Criterio Evaluación 5.2 | F164: 4
D165: Criterio Evaluación 5.3 | F165: 4
B166: Economía | C166: Comp. Esp. 1 | D166: Criterio Evaluación 1.1 | F166: 4
D167: Criterio Evaluación 1.2 | F167: 4
D168: Criterio Evaluación 1.3 | F168: 4
C169: Comp. Esp. 2 | D169: Criterio Evaluación 2.1 | F169: 4
D170: Criterio Evaluación 2.2 | F170: 4
D171: Criterio Evaluación 2.3 | F171: 4
C172: Comp. Esp. 3 | D172: Criterio Evaluación 3.1 | F172: 4
D173: Criterio Evaluación 3.2 | F173: 4
C174: Comp. Esp. 4 | D174: Criterio Evaluación 4.1 | F174: 4
D175: Criterio Evaluación 4.2 | F175: 4
D176: Criterio Evaluación 4.3 | F176: 4
C177: Comp. Esp. 5 | D177: Criterio Evaluación 5.1 | F177: 4
D178: Criterio Evaluación 5.2 | F178: 4
C179: Comp. Esp. 6 | D179: Criterio Evaluación 6.1 | F179: 4
B180: Economía, Emprendimiento y Actividad Empresarial | C180: Comp. Esp. 1 | D180: Criterio Evaluación 1.1 | F180: 4
C181: Comp. Esp. 2 | D181: Criterio Evaluación 2.1 | F181: 4
C182: Comp. Esp. 3 | D182: Criterio Evaluación 3.1 | F182: 4
D183: Criterio Evaluación 3.2 | F183: 4
C184: Comp. Esp. 4 | D184: Criterio Evaluación 4.1 | F184: 4
D185: Criterio Evaluación 4.2 | F185: 4
C186: Comp. Esp. 5 | D186: Criterio Evaluación 5.1 | F186: 4
D187: Criterio Evaluación 5.2 | F187: 4
D188: Criterio Evaluación 5.3 | F188: 4
C189: Comp. Esp. 6 | D189: Criterio Evaluación 6.1 | F189: 4
D190: Criterio Evaluación 6.2 | F190: 4
B191: Educación Física | C191: Comp. Esp. 1 | D191: Criterio Evaluación 1.1 | F191: 2
D192: Criterio Evaluación 1.2 | F192: 2
D193: Criterio Evaluación 1.3 | F193: 2
D194: Criterio Evaluación 1.4 | F194: 2
D195: Criterio Evaluación 1.5 | F195: 2
D196: Criterio Evaluación 1.6 | F196: 2
D197: Criterio Evaluación 1.7 | F197: 2
D198: Criterio Evaluación 1.8 | F198: 2
D199: Criterio Evaluación 1.9 | F199: 2
C200: Comp. Esp. 2 | D200: Criterio Evaluación 2.1 | F200: 2
D201: Criterio Evaluación 2.2 | F201: 2
... 389 more rows

Sheet Peso criterios libre
E4: CALIFICACIÓN | F4: PESO | G4: PORCENTAJE | H4: POR. AJUSTA
B5: Análisis Musical I | C5: Comp. Esp. 1 | D5: Criterio Evaluación 1.1 | F5: 1 | G5: =F5/SUM($F$5:$F$590) -> 0.001706484642 | H5: =IF(E5="-","",G5/H$599) -> 0.005490870601
D6: Criterio Evaluación 1.2 | E6: 1 | F6: 1 | G6: 0.001706484642 | H6: 0.005490870601
C7: Comp. Esp. 2 | D7: Criterio Evaluación 2.1 | F7: 1 | G7: 0.001706484642 | H7: 0.005490870601
D8: Criterio Evaluación 2.2 | F8: 1 | G8: 0.001706484642 | H8: 0.005490870601
D9: Criterio Evaluación 2.3 | E9: 1 | F9: 1 | G9: 0.001706484642 | H9: 0.005490870601
D10: Criterio Evaluación 2.4 | E10: 1 | F10: 1 | G10: 0.001706484642 | H10: 0.005490870601
C11: Comp. Esp. 3 | D11: Criterio Evaluación 3.1 | E11: 1 | F11: 1 | G11: 0.001706484642 | H11: 0.005490870601
D12: Criterio Evaluación 3.2 | E12: 1 | F12: 1 | G12: 0.001706484642 | H12: 0.005490870601
D13: Criterio Evaluación 3.3 | E13: 1 | F13: 1 | G13: 0.001706484642 | H13: 0.005490870601
C14: Comp. Esp. 4 | D14: Criterio Evaluación 4.1 | F14: 1 | G14: 0.001706484642 | H14: 0.005490870601
D15: Criterio Evaluación 4.2 | E15: 1 | F15: 1 | G15: 0.001706484642 | H15: 0.005490870601
D16: Criterio Evaluación 4.3 | E16: 1 | F16: 1 | G16: 0.001706484642 | H16: 0.005490870601
D17: Criterio Evaluación 4.4 | F17: 1 | G17: 0.001706484642 | H17: 0.005490870601
D18: Criterio Evaluación 4.5 | F18: 1 | G18: 0.001706484642 | H18: 0.005490870601
C19: Comp. Esp. 5 | D19: Criterio Evaluación 5.1 | E19: 1 | F19: 1 | G19: 0.001706484642 | H19: 0.005490870601
D20: Criterio Evaluación 5.2 | E20: 1 | F20: 1 | G20: 0.001706484642 | H20: 0.005490870601
B21: Anatomía Aplicada | C21: Comp. Esp. 1 | D21: Criterio Evaluación 1.1 | E21: 1 | F21: 1 | G21: 0.001706484642 | H21: 0.005490870601
D22: Criterio Evaluación 1.2 | F22: 1 | G22: 0.001706484642 | H22: 0.005490870601
D23: Criterio Evaluación 1.3 | F23: 1 | G23: 0.001706484642 | H23: 0.005490870601
C24: Comp. Esp. 2 | D24: Criterio Evaluación 2.1 | F24: 1 | G24: 0.001706484642 | H24: 0.005490870601
D25: Criterio Evaluación 2.2 | E25: 1 | F25: 1 | G25: 0.001706484642 | H25: 0.005490870601
D26: Criterio Evaluación 2.3 | E26: 1 | F26: 1 | G26: 0.001706484642 | H26: 0.005490870601
C27: Comp. Esp. 3 | D27: Criterio Evaluación 3.1 | E27: 1 | F27: 1 | G27: 0.001706484642 | H27: 0.005490870601
D28: Criterio Evaluación 3.2 | F28: 1 | G28: 0.001706484642 | H28: 0.005490870601
D29: Criterio Evaluación 3.3 | F29: 1 | G29: 0.001706484642 | H29: 0.005490870601
D30: Criterio Evaluación 3.4 | F30: 1 | G30: 0.001706484642 | H30: 0.005490870601
D31: Criterio Evaluación 3.5 | F31: 1 | G31: 0.001706484642 | H31: 0.005490870601
D32: Criterio Evaluación 3.6 | F32: 1 | G32: 0.001706484642 | H32: 0.005490870601
C33: Comp. Esp. 4 | D33: Criterio Evaluación 4.1 | F33: 1 | G33: 0.001706484642 | H33: 0.005490870601
D34: Criterio Evaluación 4.2 | E34: 1 | F34: 1 | G34: 0.001706484642 | H34: 0.005490870601
D35: Criterio Evaluación 4.3 | F35: 1 | G35: 0.001706484642 | H35: 0.005490870601
D36: Criterio Evaluación 4.4 | E36: 1 | F36: 1 | G36: 0.001706484642 | H36: 0.005490870601
C37: Comp. Esp. 5 | D37: Criterio Evaluación 5.1 | F37: 1 | G37: 0.001706484642 | H37: 0.005490870601
D38: Criterio Evaluación 5.2 | E38: 1 | F38: 1 | G38: 0.001706484642 | H38: 0.005490870601
D39: Criterio Evaluación 5.3 | E39: 1 | F39: 1 | G39: 0.001706484642 | H39: 0.005490870601
D40: Criterio Evaluación 5.4 | F40: 1 | G40: 0.001706484642 | H40: 0.005490870601
D41: Criterio Evaluación 5.5 | F41: 1 | G41: 0.001706484642 | H41: 0.005490870601
D42: Criterio Evaluación 5.6 | E42: 1 | F42: 1 | G42: 0.001706484642 | H42: 0.005490870601
D43: Criterio Evaluación 5.7 | E43: 1 | F43: 1 | G43: 0.001706484642 | H43: 0.005490870601
C44: Comp. Esp. 6 | D44: Criterio Evaluación 6.1 | E44: 1 | F44: 1 | G44: 0.001706484642 | H44: 0.005490870601
D45: Criterio Evaluación 6.2 | F45: 1 | G45: 0.001706484642 | H45: 0.005490870601
D46: Criterio Evaluación 6.3 | F46: 1 | G46: 0.001706484642 | H46: 0.005490870601
D47: Criterio Evaluación 6.4 | F47: 1 | G47: 0.001706484642 | H47: 0.005490870601
D48: Criterio Evaluación 6.5 | F48: 1 | G48: 0.001706484642 | H48: 0.005490870601
D49: Criterio Evaluación 6.6 | F49: 1 | G49: 0.001706484642 | H49: 0.005490870601
D50: Criterio Evaluación 6.7 | F50: 1 | G50: 0.001706484642 | H50: 0.005490870601
D51: Criterio Evaluación 6.8 | F51: 1 | G51: 0.001706484642 | H51: 0.005490870601
D52: Criterio Evaluación 6.9 | F52: 1 | G52: 0.001706484642 | H52: 0.005490870601
B53: Artes Escénicas I | C53: Comp. Esp. 1 | D53: Criterio Evaluación 1.1 | E53: 1 | F53: 1 | G53: 0.001706484642 | H53: 0.005490870601
D54: Criterio Evaluación 1.2 | F54: 1 | G54: 0.001706484642 | H54: 0.005490870601
C55: Comp. Esp. 2 | D55: Criterio Evaluación 2.1 | E55: 1 | F55: 1 | G55: 0.001706484642 | H55: 0.005490870601
D56: Criterio Evaluación 2.2 | E56: 1 | F56: 1 | G56: 0.001706484642 | H56: 0.005490870601
C57: Comp. Esp. 3 | D57: Criterio Evaluación 3.1 | E57: 1 | F57: 1 | G57: 0.001706484642 | H57: 0.005490870601
D58: Criterio Evaluación 3.2 | E58: 1 | F58: 1 | G58: 0.001706484642 | H58: 0.005490870601
C59: Comp. Esp. 4 | D59: Criterio Evaluación 4.1 | E59: 1 | F59: 1 | G59: 0.001706484642 | H59: 0.005490870601
D60: Criterio Evaluación 4.2 | E60: 1 | F60: 1 | G60: 0.001706484642 | H60: 0.005490870601
C61: Comp. Esp. 5 | D61: Criterio Evaluación 5.1 | F61: 1 | G61: 0.001706484642 | H61: 0.005490870601
D62: Criterio Evaluación 5.2 | E62: 1 | F62: 1 | G62: 0.001706484642 | H62: 0.005490870601
B63: Biología, Geología y Ciencias Ambientales | C63: Comp. Esp. 1 | D63: Criterio Evaluación 1.1 | F63: 1 | G63: 0.001706484642 | H63: 0.005490870601
D64: Criterio Evaluación 1.2 | E64: 1 | F64: 1 | G64: 0.001706484642 | H64: 0.005490870601
D65: Criterio Evaluación 1.3 | E65: 1 | F65: 1 | G65: 0.001706484642 | H65: 0.005490870601
C66: Comp. Esp. 2 | D66: Criterio Evaluación 2.1 | F66: 1 | G66: 0.001706484642 | H66: 0.005490870601
D67: Criterio Evaluación 2.2 | F67: 1 | G67: 0.001706484642 | H67: 0.005490870601
D68: Criterio Evaluación 2.3 | F68: 1 | G68: 0.001706484642 | H68: 0.005490870601
C69: Comp. Esp. 3 | D69: Criterio Evaluación 3.1 | F69: 1 | G69: =F69/SUM($F$5:$F$590) -> 0.001706484642 | H69: =IF(E69="-","",G69/H$599) -> 0.005490870601
D70: Criterio Evaluación 3.2 | F70: 1 | G70: 0.001706484642 | H70: 0.005490870601
D71: Criterio Evaluación 3.3 | F71: 1 | G71: 0.001706484642 | H71: 0.005490870601
D72: Criterio Evaluación 3.4 | F72: 1 | G72: 0.001706484642 | H72: 0.005490870601
D73: Criterio Evaluación 3.5 | F73: 1 | G73: 0.001706484642 | H73: 0.005490870601
D74: Criterio Evaluación 3.6 | E74: 1 | F74: 1 | G74: 0.001706484642 | H74: 0.005490870601
C75: Comp. Esp. 4 | D75: Criterio Evaluación 4.1 | E75: 1 | F75: 1 | G75: 0.001706484642 | H75: 0.005490870601
D76: Criterio Evaluación 4.2 | F76: 1 | G76: 0.001706484642 | H76: 0.005490870601
C77: Comp. Esp. 5 | D77: Criterio Evaluación 5.1 | F77: 1 | G77: 0.001706484642 | H77: 0.005490870601
D78: Criterio Evaluación 5.2 | E78: 1 | F78: 1 | G78: 0.001706484642 | H78: 0.005490870601
C79: Comp. Esp. 6 | D79: Criterio Evaluación 6.1 | F79: 1 | G79: 0.001706484642 | H79: 0.005490870601
D80: Criterio Evaluación 6.2 | F80: 1 | G80: 0.001706484642 | H80: 0.005490870601
D81: Criterio Evaluación 6.3 | F81: 1 | G81: 0.001706484642 | H81: 0.005490870601
B82: Coro y Técnica Vocal I | C82: Comp. Esp. 1 | D82: Criterio Evaluación 1.1 | E82: 1 | F82: 1 | G82: 0.001706484642 | H82: 0.005490870601
D83: Criterio Evaluación 1.2 | E83: 1 | F83: 1 | G83: 0.001706484642 | H83: 0.005490870601
D84: Criterio Evaluación 1.3 | E84: 1 | F84: 1 | G84: 0.001706484642 | H84: 0.005490870601
C85: Comp. Esp. 2 | D85: Criterio Evaluación 2.1 | F85: 1 | G85: 0.001706484642 | H85: 0.005490870601
D86: Criterio Evaluación 2.2 | F86: 1 | G86: 0.001706484642 | H86: 0.005490870601
D87: Criterio Evaluación 2.3 | E87: 1 | F87: 1 | G87: 0.001706484642 | H87: 0.005490870601
C88: Comp. Esp. 3 | D88: Criterio Evaluación 3.1 | F88: 1 | G88: 0.001706484642 | H88: 0.005490870601
D89: Criterio Evaluación 3.2 | F89: 1 | G89: 0.001706484642 | H89: 0.005490870601
D90: Criterio Evaluación 3.3 | F90: 1 | G90: 0.001706484642 | H90: 0.005490870601
C91: Comp. Esp. 4 | D91: Criterio Evaluación 4.1 | F91: 1 | G91: 0.001706484642 | H91: 0.005490870601
D92: Criterio Evaluación 4.2 | F92: 1 | G92: 0.001706484642 | H92: 0.005490870601
D93: Criterio Evaluación 4.3 | F93: 1 | G93: 0.001706484642 | H93: 0.005490870601
D94: Criterio Evaluación 4.4 | F94: 1 | G94: 0.001706484642 | H94: 0.005490870601
D95: Criterio Evaluación 4.5 | F95: 1 | G95: 0.001706484642 | H95: 0.005490870601
B96: Cultura Audiovisual | C96: Comp. Esp. 1 | D96: Criterio Evaluación 1.1 | E96: 1 | F96: 1 | G96: 0.001706484642 | H96: 0.005490870601
D97: Criterio Evaluación 1.2 | F97: 1 | G97: 0.001706484642 | H97: 0.005490870601
D98: Criterio Evaluación 1.3 | E98: 1 | F98: 1 | G98: 0.001706484642 | H98: 0.005490870601
D99: Criterio Evaluación 1.4 | F99: 1 | G99: 0.001706484642 | H99: 0.005490870601
C100: Comp. Esp. 2 | D100: Criterio Evaluación 2.1 | E100: 1 | F100: 1 | G100: 0.001706484642 | H100: 0.005490870601
D101: Criterio Evaluación 2.2 | F101: 1 | G101: 0.001706484642 | H101: 0.005490870601
D102: Criterio Evaluación 2.3 | F102: 1 | G102: 0.001706484642 | H102: 0.005490870601
D103: Criterio Evaluación 2.4 | E103: 1 | F103: 1 | G103: 0.001706484642 | H103: 0.005490870601
C104: Comp. Esp. 3 | D104: Criterio Evaluación 3.1 | F104: 1 | G104: 0.001706484642 | H104: 0.005490870601
D105: Criterio Evaluación 3.2 | F105: 1 | G105: 0.001706484642 | H105: 0.005490870601
D106: Criterio Evaluación 3.3 | F106: 1 | G106: 0.001706484642 | H106: 0.005490870601
D107: Criterio Evaluación 3.4 | F107: 1 | G107: 0.001706484642 | H107: 0.005490870601
D108: Criterio Evaluación 3.5 | F108: 1 | G108: 0.001706484642 | H108: 0.005490870601
D109: Criterio Evaluación 3.6 | F109: 1 | G109: 0.001706484642 | H109: 0.005490870601
C110: Comp. Esp. 4 | D110: Criterio Evaluación 4.1 | F110: 1 | G110: 0.001706484642 | H110: 0.005490870601
D111: Criterio Evaluación 4.2 | F111: 1 | G111: 0.001706484642 | H111: 0.005490870601
D112: Criterio Evaluación 4.3 | F112: 1 | G112: 0.001706484642 | H112: 0.005490870601
D113: Criterio Evaluación 4.4 | F113: 1 | G113: 0.001706484642 | H113: 0.005490870601
D114: Criterio Evaluación 4.5 | F114: 1 | G114: 0.001706484642 | H114: 0.005490870601
D115: Criterio Evaluación 4.6 | F115: 1 | G115: 0.001706484642 | H115: 0.005490870601
B116: Cultura Científica | C116: Comp. Esp. 1 | D116: Criterio Evaluación 1.1 | F116: 1 | G116: 0.001706484642 | H116: 0.005490870601
D117: Criterio Evaluación 1.2 | F117: 1 | G117: 0.001706484642 | H117: 0.005490870601
C118: Comp. Esp. 2 | D118: Criterio Evaluación 2.1 | F118: 1 | G118: 0.001706484642 | H118: 0.005490870601
D119: Criterio Evaluación 2.2 | E119: 1 | F119: 1 | G119: 0.001706484642 | H119: 0.005490870601
C120: Comp. Esp. 3 | D120: Criterio Evaluación 3.1 | F120: 1 | G120: 0.001706484642 | H120: 0.005490870601
D121: Criterio Evaluación 3.2 | F121: 1 | G121: 0.001706484642 | H121: 0.005490870601
D122: Criterio Evaluación 3.3 | F122: 1 | G122: 0.001706484642 | H122: 0.005490870601
D123: Criterio Evaluación 3.4 | F123: 1 | G123: 0.001706484642 | H123: 0.005490870601
D124: Criterio Evaluación 3.5 | F124: 1 | G124: 0.001706484642 | H124: 0.005490870601
C125: Comp. Esp. 4 | D125: Criterio Evaluación 4.1 | F125: 1 | G125: 0.001706484642 | H125: 0.005490870601
D126: Criterio Evaluación 4.2 | F126: 1 | G126: 0.001706484642 | H126: 0.005490870601
C127: Comp. Esp. 5 | D127: Criterio Evaluación 5.1 | F127: 1 | G127: 0.001706484642 | H127: 0.005490870601
D128: Criterio Evaluación 5.2 | F128: 1 | G128: 0.001706484642 | H128: 0.005490870601
B129: Dibujo Técnico I | C129: Comp. Esp. 1 | D129: Criterio Evaluación 1.1 | E129: 1 | F129: 1 | G129: 0.001706484642 | H129: 0.005490870601
C130: Comp. Esp. 2 | D130: Criterio Evaluación 2.1 | F130: 1 | G130: 0.001706484642 | H130: 0.005490870601
D131: Criterio Evaluación 2.2 | F131: 1 | G131: 0.001706484642 | H131: 0.005490870601
D132: Criterio Evaluación 2.3 | F132: 1 | G132: 0.001706484642 | H132: 0.005490870601
C133: Comp. Esp. 3 | D133: Criterio Evaluación 3.1 | F133: 1 | G133: =F133/SUM($F$5:$F$590) -> 0.001706484642 | H133: =IF(E133="-","",G133/H$599) -> 0.005490870601
D134: Criterio Evaluación 3.2 | F134: 1 | G134: 0.001706484642 | H134: 0.005490870601
D135: Criterio Evaluación 3.3 | F135: 1 | G135: 0.001706484642 | H135: 0.005490870601
D136: Criterio Evaluación 3.4 | F136: 1 | G136: 0.001706484642 | H136: 0.005490870601
D137: Criterio Evaluación 3.5 | F137: 1 | G137: 0.001706484642 | H137: 0.005490870601
D138: Criterio Evaluación 3.6 | F138: 1 | G138: 0.001706484642 | H138: 0.005490870601
D139: Criterio Evaluación 3.7 | F139: 1 | G139: 0.001706484642 | H139: 0.005490870601
C140: Comp. Esp. 4 | D140: Criterio Evaluación 4.1 | F140: 1 | G140: 0.001706484642 | H140: 0.005490870601
D141: Criterio Evaluación 4.2 | F141: 1 | G141: 0.001706484642 | H141: 0.005490870601
D142: Criterio Evaluación 4.3 | F142: 1 | G142: 0.001706484642 | H142: 0.005490870601
D143: Criterio Evaluación 4.4 | F143: 1 | G143: 0.001706484642 | H143: 0.005490870601
C144: Comp. Esp. 5 | D144: Criterio Evaluación 5.1 | F144: 1 | G144: 0.001706484642 | H144: 0.005490870601
D145: Criterio Evaluación 5.2 | F145: 1 | G145: 0.001706484642 | H145: 0.005490870601
B146: Dibujo Técnico Aplicado a las Artes Plásticas y al Diseño I | C146: Comp. Esp. 1 | D146: Criterio Evaluación 1.1 | E146: 1 | F146: 1 | G146: 0.001706484642 | H146: 0.005490870601
D147: Criterio Evaluación 1.2 | F147: 1 | G147: 0.001706484642 | H147: 0.005490870601
D148: Criterio Evaluación 1.3 | F148: 1 | G148: 0.001706484642 | H148: 0.005490870601
C149: Comp. Esp. 2 | D149: Criterio Evaluación 2.1 | F149: 1 | G149: 0.001706484642 | H149: 0.005490870601
D150: Criterio Evaluación 2.2 | F150: 1 | G150: 0.001706484642 | H150: 0.005490870601
D151: Criterio Evaluación 2.3 | F151: 1 | G151: 0.001706484642 | H151: 0.005490870601
D152: Criterio Evaluación 2.4 | F152: 1 | G152: 0.001706484642 | H152: 0.005490870601
C153: Comp. Esp. 3 | D153: Criterio Evaluación 3.1 | F153: 1 | G153: 0.001706484642 | H153: 0.005490870601
D154: Criterio Evaluación 3.2 | F154: 1 | G154: 0.001706484642 | H154: 0.005490870601
D155: Criterio Evaluación 3.3 | F155: 1 | G155: 0.001706484642 | H155: 0.005490870601
D156: Criterio Evaluación 3.4 | F156: 1 | G156: 0.001706484642 | H156: 0.005490870601
D157: Criterio Evaluación 3.5 | F157: 1 | G157: 0.001706484642 | H157: 0.005490870601
D158: Criterio Evaluación 3.6 | F158: 1 | G158: 0.001706484642 | H158: 0.005490870601
D159: Criterio Evaluación 3.7 | F159: 1 | G159: 0.001706484642 | H159: 0.005490870601
C160: Comp. Esp. 4 | D160: Criterio Evaluación 4.1 | F160: 1 | G160: 0.001706484642 | H160: 0.005490870601
D161: Criterio Evaluación 4.2 | F161: 1 | G161: 0.001706484642 | H161: 0.005490870601
D162: Criterio Evaluación 4.3 | F162: 1 | G162: 0.001706484642 | H162: 0.005490870601
C163: Comp. Esp. 5 | D163: Criterio Evaluación 5.1 | F163: 1 | G163: 0.001706484642 | H163: 0.005490870601
D164: Criterio Evaluación 5.2 | F164: 1 | G164: 0.001706484642 | H164: 0.005490870601
D165: Criterio Evaluación 5.3 | F165: 1 | G165: 0.001706484642 | H165: 0.005490870601
B166: Economía | C166: Comp. Esp. 1 | D166: Criterio Evaluación 1.1 | F166: 1 | G166: 0.001706484642 | H166: 0.005490870601
D167: Criterio Evaluación 1.2 | F167: 1 | G167: 0.001706484642 | H167: 0.005490870601
D168: Criterio Evaluación 1.3 | F168: 1 | G168: 0.001706484642 | H168: 0.005490870601
C169: Comp. Esp. 2 | D169: Criterio Evaluación 2.1 | F169: 1 | G169: 0.001706484642 | H169: 0.005490870601
D170: Criterio Evaluación 2.2 | F170: 1 | G170: 0.001706484642 | H170: 0.005490870601
D171: Criterio Evaluación 2.3 | F171: 1 | G171: 0.001706484642 | H171: 0.005490870601
C172: Comp. Esp. 3 | D172: Criterio Evaluación 3.1 | F172: 1 | G172: 0.001706484642 | H172: 0.005490870601
D173: Criterio Evaluación 3.2 | F173: 1 | G173: 0.001706484642 | H173: 0.005490870601
C174: Comp. Esp. 4 | D174: Criterio Evaluación 4.1 | F174: 1 | G174: 0.001706484642 | H174: 0.005490870601
D175: Criterio Evaluación 4.2 | F175: 1 | G175: 0.001706484642 | H175: 0.005490870601
D176: Criterio Evaluación 4.3 | F176: 1 | G176: 0.001706484642 | H176: 0.005490870601
C177: Comp. Esp. 5 | D177: Criterio Evaluación 5.1 | E177: 1 | F177: 1 | G177: 0.001706484642 | H177: 0.005490870601
D178: Criterio Evaluación 5.2 | F178: 1 | G178: 0.001706484642 | H178: 0.005490870601
C179: Comp. Esp. 6 | D179: Criterio Evaluación 6.1 | F179: 1 | G179: 0.001706484642 | H179: 0.005490870601
B180: Economía, Emprendimiento y Actividad Empresarial | C180: Comp. Esp. 1 | D180: Criterio Evaluación 1.1 | F180: 1 | G180: 0.001706484642 | H180: 0.005490870601
C181: Comp. Esp. 2 | D181: Criterio Evaluación 2.1 | F181: 1 | G181: 0.001706484642 | H181: 0.005490870601
C182: Comp. Esp. 3 | D182: Criterio Evaluación 3.1 | F182: 1 | G182: 0.001706484642 | H182: 0.005490870601
D183: Criterio Evaluación 3.2 | F183: 1 | G183: 0.001706484642 | H183: 0.005490870601
C184: Comp. Esp. 4 | D184: Criterio Evaluación 4.1 | F184: 1 | G184: 0.001706484642 | H184: 0.005490870601
D185: Criterio Evaluación 4.2 | F185: 1 | G185: 0.001706484642 | H185: 0.005490870601
C186: Comp. Esp. 5 | D186: Criterio Evaluación 5.1 | F186: 1 | G186: 0.001706484642 | H186: 0.005490870601
D187: Criterio Evaluación 5.2 | F187: 1 | G187: 0.001706484642 | H187: 0.005490870601
D188: Criterio Evaluación 5.3 | F188: 1 | G188: 0.001706484642 | H188: 0.005490870601
C189: Comp. Esp. 6 | D189: Criterio Evaluación 6.1 | F189: 1 | G189: 0.001706484642 | H189: 0.005490870601
D190: Criterio Evaluación 6.2 | F190: 1 | G190: 0.001706484642 | H190: 0.005490870601
B191: Educación Física | C191: Comp. Esp. 1 | D191: Criterio Evaluación 1.1 | F191: 1 | G191: 0.001706484642 | H191: 0.005490870601
D192: Criterio Evaluación 1.2 | F192: 1 | G192: 0.001706484642 | H192: 0.005490870601
D193: Criterio Evaluación 1.3 | F193: 1 | G193: 0.001706484642 | H193: 0.005490870601
D194: Criterio Evaluación 1.4 | F194: 1 | G194: 0.001706484642 | H194: 0.005490870601
D195: Criterio Evaluación 1.5 | F195: 1 | G195: 0.001706484642 | H195: 0.005490870601
D196: Criterio Evaluación 1.6 | F196: 1 | G196: 0.001706484642 | H196: 0.005490870601
D197: Criterio Evaluación 1.7 | F197: 1 | G197: =F197/SUM($F$5:$F$590) -> 0.001706484642 | H197: =IF(E197="-","",G197/H$599) -> 0.005490870601
D198: Criterio Evaluación 1.8 | F198: 1 | G198: 0.001706484642 | H198: 0.005490870601
D199: Criterio Evaluación 1.9 | F199: 1 | G199: 0.001706484642 | H199: 0.005490870601
C200: Comp. Esp. 2 | D200: Criterio Evaluación 2.1 | F200: 1 | G200: 0.001706484642 | H200: 0.005490870601
D201: Criterio Evaluación 2.2 | F201: 1 | G201: 0.001706484642 | H201: 0.005490870601
D202: Criterio Evaluación 2.3 | F202: 1 | G202: 0.001706484642 | H202: 0.005490870601
D203: Criterio Evaluación 2.4 | F203: 1 | G203: 0.001706484642 | H203: 0.005490870601
... 389 more rows

Sheet Peso descrip. libre
E2: Competencia en Comunicación Lingüística | Y2: Competencia Plurilingüe | AK2: Competencia Matemática y Competencia en Ciencia, Tecnología e Ingeniería | BE2: Competencia Digital | BY2: Competencia Personal, Social y de Aprender a Aprender | DA2: Competencia Ciudadana | DQ2: Competencia Emprendedora | EC2: Competencia en Conciencia y Expresión Culturales
E3: CCL 1 | I3: CCL 2 | M3: CCL 3 | Q3: CCL 4 | U3: CCL 5 | Y3: CP 1 | AC3: CP 2 | AG3: CP 3 | AK3: STEM 1 | AO3: STEM 2 | AS3: STEM 3 | AW3: STEM 4 | BA3: STEM 5 | BE3: CD 1 | BI3: CD 2 | BM3: CD 3 | BQ3: CD 4 | BU3: CD 5 | BY3: CPSAA 1.1 | CC3: CPSAA 1.2 | CG3: CPSAA 2 | CK3: CPSAA 3.1 | CO3: CPSAA 3.2 | CS3: CPSAA 4 | CW3: CPSAA 5 | DA3: CC 1 | DE3: CC 2 | DI3: CC 3 | DM3: CC 4 | DQ3: CE 1 | DU3: CE 2 | DY3: CE 3 | EC3: CCEC 1 | EG3: CCEC 2 | EK3: CCEC 3.1 | EO3: CCEC 3.2 | ES3: CCEC 4.1 | EW3: CCEC 4.2
B5: NO | C5: PESO DESCRIPTORES | E5: 1 | I5: 1 | M5: 1 | Q5: 1 | U5: 1 | Y5: 1 | AC5: 1 | AG5: 1 | AK5: 1 | AO5: 1 | AS5: 1 | AW5: 1 | BA5: 1 | BE5: 1 | BI5: 1 | BM5: 1 | BQ5: 1 | BU5: 1 | BY5: 1 | CC5: 1 | CG5: 1 | CK5: 1 | CO5: 1 | CS5: 1 | CW5: 1 | DA5: 1 | DE5: 1 | DI5: 1 | DM5: 1 | DQ5: 1 | DU5: 1 | DY5: 1 | EC5: 1 | EG5: 1 | EK5: 1 | EO5: 1 | ES5: 1 | EW5: 1
C6: PORCENTAJES | E6: =E5/SUM($E5:$U5) -> 0.2 | I6: =I5/SUM($E5:$U5) -> 0.2 | M6: =M5/SUM($E5:$U5) -> 0.2 | Q6: =Q5/SUM($E5:$U5) -> 0.2 | U6: =U5/SUM($E5:$U5) -> 0.2 | Y6: =Y5/SUM($Y5:$AG5) -> 0.3333333333 | AC6: =AC5/SUM($Y5:$AG5) -> 0.3333333333 | AG6: 0.3333333333 | AK6: =AK5/SUM($AK5:$BA5) -> 0.2 | AO6: =AO5/SUM($AK5:$BA5) -> 0.2 | AS6: 0.2 | AW6: 0.2 | BA6: 0.2 | BE6: =BE5/SUM($BE5:$BU5) -> 0.2 | BI6: =BI5/SUM($BE5:$BU5) -> 0.2 | BM6: 0.2 | BQ6: 0.2 | BU6: 0.2 | BY6: =BY5/SUM($BY5:$CW5) -> 0.1428571429 | CC6: =CC5/SUM($BY5:$CW5) -> 0.1428571429 | CG6: 0.1428571429 | CK6: =CK5/SUM($BY5:$CW5) -> 0.1428571429 | CO6: =CO5/SUM($BY5:$CW5) -> 0.1428571429 | CS6: 0.1428571429 | CW6: 0.1428571429 | DA6: =DA5/SUM($DA5:$DM5) -> 0.25 | DE6: =DE5/SUM($DA5:$DM5) -> 0.25 | DI6: 0.25 | DM6: 0.25 | DQ6: =DQ5/SUM($DQ5:$DY5) -> 0.3333333333 | DU6: =DU5/SUM($DQ5:$DY5) -> 0.3333333333 | DY6: 0.3333333333 | EC6: =EC5/SUM($EC5:$EW5) -> 0.1666666667 | EG6: =EG5/SUM($EC5:$EW5) -> 0.1666666667 | EK6: =EK5/SUM($EC5:$EW5) -> 0.1666666667 | EO6: =EO5/SUM($EC5:$EW5) -> 0.1666666667 | ES6: 0.1666666667 | EW6: 0.1666666667

Sheet Peso descrip. vinculaciones
E2: Competencia en Comunicación Lingüística | Y2: Competencia Plurilingüe | AK2: Competencia Matemática y Competencia en Ciencia, Tecnología e Ingeniería | BE2: Competencia Digital | BY2: Competencia Personal, Social y de Aprender a Aprender | DA2: Competencia Ciudadana | DQ2: Competencia Emprendedora | EC2: Competencia en Conciencia y Expresión Culturales
E3: CCL 1 | I3: CCL 2 | M3: CCL 3 | Q3: CCL 4 | U3: CCL 5 | Y3: CP 1 | AC3: CP 2 | AG3: CP 3 | AK3: STEM 1 | AO3: STEM 2 | AS3: STEM 3 | AW3: STEM 4 | BA3: STEM 5 | BE3: CD 1 | BI3: CD 2 | BM3: CD 3 | BQ3: CD 4 | BU3: CD 5 | BY3: CPSAA 1.1 | CC3: CPSAA 1.2 | CG3: CPSAA 2 | CK3: CPSAA 3.1 | CO3: CPSAA 3.2 | CS3: CPSAA 4 | CW3: CPSAA 5 | DA3: CC 1 | DE3: CC 2 | DI3: CC 3 | DM3: CC 4 | DQ3: CE 1 | DU3: CE 2 | DY3: CE 3 | EC3: CCEC 1 | EG3: CCEC 2 | EK3: CCEC 3.1 | EO3: CCEC 3.2 | ES3: CCEC 4.1 | EW3: CCEC 4.2
B5: NO | C5: PESO DESCRIPTORES | E5: 0.3231597846 | I5: 0.2710951526 | M5: 0.2064631957 | Q5: 0.06642728905 | U5: 0.1328545781 | Y5: 0.2527472527 | AC5: 0.3956043956 | AG5: 0.3516483516 | AK5: 0.2894736842 | AO5: 0.2932330827 | AS5: 0.1616541353 | AW5: 0.1654135338 | BA5: 0.09022556391 | BE5: 0.2455752212 | BI5: 0.2986725664 | BM5: 0.3185840708 | BQ5: 0.05752212389 | BU5: 0.0796460177 | BY5: 0.1848428835 | CC5: 0.1219963031 | CG5: 0.07948243993 | CK5: 0.1515711645 | CO5: 0.07393715342 | CS5: 0.2070240296 | CW5: 0.1811460259 | DA5: 0.2679127726 | DE5: 0.1775700935 | DI5: 0.3862928349 | DM5: 0.1682242991 | DQ5: 0.3129496403 | DU5: 0.2410071942 | DY5: 0.4460431655 | EC5: 0.2320987654 | EG5: 0.1358024691 | EK5: 0.1777777778 | EO5: 0.1382716049 | ES5: 0.1358024691 | EW5: 0.1802469136
C6: PORCENTAJES | E6: =E5/SUM($E5:$U5) -> 0.3231597846 | I6: =I5/SUM($E5:$U5) -> 0.2710951526 | M6: =M5/SUM($E5:$U5) -> 0.2064631957 | Q6: =Q5/SUM($E5:$U5) -> 0.06642728905 | U6: =U5/SUM($E5:$U5) -> 0.1328545781 | Y6: =Y5/SUM($Y5:$AG5) -> 0.2527472527 | AC6: =AC5/SUM($Y5:$AG5) -> 0.3956043956 | AG6: 0.3516483516 | AK6: =AK5/SUM($AK5:$BA5) -> 0.2894736842 | AO6: =AO5/SUM($AK5:$BA5) -> 0.2932330827 | AS6: 0.1616541353 | AW6: 0.1654135338 | BA6: 0.09022556391 | BE6: =BE5/SUM($BE5:$BU5) -> 0.2455752212 | BI6: =BI5/SUM($BE5:$BU5) -> 0.2986725664 | BM6: 0.3185840708 | BQ6: 0.05752212389 | BU6: 0.0796460177 | BY6: =BY5/SUM($BY5:$CW5) -> 0.1848428835 | CC6: =CC5/SUM($BY5:$CW5) -> 0.1219963031 | CG6: 0.07948243993 | CK6: =CK5/SUM($BY5:$CW5) -> 0.1515711645 | CO6: =CO5/SUM($BY5:$CW5) -> 0.07393715342 | CS6: 0.2070240296 | CW6: 0.1811460259 | DA6: =DA5/SUM($DA5:$DM5) -> 0.2679127726 | DE6: =DE5/SUM($DA5:$DM5) -> 0.1775700935 | DI6: 0.3862928349 | DM6: 0.1682242991 | DQ6: =DQ5/SUM($DQ5:$DY5) -> 0.3129496403 | DU6: =DU5/SUM($DQ5:$DY5) -> 0.2410071942 | DY6: 0.4460431655 | EC6: =EC5/SUM($EC5:$EW5) -> 0.2320987654 | EG6: =EG5/SUM($EC5:$EW5) -> 0.1358024691 | EK6: =EK5/SUM($EC5:$EW5) -> 0.1777777778 | EO6: =EO5/SUM($EC5:$EW5) -> 0.1382716049 | ES6: 0.1358024691 | EW6: 0.1802469136
C7: CALIFICACIONES COMPETENCIAS | E7: =IFERROR(SUMPRODUCT(#REF!,E5:U5)/SUMIF(#REF!,">=0",E5:U5),"") ->  | Y7: =IFERROR(SUMPRODUCT(#REF!,Y5:AG5)/SUMIF(#REF!,">=0",Y5:AG5),"") ->  | AK7: =IFERROR(SUMPRODUCT(#REF!,AK5:BA5)/SUMIF(#REF!,">=0",AK5:BA5),"") ->  | BE7: =IFERROR(SUMPRODUCT(#REF!,BE5:BU5)/SUMIF(#REF!,">=0",BE5:BU5),"") ->  | BY7: =IFERROR(SUMPRODUCT(#REF!,BY5:CW5)/SUMIF(#REF!,">=0",BY5:CW5),"") ->  | DA7: =IFERROR(SUMPRODUCT(#REF!,DA5:DM5)/SUMIF(#REF!,">=0",DA5:DM5),"") ->  | DQ7: =IFERROR(SUMPRODUCT(#REF!,DQ5:DY5)/SUMIF(#REF!,">=0",DQ5:DY5),"") ->  | EC7: =IFERROR(SUMPRODUCT(#REF!,EC5:EW5)/SUMIF(#REF!,">=0",EC5:EW5),"") -> 

Sheet Alumnos
C3: LISTADO DE ALUMNOS | AI3: TEAMS / Onedrive
C4: Informe | D4: Grupo 1º _____ | E4: ID Matrícula | F4: ECO. EMP Y A. EMP. | G4: A. MUS I | H4: ANA. APLIC. | I4: ARTES ESC. I | J4: BIO, GEO Y CA | K4: CORO Y TEC. VOC I | L4: CULTURA AUD. | M4: DIBUJO TEC. I | N4: DIB. TEC. A APyD I | O4: ECONOMÍA | P4: FÍSICA Y QUÍMICA | Q4: GRIEGO I | R4: HIST. DEL M. CONT. | S4: LATÍN I | T4: LENGUAJE Y P. MUS. | U4: LITURARUTA UNI. | V4: MAT. APLIC. CCSS | W4: PROYECTOS ART. | X4: TEC. E ING. I | Y4: VOLUMEN | Z4: CULT. CIENTÍFICA | AA4: RELGIÓN | AB4: 2ª LEX | AG4: TIC I
AB5: ALE | AC5: FRA | AD5: ING | AE5: ITA | AF5: POR
D6: Nombre_Alumno_1 | E6: 000_1 | F6: x | W6: x | X6: x | Y6: x | Z6: x
C7: 2 | D7: Nombre_Alumno_2 | E7: 000_2 | V7: x | X7: x | Y7: x | AA7: x
C8: 3 | D8: Nombre_Alumno_3 | E8: 000_3 | F8: x | V8: x | W8: x | X8: x | AF8: x
C9: 4 | D9: Nombre_Alumno_4 | E9: 000_4 | V9: x | X9: x | Y9: x | AG9: x
C11: 6
C12: 7
C13: 8
C14: 9
C15: 10
C16: 11
C17: 12
C18: 13
C19: 14
C20: 15
C21: 16
C22: 17
C23: 18
C24: 19
C25: 20
C26: 21
C27: 22
C28: 23
C29: 24
C30: 25
C31: 26
C32: 27
C33: 28
C34: 29
C35: 30
C36: 31
C37: 32
C38: 33
C39: 34
C40: 35
D41: TOTAL MATRICULADOS | F41: =COUNTA(F6:F40) -> 2 | G41: 0 | H41: 0 | I41: 0 | J41: 0 | K41: 0 | L41: 0 | M41: 0 | N41: 0 | O41: 0 | P41: 0 | Q41: 0 | R41: 0 | S41: 0 | T41: 0 | U41: 0 | V41: 3 | W41: 2 | X41: 4 | Y41: 3 | Z41: 1 | AA41: 1 | AB41: 0 | AC41: 0 | AD41: 0 | AE41: 0 | AF41: 1 | AG41: 1

Sheet Redondeo
AL2: EXPORTACIÓN NOTAS COMPETENCIAS A STILUS
C3: CALIFICACIONES DE MATERIAS | AL3: 1º_Introduce para cada materia las centésimas a partir de las que se realizará un redondeo al alza (valor entre 1 y 100):
C4: CALIFICACIONES DE MATERIAS
C5: 90 | D5: 90 | E5: 90 | F5: 90 | G5: 90 | H5: 90 | I5: 90 | J5: 90 | K5: 90 | L5: 90 | M5: 90 | N5: 90 | O5: 90 | P5: 90 | Q5: 90 | R5: 90 | S5: 90 | T5: 90 | U5: 90 | V5: 90 | W5: 90 | X5: 90 | Y5: 90 | Z5: 90 | AA5: 90 | AB5: 90 | AC5: 90 | AD5: 90 | AE5: 90 | AF5: 90 | AG5: 90 | AH5: 90 | AI5: 90 | AL5: Ejemplo: si se marca 85, desde el 4,85 (inclusive) se redondeará a 5, Si se marca 100, el 4,99 e inferiores se redondearán a 4
B6: =TRANSPOSE('Calificación materias'!B5:AK38) -> 0 | C6: Educación Física | D6: Filosofía | E6: Lengua Castellana y Literatura I | F6: Lengua Extranjera I | G6: Matemáticas Generales | H6: Economía, Emprendimiento y AE | I6: Análisis Musical I | J6: Anatomía Aplicada | K6: Artes Escénicas I | L6: Biología, Geología y CA | M6: Coro y Técnica Vocal I | N6: Cultura Audiovisual | O6: Dibujo Técnico I | P6: Dibujo Tecnico Aplicado APyD I | Q6: Economía | R6: Física y Química | S6: Griego I | T6: Historia del Mundo Contemp. | U6: Latín I | V6: Lenguaje y Práctica Musical | W6: Literatura Universal | X6: Matemáticas aplicadas a las CCSS | Y6: Proyectos Artísticos | Z6: Tecnología e Ingeniería I | AA6: Volumen | AB6: Cultura Científica | AC6: Religión | AD6: Segunda LEX_ALE | AE6: Segunda LEX_FRA | AF6: Segunda LEX_ING | AG6: Segunda LEX_ITA | AH6: Segunda LEX_POR | AI6: TIC I | AL6: 2º_Pulsa el siguiente botón:
B7: Nombre_Alumno_1
B8: Nombre_Alumno_2
B9: Nombre_Alumno_3
B10: Nombre_Alumno_4

Sheet Materias
C2: MATERIAS DE 1º BACH_General

Sheet 2LEX
C2: MATERIAS DE 1º BACH_General

Sheet Calif. de crit.
E2: =IF(Alumnos!D6="","",Alumnos!D6) -> Nombre_Alumno_1 | F2: =IF(Alumnos!D7="","",Alumnos!D7) -> Nombre_Alumno_2 | G2: =IF(Alumnos!D8="","",Alumnos!D8) -> Nombre_Alumno_3 | H2: =IF(Alumnos!D9="","",Alumnos!D9) -> Nombre_Alumno_4 | I2: =IF(Alumnos!D10="","",Alumnos!D10) ->  | J2: =IF(Alumnos!D11="","",Alumnos!D11) ->  | K2: =IF(Alumnos!D12="","",Alumnos!D12) ->  | L2: =IF(Alumnos!D13="","",Alumnos!D13) ->  | M2: =IF(Alumnos!D14="","",Alumnos!D14) ->  | N2: =IF(Alumnos!D15="","",Alumnos!D15) ->  | O2: =IF(Alumnos!D16="","",Alumnos!D16) ->  | P2: =IF(Alumnos!D17="","",Alumnos!D17) ->  | Q2: =IF(Alumnos!D18="","",Alumnos!D18) ->  | R2: =IF(Alumnos!D19="","",Alumnos!D19) ->  | S2: =IF(Alumnos!D20="","",Alumnos!D20) ->  | T2: =IF(Alumnos!D21="","",Alumnos!D21) ->  | U2: =IF(Alumnos!D22="","",Alumnos!D22) ->  | V2: =IF(Alumnos!D23="","",Alumnos!D23) ->  | W2: =IF(Alumnos!D24="","",Alumnos!D24) ->  | X2: =IF(Alumnos!D25="","",Alumnos!D25) ->  | Y2: =IF(Alumnos!D26="","",Alumnos!D26) ->  | Z2: =IF(Alumnos!D27="","",Alumnos!D27) ->  | AA2: =IF(Alumnos!D28="","",Alumnos!D28) ->  | AB2: =IF(Alumnos!D29="","",Alumnos!D29) ->  | AC2: =IF(Alumnos!D30="","",Alumnos!D30) ->  | AD2: =IF(Alumnos!D31="","",Alumnos!D31) ->  | AE2: =IF(Alumnos!D32="","",Alumnos!D32) ->  | AF2: =IF(Alumnos!D33="","",Alumnos!D33) ->  | AG2: =IF(Alumnos!D34="","",Alumnos!D34) ->  | AH2: =IF(Alumnos!D35="","",Alumnos!D35) ->  | AI2: =IF(Alumnos!D36="","",Alumnos!D36) ->  | AJ2: =IF(Alumnos!D37="","",Alumnos!D37) ->  | AK2: =IF(Alumnos!D38="","",Alumnos!D38) ->  | AL2: =IF(Alumnos!D39="","",Alumnos!D39) ->  | AM2: =IF(Alumnos!D40="","",Alumnos!D40) -> 
B3: Análisis Musical I | C3: Comp. Esp. 1 | D3: Criterio Evaluación 1.1 | E3: =IF(AM!H4="","",AM!H4) ->  | F3: =IF(AM!I4="","",AM!I4) ->  | G3: =IF(AM!J4="","",AM!J4) ->  | H3: =IF(AM!K4="","",AM!K4) ->  | I3: =IF(AM!L4="","",AM!L4) ->  | J3: =IF(AM!M4="","",AM!M4) ->  | K3: =IF(AM!N4="","",AM!N4) ->  | L3: =IF(AM!O4="","",AM!O4) ->  | M3: =IF(AM!P4="","",AM!P4) ->  | N3: =IF(AM!Q4="","",AM!Q4) ->  | O3: =IF(AM!R4="","",AM!R4) ->  | P3: =IF(AM!S4="","",AM!S4) ->  | Q3: =IF(AM!T4="","",AM!T4) ->  | R3: =IF(AM!U4="","",AM!U4) ->  | S3: =IF(AM!V4="","",AM!V4) ->  | T3: =IF(AM!W4="","",AM!W4) ->  | U3: =IF(AM!X4="","",AM!X4) ->  | V3: =IF(AM!Y4="","",AM!Y4) ->  | W3: =IF(AM!Z4="","",AM!Z4) ->  | X3: =IF(AM!AA4="","",AM!AA4) ->  | Y3: =IF(AM!AB4="","",AM!AB4) ->  | Z3: =IF(AM!AC4="","",AM!AC4) ->  | AA3: =IF(AM!AD4="","",AM!AD4) ->  | AB3: =IF(AM!AE4="","",AM!AE4) ->  | AC3: =IF(AM!AF4="","",AM!AF4) ->  | AD3: =IF(AM!AG4="","",AM!AG4) ->  | AE3: =IF(AM!AH4="","",AM!AH4) ->  | AF3: =IF(AM!AI4="","",AM!AI4) ->  | AG3: =IF(AM!AJ4="","",AM!AJ4) ->  | AH3: =IF(AM!AK4="","",AM!AK4) ->  | AI3: =IF(AM!AL4="","",AM!AL4) ->  | AJ3: =IF(AM!AM4="","",AM!AM4) ->  | AK3: =IF(AM!AN4="","",AM!AN4) ->  | AL3: =IF(AM!AO4="","",AM!AO4) ->  | AM3: =IF(AM!AP4="","",AM!AP4) -> 
D4: Criterio Evaluación 1.2 | E4: =IF(AM!H5="","",AM!H5) ->  | F4: =IF(AM!I5="","",AM!I5) ->  | G4: =IF(AM!J5="","",AM!J5) ->  | H4: =IF(AM!K5="","",AM!K5) ->  | I4: =IF(AM!L5="","",AM!L5) ->  | J4: =IF(AM!M5="","",AM!M5) ->  | K4: =IF(AM!N5="","",AM!N5) ->  | L4: =IF(AM!O5="","",AM!O5) ->  | M4: =IF(AM!P5="","",AM!P5) ->  | N4: =IF(AM!Q5="","",AM!Q5) ->  | O4: =IF(AM!R5="","",AM!R5) ->  | P4: =IF(AM!S5="","",AM!S5) ->  | Q4: =IF(AM!T5="","",AM!T5) ->  | R4: =IF(AM!U5="","",AM!U5) ->  | S4: =IF(AM!V5="","",AM!V5) ->  | T4: =IF(AM!W5="","",AM!W5) ->  | U4: =IF(AM!X5="","",AM!X5) ->  | V4: =IF(AM!Y5="","",AM!Y5) ->  | W4: =IF(AM!Z5="","",AM!Z5) ->  | X4: =IF(AM!AA5="","",AM!AA5) ->  | Y4: =IF(AM!AB5="","",AM!AB5) ->  | Z4: =IF(AM!AC5="","",AM!AC5) ->  | AA4: =IF(AM!AD5="","",AM!AD5) ->  | AB4: =IF(AM!AE5="","",AM!AE5) ->  | AC4: =IF(AM!AF5="","",AM!AF5) ->  | AD4: =IF(AM!AG5="","",AM!AG5) ->  | AE4: =IF(AM!AH5="","",AM!AH5) ->  | AF4: =IF(AM!AI5="","",AM!AI5) ->  | AG4: =IF(AM!AJ5="","",AM!AJ5) ->  | AH4: =IF(AM!AK5="","",AM!AK5) ->  | AI4: =IF(AM!AL5="","",AM!AL5) ->  | AJ4: =IF(AM!AM5="","",AM!AM5) ->  | AK4: =IF(AM!AN5="","",AM!AN5) ->  | AL4: =IF(AM!AO5="","",AM!AO5) ->  | AM4: =IF(AM!AP5="","",AM!AP5) -> 
C5: Comp. Esp. 2 | D5: Criterio Evaluación 2.1 | E5: =IF(AM!H6="","",AM!H6) ->  | F5: =IF(AM!I6="","",AM!I6) ->  | G5: =IF(AM!J6="","",AM!J6) ->  | H5: =IF(AM!K6="","",AM!K6) ->  | I5: =IF(AM!L6="","",AM!L6) ->  | J5: =IF(AM!M6="","",AM!M6) ->  | K5: =IF(AM!N6="","",AM!N6) ->  | L5: =IF(AM!O6="","",AM!O6) ->  | M5: =IF(AM!P6="","",AM!P6) ->  | N5: =IF(AM!Q6="","",AM!Q6) ->  | O5: =IF(AM!R6="","",AM!R6) ->  | P5: =IF(AM!S6="","",AM!S6) ->  | Q5: =IF(AM!T6="","",AM!T6) ->  | R5: =IF(AM!U6="","",AM!U6) ->  | S5: =IF(AM!V6="","",AM!V6) ->  | T5: =IF(AM!W6="","",AM!W6) ->  | U5: =IF(AM!X6="","",AM!X6) ->  | V5: =IF(AM!Y6="","",AM!Y6) ->  | W5: =IF(AM!Z6="","",AM!Z6) ->  | X5: =IF(AM!AA6="","",AM!AA6) ->  | Y5: =IF(AM!AB6="","",AM!AB6) ->  | Z5: =IF(AM!AC6="","",AM!AC6) ->  | AA5: =IF(AM!AD6="","",AM!AD6) ->  | AB5: =IF(AM!AE6="","",AM!AE6) ->  | AC5: =IF(AM!AF6="","",AM!AF6) ->  | AD5: =IF(AM!AG6="","",AM!AG6) ->  | AE5: =IF(AM!AH6="","",AM!AH6) ->  | AF5: =IF(AM!AI6="","",AM!AI6) ->  | AG5: =IF(AM!AJ6="","",AM!AJ6) ->  | AH5: =IF(AM!AK6="","",AM!AK6) ->  | AI5: =IF(AM!AL6="","",AM!AL6) ->  | AJ5: =IF(AM!AM6="","",AM!AM6) ->  | AK5: =IF(AM!AN6="","",AM!AN6) ->  | AL5: =IF(AM!AO6="","",AM!AO6) ->  | AM5: =IF(AM!AP6="","",AM!AP6) -> 
D6: Criterio Evaluación 2.2 | E6: =IF(AM!H7="","",AM!H7) ->  | F6: =IF(AM!I7="","",AM!I7) ->  | G6: =IF(AM!J7="","",AM!J7) ->  | H6: =IF(AM!K7="","",AM!K7) ->  | I6: =IF(AM!L7="","",AM!L7) ->  | J6: =IF(AM!M7="","",AM!M7) ->  | K6: =IF(AM!N7="","",AM!N7) ->  | L6: =IF(AM!O7="","",AM!O7) ->  | M6: =IF(AM!P7="","",AM!P7) ->  | N6: =IF(AM!Q7="","",AM!Q7) ->  | O6: =IF(AM!R7="","",AM!R7) ->  | P6: =IF(AM!S7="","",AM!S7) ->  | Q6: =IF(AM!T7="","",AM!T7) ->  | R6: =IF(AM!U7="","",AM!U7) ->  | S6: =IF(AM!V7="","",AM!V7) ->  | T6: =IF(AM!W7="","",AM!W7) ->  | U6: =IF(AM!X7="","",AM!X7) ->  | V6: =IF(AM!Y7="","",AM!Y7) ->  | W6: =IF(AM!Z7="","",AM!Z7) ->  | X6: =IF(AM!AA7="","",AM!AA7) ->  | Y6: =IF(AM!AB7="","",AM!AB7) ->  | Z6: =IF(AM!AC7="","",AM!AC7) ->  | AA6: =IF(AM!AD7="","",AM!AD7) ->  | AB6: =IF(AM!AE7="","",AM!AE7) ->  | AC6: =IF(AM!AF7="","",AM!AF7) ->  | AD6: =IF(AM!AG7="","",AM!AG7) ->  | AE6: =IF(AM!AH7="","",AM!AH7) ->  | AF6: =IF(AM!AI7="","",AM!AI7) ->  | AG6: =IF(AM!AJ7="","",AM!AJ7) ->  | AH6: =IF(AM!AK7="","",AM!AK7) ->  | AI6: =IF(AM!AL7="","",AM!AL7) ->  | AJ6: =IF(AM!AM7="","",AM!AM7) ->  | AK6: =IF(AM!AN7="","",AM!AN7) ->  | AL6: =IF(AM!AO7="","",AM!AO7) ->  | AM6: =IF(AM!AP7="","",AM!AP7) -> 
D7: Criterio Evaluación 2.3 | E7: =IF(AM!H8="","",AM!H8) ->  | F7: =IF(AM!I8="","",AM!I8) ->  | G7: =IF(AM!J8="","",AM!J8) ->  | H7: =IF(AM!K8="","",AM!K8) ->  | I7: =IF(AM!L8="","",AM!L8) ->  | J7: =IF(AM!M8="","",AM!M8) ->  | K7: =IF(AM!N8="","",AM!N8) ->  | L7: =IF(AM!O8="","",AM!O8) ->  | M7: =IF(AM!P8="","",AM!P8) ->  | N7: =IF(AM!Q8="","",AM!Q8) ->  | O7: =IF(AM!R8="","",AM!R8) ->  | P7: =IF(AM!S8="","",AM!S8) ->  | Q7: =IF(AM!T8="","",AM!T8) ->  | R7: =IF(AM!U8="","",AM!U8) ->  | S7: =IF(AM!V8="","",AM!V8) ->  | T7: =IF(AM!W8="","",AM!W8) ->  | U7: =IF(AM!X8="","",AM!X8) ->  | V7: =IF(AM!Y8="","",AM!Y8) ->  | W7: =IF(AM!Z8="","",AM!Z8) ->  | X7: =IF(AM!AA8="","",AM!AA8) ->  | Y7: =IF(AM!AB8="","",AM!AB8) ->  | Z7: =IF(AM!AC8="","",AM!AC8) ->  | AA7: =IF(AM!AD8="","",AM!AD8) ->  | AB7: =IF(AM!AE8="","",AM!AE8) ->  | AC7: =IF(AM!AF8="","",AM!AF8) ->  | AD7: =IF(AM!AG8="","",AM!AG8) ->  | AE7: =IF(AM!AH8="","",AM!AH8) ->  | AF7: =IF(AM!AI8="","",AM!AI8) ->  | AG7: =IF(AM!AJ8="","",AM!AJ8) ->  | AH7: =IF(AM!AK8="","",AM!AK8) ->  | AI7: =IF(AM!AL8="","",AM!AL8) ->  | AJ7: =IF(AM!AM8="","",AM!AM8) ->  | AK7: =IF(AM!AN8="","",AM!AN8) ->  | AL7: =IF(AM!AO8="","",AM!AO8) ->  | AM7: =IF(AM!AP8="","",AM!AP8) -> 
D8: Criterio Evaluación 2.4 | E8: =IF(AM!H9="","",AM!H9) ->  | F8: =IF(AM!I9="","",AM!I9) ->  | G8: =IF(AM!J9="","",AM!J9) ->  | H8: =IF(AM!K9="","",AM!K9) ->  | I8: =IF(AM!L9="","",AM!L9) ->  | J8: =IF(AM!M9="","",AM!M9) ->  | K8: =IF(AM!N9="","",AM!N9) ->  | L8: =IF(AM!O9="","",AM!O9) ->  | M8: =IF(AM!P9="","",AM!P9) ->  | N8: =IF(AM!Q9="","",AM!Q9) ->  | O8: =IF(AM!R9="","",AM!R9) ->  | P8: =IF(AM!S9="","",AM!S9) ->  | Q8: =IF(AM!T9="","",AM!T9) ->  | R8: =IF(AM!U9="","",AM!U9) ->  | S8: =IF(AM!V9="","",AM!V9) ->  | T8: =IF(AM!W9="","",AM!W9) ->  | U8: =IF(AM!X9="","",AM!X9) ->  | V8: =IF(AM!Y9="","",AM!Y9) ->  | W8: =IF(AM!Z9="","",AM!Z9) ->  | X8: =IF(AM!AA9="","",AM!AA9) ->  | Y8: =IF(AM!AB9="","",AM!AB9) ->  | Z8: =IF(AM!AC9="","",AM!AC9) ->  | AA8: =IF(AM!AD9="","",AM!AD9) ->  | AB8: =IF(AM!AE9="","",AM!AE9) ->  | AC8: =IF(AM!AF9="","",AM!AF9) ->  | AD8: =IF(AM!AG9="","",AM!AG9) ->  | AE8: =IF(AM!AH9="","",AM!AH9) ->  | AF8: =IF(AM!AI9="","",AM!AI9) ->  | AG8: =IF(AM!AJ9="","",AM!AJ9) ->  | AH8: =IF(AM!AK9="","",AM!AK9) ->  | AI8: =IF(AM!AL9="","",AM!AL9) ->  | AJ8: =IF(AM!AM9="","",AM!AM9) ->  | AK8: =IF(AM!AN9="","",AM!AN9) ->  | AL8: =IF(AM!AO9="","",AM!AO9) ->  | AM8: =IF(AM!AP9="","",AM!AP9) -> 
C9: Comp. Esp. 3 | D9: Criterio Evaluación 3.1 | E9: =IF(AM!H10="","",AM!H10) ->  | F9: =IF(AM!I10="","",AM!I10) ->  | G9: =IF(AM!J10="","",AM!J10) ->  | H9: =IF(AM!K10="","",AM!K10) ->  | I9: =IF(AM!L10="","",AM!L10) ->  | J9: =IF(AM!M10="","",AM!M10) ->  | K9: =IF(AM!N10="","",AM!N10) ->  | L9: =IF(AM!O10="","",AM!O10) ->  | M9: =IF(AM!P10="","",AM!P10) ->  | N9: =IF(AM!Q10="","",AM!Q10) ->  | O9: =IF(AM!R10="","",AM!R10) ->  | P9: =IF(AM!S10="","",AM!S10) ->  | Q9: =IF(AM!T10="","",AM!T10) ->  | R9: =IF(AM!U10="","",AM!U10) ->  | S9: =IF(AM!V10="","",AM!V10) ->  | T9: =IF(AM!W10="","",AM!W10) ->  | U9: =IF(AM!X10="","",AM!X10) ->  | V9: =IF(AM!Y10="","",AM!Y10) ->  | W9: =IF(AM!Z10="","",AM!Z10) ->  | X9: =IF(AM!AA10="","",AM!AA10) ->  | Y9: =IF(AM!AB10="","",AM!AB10) ->  | Z9: =IF(AM!AC10="","",AM!AC10) ->  | AA9: =IF(AM!AD10="","",AM!AD10) ->  | AB9: =IF(AM!AE10="","",AM!AE10) ->  | AC9: =IF(AM!AF10="","",AM!AF10) ->  | AD9: =IF(AM!AG10="","",AM!AG10) ->  | AE9: =IF(AM!AH10="","",AM!AH10) ->  | AF9: =IF(AM!AI10="","",AM!AI10) ->  | AG9: =IF(AM!AJ10="","",AM!AJ10) ->  | AH9: =IF(AM!AK10="","",AM!AK10) ->  | AI9: =IF(AM!AL10="","",AM!AL10) ->  | AJ9: =IF(AM!AM10="","",AM!AM10) ->  | AK9: =IF(AM!AN10="","",AM!AN10) ->  | AL9: =IF(AM!AO10="","",AM!AO10) ->  | AM9: =IF(AM!AP10="","",AM!AP10) -> 
D10: Criterio Evaluación 3.2 | E10: =IF(AM!H11="","",AM!H11) ->  | F10: =IF(AM!I11="","",AM!I11) ->  | G10: =IF(AM!J11="","",AM!J11) ->  | H10: =IF(AM!K11="","",AM!K11) ->  | I10: =IF(AM!L11="","",AM!L11) ->  | J10: =IF(AM!M11="","",AM!M11) ->  | K10: =IF(AM!N11="","",AM!N11) ->  | L10: =IF(AM!O11="","",AM!O11) ->  | M10: =IF(AM!P11="","",AM!P11) ->  | N10: =IF(AM!Q11="","",AM!Q11) ->  | O10: =IF(AM!R11="","",AM!R11) ->  | P10: =IF(AM!S11="","",AM!S11) ->  | Q10: =IF(AM!T11="","",AM!T11) ->  | R10: =IF(AM!U11="","",AM!U11) ->  | S10: =IF(AM!V11="","",AM!V11) ->  | T10: =IF(AM!W11="","",AM!W11) ->  | U10: =IF(AM!X11="","",AM!X11) ->  | V10: =IF(AM!Y11="","",AM!Y11) ->  | W10: =IF(AM!Z11="","",AM!Z11) ->  | X10: =IF(AM!AA11="","",AM!AA11) ->  | Y10: =IF(AM!AB11="","",AM!AB11) ->  | Z10: =IF(AM!AC11="","",AM!AC11) ->  | AA10: =IF(AM!AD11="","",AM!AD11) ->  | AB10: =IF(AM!AE11="","",AM!AE11) ->  | AC10: =IF(AM!AF11="","",AM!AF11) ->  | AD10: =IF(AM!AG11="","",AM!AG11) ->  | AE10: =IF(AM!AH11="","",AM!AH11) ->  | AF10: =IF(AM!AI11="","",AM!AI11) ->  | AG10: =IF(AM!AJ11="","",AM!AJ11) ->  | AH10: =IF(AM!AK11="","",AM!AK11) ->  | AI10: =IF(AM!AL11="","",AM!AL11) ->  | AJ10: =IF(AM!AM11="","",AM!AM11) ->  | AK10: =IF(AM!AN11="","",AM!AN11) ->  | AL10: =IF(AM!AO11="","",AM!AO11) ->  | AM10: =IF(AM!AP11="","",AM!AP11) -> 
D11: Criterio Evaluación 3.3 | E11: =IF(AM!H12="","",AM!H12) ->  | F11: =IF(AM!I12="","",AM!I12) ->  | G11: =IF(AM!J12="","",AM!J12) ->  | H11: =IF(AM!K12="","",AM!K12) ->  | I11: =IF(AM!L12="","",AM!L12) ->  | J11: =IF(AM!M12="","",AM!M12) ->  | K11: =IF(AM!N12="","",AM!N12) ->  | L11: =IF(AM!O12="","",AM!O12) ->  | M11: =IF(AM!P12="","",AM!P12) ->  | N11: =IF(AM!Q12="","",AM!Q12) ->  | O11: =IF(AM!R12="","",AM!R12) ->  | P11: =IF(AM!S12="","",AM!S12) ->  | Q11: =IF(AM!T12="","",AM!T12) ->  | R11: =IF(AM!U12="","",AM!U12) ->  | S11: =IF(AM!V12="","",AM!V12) ->  | T11: =IF(AM!W12="","",AM!W12) ->  | U11: =IF(AM!X12="","",AM!X12) ->  | V11: =IF(AM!Y12="","",AM!Y12) ->  | W11: =IF(AM!Z12="","",AM!Z12) ->  | X11: =IF(AM!AA12="","",AM!AA12) ->  | Y11: =IF(AM!AB12="","",AM!AB12) ->  | Z11: =IF(AM!AC12="","",AM!AC12) ->  | AA11: =IF(AM!AD12="","",AM!AD12) ->  | AB11: =IF(AM!AE12="","",AM!AE12) ->  | AC11: =IF(AM!AF12="","",AM!AF12) ->  | AD11: =IF(AM!AG12="","",AM!AG12) ->  | AE11: =IF(AM!AH12="","",AM!AH12) ->  | AF11: =IF(AM!AI12="","",AM!AI12) ->  | AG11: =IF(AM!AJ12="","",AM!AJ12) ->  | AH11: =IF(AM!AK12="","",AM!AK12) ->  | AI11: =IF(AM!AL12="","",AM!AL12) ->  | AJ11: =IF(AM!AM12="","",AM!AM12) ->  | AK11: =IF(AM!AN12="","",AM!AN12) ->  | AL11: =IF(AM!AO12="","",AM!AO12) ->  | AM11: =IF(AM!AP12="","",AM!AP12) -> 
C12: Comp. Esp. 4 | D12: Criterio Evaluación 4.1 | E12: =IF(AM!H13="","",AM!H13) ->  | F12: =IF(AM!I13="","",AM!I13) ->  | G12: =IF(AM!J13="","",AM!J13) ->  | H12: =IF(AM!K13="","",AM!K13) ->  | I12: =IF(AM!L13="","",AM!L13) ->  | J12: =IF(AM!M13="","",AM!M13) ->  | K12: =IF(AM!N13="","",AM!N13) ->  | L12: =IF(AM!O13="","",AM!O13) ->  | M12: =IF(AM!P13="","",AM!P13) ->  | N12: =IF(AM!Q13="","",AM!Q13) ->  | O12: =IF(AM!R13="","",AM!R13) ->  | P12: =IF(AM!S13="","",AM!S13) ->  | Q12: =IF(AM!T13="","",AM!T13) ->  | R12: =IF(AM!U13="","",AM!U13) ->  | S12: =IF(AM!V13="","",AM!V13) ->  | T12: =IF(AM!W13="","",AM!W13) ->  | U12: =IF(AM!X13="","",AM!X13) ->  | V12: =IF(AM!Y13="","",AM!Y13) ->  | W12: =IF(AM!Z13="","",AM!Z13) ->  | X12: =IF(AM!AA13="","",AM!AA13) ->  | Y12: =IF(AM!AB13="","",AM!AB13) ->  | Z12: =IF(AM!AC13="","",AM!AC13) ->  | AA12: =IF(AM!AD13="","",AM!AD13) ->  | AB12: =IF(AM!AE13="","",AM!AE13) ->  | AC12: =IF(AM!AF13="","",AM!AF13) ->  | AD12: =IF(AM!AG13="","",AM!AG13) ->  | AE12: =IF(AM!AH13="","",AM!AH13) ->  | AF12: =IF(AM!AI13="","",AM!AI13) ->  | AG12: =IF(AM!AJ13="","",AM!AJ13) ->  | AH12: =IF(AM!AK13="","",AM!AK13) ->  | AI12: =IF(AM!AL13="","",AM!AL13) ->  | AJ12: =IF(AM!AM13="","",AM!AM13) ->  | AK12: =IF(AM!AN13="","",AM!AN13) ->  | AL12: =IF(AM!AO13="","",AM!AO13) ->  | AM12: =IF(AM!AP13="","",AM!AP13) -> 
D13: Criterio Evaluación 4.2 | E13: =IF(AM!H14="","",AM!H14) ->  | F13: =IF(AM!I14="","",AM!I14) ->  | G13: =IF(AM!J14="","",AM!J14) ->  | H13: =IF(AM!K14="","",AM!K14) ->  | I13: =IF(AM!L14="","",AM!L14) ->  | J13: =IF(AM!M14="","",AM!M14) ->  | K13: =IF(AM!N14="","",AM!N14) ->  | L13: =IF(AM!O14="","",AM!O14) ->  | M13: =IF(AM!P14="","",AM!P14) ->  | N13: =IF(AM!Q14="","",AM!Q14) ->  | O13: =IF(AM!R14="","",AM!R14) ->  | P13: =IF(AM!S14="","",AM!S14) ->  | Q13: =IF(AM!T14="","",AM!T14) ->  | R13: =IF(AM!U14="","",AM!U14) ->  | S13: =IF(AM!V14="","",AM!V14) ->  | T13: =IF(AM!W14="","",AM!W14) ->  | U13: =IF(AM!X14="","",AM!X14) ->  | V13: =IF(AM!Y14="","",AM!Y14) ->  | W13: =IF(AM!Z14="","",AM!Z14) ->  | X13: =IF(AM!AA14="","",AM!AA14) ->  | Y13: =IF(AM!AB14="","",AM!AB14) ->  | Z13: =IF(AM!AC14="","",AM!AC14) ->  | AA13: =IF(AM!AD14="","",AM!AD14) ->  | AB13: =IF(AM!AE14="","",AM!AE14) ->  | AC13: =IF(AM!AF14="","",AM!AF14) ->  | AD13: =IF(AM!AG14="","",AM!AG14) ->  | AE13: =IF(AM!AH14="","",AM!AH14) ->  | AF13: =IF(AM!AI14="","",AM!AI14) ->  | AG13: =IF(AM!AJ14="","",AM!AJ14) ->  | AH13: =IF(AM!AK14="","",AM!AK14) ->  | AI13: =IF(AM!AL14="","",AM!AL14) ->  | AJ13: =IF(AM!AM14="","",AM!AM14) ->  | AK13: =IF(AM!AN14="","",AM!AN14) ->  | AL13: =IF(AM!AO14="","",AM!AO14) ->  | AM13: =IF(AM!AP14="","",AM!AP14) -> 
D14: Criterio Evaluación 4.3 | E14: =IF(AM!H15="","",AM!H15) ->  | F14: =IF(AM!I15="","",AM!I15) ->  | G14: =IF(AM!J15="","",AM!J15) ->  | H14: =IF(AM!K15="","",AM!K15) ->  | I14: =IF(AM!L15="","",AM!L15) ->  | J14: =IF(AM!M15="","",AM!M15) ->  | K14: =IF(AM!N15="","",AM!N15) ->  | L14: =IF(AM!O15="","",AM!O15) ->  | M14: =IF(AM!P15="","",AM!P15) ->  | N14: =IF(AM!Q15="","",AM!Q15) ->  | O14: =IF(AM!R15="","",AM!R15) ->  | P14: =IF(AM!S15="","",AM!S15) ->  | Q14: =IF(AM!T15="","",AM!T15) ->  | R14: =IF(AM!U15="","",AM!U15) ->  | S14: =IF(AM!V15="","",AM!V15) ->  | T14: =IF(AM!W15="","",AM!W15) ->  | U14: =IF(AM!X15="","",AM!X15) ->  | V14: =IF(AM!Y15="","",AM!Y15) ->  | W14: =IF(AM!Z15="","",AM!Z15) ->  | X14: =IF(AM!AA15="","",AM!AA15) ->  | Y14: =IF(AM!AB15="","",AM!AB15) ->  | Z14: =IF(AM!AC15="","",AM!AC15) ->  | AA14: =IF(AM!AD15="","",AM!AD15) ->  | AB14: =IF(AM!AE15="","",AM!AE15) ->  | AC14: =IF(AM!AF15="","",AM!AF15) ->  | AD14: =IF(AM!AG15="","",AM!AG15) ->  | AE14: =IF(AM!AH15="","",AM!AH15) ->  | AF14: =IF(AM!AI15="","",AM!AI15) ->  | AG14: =IF(AM!AJ15="","",AM!AJ15) ->  | AH14: =IF(AM!AK15="","",AM!AK15) ->  | AI14: =IF(AM!AL15="","",AM!AL15) ->  | AJ14: =IF(AM!AM15="","",AM!AM15) ->  | AK14: =IF(AM!AN15="","",AM!AN15) ->  | AL14: =IF(AM!AO15="","",AM!AO15) ->  | AM14: =IF(AM!AP15="","",AM!AP15) -> 
D15: Criterio Evaluación 4.4 | E15: =IF(AM!H16="","",AM!H16) ->  | F15: =IF(AM!I16="","",AM!I16) ->  | G15: =IF(AM!J16="","",AM!J16) ->  | H15: =IF(AM!K16="","",AM!K16) ->  | I15: =IF(AM!L16="","",AM!L16) ->  | J15: =IF(AM!M16="","",AM!M16) ->  | K15: =IF(AM!N16="","",AM!N16) ->  | L15: =IF(AM!O16="","",AM!O16) ->  | M15: =IF(AM!P16="","",AM!P16) ->  | N15: =IF(AM!Q16="","",AM!Q16) ->  | O15: =IF(AM!R16="","",AM!R16) ->  | P15: =IF(AM!S16="","",AM!S16) ->  | Q15: =IF(AM!T16="","",AM!T16) ->  | R15: =IF(AM!U16="","",AM!U16) ->  | S15: =IF(AM!V16="","",AM!V16) ->  | T15: =IF(AM!W16="","",AM!W16) ->  | U15: =IF(AM!X16="","",AM!X16) ->  | V15: =IF(AM!Y16="","",AM!Y16) ->  | W15: =IF(AM!Z16="","",AM!Z16) ->  | X15: =IF(AM!AA16="","",AM!AA16) ->  | Y15: =IF(AM!AB16="","",AM!AB16) ->  | Z15: =IF(AM!AC16="","",AM!AC16) ->  | AA15: =IF(AM!AD16="","",AM!AD16) ->  | AB15: =IF(AM!AE16="","",AM!AE16) ->  | AC15: =IF(AM!AF16="","",AM!AF16) ->  | AD15: =IF(AM!AG16="","",AM!AG16) ->  | AE15: =IF(AM!AH16="","",AM!AH16) ->  | AF15: =IF(AM!AI16="","",AM!AI16) ->  | AG15: =IF(AM!AJ16="","",AM!AJ16) ->  | AH15: =IF(AM!AK16="","",AM!AK16) ->  | AI15: =IF(AM!AL16="","",AM!AL16) ->  | AJ15: =IF(AM!AM16="","",AM!AM16) ->  | AK15: =IF(AM!AN16="","",AM!AN16) ->  | AL15: =IF(AM!AO16="","",AM!AO16) ->  | AM15: =IF(AM!AP16="","",AM!AP16) -> 
D16: Criterio Evaluación 4.5 | E16: =IF(AM!H17="","",AM!H17) ->  | F16: =IF(AM!I17="","",AM!I17) ->  | G16: =IF(AM!J17="","",AM!J17) ->  | H16: =IF(AM!K17="","",AM!K17) ->  | I16: =IF(AM!L17="","",AM!L17) ->  | J16: =IF(AM!M17="","",AM!M17) ->  | K16: =IF(AM!N17="","",AM!N17) ->  | L16: =IF(AM!O17="","",AM!O17) ->  | M16: =IF(AM!P17="","",AM!P17) ->  | N16: =IF(AM!Q17="","",AM!Q17) ->  | O16: =IF(AM!R17="","",AM!R17) ->  | P16: =IF(AM!S17="","",AM!S17) ->  | Q16: =IF(AM!T17="","",AM!T17) ->  | R16: =IF(AM!U17="","",AM!U17) ->  | S16: =IF(AM!V17="","",AM!V17) ->  | T16: =IF(AM!W17="","",AM!W17) ->  | U16: =IF(AM!X17="","",AM!X17) ->  | V16: =IF(AM!Y17="","",AM!Y17) ->  | W16: =IF(AM!Z17="","",AM!Z17) ->  | X16: =IF(AM!AA17="","",AM!AA17) ->  | Y16: =IF(AM!AB17="","",AM!AB17) ->  | Z16: =IF(AM!AC17="","",AM!AC17) ->  | AA16: =IF(AM!AD17="","",AM!AD17) ->  | AB16: =IF(AM!AE17="","",AM!AE17) ->  | AC16: =IF(AM!AF17="","",AM!AF17) ->  | AD16: =IF(AM!AG17="","",AM!AG17) ->  | AE16: =IF(AM!AH17="","",AM!AH17) ->  | AF16: =IF(AM!AI17="","",AM!AI17) ->  | AG16: =IF(AM!AJ17="","",AM!AJ17) ->  | AH16: =IF(AM!AK17="","",AM!AK17) ->  | AI16: =IF(AM!AL17="","",AM!AL17) ->  | AJ16: =IF(AM!AM17="","",AM!AM17) ->  | AK16: =IF(AM!AN17="","",AM!AN17) ->  | AL16: =IF(AM!AO17="","",AM!AO17) ->  | AM16: =IF(AM!AP17="","",AM!AP17) -> 
C17: Comp. Esp. 5 | D17: Criterio Evaluación 5.1 | E17: =IF(AM!H18="","",AM!H18) ->  | F17: =IF(AM!I18="","",AM!I18) ->  | G17: =IF(AM!J18="","",AM!J18) ->  | H17: =IF(AM!K18="","",AM!K18) ->  | I17: =IF(AM!L18="","",AM!L18) ->  | J17: =IF(AM!M18="","",AM!M18) ->  | K17: =IF(AM!N18="","",AM!N18) ->  | L17: =IF(AM!O18="","",AM!O18) ->  | M17: =IF(AM!P18="","",AM!P18) ->  | N17: =IF(AM!Q18="","",AM!Q18) ->  | O17: =IF(AM!R18="","",AM!R18) ->  | P17: =IF(AM!S18="","",AM!S18) ->  | Q17: =IF(AM!T18="","",AM!T18) ->  | R17: =IF(AM!U18="","",AM!U18) ->  | S17: =IF(AM!V18="","",AM!V18) ->  | T17: =IF(AM!W18="","",AM!W18) ->  | U17: =IF(AM!X18="","",AM!X18) ->  | V17: =IF(AM!Y18="","",AM!Y18) ->  | W17: =IF(AM!Z18="","",AM!Z18) ->  | X17: =IF(AM!AA18="","",AM!AA18) ->  | Y17: =IF(AM!AB18="","",AM!AB18) ->  | Z17: =IF(AM!AC18="","",AM!AC18) ->  | AA17: =IF(AM!AD18="","",AM!AD18) ->  | AB17: =IF(AM!AE18="","",AM!AE18) ->  | AC17: =IF(AM!AF18="","",AM!AF18) ->  | AD17: =IF(AM!AG18="","",AM!AG18) ->  | AE17: =IF(AM!AH18="","",AM!AH18) ->  | AF17: =IF(AM!AI18="","",AM!AI18) ->  | AG17: =IF(AM!AJ18="","",AM!AJ18) ->  | AH17: =IF(AM!AK18="","",AM!AK18) ->  | AI17: =IF(AM!AL18="","",AM!AL18) ->  | AJ17: =IF(AM!AM18="","",AM!AM18) ->  | AK17: =IF(AM!AN18="","",AM!AN18) ->  | AL17: =IF(AM!AO18="","",AM!AO18) ->  | AM17: =IF(AM!AP18="","",AM!AP18) -> 
D18: Criterio Evaluación 5.2 | E18: =IF(AM!H19="","",AM!H19) ->  | F18: =IF(AM!I19="","",AM!I19) ->  | G18: =IF(AM!J19="","",AM!J19) ->  | H18: =IF(AM!K19="","",AM!K19) ->  | I18: =IF(AM!L19="","",AM!L19) ->  | J18: =IF(AM!M19="","",AM!M19) ->  | K18: =IF(AM!N19="","",AM!N19) ->  | L18: =IF(AM!O19="","",AM!O19) ->  | M18: =IF(AM!P19="","",AM!P19) ->  | N18: =IF(AM!Q19="","",AM!Q19) ->  | O18: =IF(AM!R19="","",AM!R19) ->  | P18: =IF(AM!S19="","",AM!S19) ->  | Q18: =IF(AM!T19="","",AM!T19) ->  | R18: =IF(AM!U19="","",AM!U19) ->  | S18: =IF(AM!V19="","",AM!V19) ->  | T18: =IF(AM!W19="","",AM!W19) ->  | U18: =IF(AM!X19="","",AM!X19) ->  | V18: =IF(AM!Y19="","",AM!Y19) ->  | W18: =IF(AM!Z19="","",AM!Z19) ->  | X18: =IF(AM!AA19="","",AM!AA19) ->  | Y18: =IF(AM!AB19="","",AM!AB19) ->  | Z18: =IF(AM!AC19="","",AM!AC19) ->  | AA18: =IF(AM!AD19="","",AM!AD19) ->  | AB18: =IF(AM!AE19="","",AM!AE19) ->  | AC18: =IF(AM!AF19="","",AM!AF19) ->  | AD18: =IF(AM!AG19="","",AM!AG19) ->  | AE18: =IF(AM!AH19="","",AM!AH19) ->  | AF18: =IF(AM!AI19="","",AM!AI19) ->  | AG18: =IF(AM!AJ19="","",AM!AJ19) ->  | AH18: =IF(AM!AK19="","",AM!AK19) ->  | AI18: =IF(AM!AL19="","",AM!AL19) ->  | AJ18: =IF(AM!AM19="","",AM!AM19) ->  | AK18: =IF(AM!AN19="","",AM!AN19) ->  | AL18: =IF(AM!AO19="","",AM!AO19) ->  | AM18: =IF(AM!AP19="","",AM!AP19) -> 
B19: Anatomía Aplicada | C19: Comp. Esp. 1 | D19: Criterio Evaluación 1.1 | E19: =IF(AA!H4="","",AA!H4) ->  | F19: =IF(AA!I4="","",AA!I4) ->  | G19: =IF(AA!J4="","",AA!J4) ->  | H19: =IF(AA!K4="","",AA!K4) ->  | I19: =IF(AA!L4="","",AA!L4) ->  | J19: =IF(AA!M4="","",AA!M4) ->  | K19: =IF(AA!N4="","",AA!N4) ->  | L19: =IF(AA!O4="","",AA!O4) ->  | M19: =IF(AA!P4="","",AA!P4) ->  | N19: =IF(AA!Q4="","",AA!Q4) ->  | O19: =IF(AA!R4="","",AA!R4) ->  | P19: =IF(AA!S4="","",AA!S4) ->  | Q19: =IF(AA!T4="","",AA!T4) ->  | R19: =IF(AA!U4="","",AA!U4) ->  | S19: =IF(AA!V4="","",AA!V4) ->  | T19: =IF(AA!W4="","",AA!W4) ->  | U19: =IF(AA!X4="","",AA!X4) ->  | V19: =IF(AA!Y4="","",AA!Y4) ->  | W19: =IF(AA!Z4="","",AA!Z4) ->  | X19: =IF(AA!AA4="","",AA!AA4) ->  | Y19: =IF(AA!AB4="","",AA!AB4) ->  | Z19: =IF(AA!AC4="","",AA!AC4) ->  | AA19: =IF(AA!AD4="","",AA!AD4) ->  | AB19: =IF(AA!AE4="","",AA!AE4) ->  | AC19: =IF(AA!AF4="","",AA!AF4) ->  | AD19: =IF(AA!AG4="","",AA!AG4) ->  | AE19: =IF(AA!AH4="","",AA!AH4) ->  | AF19: =IF(AA!AI4="","",AA!AI4) ->  | AG19: =IF(AA!AJ4="","",AA!AJ4) ->  | AH19: =IF(AA!AK4="","",AA!AK4) ->  | AI19: =IF(AA!AL4="","",AA!AL4) ->  | AJ19: =IF(AA!AM4="","",AA!AM4) ->  | AK19: =IF(AA!AN4="","",AA!AN4) ->  | AL19: =IF(AA!AO4="","",AA!AO4) ->  | AM19: =IF(AA!AP4="","",AA!AP4) -> 
D20: Criterio Evaluación 1.2 | E20: =IF(AA!H5="","",AA!H5) ->  | F20: =IF(AA!I5="","",AA!I5) ->  | G20: =IF(AA!J5="","",AA!J5) ->  | H20: =IF(AA!K5="","",AA!K5) ->  | I20: =IF(AA!L5="","",AA!L5) ->  | J20: =IF(AA!M5="","",AA!M5) ->  | K20: =IF(AA!N5="","",AA!N5) ->  | L20: =IF(AA!O5="","",AA!O5) ->  | M20: =IF(AA!P5="","",AA!P5) ->  | N20: =IF(AA!Q5="","",AA!Q5) ->  | O20: =IF(AA!R5="","",AA!R5) ->  | P20: =IF(AA!S5="","",AA!S5) ->  | Q20: =IF(AA!T5="","",AA!T5) ->  | R20: =IF(AA!U5="","",AA!U5) ->  | S20: =IF(AA!V5="","",AA!V5) ->  | T20: =IF(AA!W5="","",AA!W5) ->  | U20: =IF(AA!X5="","",AA!X5) ->  | V20: =IF(AA!Y5="","",AA!Y5) ->  | W20: =IF(AA!Z5="","",AA!Z5) ->  | X20: =IF(AA!AA5="","",AA!AA5) ->  | Y20: =IF(AA!AB5="","",AA!AB5) ->  | Z20: =IF(AA!AC5="","",AA!AC5) ->  | AA20: =IF(AA!AD5="","",AA!AD5) ->  | AB20: =IF(AA!AE5="","",AA!AE5) ->  | AC20: =IF(AA!AF5="","",AA!AF5) ->  | AD20: =IF(AA!AG5="","",AA!AG5) ->  | AE20: =IF(AA!AH5="","",AA!AH5) ->  | AF20: =IF(AA!AI5="","",AA!AI5) ->  | AG20: =IF(AA!AJ5="","",AA!AJ5) ->  | AH20: =IF(AA!AK5="","",AA!AK5) ->  | AI20: =IF(AA!AL5="","",AA!AL5) ->  | AJ20: =IF(AA!AM5="","",AA!AM5) ->  | AK20: =IF(AA!AN5="","",AA!AN5) ->  | AL20: =IF(AA!AO5="","",AA!AO5) ->  | AM20: =IF(AA!AP5="","",AA!AP5) -> 
D21: Criterio Evaluación 1.3 | E21: =IF(AA!H6="","",AA!H6) ->  | F21: =IF(AA!I6="","",AA!I6) ->  | G21: =IF(AA!J6="","",AA!J6) ->  | H21: =IF(AA!K6="","",AA!K6) ->  | I21: =IF(AA!L6="","",AA!L6) ->  | J21: =IF(AA!M6="","",AA!M6) ->  | K21: =IF(AA!N6="","",AA!N6) ->  | L21: =IF(AA!O6="","",AA!O6) ->  | M21: =IF(AA!P6="","",AA!P6) ->  | N21: =IF(AA!Q6="","",AA!Q6) ->  | O21: =IF(AA!R6="","",AA!R6) ->  | P21: =IF(AA!S6="","",AA!S6) ->  | Q21: =IF(AA!T6="","",AA!T6) ->  | R21: =IF(AA!U6="","",AA!U6) ->  | S21: =IF(AA!V6="","",AA!V6) ->  | T21: =IF(AA!W6="","",AA!W6) ->  | U21: =IF(AA!X6="","",AA!X6) ->  | V21: =IF(AA!Y6="","",AA!Y6) ->  | W21: =IF(AA!Z6="","",AA!Z6) ->  | X21: =IF(AA!AA6="","",AA!AA6) ->  | Y21: =IF(AA!AB6="","",AA!AB6) ->  | Z21: =IF(AA!AC6="","",AA!AC6) ->  | AA21: =IF(AA!AD6="","",AA!AD6) ->  | AB21: =IF(AA!AE6="","",AA!AE6) ->  | AC21: =IF(AA!AF6="","",AA!AF6) ->  | AD21: =IF(AA!AG6="","",AA!AG6) ->  | AE21: =IF(AA!AH6="","",AA!AH6) ->  | AF21: =IF(AA!AI6="","",AA!AI6) ->  | AG21: =IF(AA!AJ6="","",AA!AJ6) ->  | AH21: =IF(AA!AK6="","",AA!AK6) ->  | AI21: =IF(AA!AL6="","",AA!AL6) ->  | AJ21: =IF(AA!AM6="","",AA!AM6) ->  | AK21: =IF(AA!AN6="","",AA!AN6) ->  | AL21: =IF(AA!AO6="","",AA!AO6) ->  | AM21: =IF(AA!AP6="","",AA!AP6) -> 
C22: Comp. Esp. 2 | D22: Criterio Evaluación 2.1 | E22: =IF(AA!H7="","",AA!H7) ->  | F22: =IF(AA!I7="","",AA!I7) ->  | G22: =IF(AA!J7="","",AA!J7) ->  | H22: =IF(AA!K7="","",AA!K7) ->  | I22: =IF(AA!L7="","",AA!L7) ->  | J22: =IF(AA!M7="","",AA!M7) ->  | K22: =IF(AA!N7="","",AA!N7) ->  | L22: =IF(AA!O7="","",AA!O7) ->  | M22: =IF(AA!P7="","",AA!P7) ->  | N22: =IF(AA!Q7="","",AA!Q7) ->  | O22: =IF(AA!R7="","",AA!R7) ->  | P22: =IF(AA!S7="","",AA!S7) ->  | Q22: =IF(AA!T7="","",AA!T7) ->  | R22: =IF(AA!U7="","",AA!U7) ->  | S22: =IF(AA!V7="","",AA!V7) ->  | T22: =IF(AA!W7="","",AA!W7) ->  | U22: =IF(AA!X7="","",AA!X7) ->  | V22: =IF(AA!Y7="","",AA!Y7) ->  | W22: =IF(AA!Z7="","",AA!Z7) ->  | X22: =IF(AA!AA7="","",AA!AA7) ->  | Y22: =IF(AA!AB7="","",AA!AB7) ->  | Z22: =IF(AA!AC7="","",AA!AC7) ->  | AA22: =IF(AA!AD7="","",AA!AD7) ->  | AB22: =IF(AA!AE7="","",AA!AE7) ->  | AC22: =IF(AA!AF7="","",AA!AF7) ->  | AD22: =IF(AA!AG7="","",AA!AG7) ->  | AE22: =IF(AA!AH7="","",AA!AH7) ->  | AF22: =IF(AA!AI7="","",AA!AI7) ->  | AG22: =IF(AA!AJ7="","",AA!AJ7) ->  | AH22: =IF(AA!AK7="","",AA!AK7) ->  | AI22: =IF(AA!AL7="","",AA!AL7) ->  | AJ22: =IF(AA!AM7="","",AA!AM7) ->  | AK22: =IF(AA!AN7="","",AA!AN7) ->  | AL22: =IF(AA!AO7="","",AA!AO7) ->  | AM22: =IF(AA!AP7="","",AA!AP7) -> 
D23: Criterio Evaluación 2.2 | E23: =IF(AA!H8="","",AA!H8) ->  | F23: =IF(AA!I8="","",AA!I8) ->  | G23: =IF(AA!J8="","",AA!J8) ->  | H23: =IF(AA!K8="","",AA!K8) ->  | I23: =IF(AA!L8="","",AA!L8) ->  | J23: =IF(AA!M8="","",AA!M8) ->  | K23: =IF(AA!N8="","",AA!N8) ->  | L23: =IF(AA!O8="","",AA!O8) ->  | M23: =IF(AA!P8="","",AA!P8) ->  | N23: =IF(AA!Q8="","",AA!Q8) ->  | O23: =IF(AA!R8="","",AA!R8) ->  | P23: =IF(AA!S8="","",AA!S8) ->  | Q23: =IF(AA!T8="","",AA!T8) ->  | R23: =IF(AA!U8="","",AA!U8) ->  | S23: =IF(AA!V8="","",AA!V8) ->  | T23: =IF(AA!W8="","",AA!W8) ->  | U23: =IF(AA!X8="","",AA!X8) ->  | V23: =IF(AA!Y8="","",AA!Y8) ->  | W23: =IF(AA!Z8="","",AA!Z8) ->  | X23: =IF(AA!AA8="","",AA!AA8) ->  | Y23: =IF(AA!AB8="","",AA!AB8) ->  | Z23: =IF(AA!AC8="","",AA!AC8) ->  | AA23: =IF(AA!AD8="","",AA!AD8) ->  | AB23: =IF(AA!AE8="","",AA!AE8) ->  | AC23: =IF(AA!AF8="","",AA!AF8) ->  | AD23: =IF(AA!AG8="","",AA!AG8) ->  | AE23: =IF(AA!AH8="","",AA!AH8) ->  | AF23: =IF(AA!AI8="","",AA!AI8) ->  | AG23: =IF(AA!AJ8="","",AA!AJ8) ->  | AH23: =IF(AA!AK8="","",AA!AK8) ->  | AI23: =IF(AA!AL8="","",AA!AL8) ->  | AJ23: =IF(AA!AM8="","",AA!AM8) ->  | AK23: =IF(AA!AN8="","",AA!AN8) ->  | AL23: =IF(AA!AO8="","",AA!AO8) ->  | AM23: =IF(AA!AP8="","",AA!AP8) -> 
D24: Criterio Evaluación 2.3 | E24: =IF(AA!H9="","",AA!H9) ->  | F24: =IF(AA!I9="","",AA!I9) ->  | G24: =IF(AA!J9="","",AA!J9) ->  | H24: =IF(AA!K9="","",AA!K9) ->  | I24: =IF(AA!L9="","",AA!L9) ->  | J24: =IF(AA!M9="","",AA!M9) ->  | K24: =IF(AA!N9="","",AA!N9) ->  | L24: =IF(AA!O9="","",AA!O9) ->  | M24: =IF(AA!P9="","",AA!P9) ->  | N24: =IF(AA!Q9="","",AA!Q9) ->  | O24: =IF(AA!R9="","",AA!R9) ->  | P24: =IF(AA!S9="","",AA!S9) ->  | Q24: =IF(AA!T9="","",AA!T9) ->  | R24: =IF(AA!U9="","",AA!U9) ->  | S24: =IF(AA!V9="","",AA!V9) ->  | T24: =IF(AA!W9="","",AA!W9) ->  | U24: =IF(AA!X9="","",AA!X9) ->  | V24: =IF(AA!Y9="","",AA!Y9) ->  | W24: =IF(AA!Z9="","",AA!Z9) ->  | X24: =IF(AA!AA9="","",AA!AA9) ->  | Y24: =IF(AA!AB9="","",AA!AB9) ->  | Z24: =IF(AA!AC9="","",AA!AC9) ->  | AA24: =IF(AA!AD9="","",AA!AD9) ->  | AB24: =IF(AA!AE9="","",AA!AE9) ->  | AC24: =IF(AA!AF9="","",AA!AF9) ->  | AD24: =IF(AA!AG9="","",AA!AG9) ->  | AE24: =IF(AA!AH9="","",AA!AH9) ->  | AF24: =IF(AA!AI9="","",AA!AI9) ->  | AG24: =IF(AA!AJ9="","",AA!AJ9) ->  | AH24: =IF(AA!AK9="","",AA!AK9) ->  | AI24: =IF(AA!AL9="","",AA!AL9) ->  | AJ24: =IF(AA!AM9="","",AA!AM9) ->  | AK24: =IF(AA!AN9="","",AA!AN9) ->  | AL24: =IF(AA!AO9="","",AA!AO9) ->  | AM24: =IF(AA!AP9="","",AA!AP9) -> 
C25: Comp. Esp. 3 | D25: Criterio Evaluación 3.1 | E25: =IF(AA!H10="","",AA!H10) ->  | F25: =IF(AA!I10="","",AA!I10) ->  | G25: =IF(AA!J10="","",AA!J10) ->  | H25: =IF(AA!K10="","",AA!K10) ->  | I25: =IF(AA!L10="","",AA!L10) ->  | J25: =IF(AA!M10="","",AA!M10) ->  | K25: =IF(AA!N10="","",AA!N10) ->  | L25: =IF(AA!O10="","",AA!O10) ->  | M25: =IF(AA!P10="","",AA!P10) ->  | N25: =IF(AA!Q10="","",AA!Q10) ->  | O25: =IF(AA!R10="","",AA!R10) ->  | P25: =IF(AA!S10="","",AA!S10) ->  | Q25: =IF(AA!T10="","",AA!T10) ->  | R25: =IF(AA!U10="","",AA!U10) ->  | S25: =IF(AA!V10="","",AA!V10) ->  | T25: =IF(AA!W10="","",AA!W10) ->  | U25: =IF(AA!X10="","",AA!X10) ->  | V25: =IF(AA!Y10="","",AA!Y10) ->  | W25: =IF(AA!Z10="","",AA!Z10) ->  | X25: =IF(AA!AA10="","",AA!AA10) ->  | Y25: =IF(AA!AB10="","",AA!AB10) ->  | Z25: =IF(AA!AC10="","",AA!AC10) ->  | AA25: =IF(AA!AD10="","",AA!AD10) ->  | AB25: =IF(AA!AE10="","",AA!AE10) ->  | AC25: =IF(AA!AF10="","",AA!AF10) ->  | AD25: =IF(AA!AG10="","",AA!AG10) ->  | AE25: =IF(AA!AH10="","",AA!AH10) ->  | AF25: =IF(AA!AI10="","",AA!AI10) ->  | AG25: =IF(AA!AJ10="","",AA!AJ10) ->  | AH25: =IF(AA!AK10="","",AA!AK10) ->  | AI25: =IF(AA!AL10="","",AA!AL10) ->  | AJ25: =IF(AA!AM10="","",AA!AM10) ->  | AK25: =IF(AA!AN10="","",AA!AN10) ->  | AL25: =IF(AA!AO10="","",AA!AO10) ->  | AM25: =IF(AA!AP10="","",AA!AP10) -> 
D26: Criterio Evaluación 3.2 | E26: =IF(AA!H11="","",AA!H11) ->  | F26: =IF(AA!I11="","",AA!I11) ->  | G26: =IF(AA!J11="","",AA!J11) ->  | H26: =IF(AA!K11="","",AA!K11) ->  | I26: =IF(AA!L11="","",AA!L11) ->  | J26: =IF(AA!M11="","",AA!M11) ->  | K26: =IF(AA!N11="","",AA!N11) ->  | L26: =IF(AA!O11="","",AA!O11) ->  | M26: =IF(AA!P11="","",AA!P11) ->  | N26: =IF(AA!Q11="","",AA!Q11) ->  | O26: =IF(AA!R11="","",AA!R11) ->  | P26: =IF(AA!S11="","",AA!S11) ->  | Q26: =IF(AA!T11="","",AA!T11) ->  | R26: =IF(AA!U11="","",AA!U11) ->  | S26: =IF(AA!V11="","",AA!V11) ->  | T26: =IF(AA!W11="","",AA!W11) ->  | U26: =IF(AA!X11="","",AA!X11) ->  | V26: =IF(AA!Y11="","",AA!Y11) ->  | W26: =IF(AA!Z11="","",AA!Z11) ->  | X26: =IF(AA!AA11="","",AA!AA11) ->  | Y26: =IF(AA!AB11="","",AA!AB11) ->  | Z26: =IF(AA!AC11="","",AA!AC11) ->  | AA26: =IF(AA!AD11="","",AA!AD11) ->  | AB26: =IF(AA!AE11="","",AA!AE11) ->  | AC26: =IF(AA!AF11="","",AA!AF11) ->  | AD26: =IF(AA!AG11="","",AA!AG11) ->  | AE26: =IF(AA!AH11="","",AA!AH11) ->  | AF26: =IF(AA!AI11="","",AA!AI11) ->  | AG26: =IF(AA!AJ11="","",AA!AJ11) ->  | AH26: =IF(AA!AK11="","",AA!AK11) ->  | AI26: =IF(AA!AL11="","",AA!AL11) ->  | AJ26: =IF(AA!AM11="","",AA!AM11) ->  | AK26: =IF(AA!AN11="","",AA!AN11) ->  | AL26: =IF(AA!AO11="","",AA!AO11) ->  | AM26: =IF(AA!AP11="","",AA!AP11) -> 
D27: Criterio Evaluación 3.3 | E27: =IF(AA!H12="","",AA!H12) ->  | F27: =IF(AA!I12="","",AA!I12) ->  | G27: =IF(AA!J12="","",AA!J12) ->  | H27: =IF(AA!K12="","",AA!K12) ->  | I27: =IF(AA!L12="","",AA!L12) ->  | J27: =IF(AA!M12="","",AA!M12) ->  | K27: =IF(AA!N12="","",AA!N12) ->  | L27: =IF(AA!O12="","",AA!O12) ->  | M27: =IF(AA!P12="","",AA!P12) ->  | N27: =IF(AA!Q12="","",AA!Q12) ->  | O27: =IF(AA!R12="","",AA!R12) ->  | P27: =IF(AA!S12="","",AA!S12) ->  | Q27: =IF(AA!T12="","",AA!T12) ->  | R27: =IF(AA!U12="","",AA!U12) ->  | S27: =IF(AA!V12="","",AA!V12) ->  | T27: =IF(AA!W12="","",AA!W12) ->  | U27: =IF(AA!X12="","",AA!X12) ->  | V27: =IF(AA!Y12="","",AA!Y12) ->  | W27: =IF(AA!Z12="","",AA!Z12) ->  | X27: =IF(AA!AA12="","",AA!AA12) ->  | Y27: =IF(AA!AB12="","",AA!AB12) ->  | Z27: =IF(AA!AC12="","",AA!AC12) ->  | AA27: =IF(AA!AD12="","",AA!AD12) ->  | AB27: =IF(AA!AE12="","",AA!AE12) ->  | AC27: =IF(AA!AF12="","",AA!AF12) ->  | AD27: =IF(AA!AG12="","",AA!AG12) ->  | AE27: =IF(AA!AH12="","",AA!AH12) ->  | AF27: =IF(AA!AI12="","",AA!AI12) ->  | AG27: =IF(AA!AJ12="","",AA!AJ12) ->  | AH27: =IF(AA!AK12="","",AA!AK12) ->  | AI27: =IF(AA!AL12="","",AA!AL12) ->  | AJ27: =IF(AA!AM12="","",AA!AM12) ->  | AK27: =IF(AA!AN12="","",AA!AN12) ->  | AL27: =IF(AA!AO12="","",AA!AO12) ->  | AM27: =IF(AA!AP12="","",AA!AP12) -> 
D28: Criterio Evaluación 3.4 | E28: =IF(AA!H13="","",AA!H13) ->  | F28: =IF(AA!I13="","",AA!I13) ->  | G28: =IF(AA!J13="","",AA!J13) ->  | H28: =IF(AA!K13="","",AA!K13) ->  | I28: =IF(AA!L13="","",AA!L13) ->  | J28: =IF(AA!M13="","",AA!M13) ->  | K28: =IF(AA!N13="","",AA!N13) ->  | L28: =IF(AA!O13="","",AA!O13) ->  | M28: =IF(AA!P13="","",AA!P13) ->  | N28: =IF(AA!Q13="","",AA!Q13) ->  | O28: =IF(AA!R13="","",AA!R13) ->  | P28: =IF(AA!S13="","",AA!S13) ->  | Q28: =IF(AA!T13="","",AA!T13) ->  | R28: =IF(AA!U13="","",AA!U13) ->  | S28: =IF(AA!V13="","",AA!V13) ->  | T28: =IF(AA!W13="","",AA!W13) ->  | U28: =IF(AA!X13="","",AA!X13) ->  | V28: =IF(AA!Y13="","",AA!Y13) ->  | W28: =IF(AA!Z13="","",AA!Z13) ->  | X28: =IF(AA!AA13="","",AA!AA13) ->  | Y28: =IF(AA!AB13="","",AA!AB13) ->  | Z28: =IF(AA!AC13="","",AA!AC13) ->  | AA28: =IF(AA!AD13="","",AA!AD13) ->  | AB28: =IF(AA!AE13="","",AA!AE13) ->  | AC28: =IF(AA!AF13="","",AA!AF13) ->  | AD28: =IF(AA!AG13="","",AA!AG13) ->  | AE28: =IF(AA!AH13="","",AA!AH13) ->  | AF28: =IF(AA!AI13="","",AA!AI13) ->  | AG28: =IF(AA!AJ13="","",AA!AJ13) ->  | AH28: =IF(AA!AK13="","",AA!AK13) ->  | AI28: =IF(AA!AL13="","",AA!AL13) ->  | AJ28: =IF(AA!AM13="","",AA!AM13) ->  | AK28: =IF(AA!AN13="","",AA!AN13) ->  | AL28: =IF(AA!AO13="","",AA!AO13) ->  | AM28: =IF(AA!AP13="","",AA!AP13) -> 
D29: Criterio Evaluación 3.5 | E29: =IF(AA!H14="","",AA!H14) ->  | F29: =IF(AA!I14="","",AA!I14) ->  | G29: =IF(AA!J14="","",AA!J14) ->  | H29: =IF(AA!K14="","",AA!K14) ->  | I29: =IF(AA!L14="","",AA!L14) ->  | J29: =IF(AA!M14="","",AA!M14) ->  | K29: =IF(AA!N14="","",AA!N14) ->  | L29: =IF(AA!O14="","",AA!O14) ->  | M29: =IF(AA!P14="","",AA!P14) ->  | N29: =IF(AA!Q14="","",AA!Q14) ->  | O29: =IF(AA!R14="","",AA!R14) ->  | P29: =IF(AA!S14="","",AA!S14) ->  | Q29: =IF(AA!T14="","",AA!T14) ->  | R29: =IF(AA!U14="","",AA!U14) ->  | S29: =IF(AA!V14="","",AA!V14) ->  | T29: =IF(AA!W14="","",AA!W14) ->  | U29: =IF(AA!X14="","",AA!X14) ->  | V29: =IF(AA!Y14="","",AA!Y14) ->  | W29: =IF(AA!Z14="","",AA!Z14) ->  | X29: =IF(AA!AA14="","",AA!AA14) ->  | Y29: =IF(AA!AB14="","",AA!AB14) ->  | Z29: =IF(AA!AC14="","",AA!AC14) ->  | AA29: =IF(AA!AD14="","",AA!AD14) ->  | AB29: =IF(AA!AE14="","",AA!AE14) ->  | AC29: =IF(AA!AF14="","",AA!AF14) ->  | AD29: =IF(AA!AG14="","",AA!AG14) ->  | AE29: =IF(AA!AH14="","",AA!AH14) ->  | AF29: =IF(AA!AI14="","",AA!AI14) ->  | AG29: =IF(AA!AJ14="","",AA!AJ14) ->  | AH29: =IF(AA!AK14="","",AA!AK14) ->  | AI29: =IF(AA!AL14="","",AA!AL14) ->  | AJ29: =IF(AA!AM14="","",AA!AM14) ->  | AK29: =IF(AA!AN14="","",AA!AN14) ->  | AL29: =IF(AA!AO14="","",AA!AO14) ->  | AM29: =IF(AA!AP14="","",AA!AP14) -> 
D30: Criterio Evaluación 3.6 | E30: =IF(AA!H15="","",AA!H15) ->  | F30: =IF(AA!I15="","",AA!I15) ->  | G30: =IF(AA!J15="","",AA!J15) ->  | H30: =IF(AA!K15="","",AA!K15) ->  | I30: =IF(AA!L15="","",AA!L15) ->  | J30: =IF(AA!M15="","",AA!M15) ->  | K30: =IF(AA!N15="","",AA!N15) ->  | L30: =IF(AA!O15="","",AA!O15) ->  | M30: =IF(AA!P15="","",AA!P15) ->  | N30: =IF(AA!Q15="","",AA!Q15) ->  | O30: =IF(AA!R15="","",AA!R15) ->  | P30: =IF(AA!S15="","",AA!S15) ->  | Q30: =IF(AA!T15="","",AA!T15) ->  | R30: =IF(AA!U15="","",AA!U15) ->  | S30: =IF(AA!V15="","",AA!V15) ->  | T30: =IF(AA!W15="","",AA!W15) ->  | U30: =IF(AA!X15="","",AA!X15) ->  | V30: =IF(AA!Y15="","",AA!Y15) ->  | W30: =IF(AA!Z15="","",AA!Z15) ->  | X30: =IF(AA!AA15="","",AA!AA15) ->  | Y30: =IF(AA!AB15="","",AA!AB15) ->  | Z30: =IF(AA!AC15="","",AA!AC15) ->  | AA30: =IF(AA!AD15="","",AA!AD15) ->  | AB30: =IF(AA!AE15="","",AA!AE15) ->  | AC30: =IF(AA!AF15="","",AA!AF15) ->  | AD30: =IF(AA!AG15="","",AA!AG15) ->  | AE30: =IF(AA!AH15="","",AA!AH15) ->  | AF30: =IF(AA!AI15="","",AA!AI15) ->  | AG30: =IF(AA!AJ15="","",AA!AJ15) ->  | AH30: =IF(AA!AK15="","",AA!AK15) ->  | AI30: =IF(AA!AL15="","",AA!AL15) ->  | AJ30: =IF(AA!AM15="","",AA!AM15) ->  | AK30: =IF(AA!AN15="","",AA!AN15) ->  | AL30: =IF(AA!AO15="","",AA!AO15) ->  | AM30: =IF(AA!AP15="","",AA!AP15) -> 
C31: Comp. Esp. 4 | D31: Criterio Evaluación 4.1 | E31: =IF(AA!H16="","",AA!H16) ->  | F31: =IF(AA!I16="","",AA!I16) ->  | G31: =IF(AA!J16="","",AA!J16) ->  | H31: =IF(AA!K16="","",AA!K16) ->  | I31: =IF(AA!L16="","",AA!L16) ->  | J31: =IF(AA!M16="","",AA!M16) ->  | K31: =IF(AA!N16="","",AA!N16) ->  | L31: =IF(AA!O16="","",AA!O16) ->  | M31: =IF(AA!P16="","",AA!P16) ->  | N31: =IF(AA!Q16="","",AA!Q16) ->  | O31: =IF(AA!R16="","",AA!R16) ->  | P31: =IF(AA!S16="","",AA!S16) ->  | Q31: =IF(AA!T16="","",AA!T16) ->  | R31: =IF(AA!U16="","",AA!U16) ->  | S31: =IF(AA!V16="","",AA!V16) ->  | T31: =IF(AA!W16="","",AA!W16) ->  | U31: =IF(AA!X16="","",AA!X16) ->  | V31: =IF(AA!Y16="","",AA!Y16) ->  | W31: =IF(AA!Z16="","",AA!Z16) ->  | X31: =IF(AA!AA16="","",AA!AA16) ->  | Y31: =IF(AA!AB16="","",AA!AB16) ->  | Z31: =IF(AA!AC16="","",AA!AC16) ->  | AA31: =IF(AA!AD16="","",AA!AD16) ->  | AB31: =IF(AA!AE16="","",AA!AE16) ->  | AC31: =IF(AA!AF16="","",AA!AF16) ->  | AD31: =IF(AA!AG16="","",AA!AG16) ->  | AE31: =IF(AA!AH16="","",AA!AH16) ->  | AF31: =IF(AA!AI16="","",AA!AI16) ->  | AG31: =IF(AA!AJ16="","",AA!AJ16) ->  | AH31: =IF(AA!AK16="","",AA!AK16) ->  | AI31: =IF(AA!AL16="","",AA!AL16) ->  | AJ31: =IF(AA!AM16="","",AA!AM16) ->  | AK31: =IF(AA!AN16="","",AA!AN16) ->  | AL31: =IF(AA!AO16="","",AA!AO16) ->  | AM31: =IF(AA!AP16="","",AA!AP16) -> 
D32: Criterio Evaluación 4.2 | E32: =IF(AA!H17="","",AA!H17) ->  | F32: =IF(AA!I17="","",AA!I17) ->  | G32: =IF(AA!J17="","",AA!J17) ->  | H32: =IF(AA!K17="","",AA!K17) ->  | I32: =IF(AA!L17="","",AA!L17) ->  | J32: =IF(AA!M17="","",AA!M17) ->  | K32: =IF(AA!N17="","",AA!N17) ->  | L32: =IF(AA!O17="","",AA!O17) ->  | M32: =IF(AA!P17="","",AA!P17) ->  | N32: =IF(AA!Q17="","",AA!Q17) ->  | O32: =IF(AA!R17="","",AA!R17) ->  | P32: =IF(AA!S17="","",AA!S17) ->  | Q32: =IF(AA!T17="","",AA!T17) ->  | R32: =IF(AA!U17="","",AA!U17) ->  | S32: =IF(AA!V17="","",AA!V17) ->  | T32: =IF(AA!W17="","",AA!W17) ->  | U32: =IF(AA!X17="","",AA!X17) ->  | V32: =IF(AA!Y17="","",AA!Y17) ->  | W32: =IF(AA!Z17="","",AA!Z17) ->  | X32: =IF(AA!AA17="","",AA!AA17) ->  | Y32: =IF(AA!AB17="","",AA!AB17) ->  | Z32: =IF(AA!AC17="","",AA!AC17) ->  | AA32: =IF(AA!AD17="","",AA!AD17) ->  | AB32: =IF(AA!AE17="","",AA!AE17) ->  | AC32: =IF(AA!AF17="","",AA!AF17) ->  | AD32: =IF(AA!AG17="","",AA!AG17) ->  | AE32: =IF(AA!AH17="","",AA!AH17) ->  | AF32: =IF(AA!AI17="","",AA!AI17) ->  | AG32: =IF(AA!AJ17="","",AA!AJ17) ->  | AH32: =IF(AA!AK17="","",AA!AK17) ->  | AI32: =IF(AA!AL17="","",AA!AL17) ->  | AJ32: =IF(AA!AM17="","",AA!AM17) ->  | AK32: =IF(AA!AN17="","",AA!AN17) ->  | AL32: =IF(AA!AO17="","",AA!AO17) ->  | AM32: =IF(AA!AP17="","",AA!AP17) -> 
D33: Criterio Evaluación 4.3 | E33: =IF(AA!H18="","",AA!H18) ->  | F33: =IF(AA!I18="","",AA!I18) ->  | G33: =IF(AA!J18="","",AA!J18) ->  | H33: =IF(AA!K18="","",AA!K18) ->  | I33: =IF(AA!L18="","",AA!L18) ->  | J33: =IF(AA!M18="","",AA!M18) ->  | K33: =IF(AA!N18="","",AA!N18) ->  | L33: =IF(AA!O18="","",AA!O18) ->  | M33: =IF(AA!P18="","",AA!P18) ->  | N33: =IF(AA!Q18="","",AA!Q18) ->  | O33: =IF(AA!R18="","",AA!R18) ->  | P33: =IF(AA!S18="","",AA!S18) ->  | Q33: =IF(AA!T18="","",AA!T18) ->  | R33: =IF(AA!U18="","",AA!U18) ->  | S33: =IF(AA!V18="","",AA!V18) ->  | T33: =IF(AA!W18="","",AA!W18) ->  | U33: =IF(AA!X18="","",AA!X18) ->  | V33: =IF(AA!Y18="","",AA!Y18) ->  | W33: =IF(AA!Z18="","",AA!Z18) ->  | X33: =IF(AA!AA18="","",AA!AA18) ->  | Y33: =IF(AA!AB18="","",AA!AB18) ->  | Z33: =IF(AA!AC18="","",AA!AC18) ->  | AA33: =IF(AA!AD18="","",AA!AD18) ->  | AB33: =IF(AA!AE18="","",AA!AE18) ->  | AC33: =IF(AA!AF18="","",AA!AF18) ->  | AD33: =IF(AA!AG18="","",AA!AG18) ->  | AE33: =IF(AA!AH18="","",AA!AH18) ->  | AF33: =IF(AA!AI18="","",AA!AI18) ->  | AG33: =IF(AA!AJ18="","",AA!AJ18) ->  | AH33: =IF(AA!AK18="","",AA!AK18) ->  | AI33: =IF(AA!AL18="","",AA!AL18) ->  | AJ33: =IF(AA!AM18="","",AA!AM18) ->  | AK33: =IF(AA!AN18="","",AA!AN18) ->  | AL33: =IF(AA!AO18="","",AA!AO18) ->  | AM33: =IF(AA!AP18="","",AA!AP18) -> 
D34: Criterio Evaluación 4.4 | E34: =IF(AA!H19="","",AA!H19) ->  | F34: =IF(AA!I19="","",AA!I19) ->  | G34: =IF(AA!J19="","",AA!J19) ->  | H34: =IF(AA!K19="","",AA!K19) ->  | I34: =IF(AA!L19="","",AA!L19) ->  | J34: =IF(AA!M19="","",AA!M19) ->  | K34: =IF(AA!N19="","",AA!N19) ->  | L34: =IF(AA!O19="","",AA!O19) ->  | M34: =IF(AA!P19="","",AA!P19) ->  | N34: =IF(AA!Q19="","",AA!Q19) ->  | O34: =IF(AA!R19="","",AA!R19) ->  | P34: =IF(AA!S19="","",AA!S19) ->  | Q34: =IF(AA!T19="","",AA!T19) ->  | R34: =IF(AA!U19="","",AA!U19) ->  | S34: =IF(AA!V19="","",AA!V19) ->  | T34: =IF(AA!W19="","",AA!W19) ->  | U34: =IF(AA!X19="","",AA!X19) ->  | V34: =IF(AA!Y19="","",AA!Y19) ->  | W34: =IF(AA!Z19="","",AA!Z19) ->  | X34: =IF(AA!AA19="","",AA!AA19) ->  | Y34: =IF(AA!AB19="","",AA!AB19) ->  | Z34: =IF(AA!AC19="","",AA!AC19) ->  | AA34: =IF(AA!AD19="","",AA!AD19) ->  | AB34: =IF(AA!AE19="","",AA!AE19) ->  | AC34: =IF(AA!AF19="","",AA!AF19) ->  | AD34: =IF(AA!AG19="","",AA!AG19) ->  | AE34: =IF(AA!AH19="","",AA!AH19) ->  | AF34: =IF(AA!AI19="","",AA!AI19) ->  | AG34: =IF(AA!AJ19="","",AA!AJ19) ->  | AH34: =IF(AA!AK19="","",AA!AK19) ->  | AI34: =IF(AA!AL19="","",AA!AL19) ->  | AJ34: =IF(AA!AM19="","",AA!AM19) ->  | AK34: =IF(AA!AN19="","",AA!AN19) ->  | AL34: =IF(AA!AO19="","",AA!AO19) ->  | AM34: =IF(AA!AP19="","",AA!AP19) -> 
C35: Comp. Esp. 5 | D35: Criterio Evaluación 5.1 | E35: =IF(AA!H20="","",AA!H20) ->  | F35: =IF(AA!I20="","",AA!I20) ->  | G35: =IF(AA!J20="","",AA!J20) ->  | H35: =IF(AA!K20="","",AA!K20) ->  | I35: =IF(AA!L20="","",AA!L20) ->  | J35: =IF(AA!M20="","",AA!M20) ->  | K35: =IF(AA!N20="","",AA!N20) ->  | L35: =IF(AA!O20="","",AA!O20) ->  | M35: =IF(AA!P20="","",AA!P20) ->  | N35: =IF(AA!Q20="","",AA!Q20) ->  | O35: =IF(AA!R20="","",AA!R20) ->  | P35: =IF(AA!S20="","",AA!S20) ->  | Q35: =IF(AA!T20="","",AA!T20) ->  | R35: =IF(AA!U20="","",AA!U20) ->  | S35: =IF(AA!V20="","",AA!V20) ->  | T35: =IF(AA!W20="","",AA!W20) ->  | U35: =IF(AA!X20="","",AA!X20) ->  | V35: =IF(AA!Y20="","",AA!Y20) ->  | W35: =IF(AA!Z20="","",AA!Z20) ->  | X35: =IF(AA!AA20="","",AA!AA20) ->  | Y35: =IF(AA!AB20="","",AA!AB20) ->  | Z35: =IF(AA!AC20="","",AA!AC20) ->  | AA35: =IF(AA!AD20="","",AA!AD20) ->  | AB35: =IF(AA!AE20="","",AA!AE20) ->  | AC35: =IF(AA!AF20="","",AA!AF20) ->  | AD35: =IF(AA!AG20="","",AA!AG20) ->  | AE35: =IF(AA!AH20="","",AA!AH20) ->  | AF35: =IF(AA!AI20="","",AA!AI20) ->  | AG35: =IF(AA!AJ20="","",AA!AJ20) ->  | AH35: =IF(AA!AK20="","",AA!AK20) ->  | AI35: =IF(AA!AL20="","",AA!AL20) ->  | AJ35: =IF(AA!AM20="","",AA!AM20) ->  | AK35: =IF(AA!AN20="","",AA!AN20) ->  | AL35: =IF(AA!AO20="","",AA!AO20) ->  | AM35: =IF(AA!AP20="","",AA!AP20) -> 
D36: Criterio Evaluación 5.2 | E36: =IF(AA!H21="","",AA!H21) ->  | F36: =IF(AA!I21="","",AA!I21) ->  | G36: =IF(AA!J21="","",AA!J21) ->  | H36: =IF(AA!K21="","",AA!K21) ->  | I36: =IF(AA!L21="","",AA!L21) ->  | J36: =IF(AA!M21="","",AA!M21) ->  | K36: =IF(AA!N21="","",AA!N21) ->  | L36: =IF(AA!O21="","",AA!O21) ->  | M36: =IF(AA!P21="","",AA!P21) ->  | N36: =IF(AA!Q21="","",AA!Q21) ->  | O36: =IF(AA!R21="","",AA!R21) ->  | P36: =IF(AA!S21="","",AA!S21) ->  | Q36: =IF(AA!T21="","",AA!T21) ->  | R36: =IF(AA!U21="","",AA!U21) ->  | S36: =IF(AA!V21="","",AA!V21) ->  | T36: =IF(AA!W21="","",AA!W21) ->  | U36: =IF(AA!X21="","",AA!X21) ->  | V36: =IF(AA!Y21="","",AA!Y21) ->  | W36: =IF(AA!Z21="","",AA!Z21) ->  | X36: =IF(AA!AA21="","",AA!AA21) ->  | Y36: =IF(AA!AB21="","",AA!AB21) ->  | Z36: =IF(AA!AC21="","",AA!AC21) ->  | AA36: =IF(AA!AD21="","",AA!AD21) ->  | AB36: =IF(AA!AE21="","",AA!AE21) ->  | AC36: =IF(AA!AF21="","",AA!AF21) ->  | AD36: =IF(AA!AG21="","",AA!AG21) ->  | AE36: =IF(AA!AH21="","",AA!AH21) ->  | AF36: =IF(AA!AI21="","",AA!AI21) ->  | AG36: =IF(AA!AJ21="","",AA!AJ21) ->  | AH36: =IF(AA!AK21="","",AA!AK21) ->  | AI36: =IF(AA!AL21="","",AA!AL21) ->  | AJ36: =IF(AA!AM21="","",AA!AM21) ->  | AK36: =IF(AA!AN21="","",AA!AN21) ->  | AL36: =IF(AA!AO21="","",AA!AO21) ->  | AM36: =IF(AA!AP21="","",AA!AP21) -> 
D37: Criterio Evaluación 5.3 | E37: =IF(AA!H22="","",AA!H22) ->  | F37: =IF(AA!I22="","",AA!I22) ->  | G37: =IF(AA!J22="","",AA!J22) ->  | H37: =IF(AA!K22="","",AA!K22) ->  | I37: =IF(AA!L22="","",AA!L22) ->  | J37: =IF(AA!M22="","",AA!M22) ->  | K37: =IF(AA!N22="","",AA!N22) ->  | L37: =IF(AA!O22="","",AA!O22) ->  | M37: =IF(AA!P22="","",AA!P22) ->  | N37: =IF(AA!Q22="","",AA!Q22) ->  | O37: =IF(AA!R22="","",AA!R22) ->  | P37: =IF(AA!S22="","",AA!S22) ->  | Q37: =IF(AA!T22="","",AA!T22) ->  | R37: =IF(AA!U22="","",AA!U22) ->  | S37: =IF(AA!V22="","",AA!V22) ->  | T37: =IF(AA!W22="","",AA!W22) ->  | U37: =IF(AA!X22="","",AA!X22) ->  | V37: =IF(AA!Y22="","",AA!Y22) ->  | W37: =IF(AA!Z22="","",AA!Z22) ->  | X37: =IF(AA!AA22="","",AA!AA22) ->  | Y37: =IF(AA!AB22="","",AA!AB22) ->  | Z37: =IF(AA!AC22="","",AA!AC22) ->  | AA37: =IF(AA!AD22="","",AA!AD22) ->  | AB37: =IF(AA!AE22="","",AA!AE22) ->  | AC37: =IF(AA!AF22="","",AA!AF22) ->  | AD37: =IF(AA!AG22="","",AA!AG22) ->  | AE37: =IF(AA!AH22="","",AA!AH22) ->  | AF37: =IF(AA!AI22="","",AA!AI22) ->  | AG37: =IF(AA!AJ22="","",AA!AJ22) ->  | AH37: =IF(AA!AK22="","",AA!AK22) ->  | AI37: =IF(AA!AL22="","",AA!AL22) ->  | AJ37: =IF(AA!AM22="","",AA!AM22) ->  | AK37: =IF(AA!AN22="","",AA!AN22) ->  | AL37: =IF(AA!AO22="","",AA!AO22) ->  | AM37: =IF(AA!AP22="","",AA!AP22) -> 
D38: Criterio Evaluación 5.4 | E38: =IF(AA!H23="","",AA!H23) ->  | F38: =IF(AA!I23="","",AA!I23) ->  | G38: =IF(AA!J23="","",AA!J23) ->  | H38: =IF(AA!K23="","",AA!K23) ->  | I38: =IF(AA!L23="","",AA!L23) ->  | J38: =IF(AA!M23="","",AA!M23) ->  | K38: =IF(AA!N23="","",AA!N23) ->  | L38: =IF(AA!O23="","",AA!O23) ->  | M38: =IF(AA!P23="","",AA!P23) ->  | N38: =IF(AA!Q23="","",AA!Q23) ->  | O38: =IF(AA!R23="","",AA!R23) ->  | P38: =IF(AA!S23="","",AA!S23) ->  | Q38: =IF(AA!T23="","",AA!T23) ->  | R38: =IF(AA!U23="","",AA!U23) ->  | S38: =IF(AA!V23="","",AA!V23) ->  | T38: =IF(AA!W23="","",AA!W23) ->  | U38: =IF(AA!X23="","",AA!X23) ->  | V38: =IF(AA!Y23="","",AA!Y23) ->  | W38: =IF(AA!Z23="","",AA!Z23) ->  | X38: =IF(AA!AA23="","",AA!AA23) ->  | Y38: =IF(AA!AB23="","",AA!AB23) ->  | Z38: =IF(AA!AC23="","",AA!AC23) ->  | AA38: =IF(AA!AD23="","",AA!AD23) ->  | AB38: =IF(AA!AE23="","",AA!AE23) ->  | AC38: =IF(AA!AF23="","",AA!AF23) ->  | AD38: =IF(AA!AG23="","",AA!AG23) ->  | AE38: =IF(AA!AH23="","",AA!AH23) ->  | AF38: =IF(AA!AI23="","",AA!AI23) ->  | AG38: =IF(AA!AJ23="","",AA!AJ23) ->  | AH38: =IF(AA!AK23="","",AA!AK23) ->  | AI38: =IF(AA!AL23="","",AA!AL23) ->  | AJ38: =IF(AA!AM23="","",AA!AM23) ->  | AK38: =IF(AA!AN23="","",AA!AN23) ->  | AL38: =IF(AA!AO23="","",AA!AO23) ->  | AM38: =IF(AA!AP23="","",AA!AP23) -> 
D39: Criterio Evaluación 5.5 | E39: =IF(AA!H24="","",AA!H24) ->  | F39: =IF(AA!I24="","",AA!I24) ->  | G39: =IF(AA!J24="","",AA!J24) ->  | H39: =IF(AA!K24="","",AA!K24) ->  | I39: =IF(AA!L24="","",AA!L24) ->  | J39: =IF(AA!M24="","",AA!M24) ->  | K39: =IF(AA!N24="","",AA!N24) ->  | L39: =IF(AA!O24="","",AA!O24) ->  | M39: =IF(AA!P24="","",AA!P24) ->  | N39: =IF(AA!Q24="","",AA!Q24) ->  | O39: =IF(AA!R24="","",AA!R24) ->  | P39: =IF(AA!S24="","",AA!S24) ->  | Q39: =IF(AA!T24="","",AA!T24) ->  | R39: =IF(AA!U24="","",AA!U24) ->  | S39: =IF(AA!V24="","",AA!V24) ->  | T39: =IF(AA!W24="","",AA!W24) ->  | U39: =IF(AA!X24="","",AA!X24) ->  | V39: =IF(AA!Y24="","",AA!Y24) ->  | W39: =IF(AA!Z24="","",AA!Z24) ->  | X39: =IF(AA!AA24="","",AA!AA24) ->  | Y39: =IF(AA!AB24="","",AA!AB24) ->  | Z39: =IF(AA!AC24="","",AA!AC24) ->  | AA39: =IF(AA!AD24="","",AA!AD24) ->  | AB39: =IF(AA!AE24="","",AA!AE24) ->  | AC39: =IF(AA!AF24="","",AA!AF24) ->  | AD39: =IF(AA!AG24="","",AA!AG24) ->  | AE39: =IF(AA!AH24="","",AA!AH24) ->  | AF39: =IF(AA!AI24="","",AA!AI24) ->  | AG39: =IF(AA!AJ24="","",AA!AJ24) ->  | AH39: =IF(AA!AK24="","",AA!AK24) ->  | AI39: =IF(AA!AL24="","",AA!AL24) ->  | AJ39: =IF(AA!AM24="","",AA!AM24) ->  | AK39: =IF(AA!AN24="","",AA!AN24) ->  | AL39: =IF(AA!AO24="","",AA!AO24) ->  | AM39: =IF(AA!AP24="","",AA!AP24) -> 
D40: Criterio Evaluación 5.6 | E40: =IF(AA!H25="","",AA!H25) ->  | F40: =IF(AA!I25="","",AA!I25) ->  | G40: =IF(AA!J25="","",AA!J25) ->  | H40: =IF(AA!K25="","",AA!K25) ->  | I40: =IF(AA!L25="","",AA!L25) ->  | J40: =IF(AA!M25="","",AA!M25) ->  | K40: =IF(AA!N25="","",AA!N25) ->  | L40: =IF(AA!O25="","",AA!O25) ->  | M40: =IF(AA!P25="","",AA!P25) ->  | N40: =IF(AA!Q25="","",AA!Q25) ->  | O40: =IF(AA!R25="","",AA!R25) ->  | P40: =IF(AA!S25="","",AA!S25) ->  | Q40: =IF(AA!T25="","",AA!T25) ->  | R40: =IF(AA!U25="","",AA!U25) ->  | S40: =IF(AA!V25="","",AA!V25) ->  | T40: =IF(AA!W25="","",AA!W25) ->  | U40: =IF(AA!X25="","",AA!X25) ->  | V40: =IF(AA!Y25="","",AA!Y25) ->  | W40: =IF(AA!Z25="","",AA!Z25) ->  | X40: =IF(AA!AA25="","",AA!AA25) ->  | Y40: =IF(AA!AB25="","",AA!AB25) ->  | Z40: =IF(AA!AC25="","",AA!AC25) ->  | AA40: =IF(AA!AD25="","",AA!AD25) ->  | AB40: =IF(AA!AE25="","",AA!AE25) ->  | AC40: =IF(AA!AF25="","",AA!AF25) ->  | AD40: =IF(AA!AG25="","",AA!AG25) ->  | AE40: =IF(AA!AH25="","",AA!AH25) ->  | AF40: =IF(AA!AI25="","",AA!AI25) ->  | AG40: =IF(AA!AJ25="","",AA!AJ25) ->  | AH40: =IF(AA!AK25="","",AA!AK25) ->  | AI40: =IF(AA!AL25="","",AA!AL25) ->  | AJ40: =IF(AA!AM25="","",AA!AM25) ->  | AK40: =IF(AA!AN25="","",AA!AN25) ->  | AL40: =IF(AA!AO25="","",AA!AO25) ->  | AM40: =IF(AA!AP25="","",AA!AP25) -> 
D41: Criterio Evaluación 5.7 | E41: =IF(AA!H26="","",AA!H26) ->  | F41: =IF(AA!I26="","",AA!I26) ->  | G41: =IF(AA!J26="","",AA!J26) ->  | H41: =IF(AA!K26="","",AA!K26) ->  | I41: =IF(AA!L26="","",AA!L26) ->  | J41: =IF(AA!M26="","",AA!M26) ->  | K41: =IF(AA!N26="","",AA!N26) ->  | L41: =IF(AA!O26="","",AA!O26) ->  | M41: =IF(AA!P26="","",AA!P26) ->  | N41: =IF(AA!Q26="","",AA!Q26) ->  | O41: =IF(AA!R26="","",AA!R26) ->  | P41: =IF(AA!S26="","",AA!S26) ->  | Q41: =IF(AA!T26="","",AA!T26) ->  | R41: =IF(AA!U26="","",AA!U26) ->  | S41: =IF(AA!V26="","",AA!V26) ->  | T41: =IF(AA!W26="","",AA!W26) ->  | U41: =IF(AA!X26="","",AA!X26) ->  | V41: =IF(AA!Y26="","",AA!Y26) ->  | W41: =IF(AA!Z26="","",AA!Z26) ->  | X41: =IF(AA!AA26="","",AA!AA26) ->  | Y41: =IF(AA!AB26="","",AA!AB26) ->  | Z41: =IF(AA!AC26="","",AA!AC26) ->  | AA41: =IF(AA!AD26="","",AA!AD26) ->  | AB41: =IF(AA!AE26="","",AA!AE26) ->  | AC41: =IF(AA!AF26="","",AA!AF26) ->  | AD41: =IF(AA!AG26="","",AA!AG26) ->  | AE41: =IF(AA!AH26="","",AA!AH26) ->  | AF41: =IF(AA!AI26="","",AA!AI26) ->  | AG41: =IF(AA!AJ26="","",AA!AJ26) ->  | AH41: =IF(AA!AK26="","",AA!AK26) ->  | AI41: =IF(AA!AL26="","",AA!AL26) ->  | AJ41: =IF(AA!AM26="","",AA!AM26) ->  | AK41: =IF(AA!AN26="","",AA!AN26) ->  | AL41: =IF(AA!AO26="","",AA!AO26) ->  | AM41: =IF(AA!AP26="","",AA!AP26) -> 
C42: Comp. Esp. 6 | D42: Criterio Evaluación 6.1 | E42: =IF(AA!H27="","",AA!H27) ->  | F42: =IF(AA!I27="","",AA!I27) ->  | G42: =IF(AA!J27="","",AA!J27) ->  | H42: =IF(AA!K27="","",AA!K27) ->  | I42: =IF(AA!L27="","",AA!L27) ->  | J42: =IF(AA!M27="","",AA!M27) ->  | K42: =IF(AA!N27="","",AA!N27) ->  | L42: =IF(AA!O27="","",AA!O27) ->  | M42: =IF(AA!P27="","",AA!P27) ->  | N42: =IF(AA!Q27="","",AA!Q27) ->  | O42: =IF(AA!R27="","",AA!R27) ->  | P42: =IF(AA!S27="","",AA!S27) ->  | Q42: =IF(AA!T27="","",AA!T27) ->  | R42: =IF(AA!U27="","",AA!U27) ->  | S42: =IF(AA!V27="","",AA!V27) ->  | T42: =IF(AA!W27="","",AA!W27) ->  | U42: =IF(AA!X27="","",AA!X27) ->  | V42: =IF(AA!Y27="","",AA!Y27) ->  | W42: =IF(AA!Z27="","",AA!Z27) ->  | X42: =IF(AA!AA27="","",AA!AA27) ->  | Y42: =IF(AA!AB27="","",AA!AB27) ->  | Z42: =IF(AA!AC27="","",AA!AC27) ->  | AA42: =IF(AA!AD27="","",AA!AD27) ->  | AB42: =IF(AA!AE27="","",AA!AE27) ->  | AC42: =IF(AA!AF27="","",AA!AF27) ->  | AD42: =IF(AA!AG27="","",AA!AG27) ->  | AE42: =IF(AA!AH27="","",AA!AH27) ->  | AF42: =IF(AA!AI27="","",AA!AI27) ->  | AG42: =IF(AA!AJ27="","",AA!AJ27) ->  | AH42: =IF(AA!AK27="","",AA!AK27) ->  | AI42: =IF(AA!AL27="","",AA!AL27) ->  | AJ42: =IF(AA!AM27="","",AA!AM27) ->  | AK42: =IF(AA!AN27="","",AA!AN27) ->  | AL42: =IF(AA!AO27="","",AA!AO27) ->  | AM42: =IF(AA!AP27="","",AA!AP27) -> 
D43: Criterio Evaluación 6.2 | E43: =IF(AA!H28="","",AA!H28) ->  | F43: =IF(AA!I28="","",AA!I28) ->  | G43: =IF(AA!J28="","",AA!J28) ->  | H43: =IF(AA!K28="","",AA!K28) ->  | I43: =IF(AA!L28="","",AA!L28) ->  | J43: =IF(AA!M28="","",AA!M28) ->  | K43: =IF(AA!N28="","",AA!N28) ->  | L43: =IF(AA!O28="","",AA!O28) ->  | M43: =IF(AA!P28="","",AA!P28) ->  | N43: =IF(AA!Q28="","",AA!Q28) ->  | O43: =IF(AA!R28="","",AA!R28) ->  | P43: =IF(AA!S28="","",AA!S28) ->  | Q43: =IF(AA!T28="","",AA!T28) ->  | R43: =IF(AA!U28="","",AA!U28) ->  | S43: =IF(AA!V28="","",AA!V28) ->  | T43: =IF(AA!W28="","",AA!W28) ->  | U43: =IF(AA!X28="","",AA!X28) ->  | V43: =IF(AA!Y28="","",AA!Y28) ->  | W43: =IF(AA!Z28="","",AA!Z28) ->  | X43: =IF(AA!AA28="","",AA!AA28) ->  | Y43: =IF(AA!AB28="","",AA!AB28) ->  | Z43: =IF(AA!AC28="","",AA!AC28) ->  | AA43: =IF(AA!AD28="","",AA!AD28) ->  | AB43: =IF(AA!AE28="","",AA!AE28) ->  | AC43: =IF(AA!AF28="","",AA!AF28) ->  | AD43: =IF(AA!AG28="","",AA!AG28) ->  | AE43: =IF(AA!AH28="","",AA!AH28) ->  | AF43: =IF(AA!AI28="","",AA!AI28) ->  | AG43: =IF(AA!AJ28="","",AA!AJ28) ->  | AH43: =IF(AA!AK28="","",AA!AK28) ->  | AI43: =IF(AA!AL28="","",AA!AL28) ->  | AJ43: =IF(AA!AM28="","",AA!AM28) ->  | AK43: =IF(AA!AN28="","",AA!AN28) ->  | AL43: =IF(AA!AO28="","",AA!AO28) ->  | AM43: =IF(AA!AP28="","",AA!AP28) -> 
D44: Criterio Evaluación 6.3 | E44: =IF(AA!H29="","",AA!H29) ->  | F44: =IF(AA!I29="","",AA!I29) ->  | G44: =IF(AA!J29="","",AA!J29) ->  | H44: =IF(AA!K29="","",AA!K29) ->  | I44: =IF(AA!L29="","",AA!L29) ->  | J44: =IF(AA!M29="","",AA!M29) ->  | K44: =IF(AA!N29="","",AA!N29) ->  | L44: =IF(AA!O29="","",AA!O29) ->  | M44: =IF(AA!P29="","",AA!P29) ->  | N44: =IF(AA!Q29="","",AA!Q29) ->  | O44: =IF(AA!R29="","",AA!R29) ->  | P44: =IF(AA!S29="","",AA!S29) ->  | Q44: =IF(AA!T29="","",AA!T29) ->  | R44: =IF(AA!U29="","",AA!U29) ->  | S44: =IF(AA!V29="","",AA!V29) ->  | T44: =IF(AA!W29="","",AA!W29) ->  | U44: =IF(AA!X29="","",AA!X29) ->  | V44: =IF(AA!Y29="","",AA!Y29) ->  | W44: =IF(AA!Z29="","",AA!Z29) ->  | X44: =IF(AA!AA29="","",AA!AA29) ->  | Y44: =IF(AA!AB29="","",AA!AB29) ->  | Z44: =IF(AA!AC29="","",AA!AC29) ->  | AA44: =IF(AA!AD29="","",AA!AD29) ->  | AB44: =IF(AA!AE29="","",AA!AE29) ->  | AC44: =IF(AA!AF29="","",AA!AF29) ->  | AD44: =IF(AA!AG29="","",AA!AG29) ->  | AE44: =IF(AA!AH29="","",AA!AH29) ->  | AF44: =IF(AA!AI29="","",AA!AI29) ->  | AG44: =IF(AA!AJ29="","",AA!AJ29) ->  | AH44: =IF(AA!AK29="","",AA!AK29) ->  | AI44: =IF(AA!AL29="","",AA!AL29) ->  | AJ44: =IF(AA!AM29="","",AA!AM29) ->  | AK44: =IF(AA!AN29="","",AA!AN29) ->  | AL44: =IF(AA!AO29="","",AA!AO29) ->  | AM44: =IF(AA!AP29="","",AA!AP29) -> 
D45: Criterio Evaluación 6.4 | E45: =IF(AA!H30="","",AA!H30) ->  | F45: =IF(AA!I30="","",AA!I30) ->  | G45: =IF(AA!J30="","",AA!J30) ->  | H45: =IF(AA!K30="","",AA!K30) ->  | I45: =IF(AA!L30="","",AA!L30) ->  | J45: =IF(AA!M30="","",AA!M30) ->  | K45: =IF(AA!N30="","",AA!N30) ->  | L45: =IF(AA!O30="","",AA!O30) ->  | M45: =IF(AA!P30="","",AA!P30) ->  | N45: =IF(AA!Q30="","",AA!Q30) ->  | O45: =IF(AA!R30="","",AA!R30) ->  | P45: =IF(AA!S30="","",AA!S30) ->  | Q45: =IF(AA!T30="","",AA!T30) ->  | R45: =IF(AA!U30="","",AA!U30) ->  | S45: =IF(AA!V30="","",AA!V30) ->  | T45: =IF(AA!W30="","",AA!W30) ->  | U45: =IF(AA!X30="","",AA!X30) ->  | V45: =IF(AA!Y30="","",AA!Y30) ->  | W45: =IF(AA!Z30="","",AA!Z30) ->  | X45: =IF(AA!AA30="","",AA!AA30) ->  | Y45: =IF(AA!AB30="","",AA!AB30) ->  | Z45: =IF(AA!AC30="","",AA!AC30) ->  | AA45: =IF(AA!AD30="","",AA!AD30) ->  | AB45: =IF(AA!AE30="","",AA!AE30) ->  | AC45: =IF(AA!AF30="","",AA!AF30) ->  | AD45: =IF(AA!AG30="","",AA!AG30) ->  | AE45: =IF(AA!AH30="","",AA!AH30) ->  | AF45: =IF(AA!AI30="","",AA!AI30) ->  | AG45: =IF(AA!AJ30="","",AA!AJ30) ->  | AH45: =IF(AA!AK30="","",AA!AK30) ->  | AI45: =IF(AA!AL30="","",AA!AL30) ->  | AJ45: =IF(AA!AM30="","",AA!AM30) ->  | AK45: =IF(AA!AN30="","",AA!AN30) ->  | AL45: =IF(AA!AO30="","",AA!AO30) ->  | AM45: =IF(AA!AP30="","",AA!AP30) -> 
D46: Criterio Evaluación 6.5 | E46: =IF(AA!H31="","",AA!H31) ->  | F46: =IF(AA!I31="","",AA!I31) ->  | G46: =IF(AA!J31="","",AA!J31) ->  | H46: =IF(AA!K31="","",AA!K31) ->  | I46: =IF(AA!L31="","",AA!L31) ->  | J46: =IF(AA!M31="","",AA!M31) ->  | K46: =IF(AA!N31="","",AA!N31) ->  | L46: =IF(AA!O31="","",AA!O31) ->  | M46: =IF(AA!P31="","",AA!P31) ->  | N46: =IF(AA!Q31="","",AA!Q31) ->  | O46: =IF(AA!R31="","",AA!R31) ->  | P46: =IF(AA!S31="","",AA!S31) ->  | Q46: =IF(AA!T31="","",AA!T31) ->  | R46: =IF(AA!U31="","",AA!U31) ->  | S46: =IF(AA!V31="","",AA!V31) ->  | T46: =IF(AA!W31="","",AA!W31) ->  | U46: =IF(AA!X31="","",AA!X31) ->  | V46: =IF(AA!Y31="","",AA!Y31) ->  | W46: =IF(AA!Z31="","",AA!Z31) ->  | X46: =IF(AA!AA31="","",AA!AA31) ->  | Y46: =IF(AA!AB31="","",AA!AB31) ->  | Z46: =IF(AA!AC31="","",AA!AC31) ->  | AA46: =IF(AA!AD31="","",AA!AD31) ->  | AB46: =IF(AA!AE31="","",AA!AE31) ->  | AC46: =IF(AA!AF31="","",AA!AF31) ->  | AD46: =IF(AA!AG31="","",AA!AG31) ->  | AE46: =IF(AA!AH31="","",AA!AH31) ->  | AF46: =IF(AA!AI31="","",AA!AI31) ->  | AG46: =IF(AA!AJ31="","",AA!AJ31) ->  | AH46: =IF(AA!AK31="","",AA!AK31) ->  | AI46: =IF(AA!AL31="","",AA!AL31) ->  | AJ46: =IF(AA!AM31="","",AA!AM31) ->  | AK46: =IF(AA!AN31="","",AA!AN31) ->  | AL46: =IF(AA!AO31="","",AA!AO31) ->  | AM46: =IF(AA!AP31="","",AA!AP31) -> 
D47: Criterio Evaluación 6.6 | E47: =IF(AA!H32="","",AA!H32) ->  | F47: =IF(AA!I32="","",AA!I32) ->  | G47: =IF(AA!J32="","",AA!J32) ->  | H47: =IF(AA!K32="","",AA!K32) ->  | I47: =IF(AA!L32="","",AA!L32) ->  | J47: =IF(AA!M32="","",AA!M32) ->  | K47: =IF(AA!N32="","",AA!N32) ->  | L47: =IF(AA!O32="","",AA!O32) ->  | M47: =IF(AA!P32="","",AA!P32) ->  | N47: =IF(AA!Q32="","",AA!Q32) ->  | O47: =IF(AA!R32="","",AA!R32) ->  | P47: =IF(AA!S32="","",AA!S32) ->  | Q47: =IF(AA!T32="","",AA!T32) ->  | R47: =IF(AA!U32="","",AA!U32) ->  | S47: =IF(AA!V32="","",AA!V32) ->  | T47: =IF(AA!W32="","",AA!W32) ->  | U47: =IF(AA!X32="","",AA!X32) ->  | V47: =IF(AA!Y32="","",AA!Y32) ->  | W47: =IF(AA!Z32="","",AA!Z32) ->  | X47: =IF(AA!AA32="","",AA!AA32) ->  | Y47: =IF(AA!AB32="","",AA!AB32) ->  | Z47: =IF(AA!AC32="","",AA!AC32) ->  | AA47: =IF(AA!AD32="","",AA!AD32) ->  | AB47: =IF(AA!AE32="","",AA!AE32) ->  | AC47: =IF(AA!AF32="","",AA!AF32) ->  | AD47: =IF(AA!AG32="","",AA!AG32) ->  | AE47: =IF(AA!AH32="","",AA!AH32) ->  | AF47: =IF(AA!AI32="","",AA!AI32) ->  | AG47: =IF(AA!AJ32="","",AA!AJ32) ->  | AH47: =IF(AA!AK32="","",AA!AK32) ->  | AI47: =IF(AA!AL32="","",AA!AL32) ->  | AJ47: =IF(AA!AM32="","",AA!AM32) ->  | AK47: =IF(AA!AN32="","",AA!AN32) ->  | AL47: =IF(AA!AO32="","",AA!AO32) ->  | AM47: =IF(AA!AP32="","",AA!AP32) -> 
D48: Criterio Evaluación 6.7 | E48: =IF(AA!H33="","",AA!H33) ->  | F48: =IF(AA!I33="","",AA!I33) ->  | G48: =IF(AA!J33="","",AA!J33) ->  | H48: =IF(AA!K33="","",AA!K33) ->  | I48: =IF(AA!L33="","",AA!L33) ->  | J48: =IF(AA!M33="","",AA!M33) ->  | K48: =IF(AA!N33="","",AA!N33) ->  | L48: =IF(AA!O33="","",AA!O33) ->  | M48: =IF(AA!P33="","",AA!P33) ->  | N48: =IF(AA!Q33="","",AA!Q33) ->  | O48: =IF(AA!R33="","",AA!R33) ->  | P48: =IF(AA!S33="","",AA!S33) ->  | Q48: =IF(AA!T33="","",AA!T33) ->  | R48: =IF(AA!U33="","",AA!U33) ->  | S48: =IF(AA!V33="","",AA!V33) ->  | T48: =IF(AA!W33="","",AA!W33) ->  | U48: =IF(AA!X33="","",AA!X33) ->  | V48: =IF(AA!Y33="","",AA!Y33) ->  | W48: =IF(AA!Z33="","",AA!Z33) ->  | X48: =IF(AA!AA33="","",AA!AA33) ->  | Y48: =IF(AA!AB33="","",AA!AB33) ->  | Z48: =IF(AA!AC33="","",AA!AC33) ->  | AA48: =IF(AA!AD33="","",AA!AD33) ->  | AB48: =IF(AA!AE33="","",AA!AE33) ->  | AC48: =IF(AA!AF33="","",AA!AF33) ->  | AD48: =IF(AA!AG33="","",AA!AG33) ->  | AE48: =IF(AA!AH33="","",AA!AH33) ->  | AF48: =IF(AA!AI33="","",AA!AI33) ->  | AG48: =IF(AA!AJ33="","",AA!AJ33) ->  | AH48: =IF(AA!AK33="","",AA!AK33) ->  | AI48: =IF(AA!AL33="","",AA!AL33) ->  | AJ48: =IF(AA!AM33="","",AA!AM33) ->  | AK48: =IF(AA!AN33="","",AA!AN33) ->  | AL48: =IF(AA!AO33="","",AA!AO33) ->  | AM48: =IF(AA!AP33="","",AA!AP33) -> 
D49: Criterio Evaluación 6.8 | E49: =IF(AA!H34="","",AA!H34) ->  | F49: =IF(AA!I34="","",AA!I34) ->  | G49: =IF(AA!J34="","",AA!J34) ->  | H49: =IF(AA!K34="","",AA!K34) ->  | I49: =IF(AA!L34="","",AA!L34) ->  | J49: =IF(AA!M34="","",AA!M34) ->  | K49: =IF(AA!N34="","",AA!N34) ->  | L49: =IF(AA!O34="","",AA!O34) ->  | M49: =IF(AA!P34="","",AA!P34) ->  | N49: =IF(AA!Q34="","",AA!Q34) ->  | O49: =IF(AA!R34="","",AA!R34) ->  | P49: =IF(AA!S34="","",AA!S34) ->  | Q49: =IF(AA!T34="","",AA!T34) ->  | R49: =IF(AA!U34="","",AA!U34) ->  | S49: =IF(AA!V34="","",AA!V34) ->  | T49: =IF(AA!W34="","",AA!W34) ->  | U49: =IF(AA!X34="","",AA!X34) ->  | V49: =IF(AA!Y34="","",AA!Y34) ->  | W49: =IF(AA!Z34="","",AA!Z34) ->  | X49: =IF(AA!AA34="","",AA!AA34) ->  | Y49: =IF(AA!AB34="","",AA!AB34) ->  | Z49: =IF(AA!AC34="","",AA!AC34) ->  | AA49: =IF(AA!AD34="","",AA!AD34) ->  | AB49: =IF(AA!AE34="","",AA!AE34) ->  | AC49: =IF(AA!AF34="","",AA!AF34) ->  | AD49: =IF(AA!AG34="","",AA!AG34) ->  | AE49: =IF(AA!AH34="","",AA!AH34) ->  | AF49: =IF(AA!AI34="","",AA!AI34) ->  | AG49: =IF(AA!AJ34="","",AA!AJ34) ->  | AH49: =IF(AA!AK34="","",AA!AK34) ->  | AI49: =IF(AA!AL34="","",AA!AL34) ->  | AJ49: =IF(AA!AM34="","",AA!AM34) ->  | AK49: =IF(AA!AN34="","",AA!AN34) ->  | AL49: =IF(AA!AO34="","",AA!AO34) ->  | AM49: =IF(AA!AP34="","",AA!AP34) -> 
D50: Criterio Evaluación 6.9 | E50: =IF(AA!H35="","",AA!H35) ->  | F50: =IF(AA!I35="","",AA!I35) ->  | G50: =IF(AA!J35="","",AA!J35) ->  | H50: =IF(AA!K35="","",AA!K35) ->  | I50: =IF(AA!L35="","",AA!L35) ->  | J50: =IF(AA!M35="","",AA!M35) ->  | K50: =IF(AA!N35="","",AA!N35) ->  | L50: =IF(AA!O35="","",AA!O35) ->  | M50: =IF(AA!P35="","",AA!P35) ->  | N50: =IF(AA!Q35="","",AA!Q35) ->  | O50: =IF(AA!R35="","",AA!R35) ->  | P50: =IF(AA!S35="","",AA!S35) ->  | Q50: =IF(AA!T35="","",AA!T35) ->  | R50: =IF(AA!U35="","",AA!U35) ->  | S50: =IF(AA!V35="","",AA!V35) ->  | T50: =IF(AA!W35="","",AA!W35) ->  | U50: =IF(AA!X35="","",AA!X35) ->  | V50: =IF(AA!Y35="","",AA!Y35) ->  | W50: =IF(AA!Z35="","",AA!Z35) ->  | X50: =IF(AA!AA35="","",AA!AA35) ->  | Y50: =IF(AA!AB35="","",AA!AB35) ->  | Z50: =IF(AA!AC35="","",AA!AC35) ->  | AA50: =IF(AA!AD35="","",AA!AD35) ->  | AB50: =IF(AA!AE35="","",AA!AE35) ->  | AC50: =IF(AA!AF35="","",AA!AF35) ->  | AD50: =IF(AA!AG35="","",AA!AG35) ->  | AE50: =IF(AA!AH35="","",AA!AH35) ->  | AF50: =IF(AA!AI35="","",AA!AI35) ->  | AG50: =IF(AA!AJ35="","",AA!AJ35) ->  | AH50: =IF(AA!AK35="","",AA!AK35) ->  | AI50: =IF(AA!AL35="","",AA!AL35) ->  | AJ50: =IF(AA!AM35="","",AA!AM35) ->  | AK50: =IF(AA!AN35="","",AA!AN35) ->  | AL50: =IF(AA!AO35="","",AA!AO35) ->  | AM50: =IF(AA!AP35="","",AA!AP35) -> 
B51: Artes Escénicas I | C51: Comp. Esp. 1 | D51: Criterio Evaluación 1.1 | E51: =IF(AE!H4="","",AE!H4) ->  | F51: =IF(AE!I4="","",AE!I4) ->  | G51: =IF(AE!J4="","",AE!J4) ->  | H51: =IF(AE!K4="","",AE!K4) ->  | I51: =IF(AE!L4="","",AE!L4) ->  | J51: =IF(AE!M4="","",AE!M4) ->  | K51: =IF(AE!N4="","",AE!N4) ->  | L51: =IF(AE!O4="","",AE!O4) ->  | M51: =IF(AE!P4="","",AE!P4) ->  | N51: =IF(AE!Q4="","",AE!Q4) ->  | O51: =IF(AE!R4="","",AE!R4) ->  | P51: =IF(AE!S4="","",AE!S4) ->  | Q51: =IF(AE!T4="","",AE!T4) ->  | R51: =IF(AE!U4="","",AE!U4) ->  | S51: =IF(AE!V4="","",AE!V4) ->  | T51: =IF(AE!W4="","",AE!W4) ->  | U51: =IF(AE!X4="","",AE!X4) ->  | V51: =IF(AE!Y4="","",AE!Y4) ->  | W51: =IF(AE!Z4="","",AE!Z4) ->  | X51: =IF(AE!AA4="","",AE!AA4) ->  | Y51: =IF(AE!AB4="","",AE!AB4) ->  | Z51: =IF(AE!AC4="","",AE!AC4) ->  | AA51: =IF(AE!AD4="","",AE!AD4) ->  | AB51: =IF(AE!AE4="","",AE!AE4) ->  | AC51: =IF(AE!AF4="","",AE!AF4) ->  | AD51: =IF(AE!AG4="","",AE!AG4) ->  | AE51: =IF(AE!AH4="","",AE!AH4) ->  | AF51: =IF(AE!AI4="","",AE!AI4) ->  | AG51: =IF(AE!AJ4="","",AE!AJ4) ->  | AH51: =IF(AE!AK4="","",AE!AK4) ->  | AI51: =IF(AE!AL4="","",AE!AL4) ->  | AJ51: =IF(AE!AM4="","",AE!AM4) ->  | AK51: =IF(AE!AN4="","",AE!AN4) ->  | AL51: =IF(AE!AO4="","",AE!AO4) ->  | AM51: =IF(AE!AP4="","",AE!AP4) -> 
D52: Criterio Evaluación 1.2 | E52: =IF(AE!H5="","",AE!H5) ->  | F52: =IF(AE!I5="","",AE!I5) ->  | G52: =IF(AE!J5="","",AE!J5) ->  | H52: =IF(AE!K5="","",AE!K5) ->  | I52: =IF(AE!L5="","",AE!L5) ->  | J52: =IF(AE!M5="","",AE!M5) ->  | K52: =IF(AE!N5="","",AE!N5) ->  | L52: =IF(AE!O5="","",AE!O5) ->  | M52: =IF(AE!P5="","",AE!P5) ->  | N52: =IF(AE!Q5="","",AE!Q5) ->  | O52: =IF(AE!R5="","",AE!R5) ->  | P52: =IF(AE!S5="","",AE!S5) ->  | Q52: =IF(AE!T5="","",AE!T5) ->  | R52: =IF(AE!U5="","",AE!U5) ->  | S52: =IF(AE!V5="","",AE!V5) ->  | T52: =IF(AE!W5="","",AE!W5) ->  | U52: =IF(AE!X5="","",AE!X5) ->  | V52: =IF(AE!Y5="","",AE!Y5) ->  | W52: =IF(AE!Z5="","",AE!Z5) ->  | X52: =IF(AE!AA5="","",AE!AA5) ->  | Y52: =IF(AE!AB5="","",AE!AB5) ->  | Z52: =IF(AE!AC5="","",AE!AC5) ->  | AA52: =IF(AE!AD5="","",AE!AD5) ->  | AB52: =IF(AE!AE5="","",AE!AE5) ->  | AC52: =IF(AE!AF5="","",AE!AF5) ->  | AD52: =IF(AE!AG5="","",AE!AG5) ->  | AE52: =IF(AE!AH5="","",AE!AH5) ->  | AF52: =IF(AE!AI5="","",AE!AI5) ->  | AG52: =IF(AE!AJ5="","",AE!AJ5) ->  | AH52: =IF(AE!AK5="","",AE!AK5) ->  | AI52: =IF(AE!AL5="","",AE!AL5) ->  | AJ52: =IF(AE!AM5="","",AE!AM5) ->  | AK52: =IF(AE!AN5="","",AE!AN5) ->  | AL52: =IF(AE!AO5="","",AE!AO5) ->  | AM52: =IF(AE!AP5="","",AE!AP5) -> 
C53: Comp. Esp. 2 | D53: Criterio Evaluación 2.1 | E53: =IF(AE!H6="","",AE!H6) ->  | F53: =IF(AE!I6="","",AE!I6) ->  | G53: =IF(AE!J6="","",AE!J6) ->  | H53: =IF(AE!K6="","",AE!K6) ->  | I53: =IF(AE!L6="","",AE!L6) ->  | J53: =IF(AE!M6="","",AE!M6) ->  | K53: =IF(AE!N6="","",AE!N6) ->  | L53: =IF(AE!O6="","",AE!O6) ->  | M53: =IF(AE!P6="","",AE!P6) ->  | N53: =IF(AE!Q6="","",AE!Q6) ->  | O53: =IF(AE!R6="","",AE!R6) ->  | P53: =IF(AE!S6="","",AE!S6) ->  | Q53: =IF(AE!T6="","",AE!T6) ->  | R53: =IF(AE!U6="","",AE!U6) ->  | S53: =IF(AE!V6="","",AE!V6) ->  | T53: =IF(AE!W6="","",AE!W6) ->  | U53: =IF(AE!X6="","",AE!X6) ->  | V53: =IF(AE!Y6="","",AE!Y6) ->  | W53: =IF(AE!Z6="","",AE!Z6) ->  | X53: =IF(AE!AA6="","",AE!AA6) ->  | Y53: =IF(AE!AB6="","",AE!AB6) ->  | Z53: =IF(AE!AC6="","",AE!AC6) ->  | AA53: =IF(AE!AD6="","",AE!AD6) ->  | AB53: =IF(AE!AE6="","",AE!AE6) ->  | AC53: =IF(AE!AF6="","",AE!AF6) ->  | AD53: =IF(AE!AG6="","",AE!AG6) ->  | AE53: =IF(AE!AH6="","",AE!AH6) ->  | AF53: =IF(AE!AI6="","",AE!AI6) ->  | AG53: =IF(AE!AJ6="","",AE!AJ6) ->  | AH53: =IF(AE!AK6="","",AE!AK6) ->  | AI53: =IF(AE!AL6="","",AE!AL6) ->  | AJ53: =IF(AE!AM6="","",AE!AM6) ->  | AK53: =IF(AE!AN6="","",AE!AN6) ->  | AL53: =IF(AE!AO6="","",AE!AO6) ->  | AM53: =IF(AE!AP6="","",AE!AP6) -> 
D54: Criterio Evaluación 2.2 | E54: =IF(AE!H7="","",AE!H7) ->  | F54: =IF(AE!I7="","",AE!I7) ->  | G54: =IF(AE!J7="","",AE!J7) ->  | H54: =IF(AE!K7="","",AE!K7) ->  | I54: =IF(AE!L7="","",AE!L7) ->  | J54: =IF(AE!M7="","",AE!M7) ->  | K54: =IF(AE!N7="","",AE!N7) ->  | L54: =IF(AE!O7="","",AE!O7) ->  | M54: =IF(AE!P7="","",AE!P7) ->  | N54: =IF(AE!Q7="","",AE!Q7) ->  | O54: =IF(AE!R7="","",AE!R7) ->  | P54: =IF(AE!S7="","",AE!S7) ->  | Q54: =IF(AE!T7="","",AE!T7) ->  | R54: =IF(AE!U7="","",AE!U7) ->  | S54: =IF(AE!V7="","",AE!V7) ->  | T54: =IF(AE!W7="","",AE!W7) ->  | U54: =IF(AE!X7="","",AE!X7) ->  | V54: =IF(AE!Y7="","",AE!Y7) ->  | W54: =IF(AE!Z7="","",AE!Z7) ->  | X54: =IF(AE!AA7="","",AE!AA7) ->  | Y54: =IF(AE!AB7="","",AE!AB7) ->  | Z54: =IF(AE!AC7="","",AE!AC7) ->  | AA54: =IF(AE!AD7="","",AE!AD7) ->  | AB54: =IF(AE!AE7="","",AE!AE7) ->  | AC54: =IF(AE!AF7="","",AE!AF7) ->  | AD54: =IF(AE!AG7="","",AE!AG7) ->  | AE54: =IF(AE!AH7="","",AE!AH7) ->  | AF54: =IF(AE!AI7="","",AE!AI7) ->  | AG54: =IF(AE!AJ7="","",AE!AJ7) ->  | AH54: =IF(AE!AK7="","",AE!AK7) ->  | AI54: =IF(AE!AL7="","",AE!AL7) ->  | AJ54: =IF(AE!AM7="","",AE!AM7) ->  | AK54: =IF(AE!AN7="","",AE!AN7) ->  | AL54: =IF(AE!AO7="","",AE!AO7) ->  | AM54: =IF(AE!AP7="","",AE!AP7) -> 
C55: Comp. Esp. 3 | D55: Criterio Evaluación 3.1 | E55: =IF(AE!H8="","",AE!H8) ->  | F55: =IF(AE!I8="","",AE!I8) ->  | G55: =IF(AE!J8="","",AE!J8) ->  | H55: =IF(AE!K8="","",AE!K8) ->  | I55: =IF(AE!L8="","",AE!L8) ->  | J55: =IF(AE!M8="","",AE!M8) ->  | K55: =IF(AE!N8="","",AE!N8) ->  | L55: =IF(AE!O8="","",AE!O8) ->  | M55: =IF(AE!P8="","",AE!P8) ->  | N55: =IF(AE!Q8="","",AE!Q8) ->  | O55: =IF(AE!R8="","",AE!R8) ->  | P55: =IF(AE!S8="","",AE!S8) ->  | Q55: =IF(AE!T8="","",AE!T8) ->  | R55: =IF(AE!U8="","",AE!U8) ->  | S55: =IF(AE!V8="","",AE!V8) ->  | T55: =IF(AE!W8="","",AE!W8) ->  | U55: =IF(AE!X8="","",AE!X8) ->  | V55: =IF(AE!Y8="","",AE!Y8) ->  | W55: =IF(AE!Z8="","",AE!Z8) ->  | X55: =IF(AE!AA8="","",AE!AA8) ->  | Y55: =IF(AE!AB8="","",AE!AB8) ->  | Z55: =IF(AE!AC8="","",AE!AC8) ->  | AA55: =IF(AE!AD8="","",AE!AD8) ->  | AB55: =IF(AE!AE8="","",AE!AE8) ->  | AC55: =IF(AE!AF8="","",AE!AF8) ->  | AD55: =IF(AE!AG8="","",AE!AG8) ->  | AE55: =IF(AE!AH8="","",AE!AH8) ->  | AF55: =IF(AE!AI8="","",AE!AI8) ->  | AG55: =IF(AE!AJ8="","",AE!AJ8) ->  | AH55: =IF(AE!AK8="","",AE!AK8) ->  | AI55: =IF(AE!AL8="","",AE!AL8) ->  | AJ55: =IF(AE!AM8="","",AE!AM8) ->  | AK55: =IF(AE!AN8="","",AE!AN8) ->  | AL55: =IF(AE!AO8="","",AE!AO8) ->  | AM55: =IF(AE!AP8="","",AE!AP8) -> 
D56: Criterio Evaluación 3.2 | E56: =IF(AE!H9="","",AE!H9) ->  | F56: =IF(AE!I9="","",AE!I9) ->  | G56: =IF(AE!J9="","",AE!J9) ->  | H56: =IF(AE!K9="","",AE!K9) ->  | I56: =IF(AE!L9="","",AE!L9) ->  | J56: =IF(AE!M9="","",AE!M9) ->  | K56: =IF(AE!N9="","",AE!N9) ->  | L56: =IF(AE!O9="","",AE!O9) ->  | M56: =IF(AE!P9="","",AE!P9) ->  | N56: =IF(AE!Q9="","",AE!Q9) ->  | O56: =IF(AE!R9="","",AE!R9) ->  | P56: =IF(AE!S9="","",AE!S9) ->  | Q56: =IF(AE!T9="","",AE!T9) ->  | R56: =IF(AE!U9="","",AE!U9) ->  | S56: =IF(AE!V9="","",AE!V9) ->  | T56: =IF(AE!W9="","",AE!W9) ->  | U56: =IF(AE!X9="","",AE!X9) ->  | V56: =IF(AE!Y9="","",AE!Y9) ->  | W56: =IF(AE!Z9="","",AE!Z9) ->  | X56: =IF(AE!AA9="","",AE!AA9) ->  | Y56: =IF(AE!AB9="","",AE!AB9) ->  | Z56: =IF(AE!AC9="","",AE!AC9) ->  | AA56: =IF(AE!AD9="","",AE!AD9) ->  | AB56: =IF(AE!AE9="","",AE!AE9) ->  | AC56: =IF(AE!AF9="","",AE!AF9) ->  | AD56: =IF(AE!AG9="","",AE!AG9) ->  | AE56: =IF(AE!AH9="","",AE!AH9) ->  | AF56: =IF(AE!AI9="","",AE!AI9) ->  | AG56: =IF(AE!AJ9="","",AE!AJ9) ->  | AH56: =IF(AE!AK9="","",AE!AK9) ->  | AI56: =IF(AE!AL9="","",AE!AL9) ->  | AJ56: =IF(AE!AM9="","",AE!AM9) ->  | AK56: =IF(AE!AN9="","",AE!AN9) ->  | AL56: =IF(AE!AO9="","",AE!AO9) ->  | AM56: =IF(AE!AP9="","",AE!AP9) -> 
C57: Comp. Esp. 4 | D57: Criterio Evaluación 4.1 | E57: =IF(AE!H10="","",AE!H10) ->  | F57: =IF(AE!I10="","",AE!I10) ->  | G57: =IF(AE!J10="","",AE!J10) ->  | H57: =IF(AE!K10="","",AE!K10) ->  | I57: =IF(AE!L10="","",AE!L10) ->  | J57: =IF(AE!M10="","",AE!M10) ->  | K57: =IF(AE!N10="","",AE!N10) ->  | L57: =IF(AE!O10="","",AE!O10) ->  | M57: =IF(AE!P10="","",AE!P10) ->  | N57: =IF(AE!Q10="","",AE!Q10) ->  | O57: =IF(AE!R10="","",AE!R10) ->  | P57: =IF(AE!S10="","",AE!S10) ->  | Q57: =IF(AE!T10="","",AE!T10) ->  | R57: =IF(AE!U10="","",AE!U10) ->  | S57: =IF(AE!V10="","",AE!V10) ->  | T57: =IF(AE!W10="","",AE!W10) ->  | U57: =IF(AE!X10="","",AE!X10) ->  | V57: =IF(AE!Y10="","",AE!Y10) ->  | W57: =IF(AE!Z10="","",AE!Z10) ->  | X57: =IF(AE!AA10="","",AE!AA10) ->  | Y57: =IF(AE!AB10="","",AE!AB10) ->  | Z57: =IF(AE!AC10="","",AE!AC10) ->  | AA57: =IF(AE!AD10="","",AE!AD10) ->  | AB57: =IF(AE!AE10="","",AE!AE10) ->  | AC57: =IF(AE!AF10="","",AE!AF10) ->  | AD57: =IF(AE!AG10="","",AE!AG10) ->  | AE57: =IF(AE!AH10="","",AE!AH10) ->  | AF57: =IF(AE!AI10="","",AE!AI10) ->  | AG57: =IF(AE!AJ10="","",AE!AJ10) ->  | AH57: =IF(AE!AK10="","",AE!AK10) ->  | AI57: =IF(AE!AL10="","",AE!AL10) ->  | AJ57: =IF(AE!AM10="","",AE!AM10) ->  | AK57: =IF(AE!AN10="","",AE!AN10) ->  | AL57: =IF(AE!AO10="","",AE!AO10) ->  | AM57: =IF(AE!AP10="","",AE!AP10) -> 
D58: Criterio Evaluación 4.2 | E58: =IF(AE!H11="","",AE!H11) ->  | F58: =IF(AE!I11="","",AE!I11) ->  | G58: =IF(AE!J11="","",AE!J11) ->  | H58: =IF(AE!K11="","",AE!K11) ->  | I58: =IF(AE!L11="","",AE!L11) ->  | J58: =IF(AE!M11="","",AE!M11) ->  | K58: =IF(AE!N11="","",AE!N11) ->  | L58: =IF(AE!O11="","",AE!O11) ->  | M58: =IF(AE!P11="","",AE!P11) ->  | N58: =IF(AE!Q11="","",AE!Q11) ->  | O58: =IF(AE!R11="","",AE!R11) ->  | P58: =IF(AE!S11="","",AE!S11) ->  | Q58: =IF(AE!T11="","",AE!T11) ->  | R58: =IF(AE!U11="","",AE!U11) ->  | S58: =IF(AE!V11="","",AE!V11) ->  | T58: =IF(AE!W11="","",AE!W11) ->  | U58: =IF(AE!X11="","",AE!X11) ->  | V58: =IF(AE!Y11="","",AE!Y11) ->  | W58: =IF(AE!Z11="","",AE!Z11) ->  | X58: =IF(AE!AA11="","",AE!AA11) ->  | Y58: =IF(AE!AB11="","",AE!AB11) ->  | Z58: =IF(AE!AC11="","",AE!AC11) ->  | AA58: =IF(AE!AD11="","",AE!AD11) ->  | AB58: =IF(AE!AE11="","",AE!AE11) ->  | AC58: =IF(AE!AF11="","",AE!AF11) ->  | AD58: =IF(AE!AG11="","",AE!AG11) ->  | AE58: =IF(AE!AH11="","",AE!AH11) ->  | AF58: =IF(AE!AI11="","",AE!AI11) ->  | AG58: =IF(AE!AJ11="","",AE!AJ11) ->  | AH58: =IF(AE!AK11="","",AE!AK11) ->  | AI58: =IF(AE!AL11="","",AE!AL11) ->  | AJ58: =IF(AE!AM11="","",AE!AM11) ->  | AK58: =IF(AE!AN11="","",AE!AN11) ->  | AL58: =IF(AE!AO11="","",AE!AO11) ->  | AM58: =IF(AE!AP11="","",AE!AP11) -> 
C59: Comp. Esp. 5 | D59: Criterio Evaluación 5.1 | E59: =IF(AE!H12="","",AE!H12) ->  | F59: =IF(AE!I12="","",AE!I12) ->  | G59: =IF(AE!J12="","",AE!J12) ->  | H59: =IF(AE!K12="","",AE!K12) ->  | I59: =IF(AE!L12="","",AE!L12) ->  | J59: =IF(AE!M12="","",AE!M12) ->  | K59: =IF(AE!N12="","",AE!N12) ->  | L59: =IF(AE!O12="","",AE!O12) ->  | M59: =IF(AE!P12="","",AE!P12) ->  | N59: =IF(AE!Q12="","",AE!Q12) ->  | O59: =IF(AE!R12="","",AE!R12) ->  | P59: =IF(AE!S12="","",AE!S12) ->  | Q59: =IF(AE!T12="","",AE!T12) ->  | R59: =IF(AE!U12="","",AE!U12) ->  | S59: =IF(AE!V12="","",AE!V12) ->  | T59: =IF(AE!W12="","",AE!W12) ->  | U59: =IF(AE!X12="","",AE!X12) ->  | V59: =IF(AE!Y12="","",AE!Y12) ->  | W59: =IF(AE!Z12="","",AE!Z12) ->  | X59: =IF(AE!AA12="","",AE!AA12) ->  | Y59: =IF(AE!AB12="","",AE!AB12) ->  | Z59: =IF(AE!AC12="","",AE!AC12) ->  | AA59: =IF(AE!AD12="","",AE!AD12) ->  | AB59: =IF(AE!AE12="","",AE!AE12) ->  | AC59: =IF(AE!AF12="","",AE!AF12) ->  | AD59: =IF(AE!AG12="","",AE!AG12) ->  | AE59: =IF(AE!AH12="","",AE!AH12) ->  | AF59: =IF(AE!AI12="","",AE!AI12) ->  | AG59: =IF(AE!AJ12="","",AE!AJ12) ->  | AH59: =IF(AE!AK12="","",AE!AK12) ->  | AI59: =IF(AE!AL12="","",AE!AL12) ->  | AJ59: =IF(AE!AM12="","",AE!AM12) ->  | AK59: =IF(AE!AN12="","",AE!AN12) ->  | AL59: =IF(AE!AO12="","",AE!AO12) ->  | AM59: =IF(AE!AP12="","",AE!AP12) -> 
D60: Criterio Evaluación 5.2 | E60: =IF(AE!H13="","",AE!H13) ->  | F60: =IF(AE!I13="","",AE!I13) ->  | G60: =IF(AE!J13="","",AE!J13) ->  | H60: =IF(AE!K13="","",AE!K13) ->  | I60: =IF(AE!L13="","",AE!L13) ->  | J60: =IF(AE!M13="","",AE!M13) ->  | K60: =IF(AE!N13="","",AE!N13) ->  | L60: =IF(AE!O13="","",AE!O13) ->  | M60: =IF(AE!P13="","",AE!P13) ->  | N60: =IF(AE!Q13="","",AE!Q13) ->  | O60: =IF(AE!R13="","",AE!R13) ->  | P60: =IF(AE!S13="","",AE!S13) ->  | Q60: =IF(AE!T13="","",AE!T13) ->  | R60: =IF(AE!U13="","",AE!U13) ->  | S60: =IF(AE!V13="","",AE!V13) ->  | T60: =IF(AE!W13="","",AE!W13) ->  | U60: =IF(AE!X13="","",AE!X13) ->  | V60: =IF(AE!Y13="","",AE!Y13) ->  | W60: =IF(AE!Z13="","",AE!Z13) ->  | X60: =IF(AE!AA13="","",AE!AA13) ->  | Y60: =IF(AE!AB13="","",AE!AB13) ->  | Z60: =IF(AE!AC13="","",AE!AC13) ->  | AA60: =IF(AE!AD13="","",AE!AD13) ->  | AB60: =IF(AE!AE13="","",AE!AE13) ->  | AC60: =IF(AE!AF13="","",AE!AF13) ->  | AD60: =IF(AE!AG13="","",AE!AG13) ->  | AE60: =IF(AE!AH13="","",AE!AH13) ->  | AF60: =IF(AE!AI13="","",AE!AI13) ->  | AG60: =IF(AE!AJ13="","",AE!AJ13) ->  | AH60: =IF(AE!AK13="","",AE!AK13) ->  | AI60: =IF(AE!AL13="","",AE!AL13) ->  | AJ60: =IF(AE!AM13="","",AE!AM13) ->  | AK60: =IF(AE!AN13="","",AE!AN13) ->  | AL60: =IF(AE!AO13="","",AE!AO13) ->  | AM60: =IF(AE!AP13="","",AE!AP13) -> 
B61: Biología, Geología y Ciencias Ambientales | C61: Comp. Esp. 1 | D61: Criterio Evaluación 1.1 | E61: =IF(BYG!H4="","",BYG!H4) ->  | F61: =IF(BYG!I4="","",BYG!I4) ->  | G61: =IF(BYG!J4="","",BYG!J4) ->  | H61: =IF(BYG!K4="","",BYG!K4) ->  | I61: =IF(BYG!L4="","",BYG!L4) ->  | J61: =IF(BYG!M4="","",BYG!M4) ->  | K61: =IF(BYG!N4="","",BYG!N4) ->  | L61: =IF(BYG!O4="","",BYG!O4) ->  | M61: =IF(BYG!P4="","",BYG!P4) ->  | N61: =IF(BYG!Q4="","",BYG!Q4) ->  | O61: =IF(BYG!R4="","",BYG!R4) ->  | P61: =IF(BYG!S4="","",BYG!S4) ->  | Q61: =IF(BYG!T4="","",BYG!T4) ->  | R61: =IF(BYG!U4="","",BYG!U4) ->  | S61: =IF(BYG!V4="","",BYG!V4) ->  | T61: =IF(BYG!W4="","",BYG!W4) ->  | U61: =IF(BYG!X4="","",BYG!X4) ->  | V61: =IF(BYG!Y4="","",BYG!Y4) ->  | W61: =IF(BYG!Z4="","",BYG!Z4) ->  | X61: =IF(BYG!AA4="","",BYG!AA4) ->  | Y61: =IF(BYG!AB4="","",BYG!AB4) ->  | Z61: =IF(BYG!AC4="","",BYG!AC4) ->  | AA61: =IF(BYG!AD4="","",BYG!AD4) ->  | AB61: =IF(BYG!AE4="","",BYG!AE4) ->  | AC61: =IF(BYG!AF4="","",BYG!AF4) ->  | AD61: =IF(BYG!AG4="","",BYG!AG4) ->  | AE61: =IF(BYG!AH4="","",BYG!AH4) ->  | AF61: =IF(BYG!AI4="","",BYG!AI4) ->  | AG61: =IF(BYG!AJ4="","",BYG!AJ4) ->  | AH61: =IF(BYG!AK4="","",BYG!AK4) ->  | AI61: =IF(BYG!AL4="","",BYG!AL4) ->  | AJ61: =IF(BYG!AM4="","",BYG!AM4) ->  | AK61: =IF(BYG!AN4="","",BYG!AN4) ->  | AL61: =IF(BYG!AO4="","",BYG!AO4) ->  | AM61: =IF(BYG!AP4="","",BYG!AP4) -> 
D62: Criterio Evaluación 1.2 | E62: =IF(BYG!H5="","",BYG!H5) ->  | F62: =IF(BYG!I5="","",BYG!I5) ->  | G62: =IF(BYG!J5="","",BYG!J5) ->  | H62: =IF(BYG!K5="","",BYG!K5) ->  | I62: =IF(BYG!L5="","",BYG!L5) ->  | J62: =IF(BYG!M5="","",BYG!M5) ->  | K62: =IF(BYG!N5="","",BYG!N5) ->  | L62: =IF(BYG!O5="","",BYG!O5) ->  | M62: =IF(BYG!P5="","",BYG!P5) ->  | N62: =IF(BYG!Q5="","",BYG!Q5) ->  | O62: =IF(BYG!R5="","",BYG!R5) ->  | P62: =IF(BYG!S5="","",BYG!S5) ->  | Q62: =IF(BYG!T5="","",BYG!T5) ->  | R62: =IF(BYG!U5="","",BYG!U5) ->  | S62: =IF(BYG!V5="","",BYG!V5) ->  | T62: =IF(BYG!W5="","",BYG!W5) ->  | U62: =IF(BYG!X5="","",BYG!X5) ->  | V62: =IF(BYG!Y5="","",BYG!Y5) ->  | W62: =IF(BYG!Z5="","",BYG!Z5) ->  | X62: =IF(BYG!AA5="","",BYG!AA5) ->  | Y62: =IF(BYG!AB5="","",BYG!AB5) ->  | Z62: =IF(BYG!AC5="","",BYG!AC5) ->  | AA62: =IF(BYG!AD5="","",BYG!AD5) ->  | AB62: =IF(BYG!AE5="","",BYG!AE5) ->  | AC62: =IF(BYG!AF5="","",BYG!AF5) ->  | AD62: =IF(BYG!AG5="","",BYG!AG5) ->  | AE62: =IF(BYG!AH5="","",BYG!AH5) ->  | AF62: =IF(BYG!AI5="","",BYG!AI5) ->  | AG62: =IF(BYG!AJ5="","",BYG!AJ5) ->  | AH62: =IF(BYG!AK5="","",BYG!AK5) ->  | AI62: =IF(BYG!AL5="","",BYG!AL5) ->  | AJ62: =IF(BYG!AM5="","",BYG!AM5) ->  | AK62: =IF(BYG!AN5="","",BYG!AN5) ->  | AL62: =IF(BYG!AO5="","",BYG!AO5) ->  | AM62: =IF(BYG!AP5="","",BYG!AP5) -> 
D63: Criterio Evaluación 1.3 | E63: =IF(BYG!H6="","",BYG!H6) ->  | F63: =IF(BYG!I6="","",BYG!I6) ->  | G63: =IF(BYG!J6="","",BYG!J6) ->  | H63: =IF(BYG!K6="","",BYG!K6) ->  | I63: =IF(BYG!L6="","",BYG!L6) ->  | J63: =IF(BYG!M6="","",BYG!M6) ->  | K63: =IF(BYG!N6="","",BYG!N6) ->  | L63: =IF(BYG!O6="","",BYG!O6) ->  | M63: =IF(BYG!P6="","",BYG!P6) ->  | N63: =IF(BYG!Q6="","",BYG!Q6) ->  | O63: =IF(BYG!R6="","",BYG!R6) ->  | P63: =IF(BYG!S6="","",BYG!S6) ->  | Q63: =IF(BYG!T6="","",BYG!T6) ->  | R63: =IF(BYG!U6="","",BYG!U6) ->  | S63: =IF(BYG!V6="","",BYG!V6) ->  | T63: =IF(BYG!W6="","",BYG!W6) ->  | U63: =IF(BYG!X6="","",BYG!X6) ->  | V63: =IF(BYG!Y6="","",BYG!Y6) ->  | W63: =IF(BYG!Z6="","",BYG!Z6) ->  | X63: =IF(BYG!AA6="","",BYG!AA6) ->  | Y63: =IF(BYG!AB6="","",BYG!AB6) ->  | Z63: =IF(BYG!AC6="","",BYG!AC6) ->  | AA63: =IF(BYG!AD6="","",BYG!AD6) ->  | AB63: =IF(BYG!AE6="","",BYG!AE6) ->  | AC63: =IF(BYG!AF6="","",BYG!AF6) ->  | AD63: =IF(BYG!AG6="","",BYG!AG6) ->  | AE63: =IF(BYG!AH6="","",BYG!AH6) ->  | AF63: =IF(BYG!AI6="","",BYG!AI6) ->  | AG63: =IF(BYG!AJ6="","",BYG!AJ6) ->  | AH63: =IF(BYG!AK6="","",BYG!AK6) ->  | AI63: =IF(BYG!AL6="","",BYG!AL6) ->  | AJ63: =IF(BYG!AM6="","",BYG!AM6) ->  | AK63: =IF(BYG!AN6="","",BYG!AN6) ->  | AL63: =IF(BYG!AO6="","",BYG!AO6) ->  | AM63: =IF(BYG!AP6="","",BYG!AP6) -> 
C64: Comp. Esp. 2 | D64: Criterio Evaluación 2.1 | E64: =IF(BYG!H7="","",BYG!H7) ->  | F64: =IF(BYG!I7="","",BYG!I7) ->  | G64: =IF(BYG!J7="","",BYG!J7) ->  | H64: =IF(BYG!K7="","",BYG!K7) ->  | I64: =IF(BYG!L7="","",BYG!L7) ->  | J64: =IF(BYG!M7="","",BYG!M7) ->  | K64: =IF(BYG!N7="","",BYG!N7) ->  | L64: =IF(BYG!O7="","",BYG!O7) ->  | M64: =IF(BYG!P7="","",BYG!P7) ->  | N64: =IF(BYG!Q7="","",BYG!Q7) ->  | O64: =IF(BYG!R7="","",BYG!R7) ->  | P64: =IF(BYG!S7="","",BYG!S7) ->  | Q64: =IF(BYG!T7="","",BYG!T7) ->  | R64: =IF(BYG!U7="","",BYG!U7) ->  | S64: =IF(BYG!V7="","",BYG!V7) ->  | T64: =IF(BYG!W7="","",BYG!W7) ->  | U64: =IF(BYG!X7="","",BYG!X7) ->  | V64: =IF(BYG!Y7="","",BYG!Y7) ->  | W64: =IF(BYG!Z7="","",BYG!Z7) ->  | X64: =IF(BYG!AA7="","",BYG!AA7) ->  | Y64: =IF(BYG!AB7="","",BYG!AB7) ->  | Z64: =IF(BYG!AC7="","",BYG!AC7) ->  | AA64: =IF(BYG!AD7="","",BYG!AD7) ->  | AB64: =IF(BYG!AE7="","",BYG!AE7) ->  | AC64: =IF(BYG!AF7="","",BYG!AF7) ->  | AD64: =IF(BYG!AG7="","",BYG!AG7) ->  | AE64: =IF(BYG!AH7="","",BYG!AH7) ->  | AF64: =IF(BYG!AI7="","",BYG!AI7) ->  | AG64: =IF(BYG!AJ7="","",BYG!AJ7) ->  | AH64: =IF(BYG!AK7="","",BYG!AK7) ->  | AI64: =IF(BYG!AL7="","",BYG!AL7) ->  | AJ64: =IF(BYG!AM7="","",BYG!AM7) ->  | AK64: =IF(BYG!AN7="","",BYG!AN7) ->  | AL64: =IF(BYG!AO7="","",BYG!AO7) ->  | AM64: =IF(BYG!AP7="","",BYG!AP7) -> 
D65: Criterio Evaluación 2.2 | E65: =IF(BYG!H8="","",BYG!H8) ->  | F65: =IF(BYG!I8="","",BYG!I8) ->  | G65: =IF(BYG!J8="","",BYG!J8) ->  | H65: =IF(BYG!K8="","",BYG!K8) ->  | I65: =IF(BYG!L8="","",BYG!L8) ->  | J65: =IF(BYG!M8="","",BYG!M8) ->  | K65: =IF(BYG!N8="","",BYG!N8) ->  | L65: =IF(BYG!O8="","",BYG!O8) ->  | M65: =IF(BYG!P8="","",BYG!P8) ->  | N65: =IF(BYG!Q8="","",BYG!Q8) ->  | O65: =IF(BYG!R8="","",BYG!R8) ->  | P65: =IF(BYG!S8="","",BYG!S8) ->  | Q65: =IF(BYG!T8="","",BYG!T8) ->  | R65: =IF(BYG!U8="","",BYG!U8) ->  | S65: =IF(BYG!V8="","",BYG!V8) ->  | T65: =IF(BYG!W8="","",BYG!W8) ->  | U65: =IF(BYG!X8="","",BYG!X8) ->  | V65: =IF(BYG!Y8="","",BYG!Y8) ->  | W65: =IF(BYG!Z8="","",BYG!Z8) ->  | X65: =IF(BYG!AA8="","",BYG!AA8) ->  | Y65: =IF(BYG!AB8="","",BYG!AB8) ->  | Z65: =IF(BYG!AC8="","",BYG!AC8) ->  | AA65: =IF(BYG!AD8="","",BYG!AD8) ->  | AB65: =IF(BYG!AE8="","",BYG!AE8) ->  | AC65: =IF(BYG!AF8="","",BYG!AF8) ->  | AD65: =IF(BYG!AG8="","",BYG!AG8) ->  | AE65: =IF(BYG!AH8="","",BYG!AH8) ->  | AF65: =IF(BYG!AI8="","",BYG!AI8) ->  | AG65: =IF(BYG!AJ8="","",BYG!AJ8) ->  | AH65: =IF(BYG!AK8="","",BYG!AK8) ->  | AI65: =IF(BYG!AL8="","",BYG!AL8) ->  | AJ65: =IF(BYG!AM8="","",BYG!AM8) ->  | AK65: =IF(BYG!AN8="","",BYG!AN8) ->  | AL65: =IF(BYG!AO8="","",BYG!AO8) ->  | AM65: =IF(BYG!AP8="","",BYG!AP8) -> 
D66: Criterio Evaluación 2.3 | E66: =IF(BYG!H9="","",BYG!H9) ->  | F66: =IF(BYG!I9="","",BYG!I9) ->  | G66: =IF(BYG!J9="","",BYG!J9) ->  | H66: =IF(BYG!K9="","",BYG!K9) ->  | I66: =IF(BYG!L9="","",BYG!L9) ->  | J66: =IF(BYG!M9="","",BYG!M9) ->  | K66: =IF(BYG!N9="","",BYG!N9) ->  | L66: =IF(BYG!O9="","",BYG!O9) ->  | M66: =IF(BYG!P9="","",BYG!P9) ->  | N66: =IF(BYG!Q9="","",BYG!Q9) ->  | O66: =IF(BYG!R9="","",BYG!R9) ->  | P66: =IF(BYG!S9="","",BYG!S9) ->  | Q66: =IF(BYG!T9="","",BYG!T9) ->  | R66: =IF(BYG!U9="","",BYG!U9) ->  | S66: =IF(BYG!V9="","",BYG!V9) ->  | T66: =IF(BYG!W9="","",BYG!W9) ->  | U66: =IF(BYG!X9="","",BYG!X9) ->  | V66: =IF(BYG!Y9="","",BYG!Y9) ->  | W66: =IF(BYG!Z9="","",BYG!Z9) ->  | X66: =IF(BYG!AA9="","",BYG!AA9) ->  | Y66: =IF(BYG!AB9="","",BYG!AB9) ->  | Z66: =IF(BYG!AC9="","",BYG!AC9) ->  | AA66: =IF(BYG!AD9="","",BYG!AD9) ->  | AB66: =IF(BYG!AE9="","",BYG!AE9) ->  | AC66: =IF(BYG!AF9="","",BYG!AF9) ->  | AD66: =IF(BYG!AG9="","",BYG!AG9) ->  | AE66: =IF(BYG!AH9="","",BYG!AH9) ->  | AF66: =IF(BYG!AI9="","",BYG!AI9) ->  | AG66: =IF(BYG!AJ9="","",BYG!AJ9) ->  | AH66: =IF(BYG!AK9="","",BYG!AK9) ->  | AI66: =IF(BYG!AL9="","",BYG!AL9) ->  | AJ66: =IF(BYG!AM9="","",BYG!AM9) ->  | AK66: =IF(BYG!AN9="","",BYG!AN9) ->  | AL66: =IF(BYG!AO9="","",BYG!AO9) ->  | AM66: =IF(BYG!AP9="","",BYG!AP9) -> 
C67: Comp. Esp. 3 | D67: Criterio Evaluación 3.1 | E67: =IF(BYG!H10="","",BYG!H10) ->  | F67: =IF(BYG!I10="","",BYG!I10) ->  | G67: =IF(BYG!J10="","",BYG!J10) ->  | H67: =IF(BYG!K10="","",BYG!K10) ->  | I67: =IF(BYG!L10="","",BYG!L10) ->  | J67: =IF(BYG!M10="","",BYG!M10) ->  | K67: =IF(BYG!N10="","",BYG!N10) ->  | L67: =IF(BYG!O10="","",BYG!O10) ->  | M67: =IF(BYG!P10="","",BYG!P10) ->  | N67: =IF(BYG!Q10="","",BYG!Q10) ->  | O67: =IF(BYG!R10="","",BYG!R10) ->  | P67: =IF(BYG!S10="","",BYG!S10) ->  | Q67: =IF(BYG!T10="","",BYG!T10) ->  | R67: =IF(BYG!U10="","",BYG!U10) ->  | S67: =IF(BYG!V10="","",BYG!V10) ->  | T67: =IF(BYG!W10="","",BYG!W10) ->  | U67: =IF(BYG!X10="","",BYG!X10) ->  | V67: =IF(BYG!Y10="","",BYG!Y10) ->  | W67: =IF(BYG!Z10="","",BYG!Z10) ->  | X67: =IF(BYG!AA10="","",BYG!AA10) ->  | Y67: =IF(BYG!AB10="","",BYG!AB10) ->  | Z67: =IF(BYG!AC10="","",BYG!AC10) ->  | AA67: =IF(BYG!AD10="","",BYG!AD10) ->  | AB67: =IF(BYG!AE10="","",BYG!AE10) ->  | AC67: =IF(BYG!AF10="","",BYG!AF10) ->  | AD67: =IF(BYG!AG10="","",BYG!AG10) ->  | AE67: =IF(BYG!AH10="","",BYG!AH10) ->  | AF67: =IF(BYG!AI10="","",BYG!AI10) ->  | AG67: =IF(BYG!AJ10="","",BYG!AJ10) ->  | AH67: =IF(BYG!AK10="","",BYG!AK10) ->  | AI67: =IF(BYG!AL10="","",BYG!AL10) ->  | AJ67: =IF(BYG!AM10="","",BYG!AM10) ->  | AK67: =IF(BYG!AN10="","",BYG!AN10) ->  | AL67: =IF(BYG!AO10="","",BYG!AO10) ->  | AM67: =IF(BYG!AP10="","",BYG!AP10) -> 
D68: Criterio Evaluación 3.2 | E68: =IF(BYG!H11="","",BYG!H11) ->  | F68: =IF(BYG!I11="","",BYG!I11) ->  | G68: =IF(BYG!J11="","",BYG!J11) ->  | H68: =IF(BYG!K11="","",BYG!K11) ->  | I68: =IF(BYG!L11="","",BYG!L11) ->  | J68: =IF(BYG!M11="","",BYG!M11) ->  | K68: =IF(BYG!N11="","",BYG!N11) ->  | L68: =IF(BYG!O11="","",BYG!O11) ->  | M68: =IF(BYG!P11="","",BYG!P11) ->  | N68: =IF(BYG!Q11="","",BYG!Q11) ->  | O68: =IF(BYG!R11="","",BYG!R11) ->  | P68: =IF(BYG!S11="","",BYG!S11) ->  | Q68: =IF(BYG!T11="","",BYG!T11) ->  | R68: =IF(BYG!U11="","",BYG!U11) ->  | S68: =IF(BYG!V11="","",BYG!V11) ->  | T68: =IF(BYG!W11="","",BYG!W11) ->  | U68: =IF(BYG!X11="","",BYG!X11) ->  | V68: =IF(BYG!Y11="","",BYG!Y11) ->  | W68: =IF(BYG!Z11="","",BYG!Z11) ->  | X68: =IF(BYG!AA11="","",BYG!AA11) ->  | Y68: =IF(BYG!AB11="","",BYG!AB11) ->  | Z68: =IF(BYG!AC11="","",BYG!AC11) ->  | AA68: =IF(BYG!AD11="","",BYG!AD11) ->  | AB68: =IF(BYG!AE11="","",BYG!AE11) ->  | AC68: =IF(BYG!AF11="","",BYG!AF11) ->  | AD68: =IF(BYG!AG11="","",BYG!AG11) ->  | AE68: =IF(BYG!AH11="","",BYG!AH11) ->  | AF68: =IF(BYG!AI11="","",BYG!AI11) ->  | AG68: =IF(BYG!AJ11="","",BYG!AJ11) ->  | AH68: =IF(BYG!AK11="","",BYG!AK11) ->  | AI68: =IF(BYG!AL11="","",BYG!AL11) ->  | AJ68: =IF(BYG!AM11="","",BYG!AM11) ->  | AK68: =IF(BYG!AN11="","",BYG!AN11) ->  | AL68: =IF(BYG!AO11="","",BYG!AO11) ->  | AM68: =IF(BYG!AP11="","",BYG!AP11) -> 
D69: Criterio Evaluación 3.3 | E69: =IF(BYG!H12="","",BYG!H12) ->  | F69: =IF(BYG!I12="","",BYG!I12) ->  | G69: =IF(BYG!J12="","",BYG!J12) ->  | H69: =IF(BYG!K12="","",BYG!K12) ->  | I69: =IF(BYG!L12="","",BYG!L12) ->  | J69: =IF(BYG!M12="","",BYG!M12) ->  | K69: =IF(BYG!N12="","",BYG!N12) ->  | L69: =IF(BYG!O12="","",BYG!O12) ->  | M69: =IF(BYG!P12="","",BYG!P12) ->  | N69: =IF(BYG!Q12="","",BYG!Q12) ->  | O69: =IF(BYG!R12="","",BYG!R12) ->  | P69: =IF(BYG!S12="","",BYG!S12) ->  | Q69: =IF(BYG!T12="","",BYG!T12) ->  | R69: =IF(BYG!U12="","",BYG!U12) ->  | S69: =IF(BYG!V12="","",BYG!V12) ->  | T69: =IF(BYG!W12="","",BYG!W12) ->  | U69: =IF(BYG!X12="","",BYG!X12) ->  | V69: =IF(BYG!Y12="","",BYG!Y12) ->  | W69: =IF(BYG!Z12="","",BYG!Z12) ->  | X69: =IF(BYG!AA12="","",BYG!AA12) ->  | Y69: =IF(BYG!AB12="","",BYG!AB12) ->  | Z69: =IF(BYG!AC12="","",BYG!AC12) ->  | AA69: =IF(BYG!AD12="","",BYG!AD12) ->  | AB69: =IF(BYG!AE12="","",BYG!AE12) ->  | AC69: =IF(BYG!AF12="","",BYG!AF12) ->  | AD69: =IF(BYG!AG12="","",BYG!AG12) ->  | AE69: =IF(BYG!AH12="","",BYG!AH12) ->  | AF69: =IF(BYG!AI12="","",BYG!AI12) ->  | AG69: =IF(BYG!AJ12="","",BYG!AJ12) ->  | AH69: =IF(BYG!AK12="","",BYG!AK12) ->  | AI69: =IF(BYG!AL12="","",BYG!AL12) ->  | AJ69: =IF(BYG!AM12="","",BYG!AM12) ->  | AK69: =IF(BYG!AN12="","",BYG!AN12) ->  | AL69: =IF(BYG!AO12="","",BYG!AO12) ->  | AM69: =IF(BYG!AP12="","",BYG!AP12) -> 
D70: Criterio Evaluación 3.4 | E70: =IF(BYG!H13="","",BYG!H13) ->  | F70: =IF(BYG!I13="","",BYG!I13) ->  | G70: =IF(BYG!J13="","",BYG!J13) ->  | H70: =IF(BYG!K13="","",BYG!K13) ->  | I70: =IF(BYG!L13="","",BYG!L13) ->  | J70: =IF(BYG!M13="","",BYG!M13) ->  | K70: =IF(BYG!N13="","",BYG!N13) ->  | L70: =IF(BYG!O13="","",BYG!O13) ->  | M70: =IF(BYG!P13="","",BYG!P13) ->  | N70: =IF(BYG!Q13="","",BYG!Q13) ->  | O70: =IF(BYG!R13="","",BYG!R13) ->  | P70: =IF(BYG!S13="","",BYG!S13) ->  | Q70: =IF(BYG!T13="","",BYG!T13) ->  | R70: =IF(BYG!U13="","",BYG!U13) ->  | S70: =IF(BYG!V13="","",BYG!V13) ->  | T70: =IF(BYG!W13="","",BYG!W13) ->  | U70: =IF(BYG!X13="","",BYG!X13) ->  | V70: =IF(BYG!Y13="","",BYG!Y13) ->  | W70: =IF(BYG!Z13="","",BYG!Z13) ->  | X70: =IF(BYG!AA13="","",BYG!AA13) ->  | Y70: =IF(BYG!AB13="","",BYG!AB13) ->  | Z70: =IF(BYG!AC13="","",BYG!AC13) ->  | AA70: =IF(BYG!AD13="","",BYG!AD13) ->  | AB70: =IF(BYG!AE13="","",BYG!AE13) ->  | AC70: =IF(BYG!AF13="","",BYG!AF13) ->  | AD70: =IF(BYG!AG13="","",BYG!AG13) ->  | AE70: =IF(BYG!AH13="","",BYG!AH13) ->  | AF70: =IF(BYG!AI13="","",BYG!AI13) ->  | AG70: =IF(BYG!AJ13="","",BYG!AJ13) ->  | AH70: =IF(BYG!AK13="","",BYG!AK13) ->  | AI70: =IF(BYG!AL13="","",BYG!AL13) ->  | AJ70: =IF(BYG!AM13="","",BYG!AM13) ->  | AK70: =IF(BYG!AN13="","",BYG!AN13) ->  | AL70: =IF(BYG!AO13="","",BYG!AO13) ->  | AM70: =IF(BYG!AP13="","",BYG!AP13) -> 
D71: Criterio Evaluación 3.5 | E71: =IF(BYG!H14="","",BYG!H14) ->  | F71: =IF(BYG!I14="","",BYG!I14) ->  | G71: =IF(BYG!J14="","",BYG!J14) ->  | H71: =IF(BYG!K14="","",BYG!K14) ->  | I71: =IF(BYG!L14="","",BYG!L14) ->  | J71: =IF(BYG!M14="","",BYG!M14) ->  | K71: =IF(BYG!N14="","",BYG!N14) ->  | L71: =IF(BYG!O14="","",BYG!O14) ->  | M71: =IF(BYG!P14="","",BYG!P14) ->  | N71: =IF(BYG!Q14="","",BYG!Q14) ->  | O71: =IF(BYG!R14="","",BYG!R14) ->  | P71: =IF(BYG!S14="","",BYG!S14) ->  | Q71: =IF(BYG!T14="","",BYG!T14) ->  | R71: =IF(BYG!U14="","",BYG!U14) ->  | S71: =IF(BYG!V14="","",BYG!V14) ->  | T71: =IF(BYG!W14="","",BYG!W14) ->  | U71: =IF(BYG!X14="","",BYG!X14) ->  | V71: =IF(BYG!Y14="","",BYG!Y14) ->  | W71: =IF(BYG!Z14="","",BYG!Z14) ->  | X71: =IF(BYG!AA14="","",BYG!AA14) ->  | Y71: =IF(BYG!AB14="","",BYG!AB14) ->  | Z71: =IF(BYG!AC14="","",BYG!AC14) ->  | AA71: =IF(BYG!AD14="","",BYG!AD14) ->  | AB71: =IF(BYG!AE14="","",BYG!AE14) ->  | AC71: =IF(BYG!AF14="","",BYG!AF14) ->  | AD71: =IF(BYG!AG14="","",BYG!AG14) ->  | AE71: =IF(BYG!AH14="","",BYG!AH14) ->  | AF71: =IF(BYG!AI14="","",BYG!AI14) ->  | AG71: =IF(BYG!AJ14="","",BYG!AJ14) ->  | AH71: =IF(BYG!AK14="","",BYG!AK14) ->  | AI71: =IF(BYG!AL14="","",BYG!AL14) ->  | AJ71: =IF(BYG!AM14="","",BYG!AM14) ->  | AK71: =IF(BYG!AN14="","",BYG!AN14) ->  | AL71: =IF(BYG!AO14="","",BYG!AO14) ->  | AM71: =IF(BYG!AP14="","",BYG!AP14) -> 
D72: Criterio Evaluación 3.6 | E72: =IF(BYG!H15="","",BYG!H15) ->  | F72: =IF(BYG!I15="","",BYG!I15) ->  | G72: =IF(BYG!J15="","",BYG!J15) ->  | H72: =IF(BYG!K15="","",BYG!K15) ->  | I72: =IF(BYG!L15="","",BYG!L15) ->  | J72: =IF(BYG!M15="","",BYG!M15) ->  | K72: =IF(BYG!N15="","",BYG!N15) ->  | L72: =IF(BYG!O15="","",BYG!O15) ->  | M72: =IF(BYG!P15="","",BYG!P15) ->  | N72: =IF(BYG!Q15="","",BYG!Q15) ->  | O72: =IF(BYG!R15="","",BYG!R15) ->  | P72: =IF(BYG!S15="","",BYG!S15) ->  | Q72: =IF(BYG!T15="","",BYG!T15) ->  | R72: =IF(BYG!U15="","",BYG!U15) ->  | S72: =IF(BYG!V15="","",BYG!V15) ->  | T72: =IF(BYG!W15="","",BYG!W15) ->  | U72: =IF(BYG!X15="","",BYG!X15) ->  | V72: =IF(BYG!Y15="","",BYG!Y15) ->  | W72: =IF(BYG!Z15="","",BYG!Z15) ->  | X72: =IF(BYG!AA15="","",BYG!AA15) ->  | Y72: =IF(BYG!AB15="","",BYG!AB15) ->  | Z72: =IF(BYG!AC15="","",BYG!AC15) ->  | AA72: =IF(BYG!AD15="","",BYG!AD15) ->  | AB72: =IF(BYG!AE15="","",BYG!AE15) ->  | AC72: =IF(BYG!AF15="","",BYG!AF15) ->  | AD72: =IF(BYG!AG15="","",BYG!AG15) ->  | AE72: =IF(BYG!AH15="","",BYG!AH15) ->  | AF72: =IF(BYG!AI15="","",BYG!AI15) ->  | AG72: =IF(BYG!AJ15="","",BYG!AJ15) ->  | AH72: =IF(BYG!AK15="","",BYG!AK15) ->  | AI72: =IF(BYG!AL15="","",BYG!AL15) ->  | AJ72: =IF(BYG!AM15="","",BYG!AM15) ->  | AK72: =IF(BYG!AN15="","",BYG!AN15) ->  | AL72: =IF(BYG!AO15="","",BYG!AO15) ->  | AM72: =IF(BYG!AP15="","",BYG!AP15) -> 
C73: Comp. Esp. 4 | D73: Criterio Evaluación 4.1 | E73: =IF(BYG!H16="","",BYG!H16) ->  | F73: =IF(BYG!I16="","",BYG!I16) ->  | G73: =IF(BYG!J16="","",BYG!J16) ->  | H73: =IF(BYG!K16="","",BYG!K16) ->  | I73: =IF(BYG!L16="","",BYG!L16) ->  | J73: =IF(BYG!M16="","",BYG!M16) ->  | K73: =IF(BYG!N16="","",BYG!N16) ->  | L73: =IF(BYG!O16="","",BYG!O16) ->  | M73: =IF(BYG!P16="","",BYG!P16) ->  | N73: =IF(BYG!Q16="","",BYG!Q16) ->  | O73: =IF(BYG!R16="","",BYG!R16) ->  | P73: =IF(BYG!S16="","",BYG!S16) ->  | Q73: =IF(BYG!T16="","",BYG!T16) ->  | R73: =IF(BYG!U16="","",BYG!U16) ->  | S73: =IF(BYG!V16="","",BYG!V16) ->  | T73: =IF(BYG!W16="","",BYG!W16) ->  | U73: =IF(BYG!X16="","",BYG!X16) ->  | V73: =IF(BYG!Y16="","",BYG!Y16) ->  | W73: =IF(BYG!Z16="","",BYG!Z16) ->  | X73: =IF(BYG!AA16="","",BYG!AA16) ->  | Y73: =IF(BYG!AB16="","",BYG!AB16) ->  | Z73: =IF(BYG!AC16="","",BYG!AC16) ->  | AA73: =IF(BYG!AD16="","",BYG!AD16) ->  | AB73: =IF(BYG!AE16="","",BYG!AE16) ->  | AC73: =IF(BYG!AF16="","",BYG!AF16) ->  | AD73: =IF(BYG!AG16="","",BYG!AG16) ->  | AE73: =IF(BYG!AH16="","",BYG!AH16) ->  | AF73: =IF(BYG!AI16="","",BYG!AI16) ->  | AG73: =IF(BYG!AJ16="","",BYG!AJ16) ->  | AH73: =IF(BYG!AK16="","",BYG!AK16) ->  | AI73: =IF(BYG!AL16="","",BYG!AL16) ->  | AJ73: =IF(BYG!AM16="","",BYG!AM16) ->  | AK73: =IF(BYG!AN16="","",BYG!AN16) ->  | AL73: =IF(BYG!AO16="","",BYG!AO16) ->  | AM73: =IF(BYG!AP16="","",BYG!AP16) -> 
D74: Criterio Evaluación 4.2 | E74: =IF(BYG!H17="","",BYG!H17) ->  | F74: =IF(BYG!I17="","",BYG!I17) ->  | G74: =IF(BYG!J17="","",BYG!J17) ->  | H74: =IF(BYG!K17="","",BYG!K17) ->  | I74: =IF(BYG!L17="","",BYG!L17) ->  | J74: =IF(BYG!M17="","",BYG!M17) ->  | K74: =IF(BYG!N17="","",BYG!N17) ->  | L74: =IF(BYG!O17="","",BYG!O17) ->  | M74: =IF(BYG!P17="","",BYG!P17) ->  | N74: =IF(BYG!Q17="","",BYG!Q17) ->  | O74: =IF(BYG!R17="","",BYG!R17) ->  | P74: =IF(BYG!S17="","",BYG!S17) ->  | Q74: =IF(BYG!T17="","",BYG!T17) ->  | R74: =IF(BYG!U17="","",BYG!U17) ->  | S74: =IF(BYG!V17="","",BYG!V17) ->  | T74: =IF(BYG!W17="","",BYG!W17) ->  | U74: =IF(BYG!X17="","",BYG!X17) ->  | V74: =IF(BYG!Y17="","",BYG!Y17) ->  | W74: =IF(BYG!Z17="","",BYG!Z17) ->  | X74: =IF(BYG!AA17="","",BYG!AA17) ->  | Y74: =IF(BYG!AB17="","",BYG!AB17) ->  | Z74: =IF(BYG!AC17="","",BYG!AC17) ->  | AA74: =IF(BYG!AD17="","",BYG!AD17) ->  | AB74: =IF(BYG!AE17="","",BYG!AE17) ->  | AC74: =IF(BYG!AF17="","",BYG!AF17) ->  | AD74: =IF(BYG!AG17="","",BYG!AG17) ->  | AE74: =IF(BYG!AH17="","",BYG!AH17) ->  | AF74: =IF(BYG!AI17="","",BYG!AI17) ->  | AG74: =IF(BYG!AJ17="","",BYG!AJ17) ->  | AH74: =IF(BYG!AK17="","",BYG!AK17) ->  | AI74: =IF(BYG!AL17="","",BYG!AL17) ->  | AJ74: =IF(BYG!AM17="","",BYG!AM17) ->  | AK74: =IF(BYG!AN17="","",BYG!AN17) ->  | AL74: =IF(BYG!AO17="","",BYG!AO17) ->  | AM74: =IF(BYG!AP17="","",BYG!AP17) -> 
C75: Comp. Esp. 5 | D75: Criterio Evaluación 5.1 | E75: =IF(BYG!H18="","",BYG!H18) ->  | F75: =IF(BYG!I18="","",BYG!I18) ->  | G75: =IF(BYG!J18="","",BYG!J18) ->  | H75: =IF(BYG!K18="","",BYG!K18) ->  | I75: =IF(BYG!L18="","",BYG!L18) ->  | J75: =IF(BYG!M18="","",BYG!M18) ->  | K75: =IF(BYG!N18="","",BYG!N18) ->  | L75: =IF(BYG!O18="","",BYG!O18) ->  | M75: =IF(BYG!P18="","",BYG!P18) ->  | N75: =IF(BYG!Q18="","",BYG!Q18) ->  | O75: =IF(BYG!R18="","",BYG!R18) ->  | P75: =IF(BYG!S18="","",BYG!S18) ->  | Q75: =IF(BYG!T18="","",BYG!T18) ->  | R75: =IF(BYG!U18="","",BYG!U18) ->  | S75: =IF(BYG!V18="","",BYG!V18) ->  | T75: =IF(BYG!W18="","",BYG!W18) ->  | U75: =IF(BYG!X18="","",BYG!X18) ->  | V75: =IF(BYG!Y18="","",BYG!Y18) ->  | W75: =IF(BYG!Z18="","",BYG!Z18) ->  | X75: =IF(BYG!AA18="","",BYG!AA18) ->  | Y75: =IF(BYG!AB18="","",BYG!AB18) ->  | Z75: =IF(BYG!AC18="","",BYG!AC18) ->  | AA75: =IF(BYG!AD18="","",BYG!AD18) ->  | AB75: =IF(BYG!AE18="","",BYG!AE18) ->  | AC75: =IF(BYG!AF18="","",BYG!AF18) ->  | AD75: =IF(BYG!AG18="","",BYG!AG18) ->  | AE75: =IF(BYG!AH18="","",BYG!AH18) ->  | AF75: =IF(BYG!AI18="","",BYG!AI18) ->  | AG75: =IF(BYG!AJ18="","",BYG!AJ18) ->  | AH75: =IF(BYG!AK18="","",BYG!AK18) ->  | AI75: =IF(BYG!AL18="","",BYG!AL18) ->  | AJ75: =IF(BYG!AM18="","",BYG!AM18) ->  | AK75: =IF(BYG!AN18="","",BYG!AN18) ->  | AL75: =IF(BYG!AO18="","",BYG!AO18) ->  | AM75: =IF(BYG!AP18="","",BYG!AP18) -> 
D76: Criterio Evaluación 5.2 | E76: =IF(BYG!H19="","",BYG!H19) ->  | F76: =IF(BYG!I19="","",BYG!I19) ->  | G76: =IF(BYG!J19="","",BYG!J19) ->  | H76: =IF(BYG!K19="","",BYG!K19) ->  | I76: =IF(BYG!L19="","",BYG!L19) ->  | J76: =IF(BYG!M19="","",BYG!M19) ->  | K76: =IF(BYG!N19="","",BYG!N19) ->  | L76: =IF(BYG!O19="","",BYG!O19) ->  | M76: =IF(BYG!P19="","",BYG!P19) ->  | N76: =IF(BYG!Q19="","",BYG!Q19) ->  | O76: =IF(BYG!R19="","",BYG!R19) ->  | P76: =IF(BYG!S19="","",BYG!S19) ->  | Q76: =IF(BYG!T19="","",BYG!T19) ->  | R76: =IF(BYG!U19="","",BYG!U19) ->  | S76: =IF(BYG!V19="","",BYG!V19) ->  | T76: =IF(BYG!W19="","",BYG!W19) ->  | U76: =IF(BYG!X19="","",BYG!X19) ->  | V76: =IF(BYG!Y19="","",BYG!Y19) ->  | W76: =IF(BYG!Z19="","",BYG!Z19) ->  | X76: =IF(BYG!AA19="","",BYG!AA19) ->  | Y76: =IF(BYG!AB19="","",BYG!AB19) ->  | Z76: =IF(BYG!AC19="","",BYG!AC19) ->  | AA76: =IF(BYG!AD19="","",BYG!AD19) ->  | AB76: =IF(BYG!AE19="","",BYG!AE19) ->  | AC76: =IF(BYG!AF19="","",BYG!AF19) ->  | AD76: =IF(BYG!AG19="","",BYG!AG19) ->  | AE76: =IF(BYG!AH19="","",BYG!AH19) ->  | AF76: =IF(BYG!AI19="","",BYG!AI19) ->  | AG76: =IF(BYG!AJ19="","",BYG!AJ19) ->  | AH76: =IF(BYG!AK19="","",BYG!AK19) ->  | AI76: =IF(BYG!AL19="","",BYG!AL19) ->  | AJ76: =IF(BYG!AM19="","",BYG!AM19) ->  | AK76: =IF(BYG!AN19="","",BYG!AN19) ->  | AL76: =IF(BYG!AO19="","",BYG!AO19) ->  | AM76: =IF(BYG!AP19="","",BYG!AP19) -> 
C77: Comp. Esp. 6 | D77: Criterio Evaluación 6.1 | E77: =IF(BYG!H20="","",BYG!H20) ->  | F77: =IF(BYG!I20="","",BYG!I20) ->  | G77: =IF(BYG!J20="","",BYG!J20) ->  | H77: =IF(BYG!K20="","",BYG!K20) ->  | I77: =IF(BYG!L20="","",BYG!L20) ->  | J77: =IF(BYG!M20="","",BYG!M20) ->  | K77: =IF(BYG!N20="","",BYG!N20) ->  | L77: =IF(BYG!O20="","",BYG!O20) ->  | M77: =IF(BYG!P20="","",BYG!P20) ->  | N77: =IF(BYG!Q20="","",BYG!Q20) ->  | O77: =IF(BYG!R20="","",BYG!R20) ->  | P77: =IF(BYG!S20="","",BYG!S20) ->  | Q77: =IF(BYG!T20="","",BYG!T20) ->  | R77: =IF(BYG!U20="","",BYG!U20) ->  | S77: =IF(BYG!V20="","",BYG!V20) ->  | T77: =IF(BYG!W20="","",BYG!W20) ->  | U77: =IF(BYG!X20="","",BYG!X20) ->  | V77: =IF(BYG!Y20="","",BYG!Y20) ->  | W77: =IF(BYG!Z20="","",BYG!Z20) ->  | X77: =IF(BYG!AA20="","",BYG!AA20) ->  | Y77: =IF(BYG!AB20="","",BYG!AB20) ->  | Z77: =IF(BYG!AC20="","",BYG!AC20) ->  | AA77: =IF(BYG!AD20="","",BYG!AD20) ->  | AB77: =IF(BYG!AE20="","",BYG!AE20) ->  | AC77: =IF(BYG!AF20="","",BYG!AF20) ->  | AD77: =IF(BYG!AG20="","",BYG!AG20) ->  | AE77: =IF(BYG!AH20="","",BYG!AH20) ->  | AF77: =IF(BYG!AI20="","",BYG!AI20) ->  | AG77: =IF(BYG!AJ20="","",BYG!AJ20) ->  | AH77: =IF(BYG!AK20="","",BYG!AK20) ->  | AI77: =IF(BYG!AL20="","",BYG!AL20) ->  | AJ77: =IF(BYG!AM20="","",BYG!AM20) ->  | AK77: =IF(BYG!AN20="","",BYG!AN20) ->  | AL77: =IF(BYG!AO20="","",BYG!AO20) ->  | AM77: =IF(BYG!AP20="","",BYG!AP20) -> 
D78: Criterio Evaluación 6.2 | E78: =IF(BYG!H21="","",BYG!H21) ->  | F78: =IF(BYG!I21="","",BYG!I21) ->  | G78: =IF(BYG!J21="","",BYG!J21) ->  | H78: =IF(BYG!K21="","",BYG!K21) ->  | I78: =IF(BYG!L21="","",BYG!L21) ->  | J78: =IF(BYG!M21="","",BYG!M21) ->  | K78: =IF(BYG!N21="","",BYG!N21) ->  | L78: =IF(BYG!O21="","",BYG!O21) ->  | M78: =IF(BYG!P21="","",BYG!P21) ->  | N78: =IF(BYG!Q21="","",BYG!Q21) ->  | O78: =IF(BYG!R21="","",BYG!R21) ->  | P78: =IF(BYG!S21="","",BYG!S21) ->  | Q78: =IF(BYG!T21="","",BYG!T21) ->  | R78: =IF(BYG!U21="","",BYG!U21) ->  | S78: =IF(BYG!V21="","",BYG!V21) ->  | T78: =IF(BYG!W21="","",BYG!W21) ->  | U78: =IF(BYG!X21="","",BYG!X21) ->  | V78: =IF(BYG!Y21="","",BYG!Y21) ->  | W78: =IF(BYG!Z21="","",BYG!Z21) ->  | X78: =IF(BYG!AA21="","",BYG!AA21) ->  | Y78: =IF(BYG!AB21="","",BYG!AB21) ->  | Z78: =IF(BYG!AC21="","",BYG!AC21) ->  | AA78: =IF(BYG!AD21="","",BYG!AD21) ->  | AB78: =IF(BYG!AE21="","",BYG!AE21) ->  | AC78: =IF(BYG!AF21="","",BYG!AF21) ->  | AD78: =IF(BYG!AG21="","",BYG!AG21) ->  | AE78: =IF(BYG!AH21="","",BYG!AH21) ->  | AF78: =IF(BYG!AI21="","",BYG!AI21) ->  | AG78: =IF(BYG!AJ21="","",BYG!AJ21) ->  | AH78: =IF(BYG!AK21="","",BYG!AK21) ->  | AI78: =IF(BYG!AL21="","",BYG!AL21) ->  | AJ78: =IF(BYG!AM21="","",BYG!AM21) ->  | AK78: =IF(BYG!AN21="","",BYG!AN21) ->  | AL78: =IF(BYG!AO21="","",BYG!AO21) ->  | AM78: =IF(BYG!AP21="","",BYG!AP21) -> 
D79: Criterio Evaluación 6.3 | E79: =IF(BYG!H22="","",BYG!H22) ->  | F79: =IF(BYG!I22="","",BYG!I22) ->  | G79: =IF(BYG!J22="","",BYG!J22) ->  | H79: =IF(BYG!K22="","",BYG!K22) ->  | I79: =IF(BYG!L22="","",BYG!L22) ->  | J79: =IF(BYG!M22="","",BYG!M22) ->  | K79: =IF(BYG!N22="","",BYG!N22) ->  | L79: =IF(BYG!O22="","",BYG!O22) ->  | M79: =IF(BYG!P22="","",BYG!P22) ->  | N79: =IF(BYG!Q22="","",BYG!Q22) ->  | O79: =IF(BYG!R22="","",BYG!R22) ->  | P79: =IF(BYG!S22="","",BYG!S22) ->  | Q79: =IF(BYG!T22="","",BYG!T22) ->  | R79: =IF(BYG!U22="","",BYG!U22) ->  | S79: =IF(BYG!V22="","",BYG!V22) ->  | T79: =IF(BYG!W22="","",BYG!W22) ->  | U79: =IF(BYG!X22="","",BYG!X22) ->  | V79: =IF(BYG!Y22="","",BYG!Y22) ->  | W79: =IF(BYG!Z22="","",BYG!Z22) ->  | X79: =IF(BYG!AA22="","",BYG!AA22) ->  | Y79: =IF(BYG!AB22="","",BYG!AB22) ->  | Z79: =IF(BYG!AC22="","",BYG!AC22) ->  | AA79: =IF(BYG!AD22="","",BYG!AD22) ->  | AB79: =IF(BYG!AE22="","",BYG!AE22) ->  | AC79: =IF(BYG!AF22="","",BYG!AF22) ->  | AD79: =IF(BYG!AG22="","",BYG!AG22) ->  | AE79: =IF(BYG!AH22="","",BYG!AH22) ->  | AF79: =IF(BYG!AI22="","",BYG!AI22) ->  | AG79: =IF(BYG!AJ22="","",BYG!AJ22) ->  | AH79: =IF(BYG!AK22="","",BYG!AK22) ->  | AI79: =IF(BYG!AL22="","",BYG!AL22) ->  | AJ79: =IF(BYG!AM22="","",BYG!AM22) ->  | AK79: =IF(BYG!AN22="","",BYG!AN22) ->  | AL79: =IF(BYG!AO22="","",BYG!AO22) ->  | AM79: =IF(BYG!AP22="","",BYG!AP22) -> 
B80: Coro y Técnica Vocal I | C80: Comp. Esp. 1 | D80: Criterio Evaluación 1.1 | E80: =IF(CYTV!H4="","",CYTV!H4) ->  | F80: =IF(CYTV!I4="","",CYTV!I4) ->  | G80: =IF(CYTV!J4="","",CYTV!J4) ->  | H80: =IF(CYTV!K4="","",CYTV!K4) ->  | I80: =IF(CYTV!L4="","",CYTV!L4) ->  | J80: =IF(CYTV!M4="","",CYTV!M4) ->  | K80: =IF(CYTV!N4="","",CYTV!N4) ->  | L80: =IF(CYTV!O4="","",CYTV!O4) ->  | M80: =IF(CYTV!P4="","",CYTV!P4) ->  | N80: =IF(CYTV!Q4="","",CYTV!Q4) ->  | O80: =IF(CYTV!R4="","",CYTV!R4) ->  | P80: =IF(CYTV!S4="","",CYTV!S4) ->  | Q80: =IF(CYTV!T4="","",CYTV!T4) ->  | R80: =IF(CYTV!U4="","",CYTV!U4) ->  | S80: =IF(CYTV!V4="","",CYTV!V4) ->  | T80: =IF(CYTV!W4="","",CYTV!W4) ->  | U80: =IF(CYTV!X4="","",CYTV!X4) ->  | V80: =IF(CYTV!Y4="","",CYTV!Y4) ->  | W80: =IF(CYTV!Z4="","",CYTV!Z4) ->  | X80: =IF(CYTV!AA4="","",CYTV!AA4) ->  | Y80: =IF(CYTV!AB4="","",CYTV!AB4) ->  | Z80: =IF(CYTV!AC4="","",CYTV!AC4) ->  | AA80: =IF(CYTV!AD4="","",CYTV!AD4) ->  | AB80: =IF(CYTV!AE4="","",CYTV!AE4) ->  | AC80: =IF(CYTV!AF4="","",CYTV!AF4) ->  | AD80: =IF(CYTV!AG4="","",CYTV!AG4) ->  | AE80: =IF(CYTV!AH4="","",CYTV!AH4) ->  | AF80: =IF(CYTV!AI4="","",CYTV!AI4) ->  | AG80: =IF(CYTV!AJ4="","",CYTV!AJ4) ->  | AH80: =IF(CYTV!AK4="","",CYTV!AK4) ->  | AI80: =IF(CYTV!AL4="","",CYTV!AL4) ->  | AJ80: =IF(CYTV!AM4="","",CYTV!AM4) ->  | AK80: =IF(CYTV!AN4="","",CYTV!AN4) ->  | AL80: =IF(CYTV!AO4="","",CYTV!AO4) ->  | AM80: =IF(CYTV!AP4="","",CYTV!AP4) -> 
D81: Criterio Evaluación 1.2 | E81: =IF(CYTV!H5="","",CYTV!H5) ->  | F81: =IF(CYTV!I5="","",CYTV!I5) ->  | G81: =IF(CYTV!J5="","",CYTV!J5) ->  | H81: =IF(CYTV!K5="","",CYTV!K5) ->  | I81: =IF(CYTV!L5="","",CYTV!L5) ->  | J81: =IF(CYTV!M5="","",CYTV!M5) ->  | K81: =IF(CYTV!N5="","",CYTV!N5) ->  | L81: =IF(CYTV!O5="","",CYTV!O5) ->  | M81: =IF(CYTV!P5="","",CYTV!P5) ->  | N81: =IF(CYTV!Q5="","",CYTV!Q5) ->  | O81: =IF(CYTV!R5="","",CYTV!R5) ->  | P81: =IF(CYTV!S5="","",CYTV!S5) ->  | Q81: =IF(CYTV!T5="","",CYTV!T5) ->  | R81: =IF(CYTV!U5="","",CYTV!U5) ->  | S81: =IF(CYTV!V5="","",CYTV!V5) ->  | T81: =IF(CYTV!W5="","",CYTV!W5) ->  | U81: =IF(CYTV!X5="","",CYTV!X5) ->  | V81: =IF(CYTV!Y5="","",CYTV!Y5) ->  | W81: =IF(CYTV!Z5="","",CYTV!Z5) ->  | X81: =IF(CYTV!AA5="","",CYTV!AA5) ->  | Y81: =IF(CYTV!AB5="","",CYTV!AB5) ->  | Z81: =IF(CYTV!AC5="","",CYTV!AC5) ->  | AA81: =IF(CYTV!AD5="","",CYTV!AD5) ->  | AB81: =IF(CYTV!AE5="","",CYTV!AE5) ->  | AC81: =IF(CYTV!AF5="","",CYTV!AF5) ->  | AD81: =IF(CYTV!AG5="","",CYTV!AG5) ->  | AE81: =IF(CYTV!AH5="","",CYTV!AH5) ->  | AF81: =IF(CYTV!AI5="","",CYTV!AI5) ->  | AG81: =IF(CYTV!AJ5="","",CYTV!AJ5) ->  | AH81: =IF(CYTV!AK5="","",CYTV!AK5) ->  | AI81: =IF(CYTV!AL5="","",CYTV!AL5) ->  | AJ81: =IF(CYTV!AM5="","",CYTV!AM5) ->  | AK81: =IF(CYTV!AN5="","",CYTV!AN5) ->  | AL81: =IF(CYTV!AO5="","",CYTV!AO5) ->  | AM81: =IF(CYTV!AP5="","",CYTV!AP5) -> 
D82: Criterio Evaluación 1.3 | E82: =IF(CYTV!H6="","",CYTV!H6) ->  | F82: =IF(CYTV!I6="","",CYTV!I6) ->  | G82: =IF(CYTV!J6="","",CYTV!J6) ->  | H82: =IF(CYTV!K6="","",CYTV!K6) ->  | I82: =IF(CYTV!L6="","",CYTV!L6) ->  | J82: =IF(CYTV!M6="","",CYTV!M6) ->  | K82: =IF(CYTV!N6="","",CYTV!N6) ->  | L82: =IF(CYTV!O6="","",CYTV!O6) ->  | M82: =IF(CYTV!P6="","",CYTV!P6) ->  | N82: =IF(CYTV!Q6="","",CYTV!Q6) ->  | O82: =IF(CYTV!R6="","",CYTV!R6) ->  | P82: =IF(CYTV!S6="","",CYTV!S6) ->  | Q82: =IF(CYTV!T6="","",CYTV!T6) ->  | R82: =IF(CYTV!U6="","",CYTV!U6) ->  | S82: =IF(CYTV!V6="","",CYTV!V6) ->  | T82: =IF(CYTV!W6="","",CYTV!W6) ->  | U82: =IF(CYTV!X6="","",CYTV!X6) ->  | V82: =IF(CYTV!Y6="","",CYTV!Y6) ->  | W82: =IF(CYTV!Z6="","",CYTV!Z6) ->  | X82: =IF(CYTV!AA6="","",CYTV!AA6) ->  | Y82: =IF(CYTV!AB6="","",CYTV!AB6) ->  | Z82: =IF(CYTV!AC6="","",CYTV!AC6) ->  | AA82: =IF(CYTV!AD6="","",CYTV!AD6) ->  | AB82: =IF(CYTV!AE6="","",CYTV!AE6) ->  | AC82: =IF(CYTV!AF6="","",CYTV!AF6) ->  | AD82: =IF(CYTV!AG6="","",CYTV!AG6) ->  | AE82: =IF(CYTV!AH6="","",CYTV!AH6) ->  | AF82: =IF(CYTV!AI6="","",CYTV!AI6) ->  | AG82: =IF(CYTV!AJ6="","",CYTV!AJ6) ->  | AH82: =IF(CYTV!AK6="","",CYTV!AK6) ->  | AI82: =IF(CYTV!AL6="","",CYTV!AL6) ->  | AJ82: =IF(CYTV!AM6="","",CYTV!AM6) ->  | AK82: =IF(CYTV!AN6="","",CYTV!AN6) ->  | AL82: =IF(CYTV!AO6="","",CYTV!AO6) ->  | AM82: =IF(CYTV!AP6="","",CYTV!AP6) -> 
C83: Comp. Esp. 2 | D83: Criterio Evaluación 2.1 | E83: =IF(CYTV!H7="","",CYTV!H7) ->  | F83: =IF(CYTV!I7="","",CYTV!I7) ->  | G83: =IF(CYTV!J7="","",CYTV!J7) ->  | H83: =IF(CYTV!K7="","",CYTV!K7) ->  | I83: =IF(CYTV!L7="","",CYTV!L7) ->  | J83: =IF(CYTV!M7="","",CYTV!M7) ->  | K83: =IF(CYTV!N7="","",CYTV!N7) ->  | L83: =IF(CYTV!O7="","",CYTV!O7) ->  | M83: =IF(CYTV!P7="","",CYTV!P7) ->  | N83: =IF(CYTV!Q7="","",CYTV!Q7) ->  | O83: =IF(CYTV!R7="","",CYTV!R7) ->  | P83: =IF(CYTV!S7="","",CYTV!S7) ->  | Q83: =IF(CYTV!T7="","",CYTV!T7) ->  | R83: =IF(CYTV!U7="","",CYTV!U7) ->  | S83: =IF(CYTV!V7="","",CYTV!V7) ->  | T83: =IF(CYTV!W7="","",CYTV!W7) ->  | U83: =IF(CYTV!X7="","",CYTV!X7) ->  | V83: =IF(CYTV!Y7="","",CYTV!Y7) ->  | W83: =IF(CYTV!Z7="","",CYTV!Z7) ->  | X83: =IF(CYTV!AA7="","",CYTV!AA7) ->  | Y83: =IF(CYTV!AB7="","",CYTV!AB7) ->  | Z83: =IF(CYTV!AC7="","",CYTV!AC7) ->  | AA83: =IF(CYTV!AD7="","",CYTV!AD7) ->  | AB83: =IF(CYTV!AE7="","",CYTV!AE7) ->  | AC83: =IF(CYTV!AF7="","",CYTV!AF7) ->  | AD83: =IF(CYTV!AG7="","",CYTV!AG7) ->  | AE83: =IF(CYTV!AH7="","",CYTV!AH7) ->  | AF83: =IF(CYTV!AI7="","",CYTV!AI7) ->  | AG83: =IF(CYTV!AJ7="","",CYTV!AJ7) ->  | AH83: =IF(CYTV!AK7="","",CYTV!AK7) ->  | AI83: =IF(CYTV!AL7="","",CYTV!AL7) ->  | AJ83: =IF(CYTV!AM7="","",CYTV!AM7) ->  | AK83: =IF(CYTV!AN7="","",CYTV!AN7) ->  | AL83: =IF(CYTV!AO7="","",CYTV!AO7) ->  | AM83: =IF(CYTV!AP7="","",CYTV!AP7) -> 
D84: Criterio Evaluación 2.2 | E84: =IF(CYTV!H8="","",CYTV!H8) ->  | F84: =IF(CYTV!I8="","",CYTV!I8) ->  | G84: =IF(CYTV!J8="","",CYTV!J8) ->  | H84: =IF(CYTV!K8="","",CYTV!K8) ->  | I84: =IF(CYTV!L8="","",CYTV!L8) ->  | J84: =IF(CYTV!M8="","",CYTV!M8) ->  | K84: =IF(CYTV!N8="","",CYTV!N8) ->  | L84: =IF(CYTV!O8="","",CYTV!O8) ->  | M84: =IF(CYTV!P8="","",CYTV!P8) ->  | N84: =IF(CYTV!Q8="","",CYTV!Q8) ->  | O84: =IF(CYTV!R8="","",CYTV!R8) ->  | P84: =IF(CYTV!S8="","",CYTV!S8) ->  | Q84: =IF(CYTV!T8="","",CYTV!T8) ->  | R84: =IF(CYTV!U8="","",CYTV!U8) ->  | S84: =IF(CYTV!V8="","",CYTV!V8) ->  | T84: =IF(CYTV!W8="","",CYTV!W8) ->  | U84: =IF(CYTV!X8="","",CYTV!X8) ->  | V84: =IF(CYTV!Y8="","",CYTV!Y8) ->  | W84: =IF(CYTV!Z8="","",CYTV!Z8) ->  | X84: =IF(CYTV!AA8="","",CYTV!AA8) ->  | Y84: =IF(CYTV!AB8="","",CYTV!AB8) ->  | Z84: =IF(CYTV!AC8="","",CYTV!AC8) ->  | AA84: =IF(CYTV!AD8="","",CYTV!AD8) ->  | AB84: =IF(CYTV!AE8="","",CYTV!AE8) ->  | AC84: =IF(CYTV!AF8="","",CYTV!AF8) ->  | AD84: =IF(CYTV!AG8="","",CYTV!AG8) ->  | AE84: =IF(CYTV!AH8="","",CYTV!AH8) ->  | AF84: =IF(CYTV!AI8="","",CYTV!AI8) ->  | AG84: =IF(CYTV!AJ8="","",CYTV!AJ8) ->  | AH84: =IF(CYTV!AK8="","",CYTV!AK8) ->  | AI84: =IF(CYTV!AL8="","",CYTV!AL8) ->  | AJ84: =IF(CYTV!AM8="","",CYTV!AM8) ->  | AK84: =IF(CYTV!AN8="","",CYTV!AN8) ->  | AL84: =IF(CYTV!AO8="","",CYTV!AO8) ->  | AM84: =IF(CYTV!AP8="","",CYTV!AP8) -> 
D85: Criterio Evaluación 2.3 | E85: =IF(CYTV!H9="","",CYTV!H9) ->  | F85: =IF(CYTV!I9="","",CYTV!I9) ->  | G85: =IF(CYTV!J9="","",CYTV!J9) ->  | H85: =IF(CYTV!K9="","",CYTV!K9) ->  | I85: =IF(CYTV!L9="","",CYTV!L9) ->  | J85: =IF(CYTV!M9="","",CYTV!M9) ->  | K85: =IF(CYTV!N9="","",CYTV!N9) ->  | L85: =IF(CYTV!O9="","",CYTV!O9) ->  | M85: =IF(CYTV!P9="","",CYTV!P9) ->  | N85: =IF(CYTV!Q9="","",CYTV!Q9) ->  | O85: =IF(CYTV!R9="","",CYTV!R9) ->  | P85: =IF(CYTV!S9="","",CYTV!S9) ->  | Q85: =IF(CYTV!T9="","",CYTV!T9) ->  | R85: =IF(CYTV!U9="","",CYTV!U9) ->  | S85: =IF(CYTV!V9="","",CYTV!V9) ->  | T85: =IF(CYTV!W9="","",CYTV!W9) ->  | U85: =IF(CYTV!X9="","",CYTV!X9) ->  | V85: =IF(CYTV!Y9="","",CYTV!Y9) ->  | W85: =IF(CYTV!Z9="","",CYTV!Z9) ->  | X85: =IF(CYTV!AA9="","",CYTV!AA9) ->  | Y85: =IF(CYTV!AB9="","",CYTV!AB9) ->  | Z85: =IF(CYTV!AC9="","",CYTV!AC9) ->  | AA85: =IF(CYTV!AD9="","",CYTV!AD9) ->  | AB85: =IF(CYTV!AE9="","",CYTV!AE9) ->  | AC85: =IF(CYTV!AF9="","",CYTV!AF9) ->  | AD85: =IF(CYTV!AG9="","",CYTV!AG9) ->  | AE85: =IF(CYTV!AH9="","",CYTV!AH9) ->  | AF85: =IF(CYTV!AI9="","",CYTV!AI9) ->  | AG85: =IF(CYTV!AJ9="","",CYTV!AJ9) ->  | AH85: =IF(CYTV!AK9="","",CYTV!AK9) ->  | AI85: =IF(CYTV!AL9="","",CYTV!AL9) ->  | AJ85: =IF(CYTV!AM9="","",CYTV!AM9) ->  | AK85: =IF(CYTV!AN9="","",CYTV!AN9) ->  | AL85: =IF(CYTV!AO9="","",CYTV!AO9) ->  | AM85: =IF(CYTV!AP9="","",CYTV!AP9) -> 
C86: Comp. Esp. 3 | D86: Criterio Evaluación 3.1 | E86: =IF(CYTV!H10="","",CYTV!H10) ->  | F86: =IF(CYTV!I10="","",CYTV!I10) ->  | G86: =IF(CYTV!J10="","",CYTV!J10) ->  | H86: =IF(CYTV!K10="","",CYTV!K10) ->  | I86: =IF(CYTV!L10="","",CYTV!L10) ->  | J86: =IF(CYTV!M10="","",CYTV!M10) ->  | K86: =IF(CYTV!N10="","",CYTV!N10) ->  | L86: =IF(CYTV!O10="","",CYTV!O10) ->  | M86: =IF(CYTV!P10="","",CYTV!P10) ->  | N86: =IF(CYTV!Q10="","",CYTV!Q10) ->  | O86: =IF(CYTV!R10="","",CYTV!R10) ->  | P86: =IF(CYTV!S10="","",CYTV!S10) ->  | Q86: =IF(CYTV!T10="","",CYTV!T10) ->  | R86: =IF(CYTV!U10="","",CYTV!U10) ->  | S86: =IF(CYTV!V10="","",CYTV!V10) ->  | T86: =IF(CYTV!W10="","",CYTV!W10) ->  | U86: =IF(CYTV!X10="","",CYTV!X10) ->  | V86: =IF(CYTV!Y10="","",CYTV!Y10) ->  | W86: =IF(CYTV!Z10="","",CYTV!Z10) ->  | X86: =IF(CYTV!AA10="","",CYTV!AA10) ->  | Y86: =IF(CYTV!AB10="","",CYTV!AB10) ->  | Z86: =IF(CYTV!AC10="","",CYTV!AC10) ->  | AA86: =IF(CYTV!AD10="","",CYTV!AD10) ->  | AB86: =IF(CYTV!AE10="","",CYTV!AE10) ->  | AC86: =IF(CYTV!AF10="","",CYTV!AF10) ->  | AD86: =IF(CYTV!AG10="","",CYTV!AG10) ->  | AE86: =IF(CYTV!AH10="","",CYTV!AH10) ->  | AF86: =IF(CYTV!AI10="","",CYTV!AI10) ->  | AG86: =IF(CYTV!AJ10="","",CYTV!AJ10) ->  | AH86: =IF(CYTV!AK10="","",CYTV!AK10) ->  | AI86: =IF(CYTV!AL10="","",CYTV!AL10) ->  | AJ86: =IF(CYTV!AM10="","",CYTV!AM10) ->  | AK86: =IF(CYTV!AN10="","",CYTV!AN10) ->  | AL86: =IF(CYTV!AO10="","",CYTV!AO10) ->  | AM86: =IF(CYTV!AP10="","",CYTV!AP10) -> 
D87: Criterio Evaluación 3.2 | E87: =IF(CYTV!H11="","",CYTV!H11) ->  | F87: =IF(CYTV!I11="","",CYTV!I11) ->  | G87: =IF(CYTV!J11="","",CYTV!J11) ->  | H87: =IF(CYTV!K11="","",CYTV!K11) ->  | I87: =IF(CYTV!L11="","",CYTV!L11) ->  | J87: =IF(CYTV!M11="","",CYTV!M11) ->  | K87: =IF(CYTV!N11="","",CYTV!N11) ->  | L87: =IF(CYTV!O11="","",CYTV!O11) ->  | M87: =IF(CYTV!P11="","",CYTV!P11) ->  | N87: =IF(CYTV!Q11="","",CYTV!Q11) ->  | O87: =IF(CYTV!R11="","",CYTV!R11) ->  | P87: =IF(CYTV!S11="","",CYTV!S11) ->  | Q87: =IF(CYTV!T11="","",CYTV!T11) ->  | R87: =IF(CYTV!U11="","",CYTV!U11) ->  | S87: =IF(CYTV!V11="","",CYTV!V11) ->  | T87: =IF(CYTV!W11="","",CYTV!W11) ->  | U87: =IF(CYTV!X11="","",CYTV!X11) ->  | V87: =IF(CYTV!Y11="","",CYTV!Y11) ->  | W87: =IF(CYTV!Z11="","",CYTV!Z11) ->  | X87: =IF(CYTV!AA11="","",CYTV!AA11) ->  | Y87: =IF(CYTV!AB11="","",CYTV!AB11) ->  | Z87: =IF(CYTV!AC11="","",CYTV!AC11) ->  | AA87: =IF(CYTV!AD11="","",CYTV!AD11) ->  | AB87: =IF(CYTV!AE11="","",CYTV!AE11) ->  | AC87: =IF(CYTV!AF11="","",CYTV!AF11) ->  | AD87: =IF(CYTV!AG11="","",CYTV!AG11) ->  | AE87: =IF(CYTV!AH11="","",CYTV!AH11) ->  | AF87: =IF(CYTV!AI11="","",CYTV!AI11) ->  | AG87: =IF(CYTV!AJ11="","",CYTV!AJ11) ->  | AH87: =IF(CYTV!AK11="","",CYTV!AK11) ->  | AI87: =IF(CYTV!AL11="","",CYTV!AL11) ->  | AJ87: =IF(CYTV!AM11="","",CYTV!AM11) ->  | AK87: =IF(CYTV!AN11="","",CYTV!AN11) ->  | AL87: =IF(CYTV!AO11="","",CYTV!AO11) ->  | AM87: =IF(CYTV!AP11="","",CYTV!AP11) -> 
D88: Criterio Evaluación 3.3 | E88: =IF(CYTV!H12="","",CYTV!H12) ->  | F88: =IF(CYTV!I12="","",CYTV!I12) ->  | G88: =IF(CYTV!J12="","",CYTV!J12) ->  | H88: =IF(CYTV!K12="","",CYTV!K12) ->  | I88: =IF(CYTV!L12="","",CYTV!L12) ->  | J88: =IF(CYTV!M12="","",CYTV!M12) ->  | K88: =IF(CYTV!N12="","",CYTV!N12) ->  | L88: =IF(CYTV!O12="","",CYTV!O12) ->  | M88: =IF(CYTV!P12="","",CYTV!P12) ->  | N88: =IF(CYTV!Q12="","",CYTV!Q12) ->  | O88: =IF(CYTV!R12="","",CYTV!R12) ->  | P88: =IF(CYTV!S12="","",CYTV!S12) ->  | Q88: =IF(CYTV!T12="","",CYTV!T12) ->  | R88: =IF(CYTV!U12="","",CYTV!U12) ->  | S88: =IF(CYTV!V12="","",CYTV!V12) ->  | T88: =IF(CYTV!W12="","",CYTV!W12) ->  | U88: =IF(CYTV!X12="","",CYTV!X12) ->  | V88: =IF(CYTV!Y12="","",CYTV!Y12) ->  | W88: =IF(CYTV!Z12="","",CYTV!Z12) ->  | X88: =IF(CYTV!AA12="","",CYTV!AA12) ->  | Y88: =IF(CYTV!AB12="","",CYTV!AB12) ->  | Z88: =IF(CYTV!AC12="","",CYTV!AC12) ->  | AA88: =IF(CYTV!AD12="","",CYTV!AD12) ->  | AB88: =IF(CYTV!AE12="","",CYTV!AE12) ->  | AC88: =IF(CYTV!AF12="","",CYTV!AF12) ->  | AD88: =IF(CYTV!AG12="","",CYTV!AG12) ->  | AE88: =IF(CYTV!AH12="","",CYTV!AH12) ->  | AF88: =IF(CYTV!AI12="","",CYTV!AI12) ->  | AG88: =IF(CYTV!AJ12="","",CYTV!AJ12) ->  | AH88: =IF(CYTV!AK12="","",CYTV!AK12) ->  | AI88: =IF(CYTV!AL12="","",CYTV!AL12) ->  | AJ88: =IF(CYTV!AM12="","",CYTV!AM12) ->  | AK88: =IF(CYTV!AN12="","",CYTV!AN12) ->  | AL88: =IF(CYTV!AO12="","",CYTV!AO12) ->  | AM88: =IF(CYTV!AP12="","",CYTV!AP12) -> 
C89: Comp. Esp. 4 | D89: Criterio Evaluación 4.1 | E89: =IF(CYTV!H13="","",CYTV!H13) ->  | F89: =IF(CYTV!I13="","",CYTV!I13) ->  | G89: =IF(CYTV!J13="","",CYTV!J13) ->  | H89: =IF(CYTV!K13="","",CYTV!K13) ->  | I89: =IF(CYTV!L13="","",CYTV!L13) ->  | J89: =IF(CYTV!M13="","",CYTV!M13) ->  | K89: =IF(CYTV!N13="","",CYTV!N13) ->  | L89: =IF(CYTV!O13="","",CYTV!O13) ->  | M89: =IF(CYTV!P13="","",CYTV!P13) ->  | N89: =IF(CYTV!Q13="","",CYTV!Q13) ->  | O89: =IF(CYTV!R13="","",CYTV!R13) ->  | P89: =IF(CYTV!S13="","",CYTV!S13) ->  | Q89: =IF(CYTV!T13="","",CYTV!T13) ->  | R89: =IF(CYTV!U13="","",CYTV!U13) ->  | S89: =IF(CYTV!V13="","",CYTV!V13) ->  | T89: =IF(CYTV!W13="","",CYTV!W13) ->  | U89: =IF(CYTV!X13="","",CYTV!X13) ->  | V89: =IF(CYTV!Y13="","",CYTV!Y13) ->  | W89: =IF(CYTV!Z13="","",CYTV!Z13) ->  | X89: =IF(CYTV!AA13="","",CYTV!AA13) ->  | Y89: =IF(CYTV!AB13="","",CYTV!AB13) ->  | Z89: =IF(CYTV!AC13="","",CYTV!AC13) ->  | AA89: =IF(CYTV!AD13="","",CYTV!AD13) ->  | AB89: =IF(CYTV!AE13="","",CYTV!AE13) ->  | AC89: =IF(CYTV!AF13="","",CYTV!AF13) ->  | AD89: =IF(CYTV!AG13="","",CYTV!AG13) ->  | AE89: =IF(CYTV!AH13="","",CYTV!AH13) ->  | AF89: =IF(CYTV!AI13="","",CYTV!AI13) ->  | AG89: =IF(CYTV!AJ13="","",CYTV!AJ13) ->  | AH89: =IF(CYTV!AK13="","",CYTV!AK13) ->  | AI89: =IF(CYTV!AL13="","",CYTV!AL13) ->  | AJ89: =IF(CYTV!AM13="","",CYTV!AM13) ->  | AK89: =IF(CYTV!AN13="","",CYTV!AN13) ->  | AL89: =IF(CYTV!AO13="","",CYTV!AO13) ->  | AM89: =IF(CYTV!AP13="","",CYTV!AP13) -> 
D90: Criterio Evaluación 4.2 | E90: =IF(CYTV!H14="","",CYTV!H14) ->  | F90: =IF(CYTV!I14="","",CYTV!I14) ->  | G90: =IF(CYTV!J14="","",CYTV!J14) ->  | H90: =IF(CYTV!K14="","",CYTV!K14) ->  | I90: =IF(CYTV!L14="","",CYTV!L14) ->  | J90: =IF(CYTV!M14="","",CYTV!M14) ->  | K90: =IF(CYTV!N14="","",CYTV!N14) ->  | L90: =IF(CYTV!O14="","",CYTV!O14) ->  | M90: =IF(CYTV!P14="","",CYTV!P14) ->  | N90: =IF(CYTV!Q14="","",CYTV!Q14) ->  | O90: =IF(CYTV!R14="","",CYTV!R14) ->  | P90: =IF(CYTV!S14="","",CYTV!S14) ->  | Q90: =IF(CYTV!T14="","",CYTV!T14) ->  | R90: =IF(CYTV!U14="","",CYTV!U14) ->  | S90: =IF(CYTV!V14="","",CYTV!V14) ->  | T90: =IF(CYTV!W14="","",CYTV!W14) ->  | U90: =IF(CYTV!X14="","",CYTV!X14) ->  | V90: =IF(CYTV!Y14="","",CYTV!Y14) ->  | W90: =IF(CYTV!Z14="","",CYTV!Z14) ->  | X90: =IF(CYTV!AA14="","",CYTV!AA14) ->  | Y90: =IF(CYTV!AB14="","",CYTV!AB14) ->  | Z90: =IF(CYTV!AC14="","",CYTV!AC14) ->  | AA90: =IF(CYTV!AD14="","",CYTV!AD14) ->  | AB90: =IF(CYTV!AE14="","",CYTV!AE14) ->  | AC90: =IF(CYTV!AF14="","",CYTV!AF14) ->  | AD90: =IF(CYTV!AG14="","",CYTV!AG14) ->  | AE90: =IF(CYTV!AH14="","",CYTV!AH14) ->  | AF90: =IF(CYTV!AI14="","",CYTV!AI14) ->  | AG90: =IF(CYTV!AJ14="","",CYTV!AJ14) ->  | AH90: =IF(CYTV!AK14="","",CYTV!AK14) ->  | AI90: =IF(CYTV!AL14="","",CYTV!AL14) ->  | AJ90: =IF(CYTV!AM14="","",CYTV!AM14) ->  | AK90: =IF(CYTV!AN14="","",CYTV!AN14) ->  | AL90: =IF(CYTV!AO14="","",CYTV!AO14) ->  | AM90: =IF(CYTV!AP14="","",CYTV!AP14) -> 
D91: Criterio Evaluación 4.3 | E91: =IF(CYTV!H15="","",CYTV!H15) ->  | F91: =IF(CYTV!I15="","",CYTV!I15) ->  | G91: =IF(CYTV!J15="","",CYTV!J15) ->  | H91: =IF(CYTV!K15="","",CYTV!K15) ->  | I91: =IF(CYTV!L15="","",CYTV!L15) ->  | J91: =IF(CYTV!M15="","",CYTV!M15) ->  | K91: =IF(CYTV!N15="","",CYTV!N15) ->  | L91: =IF(CYTV!O15="","",CYTV!O15) ->  | M91: =IF(CYTV!P15="","",CYTV!P15) ->  | N91: =IF(CYTV!Q15="","",CYTV!Q15) ->  | O91: =IF(CYTV!R15="","",CYTV!R15) ->  | P91: =IF(CYTV!S15="","",CYTV!S15) ->  | Q91: =IF(CYTV!T15="","",CYTV!T15) ->  | R91: =IF(CYTV!U15="","",CYTV!U15) ->  | S91: =IF(CYTV!V15="","",CYTV!V15) ->  | T91: =IF(CYTV!W15="","",CYTV!W15) ->  | U91: =IF(CYTV!X15="","",CYTV!X15) ->  | V91: =IF(CYTV!Y15="","",CYTV!Y15) ->  | W91: =IF(CYTV!Z15="","",CYTV!Z15) ->  | X91: =IF(CYTV!AA15="","",CYTV!AA15) ->  | Y91: =IF(CYTV!AB15="","",CYTV!AB15) ->  | Z91: =IF(CYTV!AC15="","",CYTV!AC15) ->  | AA91: =IF(CYTV!AD15="","",CYTV!AD15) ->  | AB91: =IF(CYTV!AE15="","",CYTV!AE15) ->  | AC91: =IF(CYTV!AF15="","",CYTV!AF15) ->  | AD91: =IF(CYTV!AG15="","",CYTV!AG15) ->  | AE91: =IF(CYTV!AH15="","",CYTV!AH15) ->  | AF91: =IF(CYTV!AI15="","",CYTV!AI15) ->  | AG91: =IF(CYTV!AJ15="","",CYTV!AJ15) ->  | AH91: =IF(CYTV!AK15="","",CYTV!AK15) ->  | AI91: =IF(CYTV!AL15="","",CYTV!AL15) ->  | AJ91: =IF(CYTV!AM15="","",CYTV!AM15) ->  | AK91: =IF(CYTV!AN15="","",CYTV!AN15) ->  | AL91: =IF(CYTV!AO15="","",CYTV!AO15) ->  | AM91: =IF(CYTV!AP15="","",CYTV!AP15) -> 
D92: Criterio Evaluación 4.4 | E92: =IF(CYTV!H16="","",CYTV!H16) ->  | F92: =IF(CYTV!I16="","",CYTV!I16) ->  | G92: =IF(CYTV!J16="","",CYTV!J16) ->  | H92: =IF(CYTV!K16="","",CYTV!K16) ->  | I92: =IF(CYTV!L16="","",CYTV!L16) ->  | J92: =IF(CYTV!M16="","",CYTV!M16) ->  | K92: =IF(CYTV!N16="","",CYTV!N16) ->  | L92: =IF(CYTV!O16="","",CYTV!O16) ->  | M92: =IF(CYTV!P16="","",CYTV!P16) ->  | N92: =IF(CYTV!Q16="","",CYTV!Q16) ->  | O92: =IF(CYTV!R16="","",CYTV!R16) ->  | P92: =IF(CYTV!S16="","",CYTV!S16) ->  | Q92: =IF(CYTV!T16="","",CYTV!T16) ->  | R92: =IF(CYTV!U16="","",CYTV!U16) ->  | S92: =IF(CYTV!V16="","",CYTV!V16) ->  | T92: =IF(CYTV!W16="","",CYTV!W16) ->  | U92: =IF(CYTV!X16="","",CYTV!X16) ->  | V92: =IF(CYTV!Y16="","",CYTV!Y16) ->  | W92: =IF(CYTV!Z16="","",CYTV!Z16) ->  | X92: =IF(CYTV!AA16="","",CYTV!AA16) ->  | Y92: =IF(CYTV!AB16="","",CYTV!AB16) ->  | Z92: =IF(CYTV!AC16="","",CYTV!AC16) ->  | AA92: =IF(CYTV!AD16="","",CYTV!AD16) ->  | AB92: =IF(CYTV!AE16="","",CYTV!AE16) ->  | AC92: =IF(CYTV!AF16="","",CYTV!AF16) ->  | AD92: =IF(CYTV!AG16="","",CYTV!AG16) ->  | AE92: =IF(CYTV!AH16="","",CYTV!AH16) ->  | AF92: =IF(CYTV!AI16="","",CYTV!AI16) ->  | AG92: =IF(CYTV!AJ16="","",CYTV!AJ16) ->  | AH92: =IF(CYTV!AK16="","",CYTV!AK16) ->  | AI92: =IF(CYTV!AL16="","",CYTV!AL16) ->  | AJ92: =IF(CYTV!AM16="","",CYTV!AM16) ->  | AK92: =IF(CYTV!AN16="","",CYTV!AN16) ->  | AL92: =IF(CYTV!AO16="","",CYTV!AO16) ->  | AM92: =IF(CYTV!AP16="","",CYTV!AP16) -> 
D93: Criterio Evaluación 4.5 | E93: =IF(CYTV!H17="","",CYTV!H17) ->  | F93: =IF(CYTV!I17="","",CYTV!I17) ->  | G93: =IF(CYTV!J17="","",CYTV!J17) ->  | H93: =IF(CYTV!K17="","",CYTV!K17) ->  | I93: =IF(CYTV!L17="","",CYTV!L17) ->  | J93: =IF(CYTV!M17="","",CYTV!M17) ->  | K93: =IF(CYTV!N17="","",CYTV!N17) ->  | L93: =IF(CYTV!O17="","",CYTV!O17) ->  | M93: =IF(CYTV!P17="","",CYTV!P17) ->  | N93: =IF(CYTV!Q17="","",CYTV!Q17) ->  | O93: =IF(CYTV!R17="","",CYTV!R17) ->  | P93: =IF(CYTV!S17="","",CYTV!S17) ->  | Q93: =IF(CYTV!T17="","",CYTV!T17) ->  | R93: =IF(CYTV!U17="","",CYTV!U17) ->  | S93: =IF(CYTV!V17="","",CYTV!V17) ->  | T93: =IF(CYTV!W17="","",CYTV!W17) ->  | U93: =IF(CYTV!X17="","",CYTV!X17) ->  | V93: =IF(CYTV!Y17="","",CYTV!Y17) ->  | W93: =IF(CYTV!Z17="","",CYTV!Z17) ->  | X93: =IF(CYTV!AA17="","",CYTV!AA17) ->  | Y93: =IF(CYTV!AB17="","",CYTV!AB17) ->  | Z93: =IF(CYTV!AC17="","",CYTV!AC17) ->  | AA93: =IF(CYTV!AD17="","",CYTV!AD17) ->  | AB93: =IF(CYTV!AE17="","",CYTV!AE17) ->  | AC93: =IF(CYTV!AF17="","",CYTV!AF17) ->  | AD93: =IF(CYTV!AG17="","",CYTV!AG17) ->  | AE93: =IF(CYTV!AH17="","",CYTV!AH17) ->  | AF93: =IF(CYTV!AI17="","",CYTV!AI17) ->  | AG93: =IF(CYTV!AJ17="","",CYTV!AJ17) ->  | AH93: =IF(CYTV!AK17="","",CYTV!AK17) ->  | AI93: =IF(CYTV!AL17="","",CYTV!AL17) ->  | AJ93: =IF(CYTV!AM17="","",CYTV!AM17) ->  | AK93: =IF(CYTV!AN17="","",CYTV!AN17) ->  | AL93: =IF(CYTV!AO17="","",CYTV!AO17) ->  | AM93: =IF(CYTV!AP17="","",CYTV!AP17) -> 
B94: Cultura Audiovisual | C94: Comp. Esp. 1 | D94: Criterio Evaluación 1.1 | E94: =IF(CAU!H4="","",CAU!H4) ->  | F94: =IF(CAU!I4="","",CAU!I4) ->  | G94: =IF(CAU!J4="","",CAU!J4) ->  | H94: =IF(CAU!K4="","",CAU!K4) ->  | I94: =IF(CAU!L4="","",CAU!L4) ->  | J94: =IF(CAU!M4="","",CAU!M4) ->  | K94: =IF(CAU!N4="","",CAU!N4) ->  | L94: =IF(CAU!O4="","",CAU!O4) ->  | M94: =IF(CAU!P4="","",CAU!P4) ->  | N94: =IF(CAU!Q4="","",CAU!Q4) ->  | O94: =IF(CAU!R4="","",CAU!R4) ->  | P94: =IF(CAU!S4="","",CAU!S4) ->  | Q94: =IF(CAU!T4="","",CAU!T4) ->  | R94: =IF(CAU!U4="","",CAU!U4) ->  | S94: =IF(CAU!V4="","",CAU!V4) ->  | T94: =IF(CAU!W4="","",CAU!W4) ->  | U94: =IF(CAU!X4="","",CAU!X4) ->  | V94: =IF(CAU!Y4="","",CAU!Y4) ->  | W94: =IF(CAU!Z4="","",CAU!Z4) ->  | X94: =IF(CAU!AA4="","",CAU!AA4) ->  | Y94: =IF(CAU!AB4="","",CAU!AB4) ->  | Z94: =IF(CAU!AC4="","",CAU!AC4) ->  | AA94: =IF(CAU!AD4="","",CAU!AD4) ->  | AB94: =IF(CAU!AE4="","",CAU!AE4) ->  | AC94: =IF(CAU!AF4="","",CAU!AF4) ->  | AD94: =IF(CAU!AG4="","",CAU!AG4) ->  | AE94: =IF(CAU!AH4="","",CAU!AH4) ->  | AF94: =IF(CAU!AI4="","",CAU!AI4) ->  | AG94: =IF(CAU!AJ4="","",CAU!AJ4) ->  | AH94: =IF(CAU!AK4="","",CAU!AK4) ->  | AI94: =IF(CAU!AL4="","",CAU!AL4) ->  | AJ94: =IF(CAU!AM4="","",CAU!AM4) ->  | AK94: =IF(CAU!AN4="","",CAU!AN4) ->  | AL94: =IF(CAU!AO4="","",CAU!AO4) ->  | AM94: =IF(CAU!AP4="","",CAU!AP4) -> 
D95: Criterio Evaluación 1.2 | E95: =IF(CAU!H5="","",CAU!H5) ->  | F95: =IF(CAU!I5="","",CAU!I5) ->  | G95: =IF(CAU!J5="","",CAU!J5) ->  | H95: =IF(CAU!K5="","",CAU!K5) ->  | I95: =IF(CAU!L5="","",CAU!L5) ->  | J95: =IF(CAU!M5="","",CAU!M5) ->  | K95: =IF(CAU!N5="","",CAU!N5) ->  | L95: =IF(CAU!O5="","",CAU!O5) ->  | M95: =IF(CAU!P5="","",CAU!P5) ->  | N95: =IF(CAU!Q5="","",CAU!Q5) ->  | O95: =IF(CAU!R5="","",CAU!R5) ->  | P95: =IF(CAU!S5="","",CAU!S5) ->  | Q95: =IF(CAU!T5="","",CAU!T5) ->  | R95: =IF(CAU!U5="","",CAU!U5) ->  | S95: =IF(CAU!V5="","",CAU!V5) ->  | T95: =IF(CAU!W5="","",CAU!W5) ->  | U95: =IF(CAU!X5="","",CAU!X5) ->  | V95: =IF(CAU!Y5="","",CAU!Y5) ->  | W95: =IF(CAU!Z5="","",CAU!Z5) ->  | X95: =IF(CAU!AA5="","",CAU!AA5) ->  | Y95: =IF(CAU!AB5="","",CAU!AB5) ->  | Z95: =IF(CAU!AC5="","",CAU!AC5) ->  | AA95: =IF(CAU!AD5="","",CAU!AD5) ->  | AB95: =IF(CAU!AE5="","",CAU!AE5) ->  | AC95: =IF(CAU!AF5="","",CAU!AF5) ->  | AD95: =IF(CAU!AG5="","",CAU!AG5) ->  | AE95: =IF(CAU!AH5="","",CAU!AH5) ->  | AF95: =IF(CAU!AI5="","",CAU!AI5) ->  | AG95: =IF(CAU!AJ5="","",CAU!AJ5) ->  | AH95: =IF(CAU!AK5="","",CAU!AK5) ->  | AI95: =IF(CAU!AL5="","",CAU!AL5) ->  | AJ95: =IF(CAU!AM5="","",CAU!AM5) ->  | AK95: =IF(CAU!AN5="","",CAU!AN5) ->  | AL95: =IF(CAU!AO5="","",CAU!AO5) ->  | AM95: =IF(CAU!AP5="","",CAU!AP5) -> 
D96: Criterio Evaluación 1.3 | E96: =IF(CAU!H6="","",CAU!H6) ->  | F96: =IF(CAU!I6="","",CAU!I6) ->  | G96: =IF(CAU!J6="","",CAU!J6) ->  | H96: =IF(CAU!K6="","",CAU!K6) ->  | I96: =IF(CAU!L6="","",CAU!L6) ->  | J96: =IF(CAU!M6="","",CAU!M6) ->  | K96: =IF(CAU!N6="","",CAU!N6) ->  | L96: =IF(CAU!O6="","",CAU!O6) ->  | M96: =IF(CAU!P6="","",CAU!P6) ->  | N96: =IF(CAU!Q6="","",CAU!Q6) ->  | O96: =IF(CAU!R6="","",CAU!R6) ->  | P96: =IF(CAU!S6="","",CAU!S6) ->  | Q96: =IF(CAU!T6="","",CAU!T6) ->  | R96: =IF(CAU!U6="","",CAU!U6) ->  | S96: =IF(CAU!V6="","",CAU!V6) ->  | T96: =IF(CAU!W6="","",CAU!W6) ->  | U96: =IF(CAU!X6="","",CAU!X6) ->  | V96: =IF(CAU!Y6="","",CAU!Y6) ->  | W96: =IF(CAU!Z6="","",CAU!Z6) ->  | X96: =IF(CAU!AA6="","",CAU!AA6) ->  | Y96: =IF(CAU!AB6="","",CAU!AB6) ->  | Z96: =IF(CAU!AC6="","",CAU!AC6) ->  | AA96: =IF(CAU!AD6="","",CAU!AD6) ->  | AB96: =IF(CAU!AE6="","",CAU!AE6) ->  | AC96: =IF(CAU!AF6="","",CAU!AF6) ->  | AD96: =IF(CAU!AG6="","",CAU!AG6) ->  | AE96: =IF(CAU!AH6="","",CAU!AH6) ->  | AF96: =IF(CAU!AI6="","",CAU!AI6) ->  | AG96: =IF(CAU!AJ6="","",CAU!AJ6) ->  | AH96: =IF(CAU!AK6="","",CAU!AK6) ->  | AI96: =IF(CAU!AL6="","",CAU!AL6) ->  | AJ96: =IF(CAU!AM6="","",CAU!AM6) ->  | AK96: =IF(CAU!AN6="","",CAU!AN6) ->  | AL96: =IF(CAU!AO6="","",CAU!AO6) ->  | AM96: =IF(CAU!AP6="","",CAU!AP6) -> 
D97: Criterio Evaluación 1.4 | E97: =IF(CAU!H7="","",CAU!H7) ->  | F97: =IF(CAU!I7="","",CAU!I7) ->  | G97: =IF(CAU!J7="","",CAU!J7) ->  | H97: =IF(CAU!K7="","",CAU!K7) ->  | I97: =IF(CAU!L7="","",CAU!L7) ->  | J97: =IF(CAU!M7="","",CAU!M7) ->  | K97: =IF(CAU!N7="","",CAU!N7) ->  | L97: =IF(CAU!O7="","",CAU!O7) ->  | M97: =IF(CAU!P7="","",CAU!P7) ->  | N97: =IF(CAU!Q7="","",CAU!Q7) ->  | O97: =IF(CAU!R7="","",CAU!R7) ->  | P97: =IF(CAU!S7="","",CAU!S7) ->  | Q97: =IF(CAU!T7="","",CAU!T7) ->  | R97: =IF(CAU!U7="","",CAU!U7) ->  | S97: =IF(CAU!V7="","",CAU!V7) ->  | T97: =IF(CAU!W7="","",CAU!W7) ->  | U97: =IF(CAU!X7="","",CAU!X7) ->  | V97: =IF(CAU!Y7="","",CAU!Y7) ->  | W97: =IF(CAU!Z7="","",CAU!Z7) ->  | X97: =IF(CAU!AA7="","",CAU!AA7) ->  | Y97: =IF(CAU!AB7="","",CAU!AB7) ->  | Z97: =IF(CAU!AC7="","",CAU!AC7) ->  | AA97: =IF(CAU!AD7="","",CAU!AD7) ->  | AB97: =IF(CAU!AE7="","",CAU!AE7) ->  | AC97: =IF(CAU!AF7="","",CAU!AF7) ->  | AD97: =IF(CAU!AG7="","",CAU!AG7) ->  | AE97: =IF(CAU!AH7="","",CAU!AH7) ->  | AF97: =IF(CAU!AI7="","",CAU!AI7) ->  | AG97: =IF(CAU!AJ7="","",CAU!AJ7) ->  | AH97: =IF(CAU!AK7="","",CAU!AK7) ->  | AI97: =IF(CAU!AL7="","",CAU!AL7) ->  | AJ97: =IF(CAU!AM7="","",CAU!AM7) ->  | AK97: =IF(CAU!AN7="","",CAU!AN7) ->  | AL97: =IF(CAU!AO7="","",CAU!AO7) ->  | AM97: =IF(CAU!AP7="","",CAU!AP7) -> 
C98: Comp. Esp. 2 | D98: Criterio Evaluación 2.1 | E98: =IF(CAU!H8="","",CAU!H8) ->  | F98: =IF(CAU!I8="","",CAU!I8) ->  | G98: =IF(CAU!J8="","",CAU!J8) ->  | H98: =IF(CAU!K8="","",CAU!K8) ->  | I98: =IF(CAU!L8="","",CAU!L8) ->  | J98: =IF(CAU!M8="","",CAU!M8) ->  | K98: =IF(CAU!N8="","",CAU!N8) ->  | L98: =IF(CAU!O8="","",CAU!O8) ->  | M98: =IF(CAU!P8="","",CAU!P8) ->  | N98: =IF(CAU!Q8="","",CAU!Q8) ->  | O98: =IF(CAU!R8="","",CAU!R8) ->  | P98: =IF(CAU!S8="","",CAU!S8) ->  | Q98: =IF(CAU!T8="","",CAU!T8) ->  | R98: =IF(CAU!U8="","",CAU!U8) ->  | S98: =IF(CAU!V8="","",CAU!V8) ->  | T98: =IF(CAU!W8="","",CAU!W8) ->  | U98: =IF(CAU!X8="","",CAU!X8) ->  | V98: =IF(CAU!Y8="","",CAU!Y8) ->  | W98: =IF(CAU!Z8="","",CAU!Z8) ->  | X98: =IF(CAU!AA8="","",CAU!AA8) ->  | Y98: =IF(CAU!AB8="","",CAU!AB8) ->  | Z98: =IF(CAU!AC8="","",CAU!AC8) ->  | AA98: =IF(CAU!AD8="","",CAU!AD8) ->  | AB98: =IF(CAU!AE8="","",CAU!AE8) ->  | AC98: =IF(CAU!AF8="","",CAU!AF8) ->  | AD98: =IF(CAU!AG8="","",CAU!AG8) ->  | AE98: =IF(CAU!AH8="","",CAU!AH8) ->  | AF98: =IF(CAU!AI8="","",CAU!AI8) ->  | AG98: =IF(CAU!AJ8="","",CAU!AJ8) ->  | AH98: =IF(CAU!AK8="","",CAU!AK8) ->  | AI98: =IF(CAU!AL8="","",CAU!AL8) ->  | AJ98: =IF(CAU!AM8="","",CAU!AM8) ->  | AK98: =IF(CAU!AN8="","",CAU!AN8) ->  | AL98: =IF(CAU!AO8="","",CAU!AO8) ->  | AM98: =IF(CAU!AP8="","",CAU!AP8) -> 
D99: Criterio Evaluación 2.2 | E99: =IF(CAU!H9="","",CAU!H9) ->  | F99: =IF(CAU!I9="","",CAU!I9) ->  | G99: =IF(CAU!J9="","",CAU!J9) ->  | H99: =IF(CAU!K9="","",CAU!K9) ->  | I99: =IF(CAU!L9="","",CAU!L9) ->  | J99: =IF(CAU!M9="","",CAU!M9) ->  | K99: =IF(CAU!N9="","",CAU!N9) ->  | L99: =IF(CAU!O9="","",CAU!O9) ->  | M99: =IF(CAU!P9="","",CAU!P9) ->  | N99: =IF(CAU!Q9="","",CAU!Q9) ->  | O99: =IF(CAU!R9="","",CAU!R9) ->  | P99: =IF(CAU!S9="","",CAU!S9) ->  | Q99: =IF(CAU!T9="","",CAU!T9) ->  | R99: =IF(CAU!U9="","",CAU!U9) ->  | S99: =IF(CAU!V9="","",CAU!V9) ->  | T99: =IF(CAU!W9="","",CAU!W9) ->  | U99: =IF(CAU!X9="","",CAU!X9) ->  | V99: =IF(CAU!Y9="","",CAU!Y9) ->  | W99: =IF(CAU!Z9="","",CAU!Z9) ->  | X99: =IF(CAU!AA9="","",CAU!AA9) ->  | Y99: =IF(CAU!AB9="","",CAU!AB9) ->  | Z99: =IF(CAU!AC9="","",CAU!AC9) ->  | AA99: =IF(CAU!AD9="","",CAU!AD9) ->  | AB99: =IF(CAU!AE9="","",CAU!AE9) ->  | AC99: =IF(CAU!AF9="","",CAU!AF9) ->  | AD99: =IF(CAU!AG9="","",CAU!AG9) ->  | AE99: =IF(CAU!AH9="","",CAU!AH9) ->  | AF99: =IF(CAU!AI9="","",CAU!AI9) ->  | AG99: =IF(CAU!AJ9="","",CAU!AJ9) ->  | AH99: =IF(CAU!AK9="","",CAU!AK9) ->  | AI99: =IF(CAU!AL9="","",CAU!AL9) ->  | AJ99: =IF(CAU!AM9="","",CAU!AM9) ->  | AK99: =IF(CAU!AN9="","",CAU!AN9) ->  | AL99: =IF(CAU!AO9="","",CAU!AO9) ->  | AM99: =IF(CAU!AP9="","",CAU!AP9) -> 
D100: Criterio Evaluación 2.3 | E100: =IF(CAU!H10="","",CAU!H10) ->  | F100: =IF(CAU!I10="","",CAU!I10) ->  | G100: =IF(CAU!J10="","",CAU!J10) ->  | H100: =IF(CAU!K10="","",CAU!K10) ->  | I100: =IF(CAU!L10="","",CAU!L10) ->  | J100: =IF(CAU!M10="","",CAU!M10) ->  | K100: =IF(CAU!N10="","",CAU!N10) ->  | L100: =IF(CAU!O10="","",CAU!O10) ->  | M100: =IF(CAU!P10="","",CAU!P10) ->  | N100: =IF(CAU!Q10="","",CAU!Q10) ->  | O100: =IF(CAU!R10="","",CAU!R10) ->  | P100: =IF(CAU!S10="","",CAU!S10) ->  | Q100: =IF(CAU!T10="","",CAU!T10) ->  | R100: =IF(CAU!U10="","",CAU!U10) ->  | S100: =IF(CAU!V10="","",CAU!V10) ->  | T100: =IF(CAU!W10="","",CAU!W10) ->  | U100: =IF(CAU!X10="","",CAU!X10) ->  | V100: =IF(CAU!Y10="","",CAU!Y10) ->  | W100: =IF(CAU!Z10="","",CAU!Z10) ->  | X100: =IF(CAU!AA10="","",CAU!AA10) ->  | Y100: =IF(CAU!AB10="","",CAU!AB10) ->  | Z100: =IF(CAU!AC10="","",CAU!AC10) ->  | AA100: =IF(CAU!AD10="","",CAU!AD10) ->  | AB100: =IF(CAU!AE10="","",CAU!AE10) ->  | AC100: =IF(CAU!AF10="","",CAU!AF10) ->  | AD100: =IF(CAU!AG10="","",CAU!AG10) ->  | AE100: =IF(CAU!AH10="","",CAU!AH10) ->  | AF100: =IF(CAU!AI10="","",CAU!AI10) ->  | AG100: =IF(CAU!AJ10="","",CAU!AJ10) ->  | AH100: =IF(CAU!AK10="","",CAU!AK10) ->  | AI100: =IF(CAU!AL10="","",CAU!AL10) ->  | AJ100: =IF(CAU!AM10="","",CAU!AM10) ->  | AK100: =IF(CAU!AN10="","",CAU!AN10) ->  | AL100: =IF(CAU!AO10="","",CAU!AO10) ->  | AM100: =IF(CAU!AP10="","",CAU!AP10) -> 
D101: Criterio Evaluación 2.4 | E101: =IF(CAU!H11="","",CAU!H11) ->  | F101: =IF(CAU!I11="","",CAU!I11) ->  | G101: =IF(CAU!J11="","",CAU!J11) ->  | H101: =IF(CAU!K11="","",CAU!K11) ->  | I101: =IF(CAU!L11="","",CAU!L11) ->  | J101: =IF(CAU!M11="","",CAU!M11) ->  | K101: =IF(CAU!N11="","",CAU!N11) ->  | L101: =IF(CAU!O11="","",CAU!O11) ->  | M101: =IF(CAU!P11="","",CAU!P11) ->  | N101: =IF(CAU!Q11="","",CAU!Q11) ->  | O101: =IF(CAU!R11="","",CAU!R11) ->  | P101: =IF(CAU!S11="","",CAU!S11) ->  | Q101: =IF(CAU!T11="","",CAU!T11) ->  | R101: =IF(CAU!U11="","",CAU!U11) ->  | S101: =IF(CAU!V11="","",CAU!V11) ->  | T101: =IF(CAU!W11="","",CAU!W11) ->  | U101: =IF(CAU!X11="","",CAU!X11) ->  | V101: =IF(CAU!Y11="","",CAU!Y11) ->  | W101: =IF(CAU!Z11="","",CAU!Z11) ->  | X101: =IF(CAU!AA11="","",CAU!AA11) ->  | Y101: =IF(CAU!AB11="","",CAU!AB11) ->  | Z101: =IF(CAU!AC11="","",CAU!AC11) ->  | AA101: =IF(CAU!AD11="","",CAU!AD11) ->  | AB101: =IF(CAU!AE11="","",CAU!AE11) ->  | AC101: =IF(CAU!AF11="","",CAU!AF11) ->  | AD101: =IF(CAU!AG11="","",CAU!AG11) ->  | AE101: =IF(CAU!AH11="","",CAU!AH11) ->  | AF101: =IF(CAU!AI11="","",CAU!AI11) ->  | AG101: =IF(CAU!AJ11="","",CAU!AJ11) ->  | AH101: =IF(CAU!AK11="","",CAU!AK11) ->  | AI101: =IF(CAU!AL11="","",CAU!AL11) ->  | AJ101: =IF(CAU!AM11="","",CAU!AM11) ->  | AK101: =IF(CAU!AN11="","",CAU!AN11) ->  | AL101: =IF(CAU!AO11="","",CAU!AO11) ->  | AM101: =IF(CAU!AP11="","",CAU!AP11) -> 
C102: Comp. Esp. 3 | D102: Criterio Evaluación 3.1 | E102: =IF(CAU!H12="","",CAU!H12) ->  | F102: =IF(CAU!I12="","",CAU!I12) ->  | G102: =IF(CAU!J12="","",CAU!J12) ->  | H102: =IF(CAU!K12="","",CAU!K12) ->  | I102: =IF(CAU!L12="","",CAU!L12) ->  | J102: =IF(CAU!M12="","",CAU!M12) ->  | K102: =IF(CAU!N12="","",CAU!N12) ->  | L102: =IF(CAU!O12="","",CAU!O12) ->  | M102: =IF(CAU!P12="","",CAU!P12) ->  | N102: =IF(CAU!Q12="","",CAU!Q12) ->  | O102: =IF(CAU!R12="","",CAU!R12) ->  | P102: =IF(CAU!S12="","",CAU!S12) ->  | Q102: =IF(CAU!T12="","",CAU!T12) ->  | R102: =IF(CAU!U12="","",CAU!U12) ->  | S102: =IF(CAU!V12="","",CAU!V12) ->  | T102: =IF(CAU!W12="","",CAU!W12) ->  | U102: =IF(CAU!X12="","",CAU!X12) ->  | V102: =IF(CAU!Y12="","",CAU!Y12) ->  | W102: =IF(CAU!Z12="","",CAU!Z12) ->  | X102: =IF(CAU!AA12="","",CAU!AA12) ->  | Y102: =IF(CAU!AB12="","",CAU!AB12) ->  | Z102: =IF(CAU!AC12="","",CAU!AC12) ->  | AA102: =IF(CAU!AD12="","",CAU!AD12) ->  | AB102: =IF(CAU!AE12="","",CAU!AE12) ->  | AC102: =IF(CAU!AF12="","",CAU!AF12) ->  | AD102: =IF(CAU!AG12="","",CAU!AG12) ->  | AE102: =IF(CAU!AH12="","",CAU!AH12) ->  | AF102: =IF(CAU!AI12="","",CAU!AI12) ->  | AG102: =IF(CAU!AJ12="","",CAU!AJ12) ->  | AH102: =IF(CAU!AK12="","",CAU!AK12) ->  | AI102: =IF(CAU!AL12="","",CAU!AL12) ->  | AJ102: =IF(CAU!AM12="","",CAU!AM12) ->  | AK102: =IF(CAU!AN12="","",CAU!AN12) ->  | AL102: =IF(CAU!AO12="","",CAU!AO12) ->  | AM102: =IF(CAU!AP12="","",CAU!AP12) -> 
D103: Criterio Evaluación 3.2 | E103: =IF(CAU!H13="","",CAU!H13) ->  | F103: =IF(CAU!I13="","",CAU!I13) ->  | G103: =IF(CAU!J13="","",CAU!J13) ->  | H103: =IF(CAU!K13="","",CAU!K13) ->  | I103: =IF(CAU!L13="","",CAU!L13) ->  | J103: =IF(CAU!M13="","",CAU!M13) ->  | K103: =IF(CAU!N13="","",CAU!N13) ->  | L103: =IF(CAU!O13="","",CAU!O13) ->  | M103: =IF(CAU!P13="","",CAU!P13) ->  | N103: =IF(CAU!Q13="","",CAU!Q13) ->  | O103: =IF(CAU!R13="","",CAU!R13) ->  | P103: =IF(CAU!S13="","",CAU!S13) ->  | Q103: =IF(CAU!T13="","",CAU!T13) ->  | R103: =IF(CAU!U13="","",CAU!U13) ->  | S103: =IF(CAU!V13="","",CAU!V13) ->  | T103: =IF(CAU!W13="","",CAU!W13) ->  | U103: =IF(CAU!X13="","",CAU!X13) ->  | V103: =IF(CAU!Y13="","",CAU!Y13) ->  | W103: =IF(CAU!Z13="","",CAU!Z13) ->  | X103: =IF(CAU!AA13="","",CAU!AA13) ->  | Y103: =IF(CAU!AB13="","",CAU!AB13) ->  | Z103: =IF(CAU!AC13="","",CAU!AC13) ->  | AA103: =IF(CAU!AD13="","",CAU!AD13) ->  | AB103: =IF(CAU!AE13="","",CAU!AE13) ->  | AC103: =IF(CAU!AF13="","",CAU!AF13) ->  | AD103: =IF(CAU!AG13="","",CAU!AG13) ->  | AE103: =IF(CAU!AH13="","",CAU!AH13) ->  | AF103: =IF(CAU!AI13="","",CAU!AI13) ->  | AG103: =IF(CAU!AJ13="","",CAU!AJ13) ->  | AH103: =IF(CAU!AK13="","",CAU!AK13) ->  | AI103: =IF(CAU!AL13="","",CAU!AL13) ->  | AJ103: =IF(CAU!AM13="","",CAU!AM13) ->  | AK103: =IF(CAU!AN13="","",CAU!AN13) ->  | AL103: =IF(CAU!AO13="","",CAU!AO13) ->  | AM103: =IF(CAU!AP13="","",CAU!AP13) -> 
D104: Criterio Evaluación 3.3 | E104: =IF(CAU!H14="","",CAU!H14) ->  | F104: =IF(CAU!I14="","",CAU!I14) ->  | G104: =IF(CAU!J14="","",CAU!J14) ->  | H104: =IF(CAU!K14="","",CAU!K14) ->  | I104: =IF(CAU!L14="","",CAU!L14) ->  | J104: =IF(CAU!M14="","",CAU!M14) ->  | K104: =IF(CAU!N14="","",CAU!N14) ->  | L104: =IF(CAU!O14="","",CAU!O14) ->  | M104: =IF(CAU!P14="","",CAU!P14) ->  | N104: =IF(CAU!Q14="","",CAU!Q14) ->  | O104: =IF(CAU!R14="","",CAU!R14) ->  | P104: =IF(CAU!S14="","",CAU!S14) ->  | Q104: =IF(CAU!T14="","",CAU!T14) ->  | R104: =IF(CAU!U14="","",CAU!U14) ->  | S104: =IF(CAU!V14="","",CAU!V14) ->  | T104: =IF(CAU!W14="","",CAU!W14) ->  | U104: =IF(CAU!X14="","",CAU!X14) ->  | V104: =IF(CAU!Y14="","",CAU!Y14) ->  | W104: =IF(CAU!Z14="","",CAU!Z14) ->  | X104: =IF(CAU!AA14="","",CAU!AA14) ->  | Y104: =IF(CAU!AB14="","",CAU!AB14) ->  | Z104: =IF(CAU!AC14="","",CAU!AC14) ->  | AA104: =IF(CAU!AD14="","",CAU!AD14) ->  | AB104: =IF(CAU!AE14="","",CAU!AE14) ->  | AC104: =IF(CAU!AF14="","",CAU!AF14) ->  | AD104: =IF(CAU!AG14="","",CAU!AG14) ->  | AE104: =IF(CAU!AH14="","",CAU!AH14) ->  | AF104: =IF(CAU!AI14="","",CAU!AI14) ->  | AG104: =IF(CAU!AJ14="","",CAU!AJ14) ->  | AH104: =IF(CAU!AK14="","",CAU!AK14) ->  | AI104: =IF(CAU!AL14="","",CAU!AL14) ->  | AJ104: =IF(CAU!AM14="","",CAU!AM14) ->  | AK104: =IF(CAU!AN14="","",CAU!AN14) ->  | AL104: =IF(CAU!AO14="","",CAU!AO14) ->  | AM104: =IF(CAU!AP14="","",CAU!AP14) -> 
D105: Criterio Evaluación 3.4 | E105: =IF(CAU!H15="","",CAU!H15) ->  | F105: =IF(CAU!I15="","",CAU!I15) ->  | G105: =IF(CAU!J15="","",CAU!J15) ->  | H105: =IF(CAU!K15="","",CAU!K15) ->  | I105: =IF(CAU!L15="","",CAU!L15) ->  | J105: =IF(CAU!M15="","",CAU!M15) ->  | K105: =IF(CAU!N15="","",CAU!N15) ->  | L105: =IF(CAU!O15="","",CAU!O15) ->  | M105: =IF(CAU!P15="","",CAU!P15) ->  | N105: =IF(CAU!Q15="","",CAU!Q15) ->  | O105: =IF(CAU!R15="","",CAU!R15) ->  | P105: =IF(CAU!S15="","",CAU!S15) ->  | Q105: =IF(CAU!T15="","",CAU!T15) ->  | R105: =IF(CAU!U15="","",CAU!U15) ->  | S105: =IF(CAU!V15="","",CAU!V15) ->  | T105: =IF(CAU!W15="","",CAU!W15) ->  | U105: =IF(CAU!X15="","",CAU!X15) ->  | V105: =IF(CAU!Y15="","",CAU!Y15) ->  | W105: =IF(CAU!Z15="","",CAU!Z15) ->  | X105: =IF(CAU!AA15="","",CAU!AA15) ->  | Y105: =IF(CAU!AB15="","",CAU!AB15) ->  | Z105: =IF(CAU!AC15="","",CAU!AC15) ->  | AA105: =IF(CAU!AD15="","",CAU!AD15) ->  | AB105: =IF(CAU!AE15="","",CAU!AE15) ->  | AC105: =IF(CAU!AF15="","",CAU!AF15) ->  | AD105: =IF(CAU!AG15="","",CAU!AG15) ->  | AE105: =IF(CAU!AH15="","",CAU!AH15) ->  | AF105: =IF(CAU!AI15="","",CAU!AI15) ->  | AG105: =IF(CAU!AJ15="","",CAU!AJ15) ->  | AH105: =IF(CAU!AK15="","",CAU!AK15) ->  | AI105: =IF(CAU!AL15="","",CAU!AL15) ->  | AJ105: =IF(CAU!AM15="","",CAU!AM15) ->  | AK105: =IF(CAU!AN15="","",CAU!AN15) ->  | AL105: =IF(CAU!AO15="","",CAU!AO15) ->  | AM105: =IF(CAU!AP15="","",CAU!AP15) -> 
D106: Criterio Evaluación 3.5 | E106: =IF(CAU!H16="","",CAU!H16) ->  | F106: =IF(CAU!I16="","",CAU!I16) ->  | G106: =IF(CAU!J16="","",CAU!J16) ->  | H106: =IF(CAU!K16="","",CAU!K16) ->  | I106: =IF(CAU!L16="","",CAU!L16) ->  | J106: =IF(CAU!M16="","",CAU!M16) ->  | K106: =IF(CAU!N16="","",CAU!N16) ->  | L106: =IF(CAU!O16="","",CAU!O16) ->  | M106: =IF(CAU!P16="","",CAU!P16) ->  | N106: =IF(CAU!Q16="","",CAU!Q16) ->  | O106: =IF(CAU!R16="","",CAU!R16) ->  | P106: =IF(CAU!S16="","",CAU!S16) ->  | Q106: =IF(CAU!T16="","",CAU!T16) ->  | R106: =IF(CAU!U16="","",CAU!U16) ->  | S106: =IF(CAU!V16="","",CAU!V16) ->  | T106: =IF(CAU!W16="","",CAU!W16) ->  | U106: =IF(CAU!X16="","",CAU!X16) ->  | V106: =IF(CAU!Y16="","",CAU!Y16) ->  | W106: =IF(CAU!Z16="","",CAU!Z16) ->  | X106: =IF(CAU!AA16="","",CAU!AA16) ->  | Y106: =IF(CAU!AB16="","",CAU!AB16) ->  | Z106: =IF(CAU!AC16="","",CAU!AC16) ->  | AA106: =IF(CAU!AD16="","",CAU!AD16) ->  | AB106: =IF(CAU!AE16="","",CAU!AE16) ->  | AC106: =IF(CAU!AF16="","",CAU!AF16) ->  | AD106: =IF(CAU!AG16="","",CAU!AG16) ->  | AE106: =IF(CAU!AH16="","",CAU!AH16) ->  | AF106: =IF(CAU!AI16="","",CAU!AI16) ->  | AG106: =IF(CAU!AJ16="","",CAU!AJ16) ->  | AH106: =IF(CAU!AK16="","",CAU!AK16) ->  | AI106: =IF(CAU!AL16="","",CAU!AL16) ->  | AJ106: =IF(CAU!AM16="","",CAU!AM16) ->  | AK106: =IF(CAU!AN16="","",CAU!AN16) ->  | AL106: =IF(CAU!AO16="","",CAU!AO16) ->  | AM106: =IF(CAU!AP16="","",CAU!AP16) -> 
D107: Criterio Evaluación 3.6 | E107: =IF(CAU!H17="","",CAU!H17) ->  | F107: =IF(CAU!I17="","",CAU!I17) ->  | G107: =IF(CAU!J17="","",CAU!J17) ->  | H107: =IF(CAU!K17="","",CAU!K17) ->  | I107: =IF(CAU!L17="","",CAU!L17) ->  | J107: =IF(CAU!M17="","",CAU!M17) ->  | K107: =IF(CAU!N17="","",CAU!N17) ->  | L107: =IF(CAU!O17="","",CAU!O17) ->  | M107: =IF(CAU!P17="","",CAU!P17) ->  | N107: =IF(CAU!Q17="","",CAU!Q17) ->  | O107: =IF(CAU!R17="","",CAU!R17) ->  | P107: =IF(CAU!S17="","",CAU!S17) ->  | Q107: =IF(CAU!T17="","",CAU!T17) ->  | R107: =IF(CAU!U17="","",CAU!U17) ->  | S107: =IF(CAU!V17="","",CAU!V17) ->  | T107: =IF(CAU!W17="","",CAU!W17) ->  | U107: =IF(CAU!X17="","",CAU!X17) ->  | V107: =IF(CAU!Y17="","",CAU!Y17) ->  | W107: =IF(CAU!Z17="","",CAU!Z17) ->  | X107: =IF(CAU!AA17="","",CAU!AA17) ->  | Y107: =IF(CAU!AB17="","",CAU!AB17) ->  | Z107: =IF(CAU!AC17="","",CAU!AC17) ->  | AA107: =IF(CAU!AD17="","",CAU!AD17) ->  | AB107: =IF(CAU!AE17="","",CAU!AE17) ->  | AC107: =IF(CAU!AF17="","",CAU!AF17) ->  | AD107: =IF(CAU!AG17="","",CAU!AG17) ->  | AE107: =IF(CAU!AH17="","",CAU!AH17) ->  | AF107: =IF(CAU!AI17="","",CAU!AI17) ->  | AG107: =IF(CAU!AJ17="","",CAU!AJ17) ->  | AH107: =IF(CAU!AK17="","",CAU!AK17) ->  | AI107: =IF(CAU!AL17="","",CAU!AL17) ->  | AJ107: =IF(CAU!AM17="","",CAU!AM17) ->  | AK107: =IF(CAU!AN17="","",CAU!AN17) ->  | AL107: =IF(CAU!AO17="","",CAU!AO17) ->  | AM107: =IF(CAU!AP17="","",CAU!AP17) -> 
C108: Comp. Esp. 4 | D108: Criterio Evaluación 4.1 | E108: =IF(CAU!H18="","",CAU!H18) ->  | F108: =IF(CAU!I18="","",CAU!I18) ->  | G108: =IF(CAU!J18="","",CAU!J18) ->  | H108: =IF(CAU!K18="","",CAU!K18) ->  | I108: =IF(CAU!L18="","",CAU!L18) ->  | J108: =IF(CAU!M18="","",CAU!M18) ->  | K108: =IF(CAU!N18="","",CAU!N18) ->  | L108: =IF(CAU!O18="","",CAU!O18) ->  | M108: =IF(CAU!P18="","",CAU!P18) ->  | N108: =IF(CAU!Q18="","",CAU!Q18) ->  | O108: =IF(CAU!R18="","",CAU!R18) ->  | P108: =IF(CAU!S18="","",CAU!S18) ->  | Q108: =IF(CAU!T18="","",CAU!T18) ->  | R108: =IF(CAU!U18="","",CAU!U18) ->  | S108: =IF(CAU!V18="","",CAU!V18) ->  | T108: =IF(CAU!W18="","",CAU!W18) ->  | U108: =IF(CAU!X18="","",CAU!X18) ->  | V108: =IF(CAU!Y18="","",CAU!Y18) ->  | W108: =IF(CAU!Z18="","",CAU!Z18) ->  | X108: =IF(CAU!AA18="","",CAU!AA18) ->  | Y108: =IF(CAU!AB18="","",CAU!AB18) ->  | Z108: =IF(CAU!AC18="","",CAU!AC18) ->  | AA108: =IF(CAU!AD18="","",CAU!AD18) ->  | AB108: =IF(CAU!AE18="","",CAU!AE18) ->  | AC108: =IF(CAU!AF18="","",CAU!AF18) ->  | AD108: =IF(CAU!AG18="","",CAU!AG18) ->  | AE108: =IF(CAU!AH18="","",CAU!AH18) ->  | AF108: =IF(CAU!AI18="","",CAU!AI18) ->  | AG108: =IF(CAU!AJ18="","",CAU!AJ18) ->  | AH108: =IF(CAU!AK18="","",CAU!AK18) ->  | AI108: =IF(CAU!AL18="","",CAU!AL18) ->  | AJ108: =IF(CAU!AM18="","",CAU!AM18) ->  | AK108: =IF(CAU!AN18="","",CAU!AN18) ->  | AL108: =IF(CAU!AO18="","",CAU!AO18) ->  | AM108: =IF(CAU!AP18="","",CAU!AP18) -> 
D109: Criterio Evaluación 4.2 | E109: =IF(CAU!H19="","",CAU!H19) ->  | F109: =IF(CAU!I19="","",CAU!I19) ->  | G109: =IF(CAU!J19="","",CAU!J19) ->  | H109: =IF(CAU!K19="","",CAU!K19) ->  | I109: =IF(CAU!L19="","",CAU!L19) ->  | J109: =IF(CAU!M19="","",CAU!M19) ->  | K109: =IF(CAU!N19="","",CAU!N19) ->  | L109: =IF(CAU!O19="","",CAU!O19) ->  | M109: =IF(CAU!P19="","",CAU!P19) ->  | N109: =IF(CAU!Q19="","",CAU!Q19) ->  | O109: =IF(CAU!R19="","",CAU!R19) ->  | P109: =IF(CAU!S19="","",CAU!S19) ->  | Q109: =IF(CAU!T19="","",CAU!T19) ->  | R109: =IF(CAU!U19="","",CAU!U19) ->  | S109: =IF(CAU!V19="","",CAU!V19) ->  | T109: =IF(CAU!W19="","",CAU!W19) ->  | U109: =IF(CAU!X19="","",CAU!X19) ->  | V109: =IF(CAU!Y19="","",CAU!Y19) ->  | W109: =IF(CAU!Z19="","",CAU!Z19) ->  | X109: =IF(CAU!AA19="","",CAU!AA19) ->  | Y109: =IF(CAU!AB19="","",CAU!AB19) ->  | Z109: =IF(CAU!AC19="","",CAU!AC19) ->  | AA109: =IF(CAU!AD19="","",CAU!AD19) ->  | AB109: =IF(CAU!AE19="","",CAU!AE19) ->  | AC109: =IF(CAU!AF19="","",CAU!AF19) ->  | AD109: =IF(CAU!AG19="","",CAU!AG19) ->  | AE109: =IF(CAU!AH19="","",CAU!AH19) ->  | AF109: =IF(CAU!AI19="","",CAU!AI19) ->  | AG109: =IF(CAU!AJ19="","",CAU!AJ19) ->  | AH109: =IF(CAU!AK19="","",CAU!AK19) ->  | AI109: =IF(CAU!AL19="","",CAU!AL19) ->  | AJ109: =IF(CAU!AM19="","",CAU!AM19) ->  | AK109: =IF(CAU!AN19="","",CAU!AN19) ->  | AL109: =IF(CAU!AO19="","",CAU!AO19) ->  | AM109: =IF(CAU!AP19="","",CAU!AP19) -> 
D110: Criterio Evaluación 4.3 | E110: =IF(CAU!H20="","",CAU!H20) ->  | F110: =IF(CAU!I20="","",CAU!I20) ->  | G110: =IF(CAU!J20="","",CAU!J20) ->  | H110: =IF(CAU!K20="","",CAU!K20) ->  | I110: =IF(CAU!L20="","",CAU!L20) ->  | J110: =IF(CAU!M20="","",CAU!M20) ->  | K110: =IF(CAU!N20="","",CAU!N20) ->  | L110: =IF(CAU!O20="","",CAU!O20) ->  | M110: =IF(CAU!P20="","",CAU!P20) ->  | N110: =IF(CAU!Q20="","",CAU!Q20) ->  | O110: =IF(CAU!R20="","",CAU!R20) ->  | P110: =IF(CAU!S20="","",CAU!S20) ->  | Q110: =IF(CAU!T20="","",CAU!T20) ->  | R110: =IF(CAU!U20="","",CAU!U20) ->  | S110: =IF(CAU!V20="","",CAU!V20) ->  | T110: =IF(CAU!W20="","",CAU!W20) ->  | U110: =IF(CAU!X20="","",CAU!X20) ->  | V110: =IF(CAU!Y20="","",CAU!Y20) ->  | W110: =IF(CAU!Z20="","",CAU!Z20) ->  | X110: =IF(CAU!AA20="","",CAU!AA20) ->  | Y110: =IF(CAU!AB20="","",CAU!AB20) ->  | Z110: =IF(CAU!AC20="","",CAU!AC20) ->  | AA110: =IF(CAU!AD20="","",CAU!AD20) ->  | AB110: =IF(CAU!AE20="","",CAU!AE20) ->  | AC110: =IF(CAU!AF20="","",CAU!AF20) ->  | AD110: =IF(CAU!AG20="","",CAU!AG20) ->  | AE110: =IF(CAU!AH20="","",CAU!AH20) ->  | AF110: =IF(CAU!AI20="","",CAU!AI20) ->  | AG110: =IF(CAU!AJ20="","",CAU!AJ20) ->  | AH110: =IF(CAU!AK20="","",CAU!AK20) ->  | AI110: =IF(CAU!AL20="","",CAU!AL20) ->  | AJ110: =IF(CAU!AM20="","",CAU!AM20) ->  | AK110: =IF(CAU!AN20="","",CAU!AN20) ->  | AL110: =IF(CAU!AO20="","",CAU!AO20) ->  | AM110: =IF(CAU!AP20="","",CAU!AP20) -> 
D111: Criterio Evaluación 4.4 | E111: =IF(CAU!H21="","",CAU!H21) ->  | F111: =IF(CAU!I21="","",CAU!I21) ->  | G111: =IF(CAU!J21="","",CAU!J21) ->  | H111: =IF(CAU!K21="","",CAU!K21) ->  | I111: =IF(CAU!L21="","",CAU!L21) ->  | J111: =IF(CAU!M21="","",CAU!M21) ->  | K111: =IF(CAU!N21="","",CAU!N21) ->  | L111: =IF(CAU!O21="","",CAU!O21) ->  | M111: =IF(CAU!P21="","",CAU!P21) ->  | N111: =IF(CAU!Q21="","",CAU!Q21) ->  | O111: =IF(CAU!R21="","",CAU!R21) ->  | P111: =IF(CAU!S21="","",CAU!S21) ->  | Q111: =IF(CAU!T21="","",CAU!T21) ->  | R111: =IF(CAU!U21="","",CAU!U21) ->  | S111: =IF(CAU!V21="","",CAU!V21) ->  | T111: =IF(CAU!W21="","",CAU!W21) ->  | U111: =IF(CAU!X21="","",CAU!X21) ->  | V111: =IF(CAU!Y21="","",CAU!Y21) ->  | W111: =IF(CAU!Z21="","",CAU!Z21) ->  | X111: =IF(CAU!AA21="","",CAU!AA21) ->  | Y111: =IF(CAU!AB21="","",CAU!AB21) ->  | Z111: =IF(CAU!AC21="","",CAU!AC21) ->  | AA111: =IF(CAU!AD21="","",CAU!AD21) ->  | AB111: =IF(CAU!AE21="","",CAU!AE21) ->  | AC111: =IF(CAU!AF21="","",CAU!AF21) ->  | AD111: =IF(CAU!AG21="","",CAU!AG21) ->  | AE111: =IF(CAU!AH21="","",CAU!AH21) ->  | AF111: =IF(CAU!AI21="","",CAU!AI21) ->  | AG111: =IF(CAU!AJ21="","",CAU!AJ21) ->  | AH111: =IF(CAU!AK21="","",CAU!AK21) ->  | AI111: =IF(CAU!AL21="","",CAU!AL21) ->  | AJ111: =IF(CAU!AM21="","",CAU!AM21) ->  | AK111: =IF(CAU!AN21="","",CAU!AN21) ->  | AL111: =IF(CAU!AO21="","",CAU!AO21) ->  | AM111: =IF(CAU!AP21="","",CAU!AP21) -> 
D112: Criterio Evaluación 4.5 | E112: =IF(CAU!H22="","",CAU!H22) ->  | F112: =IF(CAU!I22="","",CAU!I22) ->  | G112: =IF(CAU!J22="","",CAU!J22) ->  | H112: =IF(CAU!K22="","",CAU!K22) ->  | I112: =IF(CAU!L22="","",CAU!L22) ->  | J112: =IF(CAU!M22="","",CAU!M22) ->  | K112: =IF(CAU!N22="","",CAU!N22) ->  | L112: =IF(CAU!O22="","",CAU!O22) ->  | M112: =IF(CAU!P22="","",CAU!P22) ->  | N112: =IF(CAU!Q22="","",CAU!Q22) ->  | O112: =IF(CAU!R22="","",CAU!R22) ->  | P112: =IF(CAU!S22="","",CAU!S22) ->  | Q112: =IF(CAU!T22="","",CAU!T22) ->  | R112: =IF(CAU!U22="","",CAU!U22) ->  | S112: =IF(CAU!V22="","",CAU!V22) ->  | T112: =IF(CAU!W22="","",CAU!W22) ->  | U112: =IF(CAU!X22="","",CAU!X22) ->  | V112: =IF(CAU!Y22="","",CAU!Y22) ->  | W112: =IF(CAU!Z22="","",CAU!Z22) ->  | X112: =IF(CAU!AA22="","",CAU!AA22) ->  | Y112: =IF(CAU!AB22="","",CAU!AB22) ->  | Z112: =IF(CAU!AC22="","",CAU!AC22) ->  | AA112: =IF(CAU!AD22="","",CAU!AD22) ->  | AB112: =IF(CAU!AE22="","",CAU!AE22) ->  | AC112: =IF(CAU!AF22="","",CAU!AF22) ->  | AD112: =IF(CAU!AG22="","",CAU!AG22) ->  | AE112: =IF(CAU!AH22="","",CAU!AH22) ->  | AF112: =IF(CAU!AI22="","",CAU!AI22) ->  | AG112: =IF(CAU!AJ22="","",CAU!AJ22) ->  | AH112: =IF(CAU!AK22="","",CAU!AK22) ->  | AI112: =IF(CAU!AL22="","",CAU!AL22) ->  | AJ112: =IF(CAU!AM22="","",CAU!AM22) ->  | AK112: =IF(CAU!AN22="","",CAU!AN22) ->  | AL112: =IF(CAU!AO22="","",CAU!AO22) ->  | AM112: =IF(CAU!AP22="","",CAU!AP22) -> 
D113: Criterio Evaluación 4.6 | E113: =IF(CAU!H23="","",CAU!H23) ->  | F113: =IF(CAU!I23="","",CAU!I23) ->  | G113: =IF(CAU!J23="","",CAU!J23) ->  | H113: =IF(CAU!K23="","",CAU!K23) ->  | I113: =IF(CAU!L23="","",CAU!L23) ->  | J113: =IF(CAU!M23="","",CAU!M23) ->  | K113: =IF(CAU!N23="","",CAU!N23) ->  | L113: =IF(CAU!O23="","",CAU!O23) ->  | M113: =IF(CAU!P23="","",CAU!P23) ->  | N113: =IF(CAU!Q23="","",CAU!Q23) ->  | O113: =IF(CAU!R23="","",CAU!R23) ->  | P113: =IF(CAU!S23="","",CAU!S23) ->  | Q113: =IF(CAU!T23="","",CAU!T23) ->  | R113: =IF(CAU!U23="","",CAU!U23) ->  | S113: =IF(CAU!V23="","",CAU!V23) ->  | T113: =IF(CAU!W23="","",CAU!W23) ->  | U113: =IF(CAU!X23="","",CAU!X23) ->  | V113: =IF(CAU!Y23="","",CAU!Y23) ->  | W113: =IF(CAU!Z23="","",CAU!Z23) ->  | X113: =IF(CAU!AA23="","",CAU!AA23) ->  | Y113: =IF(CAU!AB23="","",CAU!AB23) ->  | Z113: =IF(CAU!AC23="","",CAU!AC23) ->  | AA113: =IF(CAU!AD23="","",CAU!AD23) ->  | AB113: =IF(CAU!AE23="","",CAU!AE23) ->  | AC113: =IF(CAU!AF23="","",CAU!AF23) ->  | AD113: =IF(CAU!AG23="","",CAU!AG23) ->  | AE113: =IF(CAU!AH23="","",CAU!AH23) ->  | AF113: =IF(CAU!AI23="","",CAU!AI23) ->  | AG113: =IF(CAU!AJ23="","",CAU!AJ23) ->  | AH113: =IF(CAU!AK23="","",CAU!AK23) ->  | AI113: =IF(CAU!AL23="","",CAU!AL23) ->  | AJ113: =IF(CAU!AM23="","",CAU!AM23) ->  | AK113: =IF(CAU!AN23="","",CAU!AN23) ->  | AL113: =IF(CAU!AO23="","",CAU!AO23) ->  | AM113: =IF(CAU!AP23="","",CAU!AP23) -> 
B114: Cultura Científica | C114: Comp. Esp. 1 | D114: Criterio Evaluación 1.1 | E114: =IF(CC!H4="","",CC!H4) ->  | F114: =IF(CC!I4="","",CC!I4) ->  | G114: =IF(CC!J4="","",CC!J4) ->  | H114: =IF(CC!K4="","",CC!K4) ->  | I114: =IF(CC!L4="","",CC!L4) ->  | J114: =IF(CC!M4="","",CC!M4) ->  | K114: =IF(CC!N4="","",CC!N4) ->  | L114: =IF(CC!O4="","",CC!O4) ->  | M114: =IF(CC!P4="","",CC!P4) ->  | N114: =IF(CC!Q4="","",CC!Q4) ->  | O114: =IF(CC!R4="","",CC!R4) ->  | P114: =IF(CC!S4="","",CC!S4) ->  | Q114: =IF(CC!T4="","",CC!T4) ->  | R114: =IF(CC!U4="","",CC!U4) ->  | S114: =IF(CC!V4="","",CC!V4) ->  | T114: =IF(CC!W4="","",CC!W4) ->  | U114: =IF(CC!X4="","",CC!X4) ->  | V114: =IF(CC!Y4="","",CC!Y4) ->  | W114: =IF(CC!Z4="","",CC!Z4) ->  | X114: =IF(CC!AA4="","",CC!AA4) ->  | Y114: =IF(CC!AB4="","",CC!AB4) ->  | Z114: =IF(CC!AC4="","",CC!AC4) ->  | AA114: =IF(CC!AD4="","",CC!AD4) ->  | AB114: =IF(CC!AE4="","",CC!AE4) ->  | AC114: =IF(CC!AF4="","",CC!AF4) ->  | AD114: =IF(CC!AG4="","",CC!AG4) ->  | AE114: =IF(CC!AH4="","",CC!AH4) ->  | AF114: =IF(CC!AI4="","",CC!AI4) ->  | AG114: =IF(CC!AJ4="","",CC!AJ4) ->  | AH114: =IF(CC!AK4="","",CC!AK4) ->  | AI114: =IF(CC!AL4="","",CC!AL4) ->  | AJ114: =IF(CC!AM4="","",CC!AM4) ->  | AK114: =IF(CC!AN4="","",CC!AN4) ->  | AL114: =IF(CC!AO4="","",CC!AO4) ->  | AM114: =IF(CC!AP4="","",CC!AP4) -> 
D115: Criterio Evaluación 1.2 | E115: =IF(CC!H5="","",CC!H5) ->  | F115: =IF(CC!I5="","",CC!I5) ->  | G115: =IF(CC!J5="","",CC!J5) ->  | H115: =IF(CC!K5="","",CC!K5) ->  | I115: =IF(CC!L5="","",CC!L5) ->  | J115: =IF(CC!M5="","",CC!M5) ->  | K115: =IF(CC!N5="","",CC!N5) ->  | L115: =IF(CC!O5="","",CC!O5) ->  | M115: =IF(CC!P5="","",CC!P5) ->  | N115: =IF(CC!Q5="","",CC!Q5) ->  | O115: =IF(CC!R5="","",CC!R5) ->  | P115: =IF(CC!S5="","",CC!S5) ->  | Q115: =IF(CC!T5="","",CC!T5) ->  | R115: =IF(CC!U5="","",CC!U5) ->  | S115: =IF(CC!V5="","",CC!V5) ->  | T115: =IF(CC!W5="","",CC!W5) ->  | U115: =IF(CC!X5="","",CC!X5) ->  | V115: =IF(CC!Y5="","",CC!Y5) ->  | W115: =IF(CC!Z5="","",CC!Z5) ->  | X115: =IF(CC!AA5="","",CC!AA5) ->  | Y115: =IF(CC!AB5="","",CC!AB5) ->  | Z115: =IF(CC!AC5="","",CC!AC5) ->  | AA115: =IF(CC!AD5="","",CC!AD5) ->  | AB115: =IF(CC!AE5="","",CC!AE5) ->  | AC115: =IF(CC!AF5="","",CC!AF5) ->  | AD115: =IF(CC!AG5="","",CC!AG5) ->  | AE115: =IF(CC!AH5="","",CC!AH5) ->  | AF115: =IF(CC!AI5="","",CC!AI5) ->  | AG115: =IF(CC!AJ5="","",CC!AJ5) ->  | AH115: =IF(CC!AK5="","",CC!AK5) ->  | AI115: =IF(CC!AL5="","",CC!AL5) ->  | AJ115: =IF(CC!AM5="","",CC!AM5) ->  | AK115: =IF(CC!AN5="","",CC!AN5) ->  | AL115: =IF(CC!AO5="","",CC!AO5) ->  | AM115: =IF(CC!AP5="","",CC!AP5) -> 
C116: Comp. Esp. 2 | D116: Criterio Evaluación 2.1 | E116: =IF(CC!H6="","",CC!H6) ->  | F116: =IF(CC!I6="","",CC!I6) ->  | G116: =IF(CC!J6="","",CC!J6) ->  | H116: =IF(CC!K6="","",CC!K6) ->  | I116: =IF(CC!L6="","",CC!L6) ->  | J116: =IF(CC!M6="","",CC!M6) ->  | K116: =IF(CC!N6="","",CC!N6) ->  | L116: =IF(CC!O6="","",CC!O6) ->  | M116: =IF(CC!P6="","",CC!P6) ->  | N116: =IF(CC!Q6="","",CC!Q6) ->  | O116: =IF(CC!R6="","",CC!R6) ->  | P116: =IF(CC!S6="","",CC!S6) ->  | Q116: =IF(CC!T6="","",CC!T6) ->  | R116: =IF(CC!U6="","",CC!U6) ->  | S116: =IF(CC!V6="","",CC!V6) ->  | T116: =IF(CC!W6="","",CC!W6) ->  | U116: =IF(CC!X6="","",CC!X6) ->  | V116: =IF(CC!Y6="","",CC!Y6) ->  | W116: =IF(CC!Z6="","",CC!Z6) ->  | X116: =IF(CC!AA6="","",CC!AA6) ->  | Y116: =IF(CC!AB6="","",CC!AB6) ->  | Z116: =IF(CC!AC6="","",CC!AC6) ->  | AA116: =IF(CC!AD6="","",CC!AD6) ->  | AB116: =IF(CC!AE6="","",CC!AE6) ->  | AC116: =IF(CC!AF6="","",CC!AF6) ->  | AD116: =IF(CC!AG6="","",CC!AG6) ->  | AE116: =IF(CC!AH6="","",CC!AH6) ->  | AF116: =IF(CC!AI6="","",CC!AI6) ->  | AG116: =IF(CC!AJ6="","",CC!AJ6) ->  | AH116: =IF(CC!AK6="","",CC!AK6) ->  | AI116: =IF(CC!AL6="","",CC!AL6) ->  | AJ116: =IF(CC!AM6="","",CC!AM6) ->  | AK116: =IF(CC!AN6="","",CC!AN6) ->  | AL116: =IF(CC!AO6="","",CC!AO6) ->  | AM116: =IF(CC!AP6="","",CC!AP6) -> 
D117: Criterio Evaluación 2.2 | E117: =IF(CC!H7="","",CC!H7) ->  | F117: =IF(CC!I7="","",CC!I7) ->  | G117: =IF(CC!J7="","",CC!J7) ->  | H117: =IF(CC!K7="","",CC!K7) ->  | I117: =IF(CC!L7="","",CC!L7) ->  | J117: =IF(CC!M7="","",CC!M7) ->  | K117: =IF(CC!N7="","",CC!N7) ->  | L117: =IF(CC!O7="","",CC!O7) ->  | M117: =IF(CC!P7="","",CC!P7) ->  | N117: =IF(CC!Q7="","",CC!Q7) ->  | O117: =IF(CC!R7="","",CC!R7) ->  | P117: =IF(CC!S7="","",CC!S7) ->  | Q117: =IF(CC!T7="","",CC!T7) ->  | R117: =IF(CC!U7="","",CC!U7) ->  | S117: =IF(CC!V7="","",CC!V7) ->  | T117: =IF(CC!W7="","",CC!W7) ->  | U117: =IF(CC!X7="","",CC!X7) ->  | V117: =IF(CC!Y7="","",CC!Y7) ->  | W117: =IF(CC!Z7="","",CC!Z7) ->  | X117: =IF(CC!AA7="","",CC!AA7) ->  | Y117: =IF(CC!AB7="","",CC!AB7) ->  | Z117: =IF(CC!AC7="","",CC!AC7) ->  | AA117: =IF(CC!AD7="","",CC!AD7) ->  | AB117: =IF(CC!AE7="","",CC!AE7) ->  | AC117: =IF(CC!AF7="","",CC!AF7) ->  | AD117: =IF(CC!AG7="","",CC!AG7) ->  | AE117: =IF(CC!AH7="","",CC!AH7) ->  | AF117: =IF(CC!AI7="","",CC!AI7) ->  | AG117: =IF(CC!AJ7="","",CC!AJ7) ->  | AH117: =IF(CC!AK7="","",CC!AK7) ->  | AI117: =IF(CC!AL7="","",CC!AL7) ->  | AJ117: =IF(CC!AM7="","",CC!AM7) ->  | AK117: =IF(CC!AN7="","",CC!AN7) ->  | AL117: =IF(CC!AO7="","",CC!AO7) ->  | AM117: =IF(CC!AP7="","",CC!AP7) -> 
C118: Comp. Esp. 3 | D118: Criterio Evaluación 3.1 | E118: =IF(CC!H8="","",CC!H8) ->  | F118: =IF(CC!I8="","",CC!I8) ->  | G118: =IF(CC!J8="","",CC!J8) ->  | H118: =IF(CC!K8="","",CC!K8) ->  | I118: =IF(CC!L8="","",CC!L8) ->  | J118: =IF(CC!M8="","",CC!M8) ->  | K118: =IF(CC!N8="","",CC!N8) ->  | L118: =IF(CC!O8="","",CC!O8) ->  | M118: =IF(CC!P8="","",CC!P8) ->  | N118: =IF(CC!Q8="","",CC!Q8) ->  | O118: =IF(CC!R8="","",CC!R8) ->  | P118: =IF(CC!S8="","",CC!S8) ->  | Q118: =IF(CC!T8="","",CC!T8) ->  | R118: =IF(CC!U8="","",CC!U8) ->  | S118: =IF(CC!V8="","",CC!V8) ->  | T118: =IF(CC!W8="","",CC!W8) ->  | U118: =IF(CC!X8="","",CC!X8) ->  | V118: =IF(CC!Y8="","",CC!Y8) ->  | W118: =IF(CC!Z8="","",CC!Z8) ->  | X118: =IF(CC!AA8="","",CC!AA8) ->  | Y118: =IF(CC!AB8="","",CC!AB8) ->  | Z118: =IF(CC!AC8="","",CC!AC8) ->  | AA118: =IF(CC!AD8="","",CC!AD8) ->  | AB118: =IF(CC!AE8="","",CC!AE8) ->  | AC118: =IF(CC!AF8="","",CC!AF8) ->  | AD118: =IF(CC!AG8="","",CC!AG8) ->  | AE118: =IF(CC!AH8="","",CC!AH8) ->  | AF118: =IF(CC!AI8="","",CC!AI8) ->  | AG118: =IF(CC!AJ8="","",CC!AJ8) ->  | AH118: =IF(CC!AK8="","",CC!AK8) ->  | AI118: =IF(CC!AL8="","",CC!AL8) ->  | AJ118: =IF(CC!AM8="","",CC!AM8) ->  | AK118: =IF(CC!AN8="","",CC!AN8) ->  | AL118: =IF(CC!AO8="","",CC!AO8) ->  | AM118: =IF(CC!AP8="","",CC!AP8) -> 
D119: Criterio Evaluación 3.2 | E119: =IF(CC!H9="","",CC!H9) ->  | F119: =IF(CC!I9="","",CC!I9) ->  | G119: =IF(CC!J9="","",CC!J9) ->  | H119: =IF(CC!K9="","",CC!K9) ->  | I119: =IF(CC!L9="","",CC!L9) ->  | J119: =IF(CC!M9="","",CC!M9) ->  | K119: =IF(CC!N9="","",CC!N9) ->  | L119: =IF(CC!O9="","",CC!O9) ->  | M119: =IF(CC!P9="","",CC!P9) ->  | N119: =IF(CC!Q9="","",CC!Q9) ->  | O119: =IF(CC!R9="","",CC!R9) ->  | P119: =IF(CC!S9="","",CC!S9) ->  | Q119: =IF(CC!T9="","",CC!T9) ->  | R119: =IF(CC!U9="","",CC!U9) ->  | S119: =IF(CC!V9="","",CC!V9) ->  | T119: =IF(CC!W9="","",CC!W9) ->  | U119: =IF(CC!X9="","",CC!X9) ->  | V119: =IF(CC!Y9="","",CC!Y9) ->  | W119: =IF(CC!Z9="","",CC!Z9) ->  | X119: =IF(CC!AA9="","",CC!AA9) ->  | Y119: =IF(CC!AB9="","",CC!AB9) ->  | Z119: =IF(CC!AC9="","",CC!AC9) ->  | AA119: =IF(CC!AD9="","",CC!AD9) ->  | AB119: =IF(CC!AE9="","",CC!AE9) ->  | AC119: =IF(CC!AF9="","",CC!AF9) ->  | AD119: =IF(CC!AG9="","",CC!AG9) ->  | AE119: =IF(CC!AH9="","",CC!AH9) ->  | AF119: =IF(CC!AI9="","",CC!AI9) ->  | AG119: =IF(CC!AJ9="","",CC!AJ9) ->  | AH119: =IF(CC!AK9="","",CC!AK9) ->  | AI119: =IF(CC!AL9="","",CC!AL9) ->  | AJ119: =IF(CC!AM9="","",CC!AM9) ->  | AK119: =IF(CC!AN9="","",CC!AN9) ->  | AL119: =IF(CC!AO9="","",CC!AO9) ->  | AM119: =IF(CC!AP9="","",CC!AP9) -> 
D120: Criterio Evaluación 3.3 | E120: =IF(CC!H10="","",CC!H10) ->  | F120: =IF(CC!I10="","",CC!I10) ->  | G120: =IF(CC!J10="","",CC!J10) ->  | H120: =IF(CC!K10="","",CC!K10) ->  | I120: =IF(CC!L10="","",CC!L10) ->  | J120: =IF(CC!M10="","",CC!M10) ->  | K120: =IF(CC!N10="","",CC!N10) ->  | L120: =IF(CC!O10="","",CC!O10) ->  | M120: =IF(CC!P10="","",CC!P10) ->  | N120: =IF(CC!Q10="","",CC!Q10) ->  | O120: =IF(CC!R10="","",CC!R10) ->  | P120: =IF(CC!S10="","",CC!S10) ->  | Q120: =IF(CC!T10="","",CC!T10) ->  | R120: =IF(CC!U10="","",CC!U10) ->  | S120: =IF(CC!V10="","",CC!V10) ->  | T120: =IF(CC!W10="","",CC!W10) ->  | U120: =IF(CC!X10="","",CC!X10) ->  | V120: =IF(CC!Y10="","",CC!Y10) ->  | W120: =IF(CC!Z10="","",CC!Z10) ->  | X120: =IF(CC!AA10="","",CC!AA10) ->  | Y120: =IF(CC!AB10="","",CC!AB10) ->  | Z120: =IF(CC!AC10="","",CC!AC10) ->  | AA120: =IF(CC!AD10="","",CC!AD10) ->  | AB120: =IF(CC!AE10="","",CC!AE10) ->  | AC120: =IF(CC!AF10="","",CC!AF10) ->  | AD120: =IF(CC!AG10="","",CC!AG10) ->  | AE120: =IF(CC!AH10="","",CC!AH10) ->  | AF120: =IF(CC!AI10="","",CC!AI10) ->  | AG120: =IF(CC!AJ10="","",CC!AJ10) ->  | AH120: =IF(CC!AK10="","",CC!AK10) ->  | AI120: =IF(CC!AL10="","",CC!AL10) ->  | AJ120: =IF(CC!AM10="","",CC!AM10) ->  | AK120: =IF(CC!AN10="","",CC!AN10) ->  | AL120: =IF(CC!AO10="","",CC!AO10) ->  | AM120: =IF(CC!AP10="","",CC!AP10) -> 
D121: Criterio Evaluación 3.4 | E121: =IF(CC!H11="","",CC!H11) ->  | F121: =IF(CC!I11="","",CC!I11) ->  | G121: =IF(CC!J11="","",CC!J11) ->  | H121: =IF(CC!K11="","",CC!K11) ->  | I121: =IF(CC!L11="","",CC!L11) ->  | J121: =IF(CC!M11="","",CC!M11) ->  | K121: =IF(CC!N11="","",CC!N11) ->  | L121: =IF(CC!O11="","",CC!O11) ->  | M121: =IF(CC!P11="","",CC!P11) ->  | N121: =IF(CC!Q11="","",CC!Q11) ->  | O121: =IF(CC!R11="","",CC!R11) ->  | P121: =IF(CC!S11="","",CC!S11) ->  | Q121: =IF(CC!T11="","",CC!T11) ->  | R121: =IF(CC!U11="","",CC!U11) ->  | S121: =IF(CC!V11="","",CC!V11) ->  | T121: =IF(CC!W11="","",CC!W11) ->  | U121: =IF(CC!X11="","",CC!X11) ->  | V121: =IF(CC!Y11="","",CC!Y11) ->  | W121: =IF(CC!Z11="","",CC!Z11) ->  | X121: =IF(CC!AA11="","",CC!AA11) ->  | Y121: =IF(CC!AB11="","",CC!AB11) ->  | Z121: =IF(CC!AC11="","",CC!AC11) ->  | AA121: =IF(CC!AD11="","",CC!AD11) ->  | AB121: =IF(CC!AE11="","",CC!AE11) ->  | AC121: =IF(CC!AF11="","",CC!AF11) ->  | AD121: =IF(CC!AG11="","",CC!AG11) ->  | AE121: =IF(CC!AH11="","",CC!AH11) ->  | AF121: =IF(CC!AI11="","",CC!AI11) ->  | AG121: =IF(CC!AJ11="","",CC!AJ11) ->  | AH121: =IF(CC!AK11="","",CC!AK11) ->  | AI121: =IF(CC!AL11="","",CC!AL11) ->  | AJ121: =IF(CC!AM11="","",CC!AM11) ->  | AK121: =IF(CC!AN11="","",CC!AN11) ->  | AL121: =IF(CC!AO11="","",CC!AO11) ->  | AM121: =IF(CC!AP11="","",CC!AP11) -> 
D122: Criterio Evaluación 3.5 | E122: =IF(CC!H12="","",CC!H12) ->  | F122: =IF(CC!I12="","",CC!I12) ->  | G122: =IF(CC!J12="","",CC!J12) ->  | H122: =IF(CC!K12="","",CC!K12) ->  | I122: =IF(CC!L12="","",CC!L12) ->  | J122: =IF(CC!M12="","",CC!M12) ->  | K122: =IF(CC!N12="","",CC!N12) ->  | L122: =IF(CC!O12="","",CC!O12) ->  | M122: =IF(CC!P12="","",CC!P12) ->  | N122: =IF(CC!Q12="","",CC!Q12) ->  | O122: =IF(CC!R12="","",CC!R12) ->  | P122: =IF(CC!S12="","",CC!S12) ->  | Q122: =IF(CC!T12="","",CC!T12) ->  | R122: =IF(CC!U12="","",CC!U12) ->  | S122: =IF(CC!V12="","",CC!V12) ->  | T122: =IF(CC!W12="","",CC!W12) ->  | U122: =IF(CC!X12="","",CC!X12) ->  | V122: =IF(CC!Y12="","",CC!Y12) ->  | W122: =IF(CC!Z12="","",CC!Z12) ->  | X122: =IF(CC!AA12="","",CC!AA12) ->  | Y122: =IF(CC!AB12="","",CC!AB12) ->  | Z122: =IF(CC!AC12="","",CC!AC12) ->  | AA122: =IF(CC!AD12="","",CC!AD12) ->  | AB122: =IF(CC!AE12="","",CC!AE12) ->  | AC122: =IF(CC!AF12="","",CC!AF12) ->  | AD122: =IF(CC!AG12="","",CC!AG12) ->  | AE122: =IF(CC!AH12="","",CC!AH12) ->  | AF122: =IF(CC!AI12="","",CC!AI12) ->  | AG122: =IF(CC!AJ12="","",CC!AJ12) ->  | AH122: =IF(CC!AK12="","",CC!AK12) ->  | AI122: =IF(CC!AL12="","",CC!AL12) ->  | AJ122: =IF(CC!AM12="","",CC!AM12) ->  | AK122: =IF(CC!AN12="","",CC!AN12) ->  | AL122: =IF(CC!AO12="","",CC!AO12) ->  | AM122: =IF(CC!AP12="","",CC!AP12) -> 
C123: Comp. Esp. 4 | D123: Criterio Evaluación 4.1 | E123: =IF(CC!H13="","",CC!H13) ->  | F123: =IF(CC!I13="","",CC!I13) ->  | G123: =IF(CC!J13="","",CC!J13) ->  | H123: =IF(CC!K13="","",CC!K13) ->  | I123: =IF(CC!L13="","",CC!L13) ->  | J123: =IF(CC!M13="","",CC!M13) ->  | K123: =IF(CC!N13="","",CC!N13) ->  | L123: =IF(CC!O13="","",CC!O13) ->  | M123: =IF(CC!P13="","",CC!P13) ->  | N123: =IF(CC!Q13="","",CC!Q13) ->  | O123: =IF(CC!R13="","",CC!R13) ->  | P123: =IF(CC!S13="","",CC!S13) ->  | Q123: =IF(CC!T13="","",CC!T13) ->  | R123: =IF(CC!U13="","",CC!U13) ->  | S123: =IF(CC!V13="","",CC!V13) ->  | T123: =IF(CC!W13="","",CC!W13) ->  | U123: =IF(CC!X13="","",CC!X13) ->  | V123: =IF(CC!Y13="","",CC!Y13) ->  | W123: =IF(CC!Z13="","",CC!Z13) ->  | X123: =IF(CC!AA13="","",CC!AA13) ->  | Y123: =IF(CC!AB13="","",CC!AB13) ->  | Z123: =IF(CC!AC13="","",CC!AC13) ->  | AA123: =IF(CC!AD13="","",CC!AD13) ->  | AB123: =IF(CC!AE13="","",CC!AE13) ->  | AC123: =IF(CC!AF13="","",CC!AF13) ->  | AD123: =IF(CC!AG13="","",CC!AG13) ->  | AE123: =IF(CC!AH13="","",CC!AH13) ->  | AF123: =IF(CC!AI13="","",CC!AI13) ->  | AG123: =IF(CC!AJ13="","",CC!AJ13) ->  | AH123: =IF(CC!AK13="","",CC!AK13) ->  | AI123: =IF(CC!AL13="","",CC!AL13) ->  | AJ123: =IF(CC!AM13="","",CC!AM13) ->  | AK123: =IF(CC!AN13="","",CC!AN13) ->  | AL123: =IF(CC!AO13="","",CC!AO13) ->  | AM123: =IF(CC!AP13="","",CC!AP13) -> 
D124: Criterio Evaluación 4.2 | E124: =IF(CC!H14="","",CC!H14) ->  | F124: =IF(CC!I14="","",CC!I14) ->  | G124: =IF(CC!J14="","",CC!J14) ->  | H124: =IF(CC!K14="","",CC!K14) ->  | I124: =IF(CC!L14="","",CC!L14) ->  | J124: =IF(CC!M14="","",CC!M14) ->  | K124: =IF(CC!N14="","",CC!N14) ->  | L124: =IF(CC!O14="","",CC!O14) ->  | M124: =IF(CC!P14="","",CC!P14) ->  | N124: =IF(CC!Q14="","",CC!Q14) ->  | O124: =IF(CC!R14="","",CC!R14) ->  | P124: =IF(CC!S14="","",CC!S14) ->  | Q124: =IF(CC!T14="","",CC!T14) ->  | R124: =IF(CC!U14="","",CC!U14) ->  | S124: =IF(CC!V14="","",CC!V14) ->  | T124: =IF(CC!W14="","",CC!W14) ->  | U124: =IF(CC!X14="","",CC!X14) ->  | V124: =IF(CC!Y14="","",CC!Y14) ->  | W124: =IF(CC!Z14="","",CC!Z14) ->  | X124: =IF(CC!AA14="","",CC!AA14) ->  | Y124: =IF(CC!AB14="","",CC!AB14) ->  | Z124: =IF(CC!AC14="","",CC!AC14) ->  | AA124: =IF(CC!AD14="","",CC!AD14) ->  | AB124: =IF(CC!AE14="","",CC!AE14) ->  | AC124: =IF(CC!AF14="","",CC!AF14) ->  | AD124: =IF(CC!AG14="","",CC!AG14) ->  | AE124: =IF(CC!AH14="","",CC!AH14) ->  | AF124: =IF(CC!AI14="","",CC!AI14) ->  | AG124: =IF(CC!AJ14="","",CC!AJ14) ->  | AH124: =IF(CC!AK14="","",CC!AK14) ->  | AI124: =IF(CC!AL14="","",CC!AL14) ->  | AJ124: =IF(CC!AM14="","",CC!AM14) ->  | AK124: =IF(CC!AN14="","",CC!AN14) ->  | AL124: =IF(CC!AO14="","",CC!AO14) ->  | AM124: =IF(CC!AP14="","",CC!AP14) -> 
C125: Comp. Esp. 5 | D125: Criterio Evaluación 5.1 | E125: =IF(CC!H15="","",CC!H15) ->  | F125: =IF(CC!I15="","",CC!I15) ->  | G125: =IF(CC!J15="","",CC!J15) ->  | H125: =IF(CC!K15="","",CC!K15) ->  | I125: =IF(CC!L15="","",CC!L15) ->  | J125: =IF(CC!M15="","",CC!M15) ->  | K125: =IF(CC!N15="","",CC!N15) ->  | L125: =IF(CC!O15="","",CC!O15) ->  | M125: =IF(CC!P15="","",CC!P15) ->  | N125: =IF(CC!Q15="","",CC!Q15) ->  | O125: =IF(CC!R15="","",CC!R15) ->  | P125: =IF(CC!S15="","",CC!S15) ->  | Q125: =IF(CC!T15="","",CC!T15) ->  | R125: =IF(CC!U15="","",CC!U15) ->  | S125: =IF(CC!V15="","",CC!V15) ->  | T125: =IF(CC!W15="","",CC!W15) ->  | U125: =IF(CC!X15="","",CC!X15) ->  | V125: =IF(CC!Y15="","",CC!Y15) ->  | W125: =IF(CC!Z15="","",CC!Z15) ->  | X125: =IF(CC!AA15="","",CC!AA15) ->  | Y125: =IF(CC!AB15="","",CC!AB15) ->  | Z125: =IF(CC!AC15="","",CC!AC15) ->  | AA125: =IF(CC!AD15="","",CC!AD15) ->  | AB125: =IF(CC!AE15="","",CC!AE15) ->  | AC125: =IF(CC!AF15="","",CC!AF15) ->  | AD125: =IF(CC!AG15="","",CC!AG15) ->  | AE125: =IF(CC!AH15="","",CC!AH15) ->  | AF125: =IF(CC!AI15="","",CC!AI15) ->  | AG125: =IF(CC!AJ15="","",CC!AJ15) ->  | AH125: =IF(CC!AK15="","",CC!AK15) ->  | AI125: =IF(CC!AL15="","",CC!AL15) ->  | AJ125: =IF(CC!AM15="","",CC!AM15) ->  | AK125: =IF(CC!AN15="","",CC!AN15) ->  | AL125: =IF(CC!AO15="","",CC!AO15) ->  | AM125: =IF(CC!AP15="","",CC!AP15) -> 
D126: Criterio Evaluación 5.2 | E126: =IF(CC!H16="","",CC!H16) ->  | F126: =IF(CC!I16="","",CC!I16) ->  | G126: =IF(CC!J16="","",CC!J16) ->  | H126: =IF(CC!K16="","",CC!K16) ->  | I126: =IF(CC!L16="","",CC!L16) ->  | J126: =IF(CC!M16="","",CC!M16) ->  | K126: =IF(CC!N16="","",CC!N16) ->  | L126: =IF(CC!O16="","",CC!O16) ->  | M126: =IF(CC!P16="","",CC!P16) ->  | N126: =IF(CC!Q16="","",CC!Q16) ->  | O126: =IF(CC!R16="","",CC!R16) ->  | P126: =IF(CC!S16="","",CC!S16) ->  | Q126: =IF(CC!T16="","",CC!T16) ->  | R126: =IF(CC!U16="","",CC!U16) ->  | S126: =IF(CC!V16="","",CC!V16) ->  | T126: =IF(CC!W16="","",CC!W16) ->  | U126: =IF(CC!X16="","",CC!X16) ->  | V126: =IF(CC!Y16="","",CC!Y16) ->  | W126: =IF(CC!Z16="","",CC!Z16) ->  | X126: =IF(CC!AA16="","",CC!AA16) ->  | Y126: =IF(CC!AB16="","",CC!AB16) ->  | Z126: =IF(CC!AC16="","",CC!AC16) ->  | AA126: =IF(CC!AD16="","",CC!AD16) ->  | AB126: =IF(CC!AE16="","",CC!AE16) ->  | AC126: =IF(CC!AF16="","",CC!AF16) ->  | AD126: =IF(CC!AG16="","",CC!AG16) ->  | AE126: =IF(CC!AH16="","",CC!AH16) ->  | AF126: =IF(CC!AI16="","",CC!AI16) ->  | AG126: =IF(CC!AJ16="","",CC!AJ16) ->  | AH126: =IF(CC!AK16="","",CC!AK16) ->  | AI126: =IF(CC!AL16="","",CC!AL16) ->  | AJ126: =IF(CC!AM16="","",CC!AM16) ->  | AK126: =IF(CC!AN16="","",CC!AN16) ->  | AL126: =IF(CC!AO16="","",CC!AO16) ->  | AM126: =IF(CC!AP16="","",CC!AP16) -> 
B127: Dibujo Técnico I | C127: Comp. Esp. 1 | D127: Criterio Evaluación 1.1 | E127: =IF(DT!H4="","",DT!H4) ->  | F127: =IF(DT!I4="","",DT!I4) ->  | G127: =IF(DT!J4="","",DT!J4) ->  | H127: =IF(DT!K4="","",DT!K4) ->  | I127: =IF(DT!L4="","",DT!L4) ->  | J127: =IF(DT!M4="","",DT!M4) ->  | K127: =IF(DT!N4="","",DT!N4) ->  | L127: =IF(DT!O4="","",DT!O4) ->  | M127: =IF(DT!P4="","",DT!P4) ->  | N127: =IF(DT!Q4="","",DT!Q4) ->  | O127: =IF(DT!R4="","",DT!R4) ->  | P127: =IF(DT!S4="","",DT!S4) ->  | Q127: =IF(DT!T4="","",DT!T4) ->  | R127: =IF(DT!U4="","",DT!U4) ->  | S127: =IF(DT!V4="","",DT!V4) ->  | T127: =IF(DT!W4="","",DT!W4) ->  | U127: =IF(DT!X4="","",DT!X4) ->  | V127: =IF(DT!Y4="","",DT!Y4) ->  | W127: =IF(DT!Z4="","",DT!Z4) ->  | X127: =IF(DT!AA4="","",DT!AA4) ->  | Y127: =IF(DT!AB4="","",DT!AB4) ->  | Z127: =IF(DT!AC4="","",DT!AC4) ->  | AA127: =IF(DT!AD4="","",DT!AD4) ->  | AB127: =IF(DT!AE4="","",DT!AE4) ->  | AC127: =IF(DT!AF4="","",DT!AF4) ->  | AD127: =IF(DT!AG4="","",DT!AG4) ->  | AE127: =IF(DT!AH4="","",DT!AH4) ->  | AF127: =IF(DT!AI4="","",DT!AI4) ->  | AG127: =IF(DT!AJ4="","",DT!AJ4) ->  | AH127: =IF(DT!AK4="","",DT!AK4) ->  | AI127: =IF(DT!AL4="","",DT!AL4) ->  | AJ127: =IF(DT!AM4="","",DT!AM4) ->  | AK127: =IF(DT!AN4="","",DT!AN4) ->  | AL127: =IF(DT!AO4="","",DT!AO4) ->  | AM127: =IF(DT!AP4="","",DT!AP4) -> 
C128: Comp. Esp. 2 | D128: Criterio Evaluación 2.1 | E128: =IF(DT!H5="","",DT!H5) ->  | F128: =IF(DT!I5="","",DT!I5) ->  | G128: =IF(DT!J5="","",DT!J5) ->  | H128: =IF(DT!K5="","",DT!K5) ->  | I128: =IF(DT!L5="","",DT!L5) ->  | J128: =IF(DT!M5="","",DT!M5) ->  | K128: =IF(DT!N5="","",DT!N5) ->  | L128: =IF(DT!O5="","",DT!O5) ->  | M128: =IF(DT!P5="","",DT!P5) ->  | N128: =IF(DT!Q5="","",DT!Q5) ->  | O128: =IF(DT!R5="","",DT!R5) ->  | P128: =IF(DT!S5="","",DT!S5) ->  | Q128: =IF(DT!T5="","",DT!T5) ->  | R128: =IF(DT!U5="","",DT!U5) ->  | S128: =IF(DT!V5="","",DT!V5) ->  | T128: =IF(DT!W5="","",DT!W5) ->  | U128: =IF(DT!X5="","",DT!X5) ->  | V128: =IF(DT!Y5="","",DT!Y5) ->  | W128: =IF(DT!Z5="","",DT!Z5) ->  | X128: =IF(DT!AA5="","",DT!AA5) ->  | Y128: =IF(DT!AB5="","",DT!AB5) ->  | Z128: =IF(DT!AC5="","",DT!AC5) ->  | AA128: =IF(DT!AD5="","",DT!AD5) ->  | AB128: =IF(DT!AE5="","",DT!AE5) ->  | AC128: =IF(DT!AF5="","",DT!AF5) ->  | AD128: =IF(DT!AG5="","",DT!AG5) ->  | AE128: =IF(DT!AH5="","",DT!AH5) ->  | AF128: =IF(DT!AI5="","",DT!AI5) ->  | AG128: =IF(DT!AJ5="","",DT!AJ5) ->  | AH128: =IF(DT!AK5="","",DT!AK5) ->  | AI128: =IF(DT!AL5="","",DT!AL5) ->  | AJ128: =IF(DT!AM5="","",DT!AM5) ->  | AK128: =IF(DT!AN5="","",DT!AN5) ->  | AL128: =IF(DT!AO5="","",DT!AO5) ->  | AM128: =IF(DT!AP5="","",DT!AP5) -> 
D129: Criterio Evaluación 2.2 | E129: =IF(DT!H6="","",DT!H6) ->  | F129: =IF(DT!I6="","",DT!I6) ->  | G129: =IF(DT!J6="","",DT!J6) ->  | H129: =IF(DT!K6="","",DT!K6) ->  | I129: =IF(DT!L6="","",DT!L6) ->  | J129: =IF(DT!M6="","",DT!M6) ->  | K129: =IF(DT!N6="","",DT!N6) ->  | L129: =IF(DT!O6="","",DT!O6) ->  | M129: =IF(DT!P6="","",DT!P6) ->  | N129: =IF(DT!Q6="","",DT!Q6) ->  | O129: =IF(DT!R6="","",DT!R6) ->  | P129: =IF(DT!S6="","",DT!S6) ->  | Q129: =IF(DT!T6="","",DT!T6) ->  | R129: =IF(DT!U6="","",DT!U6) ->  | S129: =IF(DT!V6="","",DT!V6) ->  | T129: =IF(DT!W6="","",DT!W6) ->  | U129: =IF(DT!X6="","",DT!X6) ->  | V129: =IF(DT!Y6="","",DT!Y6) ->  | W129: =IF(DT!Z6="","",DT!Z6) ->  | X129: =IF(DT!AA6="","",DT!AA6) ->  | Y129: =IF(DT!AB6="","",DT!AB6) ->  | Z129: =IF(DT!AC6="","",DT!AC6) ->  | AA129: =IF(DT!AD6="","",DT!AD6) ->  | AB129: =IF(DT!AE6="","",DT!AE6) ->  | AC129: =IF(DT!AF6="","",DT!AF6) ->  | AD129: =IF(DT!AG6="","",DT!AG6) ->  | AE129: =IF(DT!AH6="","",DT!AH6) ->  | AF129: =IF(DT!AI6="","",DT!AI6) ->  | AG129: =IF(DT!AJ6="","",DT!AJ6) ->  | AH129: =IF(DT!AK6="","",DT!AK6) ->  | AI129: =IF(DT!AL6="","",DT!AL6) ->  | AJ129: =IF(DT!AM6="","",DT!AM6) ->  | AK129: =IF(DT!AN6="","",DT!AN6) ->  | AL129: =IF(DT!AO6="","",DT!AO6) ->  | AM129: =IF(DT!AP6="","",DT!AP6) -> 
D130: Criterio Evaluación 2.3 | E130: =IF(DT!H7="","",DT!H7) ->  | F130: =IF(DT!I7="","",DT!I7) ->  | G130: =IF(DT!J7="","",DT!J7) ->  | H130: =IF(DT!K7="","",DT!K7) ->  | I130: =IF(DT!L7="","",DT!L7) ->  | J130: =IF(DT!M7="","",DT!M7) ->  | K130: =IF(DT!N7="","",DT!N7) ->  | L130: =IF(DT!O7="","",DT!O7) ->  | M130: =IF(DT!P7="","",DT!P7) ->  | N130: =IF(DT!Q7="","",DT!Q7) ->  | O130: =IF(DT!R7="","",DT!R7) ->  | P130: =IF(DT!S7="","",DT!S7) ->  | Q130: =IF(DT!T7="","",DT!T7) ->  | R130: =IF(DT!U7="","",DT!U7) ->  | S130: =IF(DT!V7="","",DT!V7) ->  | T130: =IF(DT!W7="","",DT!W7) ->  | U130: =IF(DT!X7="","",DT!X7) ->  | V130: =IF(DT!Y7="","",DT!Y7) ->  | W130: =IF(DT!Z7="","",DT!Z7) ->  | X130: =IF(DT!AA7="","",DT!AA7) ->  | Y130: =IF(DT!AB7="","",DT!AB7) ->  | Z130: =IF(DT!AC7="","",DT!AC7) ->  | AA130: =IF(DT!AD7="","",DT!AD7) ->  | AB130: =IF(DT!AE7="","",DT!AE7) ->  | AC130: =IF(DT!AF7="","",DT!AF7) ->  | AD130: =IF(DT!AG7="","",DT!AG7) ->  | AE130: =IF(DT!AH7="","",DT!AH7) ->  | AF130: =IF(DT!AI7="","",DT!AI7) ->  | AG130: =IF(DT!AJ7="","",DT!AJ7) ->  | AH130: =IF(DT!AK7="","",DT!AK7) ->  | AI130: =IF(DT!AL7="","",DT!AL7) ->  | AJ130: =IF(DT!AM7="","",DT!AM7) ->  | AK130: =IF(DT!AN7="","",DT!AN7) ->  | AL130: =IF(DT!AO7="","",DT!AO7) ->  | AM130: =IF(DT!AP7="","",DT!AP7) -> 
C131: Comp. Esp. 3 | D131: Criterio Evaluación 3.1 | E131: =IF(DT!H8="","",DT!H8) ->  | F131: =IF(DT!I8="","",DT!I8) ->  | G131: =IF(DT!J8="","",DT!J8) ->  | H131: =IF(DT!K8="","",DT!K8) ->  | I131: =IF(DT!L8="","",DT!L8) ->  | J131: =IF(DT!M8="","",DT!M8) ->  | K131: =IF(DT!N8="","",DT!N8) ->  | L131: =IF(DT!O8="","",DT!O8) ->  | M131: =IF(DT!P8="","",DT!P8) ->  | N131: =IF(DT!Q8="","",DT!Q8) ->  | O131: =IF(DT!R8="","",DT!R8) ->  | P131: =IF(DT!S8="","",DT!S8) ->  | Q131: =IF(DT!T8="","",DT!T8) ->  | R131: =IF(DT!U8="","",DT!U8) ->  | S131: =IF(DT!V8="","",DT!V8) ->  | T131: =IF(DT!W8="","",DT!W8) ->  | U131: =IF(DT!X8="","",DT!X8) ->  | V131: =IF(DT!Y8="","",DT!Y8) ->  | W131: =IF(DT!Z8="","",DT!Z8) ->  | X131: =IF(DT!AA8="","",DT!AA8) ->  | Y131: =IF(DT!AB8="","",DT!AB8) ->  | Z131: =IF(DT!AC8="","",DT!AC8) ->  | AA131: =IF(DT!AD8="","",DT!AD8) ->  | AB131: =IF(DT!AE8="","",DT!AE8) ->  | AC131: =IF(DT!AF8="","",DT!AF8) ->  | AD131: =IF(DT!AG8="","",DT!AG8) ->  | AE131: =IF(DT!AH8="","",DT!AH8) ->  | AF131: =IF(DT!AI8="","",DT!AI8) ->  | AG131: =IF(DT!AJ8="","",DT!AJ8) ->  | AH131: =IF(DT!AK8="","",DT!AK8) ->  | AI131: =IF(DT!AL8="","",DT!AL8) ->  | AJ131: =IF(DT!AM8="","",DT!AM8) ->  | AK131: =IF(DT!AN8="","",DT!AN8) ->  | AL131: =IF(DT!AO8="","",DT!AO8) ->  | AM131: =IF(DT!AP8="","",DT!AP8) -> 
D132: Criterio Evaluación 3.2 | E132: =IF(DT!H9="","",DT!H9) ->  | F132: =IF(DT!I9="","",DT!I9) ->  | G132: =IF(DT!J9="","",DT!J9) ->  | H132: =IF(DT!K9="","",DT!K9) ->  | I132: =IF(DT!L9="","",DT!L9) ->  | J132: =IF(DT!M9="","",DT!M9) ->  | K132: =IF(DT!N9="","",DT!N9) ->  | L132: =IF(DT!O9="","",DT!O9) ->  | M132: =IF(DT!P9="","",DT!P9) ->  | N132: =IF(DT!Q9="","",DT!Q9) ->  | O132: =IF(DT!R9="","",DT!R9) ->  | P132: =IF(DT!S9="","",DT!S9) ->  | Q132: =IF(DT!T9="","",DT!T9) ->  | R132: =IF(DT!U9="","",DT!U9) ->  | S132: =IF(DT!V9="","",DT!V9) ->  | T132: =IF(DT!W9="","",DT!W9) ->  | U132: =IF(DT!X9="","",DT!X9) ->  | V132: =IF(DT!Y9="","",DT!Y9) ->  | W132: =IF(DT!Z9="","",DT!Z9) ->  | X132: =IF(DT!AA9="","",DT!AA9) ->  | Y132: =IF(DT!AB9="","",DT!AB9) ->  | Z132: =IF(DT!AC9="","",DT!AC9) ->  | AA132: =IF(DT!AD9="","",DT!AD9) ->  | AB132: =IF(DT!AE9="","",DT!AE9) ->  | AC132: =IF(DT!AF9="","",DT!AF9) ->  | AD132: =IF(DT!AG9="","",DT!AG9) ->  | AE132: =IF(DT!AH9="","",DT!AH9) ->  | AF132: =IF(DT!AI9="","",DT!AI9) ->  | AG132: =IF(DT!AJ9="","",DT!AJ9) ->  | AH132: =IF(DT!AK9="","",DT!AK9) ->  | AI132: =IF(DT!AL9="","",DT!AL9) ->  | AJ132: =IF(DT!AM9="","",DT!AM9) ->  | AK132: =IF(DT!AN9="","",DT!AN9) ->  | AL132: =IF(DT!AO9="","",DT!AO9) ->  | AM132: =IF(DT!AP9="","",DT!AP9) -> 
D133: Criterio Evaluación 3.3 | E133: =IF(DT!H10="","",DT!H10) ->  | F133: =IF(DT!I10="","",DT!I10) ->  | G133: =IF(DT!J10="","",DT!J10) ->  | H133: =IF(DT!K10="","",DT!K10) ->  | I133: =IF(DT!L10="","",DT!L10) ->  | J133: =IF(DT!M10="","",DT!M10) ->  | K133: =IF(DT!N10="","",DT!N10) ->  | L133: =IF(DT!O10="","",DT!O10) ->  | M133: =IF(DT!P10="","",DT!P10) ->  | N133: =IF(DT!Q10="","",DT!Q10) ->  | O133: =IF(DT!R10="","",DT!R10) ->  | P133: =IF(DT!S10="","",DT!S10) ->  | Q133: =IF(DT!T10="","",DT!T10) ->  | R133: =IF(DT!U10="","",DT!U10) ->  | S133: =IF(DT!V10="","",DT!V10) ->  | T133: =IF(DT!W10="","",DT!W10) ->  | U133: =IF(DT!X10="","",DT!X10) ->  | V133: =IF(DT!Y10="","",DT!Y10) ->  | W133: =IF(DT!Z10="","",DT!Z10) ->  | X133: =IF(DT!AA10="","",DT!AA10) ->  | Y133: =IF(DT!AB10="","",DT!AB10) ->  | Z133: =IF(DT!AC10="","",DT!AC10) ->  | AA133: =IF(DT!AD10="","",DT!AD10) ->  | AB133: =IF(DT!AE10="","",DT!AE10) ->  | AC133: =IF(DT!AF10="","",DT!AF10) ->  | AD133: =IF(DT!AG10="","",DT!AG10) ->  | AE133: =IF(DT!AH10="","",DT!AH10) ->  | AF133: =IF(DT!AI10="","",DT!AI10) ->  | AG133: =IF(DT!AJ10="","",DT!AJ10) ->  | AH133: =IF(DT!AK10="","",DT!AK10) ->  | AI133: =IF(DT!AL10="","",DT!AL10) ->  | AJ133: =IF(DT!AM10="","",DT!AM10) ->  | AK133: =IF(DT!AN10="","",DT!AN10) ->  | AL133: =IF(DT!AO10="","",DT!AO10) ->  | AM133: =IF(DT!AP10="","",DT!AP10) -> 
D134: Criterio Evaluación 3.4 | E134: =IF(DT!H11="","",DT!H11) ->  | F134: =IF(DT!I11="","",DT!I11) ->  | G134: =IF(DT!J11="","",DT!J11) ->  | H134: =IF(DT!K11="","",DT!K11) ->  | I134: =IF(DT!L11="","",DT!L11) ->  | J134: =IF(DT!M11="","",DT!M11) ->  | K134: =IF(DT!N11="","",DT!N11) ->  | L134: =IF(DT!O11="","",DT!O11) ->  | M134: =IF(DT!P11="","",DT!P11) ->  | N134: =IF(DT!Q11="","",DT!Q11) ->  | O134: =IF(DT!R11="","",DT!R11) ->  | P134: =IF(DT!S11="","",DT!S11) ->  | Q134: =IF(DT!T11="","",DT!T11) ->  | R134: =IF(DT!U11="","",DT!U11) ->  | S134: =IF(DT!V11="","",DT!V11) ->  | T134: =IF(DT!W11="","",DT!W11) ->  | U134: =IF(DT!X11="","",DT!X11) ->  | V134: =IF(DT!Y11="","",DT!Y11) ->  | W134: =IF(DT!Z11="","",DT!Z11) ->  | X134: =IF(DT!AA11="","",DT!AA11) ->  | Y134: =IF(DT!AB11="","",DT!AB11) ->  | Z134: =IF(DT!AC11="","",DT!AC11) ->  | AA134: =IF(DT!AD11="","",DT!AD11) ->  | AB134: =IF(DT!AE11="","",DT!AE11) ->  | AC134: =IF(DT!AF11="","",DT!AF11) ->  | AD134: =IF(DT!AG11="","",DT!AG11) ->  | AE134: =IF(DT!AH11="","",DT!AH11) ->  | AF134: =IF(DT!AI11="","",DT!AI11) ->  | AG134: =IF(DT!AJ11="","",DT!AJ11) ->  | AH134: =IF(DT!AK11="","",DT!AK11) ->  | AI134: =IF(DT!AL11="","",DT!AL11) ->  | AJ134: =IF(DT!AM11="","",DT!AM11) ->  | AK134: =IF(DT!AN11="","",DT!AN11) ->  | AL134: =IF(DT!AO11="","",DT!AO11) ->  | AM134: =IF(DT!AP11="","",DT!AP11) -> 
D135: Criterio Evaluación 3.5 | E135: =IF(DT!H12="","",DT!H12) ->  | F135: =IF(DT!I12="","",DT!I12) ->  | G135: =IF(DT!J12="","",DT!J12) ->  | H135: =IF(DT!K12="","",DT!K12) ->  | I135: =IF(DT!L12="","",DT!L12) ->  | J135: =IF(DT!M12="","",DT!M12) ->  | K135: =IF(DT!N12="","",DT!N12) ->  | L135: =IF(DT!O12="","",DT!O12) ->  | M135: =IF(DT!P12="","",DT!P12) ->  | N135: =IF(DT!Q12="","",DT!Q12) ->  | O135: =IF(DT!R12="","",DT!R12) ->  | P135: =IF(DT!S12="","",DT!S12) ->  | Q135: =IF(DT!T12="","",DT!T12) ->  | R135: =IF(DT!U12="","",DT!U12) ->  | S135: =IF(DT!V12="","",DT!V12) ->  | T135: =IF(DT!W12="","",DT!W12) ->  | U135: =IF(DT!X12="","",DT!X12) ->  | V135: =IF(DT!Y12="","",DT!Y12) ->  | W135: =IF(DT!Z12="","",DT!Z12) ->  | X135: =IF(DT!AA12="","",DT!AA12) ->  | Y135: =IF(DT!AB12="","",DT!AB12) ->  | Z135: =IF(DT!AC12="","",DT!AC12) ->  | AA135: =IF(DT!AD12="","",DT!AD12) ->  | AB135: =IF(DT!AE12="","",DT!AE12) ->  | AC135: =IF(DT!AF12="","",DT!AF12) ->  | AD135: =IF(DT!AG12="","",DT!AG12) ->  | AE135: =IF(DT!AH12="","",DT!AH12) ->  | AF135: =IF(DT!AI12="","",DT!AI12) ->  | AG135: =IF(DT!AJ12="","",DT!AJ12) ->  | AH135: =IF(DT!AK12="","",DT!AK12) ->  | AI135: =IF(DT!AL12="","",DT!AL12) ->  | AJ135: =IF(DT!AM12="","",DT!AM12) ->  | AK135: =IF(DT!AN12="","",DT!AN12) ->  | AL135: =IF(DT!AO12="","",DT!AO12) ->  | AM135: =IF(DT!AP12="","",DT!AP12) -> 
D136: Criterio Evaluación 3.6 | E136: =IF(DT!H13="","",DT!H13) ->  | F136: =IF(DT!I13="","",DT!I13) ->  | G136: =IF(DT!J13="","",DT!J13) ->  | H136: =IF(DT!K13="","",DT!K13) ->  | I136: =IF(DT!L13="","",DT!L13) ->  | J136: =IF(DT!M13="","",DT!M13) ->  | K136: =IF(DT!N13="","",DT!N13) ->  | L136: =IF(DT!O13="","",DT!O13) ->  | M136: =IF(DT!P13="","",DT!P13) ->  | N136: =IF(DT!Q13="","",DT!Q13) ->  | O136: =IF(DT!R13="","",DT!R13) ->  | P136: =IF(DT!S13="","",DT!S13) ->  | Q136: =IF(DT!T13="","",DT!T13) ->  | R136: =IF(DT!U13="","",DT!U13) ->  | S136: =IF(DT!V13="","",DT!V13) ->  | T136: =IF(DT!W13="","",DT!W13) ->  | U136: =IF(DT!X13="","",DT!X13) ->  | V136: =IF(DT!Y13="","",DT!Y13) ->  | W136: =IF(DT!Z13="","",DT!Z13) ->  | X136: =IF(DT!AA13="","",DT!AA13) ->  | Y136: =IF(DT!AB13="","",DT!AB13) ->  | Z136: =IF(DT!AC13="","",DT!AC13) ->  | AA136: =IF(DT!AD13="","",DT!AD13) ->  | AB136: =IF(DT!AE13="","",DT!AE13) ->  | AC136: =IF(DT!AF13="","",DT!AF13) ->  | AD136: =IF(DT!AG13="","",DT!AG13) ->  | AE136: =IF(DT!AH13="","",DT!AH13) ->  | AF136: =IF(DT!AI13="","",DT!AI13) ->  | AG136: =IF(DT!AJ13="","",DT!AJ13) ->  | AH136: =IF(DT!AK13="","",DT!AK13) ->  | AI136: =IF(DT!AL13="","",DT!AL13) ->  | AJ136: =IF(DT!AM13="","",DT!AM13) ->  | AK136: =IF(DT!AN13="","",DT!AN13) ->  | AL136: =IF(DT!AO13="","",DT!AO13) ->  | AM136: =IF(DT!AP13="","",DT!AP13) -> 
D137: Criterio Evaluación 3.7 | E137: =IF(DT!H14="","",DT!H14) ->  | F137: =IF(DT!I14="","",DT!I14) ->  | G137: =IF(DT!J14="","",DT!J14) ->  | H137: =IF(DT!K14="","",DT!K14) ->  | I137: =IF(DT!L14="","",DT!L14) ->  | J137: =IF(DT!M14="","",DT!M14) ->  | K137: =IF(DT!N14="","",DT!N14) ->  | L137: =IF(DT!O14="","",DT!O14) ->  | M137: =IF(DT!P14="","",DT!P14) ->  | N137: =IF(DT!Q14="","",DT!Q14) ->  | O137: =IF(DT!R14="","",DT!R14) ->  | P137: =IF(DT!S14="","",DT!S14) ->  | Q137: =IF(DT!T14="","",DT!T14) ->  | R137: =IF(DT!U14="","",DT!U14) ->  | S137: =IF(DT!V14="","",DT!V14) ->  | T137: =IF(DT!W14="","",DT!W14) ->  | U137: =IF(DT!X14="","",DT!X14) ->  | V137: =IF(DT!Y14="","",DT!Y14) ->  | W137: =IF(DT!Z14="","",DT!Z14) ->  | X137: =IF(DT!AA14="","",DT!AA14) ->  | Y137: =IF(DT!AB14="","",DT!AB14) ->  | Z137: =IF(DT!AC14="","",DT!AC14) ->  | AA137: =IF(DT!AD14="","",DT!AD14) ->  | AB137: =IF(DT!AE14="","",DT!AE14) ->  | AC137: =IF(DT!AF14="","",DT!AF14) ->  | AD137: =IF(DT!AG14="","",DT!AG14) ->  | AE137: =IF(DT!AH14="","",DT!AH14) ->  | AF137: =IF(DT!AI14="","",DT!AI14) ->  | AG137: =IF(DT!AJ14="","",DT!AJ14) ->  | AH137: =IF(DT!AK14="","",DT!AK14) ->  | AI137: =IF(DT!AL14="","",DT!AL14) ->  | AJ137: =IF(DT!AM14="","",DT!AM14) ->  | AK137: =IF(DT!AN14="","",DT!AN14) ->  | AL137: =IF(DT!AO14="","",DT!AO14) ->  | AM137: =IF(DT!AP14="","",DT!AP14) -> 
C138: Comp. Esp. 4 | D138: Criterio Evaluación 4.1 | E138: =IF(DT!H15="","",DT!H15) ->  | F138: =IF(DT!I15="","",DT!I15) ->  | G138: =IF(DT!J15="","",DT!J15) ->  | H138: =IF(DT!K15="","",DT!K15) ->  | I138: =IF(DT!L15="","",DT!L15) ->  | J138: =IF(DT!M15="","",DT!M15) ->  | K138: =IF(DT!N15="","",DT!N15) ->  | L138: =IF(DT!O15="","",DT!O15) ->  | M138: =IF(DT!P15="","",DT!P15) ->  | N138: =IF(DT!Q15="","",DT!Q15) ->  | O138: =IF(DT!R15="","",DT!R15) ->  | P138: =IF(DT!S15="","",DT!S15) ->  | Q138: =IF(DT!T15="","",DT!T15) ->  | R138: =IF(DT!U15="","",DT!U15) ->  | S138: =IF(DT!V15="","",DT!V15) ->  | T138: =IF(DT!W15="","",DT!W15) ->  | U138: =IF(DT!X15="","",DT!X15) ->  | V138: =IF(DT!Y15="","",DT!Y15) ->  | W138: =IF(DT!Z15="","",DT!Z15) ->  | X138: =IF(DT!AA15="","",DT!AA15) ->  | Y138: =IF(DT!AB15="","",DT!AB15) ->  | Z138: =IF(DT!AC15="","",DT!AC15) ->  | AA138: =IF(DT!AD15="","",DT!AD15) ->  | AB138: =IF(DT!AE15="","",DT!AE15) ->  | AC138: =IF(DT!AF15="","",DT!AF15) ->  | AD138: =IF(DT!AG15="","",DT!AG15) ->  | AE138: =IF(DT!AH15="","",DT!AH15) ->  | AF138: =IF(DT!AI15="","",DT!AI15) ->  | AG138: =IF(DT!AJ15="","",DT!AJ15) ->  | AH138: =IF(DT!AK15="","",DT!AK15) ->  | AI138: =IF(DT!AL15="","",DT!AL15) ->  | AJ138: =IF(DT!AM15="","",DT!AM15) ->  | AK138: =IF(DT!AN15="","",DT!AN15) ->  | AL138: =IF(DT!AO15="","",DT!AO15) ->  | AM138: =IF(DT!AP15="","",DT!AP15) -> 
D139: Criterio Evaluación 4.2 | E139: =IF(DT!H16="","",DT!H16) ->  | F139: =IF(DT!I16="","",DT!I16) ->  | G139: =IF(DT!J16="","",DT!J16) ->  | H139: =IF(DT!K16="","",DT!K16) ->  | I139: =IF(DT!L16="","",DT!L16) ->  | J139: =IF(DT!M16="","",DT!M16) ->  | K139: =IF(DT!N16="","",DT!N16) ->  | L139: =IF(DT!O16="","",DT!O16) ->  | M139: =IF(DT!P16="","",DT!P16) ->  | N139: =IF(DT!Q16="","",DT!Q16) ->  | O139: =IF(DT!R16="","",DT!R16) ->  | P139: =IF(DT!S16="","",DT!S16) ->  | Q139: =IF(DT!T16="","",DT!T16) ->  | R139: =IF(DT!U16="","",DT!U16) ->  | S139: =IF(DT!V16="","",DT!V16) ->  | T139: =IF(DT!W16="","",DT!W16) ->  | U139: =IF(DT!X16="","",DT!X16) ->  | V139: =IF(DT!Y16="","",DT!Y16) ->  | W139: =IF(DT!Z16="","",DT!Z16) ->  | X139: =IF(DT!AA16="","",DT!AA16) ->  | Y139: =IF(DT!AB16="","",DT!AB16) ->  | Z139: =IF(DT!AC16="","",DT!AC16) ->  | AA139: =IF(DT!AD16="","",DT!AD16) ->  | AB139: =IF(DT!AE16="","",DT!AE16) ->  | AC139: =IF(DT!AF16="","",DT!AF16) ->  | AD139: =IF(DT!AG16="","",DT!AG16) ->  | AE139: =IF(DT!AH16="","",DT!AH16) ->  | AF139: =IF(DT!AI16="","",DT!AI16) ->  | AG139: =IF(DT!AJ16="","",DT!AJ16) ->  | AH139: =IF(DT!AK16="","",DT!AK16) ->  | AI139: =IF(DT!AL16="","",DT!AL16) ->  | AJ139: =IF(DT!AM16="","",DT!AM16) ->  | AK139: =IF(DT!AN16="","",DT!AN16) ->  | AL139: =IF(DT!AO16="","",DT!AO16) ->  | AM139: =IF(DT!AP16="","",DT!AP16) -> 
D140: Criterio Evaluación 4.3 | E140: =IF(DT!H17="","",DT!H17) ->  | F140: =IF(DT!I17="","",DT!I17) ->  | G140: =IF(DT!J17="","",DT!J17) ->  | H140: =IF(DT!K17="","",DT!K17) ->  | I140: =IF(DT!L17="","",DT!L17) ->  | J140: =IF(DT!M17="","",DT!M17) ->  | K140: =IF(DT!N17="","",DT!N17) ->  | L140: =IF(DT!O17="","",DT!O17) ->  | M140: =IF(DT!P17="","",DT!P17) ->  | N140: =IF(DT!Q17="","",DT!Q17) ->  | O140: =IF(DT!R17="","",DT!R17) ->  | P140: =IF(DT!S17="","",DT!S17) ->  | Q140: =IF(DT!T17="","",DT!T17) ->  | R140: =IF(DT!U17="","",DT!U17) ->  | S140: =IF(DT!V17="","",DT!V17) ->  | T140: =IF(DT!W17="","",DT!W17) ->  | U140: =IF(DT!X17="","",DT!X17) ->  | V140: =IF(DT!Y17="","",DT!Y17) ->  | W140: =IF(DT!Z17="","",DT!Z17) ->  | X140: =IF(DT!AA17="","",DT!AA17) ->  | Y140: =IF(DT!AB17="","",DT!AB17) ->  | Z140: =IF(DT!AC17="","",DT!AC17) ->  | AA140: =IF(DT!AD17="","",DT!AD17) ->  | AB140: =IF(DT!AE17="","",DT!AE17) ->  | AC140: =IF(DT!AF17="","",DT!AF17) ->  | AD140: =IF(DT!AG17="","",DT!AG17) ->  | AE140: =IF(DT!AH17="","",DT!AH17) ->  | AF140: =IF(DT!AI17="","",DT!AI17) ->  | AG140: =IF(DT!AJ17="","",DT!AJ17) ->  | AH140: =IF(DT!AK17="","",DT!AK17) ->  | AI140: =IF(DT!AL17="","",DT!AL17) ->  | AJ140: =IF(DT!AM17="","",DT!AM17) ->  | AK140: =IF(DT!AN17="","",DT!AN17) ->  | AL140: =IF(DT!AO17="","",DT!AO17) ->  | AM140: =IF(DT!AP17="","",DT!AP17) -> 
D141: Criterio Evaluación 4.4 | E141: =IF(DT!H18="","",DT!H18) ->  | F141: =IF(DT!I18="","",DT!I18) ->  | G141: =IF(DT!J18="","",DT!J18) ->  | H141: =IF(DT!K18="","",DT!K18) ->  | I141: =IF(DT!L18="","",DT!L18) ->  | J141: =IF(DT!M18="","",DT!M18) ->  | K141: =IF(DT!N18="","",DT!N18) ->  | L141: =IF(DT!O18="","",DT!O18) ->  | M141: =IF(DT!P18="","",DT!P18) ->  | N141: =IF(DT!Q18="","",DT!Q18) ->  | O141: =IF(DT!R18="","",DT!R18) ->  | P141: =IF(DT!S18="","",DT!S18) ->  | Q141: =IF(DT!T18="","",DT!T18) ->  | R141: =IF(DT!U18="","",DT!U18) ->  | S141: =IF(DT!V18="","",DT!V18) ->  | T141: =IF(DT!W18="","",DT!W18) ->  | U141: =IF(DT!X18="","",DT!X18) ->  | V141: =IF(DT!Y18="","",DT!Y18) ->  | W141: =IF(DT!Z18="","",DT!Z18) ->  | X141: =IF(DT!AA18="","",DT!AA18) ->  | Y141: =IF(DT!AB18="","",DT!AB18) ->  | Z141: =IF(DT!AC18="","",DT!AC18) ->  | AA141: =IF(DT!AD18="","",DT!AD18) ->  | AB141: =IF(DT!AE18="","",DT!AE18) ->  | AC141: =IF(DT!AF18="","",DT!AF18) ->  | AD141: =IF(DT!AG18="","",DT!AG18) ->  | AE141: =IF(DT!AH18="","",DT!AH18) ->  | AF141: =IF(DT!AI18="","",DT!AI18) ->  | AG141: =IF(DT!AJ18="","",DT!AJ18) ->  | AH141: =IF(DT!AK18="","",DT!AK18) ->  | AI141: =IF(DT!AL18="","",DT!AL18) ->  | AJ141: =IF(DT!AM18="","",DT!AM18) ->  | AK141: =IF(DT!AN18="","",DT!AN18) ->  | AL141: =IF(DT!AO18="","",DT!AO18) ->  | AM141: =IF(DT!AP18="","",DT!AP18) -> 
C142: Comp. Esp. 5 | D142: Criterio Evaluación 5.1 | E142: =IF(DT!H19="","",DT!H19) ->  | F142: =IF(DT!I19="","",DT!I19) ->  | G142: =IF(DT!J19="","",DT!J19) ->  | H142: =IF(DT!K19="","",DT!K19) ->  | I142: =IF(DT!L19="","",DT!L19) ->  | J142: =IF(DT!M19="","",DT!M19) ->  | K142: =IF(DT!N19="","",DT!N19) ->  | L142: =IF(DT!O19="","",DT!O19) ->  | M142: =IF(DT!P19="","",DT!P19) ->  | N142: =IF(DT!Q19="","",DT!Q19) ->  | O142: =IF(DT!R19="","",DT!R19) ->  | P142: =IF(DT!S19="","",DT!S19) ->  | Q142: =IF(DT!T19="","",DT!T19) ->  | R142: =IF(DT!U19="","",DT!U19) ->  | S142: =IF(DT!V19="","",DT!V19) ->  | T142: =IF(DT!W19="","",DT!W19) ->  | U142: =IF(DT!X19="","",DT!X19) ->  | V142: =IF(DT!Y19="","",DT!Y19) ->  | W142: =IF(DT!Z19="","",DT!Z19) ->  | X142: =IF(DT!AA19="","",DT!AA19) ->  | Y142: =IF(DT!AB19="","",DT!AB19) ->  | Z142: =IF(DT!AC19="","",DT!AC19) ->  | AA142: =IF(DT!AD19="","",DT!AD19) ->  | AB142: =IF(DT!AE19="","",DT!AE19) ->  | AC142: =IF(DT!AF19="","",DT!AF19) ->  | AD142: =IF(DT!AG19="","",DT!AG19) ->  | AE142: =IF(DT!AH19="","",DT!AH19) ->  | AF142: =IF(DT!AI19="","",DT!AI19) ->  | AG142: =IF(DT!AJ19="","",DT!AJ19) ->  | AH142: =IF(DT!AK19="","",DT!AK19) ->  | AI142: =IF(DT!AL19="","",DT!AL19) ->  | AJ142: =IF(DT!AM19="","",DT!AM19) ->  | AK142: =IF(DT!AN19="","",DT!AN19) ->  | AL142: =IF(DT!AO19="","",DT!AO19) ->  | AM142: =IF(DT!AP19="","",DT!AP19) -> 
D143: Criterio Evaluación 5.2 | E143: =IF(DT!H20="","",DT!H20) ->  | F143: =IF(DT!I20="","",DT!I20) ->  | G143: =IF(DT!J20="","",DT!J20) ->  | H143: =IF(DT!K20="","",DT!K20) ->  | I143: =IF(DT!L20="","",DT!L20) ->  | J143: =IF(DT!M20="","",DT!M20) ->  | K143: =IF(DT!N20="","",DT!N20) ->  | L143: =IF(DT!O20="","",DT!O20) ->  | M143: =IF(DT!P20="","",DT!P20) ->  | N143: =IF(DT!Q20="","",DT!Q20) ->  | O143: =IF(DT!R20="","",DT!R20) ->  | P143: =IF(DT!S20="","",DT!S20) ->  | Q143: =IF(DT!T20="","",DT!T20) ->  | R143: =IF(DT!U20="","",DT!U20) ->  | S143: =IF(DT!V20="","",DT!V20) ->  | T143: =IF(DT!W20="","",DT!W20) ->  | U143: =IF(DT!X20="","",DT!X20) ->  | V143: =IF(DT!Y20="","",DT!Y20) ->  | W143: =IF(DT!Z20="","",DT!Z20) ->  | X143: =IF(DT!AA20="","",DT!AA20) ->  | Y143: =IF(DT!AB20="","",DT!AB20) ->  | Z143: =IF(DT!AC20="","",DT!AC20) ->  | AA143: =IF(DT!AD20="","",DT!AD20) ->  | AB143: =IF(DT!AE20="","",DT!AE20) ->  | AC143: =IF(DT!AF20="","",DT!AF20) ->  | AD143: =IF(DT!AG20="","",DT!AG20) ->  | AE143: =IF(DT!AH20="","",DT!AH20) ->  | AF143: =IF(DT!AI20="","",DT!AI20) ->  | AG143: =IF(DT!AJ20="","",DT!AJ20) ->  | AH143: =IF(DT!AK20="","",DT!AK20) ->  | AI143: =IF(DT!AL20="","",DT!AL20) ->  | AJ143: =IF(DT!AM20="","",DT!AM20) ->  | AK143: =IF(DT!AN20="","",DT!AN20) ->  | AL143: =IF(DT!AO20="","",DT!AO20) ->  | AM143: =IF(DT!AP20="","",DT!AP20) -> 
B144: Dibujo Técnico Aplicado a las Artes Plásticas y al Diseño I | C144: Comp. Esp. 1 | D144: Criterio Evaluación 1.1 | E144: =IF(DTA!H4="","",DTA!H4) ->  | F144: =IF(DTA!I4="","",DTA!I4) ->  | G144: =IF(DTA!J4="","",DTA!J4) ->  | H144: =IF(DTA!K4="","",DTA!K4) ->  | I144: =IF(DTA!L4="","",DTA!L4) ->  | J144: =IF(DTA!M4="","",DTA!M4) ->  | K144: =IF(DTA!N4="","",DTA!N4) ->  | L144: =IF(DTA!O4="","",DTA!O4) ->  | M144: =IF(DTA!P4="","",DTA!P4) ->  | N144: =IF(DTA!Q4="","",DTA!Q4) ->  | O144: =IF(DTA!R4="","",DTA!R4) ->  | P144: =IF(DTA!S4="","",DTA!S4) ->  | Q144: =IF(DTA!T4="","",DTA!T4) ->  | R144: =IF(DTA!U4="","",DTA!U4) ->  | S144: =IF(DTA!V4="","",DTA!V4) ->  | T144: =IF(DTA!W4="","",DTA!W4) ->  | U144: =IF(DTA!X4="","",DTA!X4) ->  | V144: =IF(DTA!Y4="","",DTA!Y4) ->  | W144: =IF(DTA!Z4="","",DTA!Z4) ->  | X144: =IF(DTA!AA4="","",DTA!AA4) ->  | Y144: =IF(DTA!AB4="","",DTA!AB4) ->  | Z144: =IF(DTA!AC4="","",DTA!AC4) ->  | AA144: =IF(DTA!AD4="","",DTA!AD4) ->  | AB144: =IF(DTA!AE4="","",DTA!AE4) ->  | AC144: =IF(DTA!AF4="","",DTA!AF4) ->  | AD144: =IF(DTA!AG4="","",DTA!AG4) ->  | AE144: =IF(DTA!AH4="","",DTA!AH4) ->  | AF144: =IF(DTA!AI4="","",DTA!AI4) ->  | AG144: =IF(DTA!AJ4="","",DTA!AJ4) ->  | AH144: =IF(DTA!AK4="","",DTA!AK4) ->  | AI144: =IF(DTA!AL4="","",DTA!AL4) ->  | AJ144: =IF(DTA!AM4="","",DTA!AM4) ->  | AK144: =IF(DTA!AN4="","",DTA!AN4) ->  | AL144: =IF(DTA!AO4="","",DTA!AO4) ->  | AM144: =IF(DTA!AP4="","",DTA!AP4) -> 
D145: Criterio Evaluación 1.2 | E145: =IF(DTA!H5="","",DTA!H5) ->  | F145: =IF(DTA!I5="","",DTA!I5) ->  | G145: =IF(DTA!J5="","",DTA!J5) ->  | H145: =IF(DTA!K5="","",DTA!K5) ->  | I145: =IF(DTA!L5="","",DTA!L5) ->  | J145: =IF(DTA!M5="","",DTA!M5) ->  | K145: =IF(DTA!N5="","",DTA!N5) ->  | L145: =IF(DTA!O5="","",DTA!O5) ->  | M145: =IF(DTA!P5="","",DTA!P5) ->  | N145: =IF(DTA!Q5="","",DTA!Q5) ->  | O145: =IF(DTA!R5="","",DTA!R5) ->  | P145: =IF(DTA!S5="","",DTA!S5) ->  | Q145: =IF(DTA!T5="","",DTA!T5) ->  | R145: =IF(DTA!U5="","",DTA!U5) ->  | S145: =IF(DTA!V5="","",DTA!V5) ->  | T145: =IF(DTA!W5="","",DTA!W5) ->  | U145: =IF(DTA!X5="","",DTA!X5) ->  | V145: =IF(DTA!Y5="","",DTA!Y5) ->  | W145: =IF(DTA!Z5="","",DTA!Z5) ->  | X145: =IF(DTA!AA5="","",DTA!AA5) ->  | Y145: =IF(DTA!AB5="","",DTA!AB5) ->  | Z145: =IF(DTA!AC5="","",DTA!AC5) ->  | AA145: =IF(DTA!AD5="","",DTA!AD5) ->  | AB145: =IF(DTA!AE5="","",DTA!AE5) ->  | AC145: =IF(DTA!AF5="","",DTA!AF5) ->  | AD145: =IF(DTA!AG5="","",DTA!AG5) ->  | AE145: =IF(DTA!AH5="","",DTA!AH5) ->  | AF145: =IF(DTA!AI5="","",DTA!AI5) ->  | AG145: =IF(DTA!AJ5="","",DTA!AJ5) ->  | AH145: =IF(DTA!AK5="","",DTA!AK5) ->  | AI145: =IF(DTA!AL5="","",DTA!AL5) ->  | AJ145: =IF(DTA!AM5="","",DTA!AM5) ->  | AK145: =IF(DTA!AN5="","",DTA!AN5) ->  | AL145: =IF(DTA!AO5="","",DTA!AO5) ->  | AM145: =IF(DTA!AP5="","",DTA!AP5) -> 
D146: Criterio Evaluación 1.3 | E146: =IF(DTA!H6="","",DTA!H6) ->  | F146: =IF(DTA!I6="","",DTA!I6) ->  | G146: =IF(DTA!J6="","",DTA!J6) ->  | H146: =IF(DTA!K6="","",DTA!K6) ->  | I146: =IF(DTA!L6="","",DTA!L6) ->  | J146: =IF(DTA!M6="","",DTA!M6) ->  | K146: =IF(DTA!N6="","",DTA!N6) ->  | L146: =IF(DTA!O6="","",DTA!O6) ->  | M146: =IF(DTA!P6="","",DTA!P6) ->  | N146: =IF(DTA!Q6="","",DTA!Q6) ->  | O146: =IF(DTA!R6="","",DTA!R6) ->  | P146: =IF(DTA!S6="","",DTA!S6) ->  | Q146: =IF(DTA!T6="","",DTA!T6) ->  | R146: =IF(DTA!U6="","",DTA!U6) ->  | S146: =IF(DTA!V6="","",DTA!V6) ->  | T146: =IF(DTA!W6="","",DTA!W6) ->  | U146: =IF(DTA!X6="","",DTA!X6) ->  | V146: =IF(DTA!Y6="","",DTA!Y6) ->  | W146: =IF(DTA!Z6="","",DTA!Z6) ->  | X146: =IF(DTA!AA6="","",DTA!AA6) ->  | Y146: =IF(DTA!AB6="","",DTA!AB6) ->  | Z146: =IF(DTA!AC6="","",DTA!AC6) ->  | AA146: =IF(DTA!AD6="","",DTA!AD6) ->  | AB146: =IF(DTA!AE6="","",DTA!AE6) ->  | AC146: =IF(DTA!AF6="","",DTA!AF6) ->  | AD146: =IF(DTA!AG6="","",DTA!AG6) ->  | AE146: =IF(DTA!AH6="","",DTA!AH6) ->  | AF146: =IF(DTA!AI6="","",DTA!AI6) ->  | AG146: =IF(DTA!AJ6="","",DTA!AJ6) ->  | AH146: =IF(DTA!AK6="","",DTA!AK6) ->  | AI146: =IF(DTA!AL6="","",DTA!AL6) ->  | AJ146: =IF(DTA!AM6="","",DTA!AM6) ->  | AK146: =IF(DTA!AN6="","",DTA!AN6) ->  | AL146: =IF(DTA!AO6="","",DTA!AO6) ->  | AM146: =IF(DTA!AP6="","",DTA!AP6) -> 
C147: Comp. Esp. 2 | D147: Criterio Evaluación 2.1 | E147: =IF(DTA!H7="","",DTA!H7) ->  | F147: =IF(DTA!I7="","",DTA!I7) ->  | G147: =IF(DTA!J7="","",DTA!J7) ->  | H147: =IF(DTA!K7="","",DTA!K7) ->  | I147: =IF(DTA!L7="","",DTA!L7) ->  | J147: =IF(DTA!M7="","",DTA!M7) ->  | K147: =IF(DTA!N7="","",DTA!N7) ->  | L147: =IF(DTA!O7="","",DTA!O7) ->  | M147: =IF(DTA!P7="","",DTA!P7) ->  | N147: =IF(DTA!Q7="","",DTA!Q7) ->  | O147: =IF(DTA!R7="","",DTA!R7) ->  | P147: =IF(DTA!S7="","",DTA!S7) ->  | Q147: =IF(DTA!T7="","",DTA!T7) ->  | R147: =IF(DTA!U7="","",DTA!U7) ->  | S147: =IF(DTA!V7="","",DTA!V7) ->  | T147: =IF(DTA!W7="","",DTA!W7) ->  | U147: =IF(DTA!X7="","",DTA!X7) ->  | V147: =IF(DTA!Y7="","",DTA!Y7) ->  | W147: =IF(DTA!Z7="","",DTA!Z7) ->  | X147: =IF(DTA!AA7="","",DTA!AA7) ->  | Y147: =IF(DTA!AB7="","",DTA!AB7) ->  | Z147: =IF(DTA!AC7="","",DTA!AC7) ->  | AA147: =IF(DTA!AD7="","",DTA!AD7) ->  | AB147: =IF(DTA!AE7="","",DTA!AE7) ->  | AC147: =IF(DTA!AF7="","",DTA!AF7) ->  | AD147: =IF(DTA!AG7="","",DTA!AG7) ->  | AE147: =IF(DTA!AH7="","",DTA!AH7) ->  | AF147: =IF(DTA!AI7="","",DTA!AI7) ->  | AG147: =IF(DTA!AJ7="","",DTA!AJ7) ->  | AH147: =IF(DTA!AK7="","",DTA!AK7) ->  | AI147: =IF(DTA!AL7="","",DTA!AL7) ->  | AJ147: =IF(DTA!AM7="","",DTA!AM7) ->  | AK147: =IF(DTA!AN7="","",DTA!AN7) ->  | AL147: =IF(DTA!AO7="","",DTA!AO7) ->  | AM147: =IF(DTA!AP7="","",DTA!AP7) -> 
D148: Criterio Evaluación 2.2 | E148: =IF(DTA!H8="","",DTA!H8) ->  | F148: =IF(DTA!I8="","",DTA!I8) ->  | G148: =IF(DTA!J8="","",DTA!J8) ->  | H148: =IF(DTA!K8="","",DTA!K8) ->  | I148: =IF(DTA!L8="","",DTA!L8) ->  | J148: =IF(DTA!M8="","",DTA!M8) ->  | K148: =IF(DTA!N8="","",DTA!N8) ->  | L148: =IF(DTA!O8="","",DTA!O8) ->  | M148: =IF(DTA!P8="","",DTA!P8) ->  | N148: =IF(DTA!Q8="","",DTA!Q8) ->  | O148: =IF(DTA!R8="","",DTA!R8) ->  | P148: =IF(DTA!S8="","",DTA!S8) ->  | Q148: =IF(DTA!T8="","",DTA!T8) ->  | R148: =IF(DTA!U8="","",DTA!U8) ->  | S148: =IF(DTA!V8="","",DTA!V8) ->  | T148: =IF(DTA!W8="","",DTA!W8) ->  | U148: =IF(DTA!X8="","",DTA!X8) ->  | V148: =IF(DTA!Y8="","",DTA!Y8) ->  | W148: =IF(DTA!Z8="","",DTA!Z8) ->  | X148: =IF(DTA!AA8="","",DTA!AA8) ->  | Y148: =IF(DTA!AB8="","",DTA!AB8) ->  | Z148: =IF(DTA!AC8="","",DTA!AC8) ->  | AA148: =IF(DTA!AD8="","",DTA!AD8) ->  | AB148: =IF(DTA!AE8="","",DTA!AE8) ->  | AC148: =IF(DTA!AF8="","",DTA!AF8) ->  | AD148: =IF(DTA!AG8="","",DTA!AG8) ->  | AE148: =IF(DTA!AH8="","",DTA!AH8) ->  | AF148: =IF(DTA!AI8="","",DTA!AI8) ->  | AG148: =IF(DTA!AJ8="","",DTA!AJ8) ->  | AH148: =IF(DTA!AK8="","",DTA!AK8) ->  | AI148: =IF(DTA!AL8="","",DTA!AL8) ->  | AJ148: =IF(DTA!AM8="","",DTA!AM8) ->  | AK148: =IF(DTA!AN8="","",DTA!AN8) ->  | AL148: =IF(DTA!AO8="","",DTA!AO8) ->  | AM148: =IF(DTA!AP8="","",DTA!AP8) -> 
D149: Criterio Evaluación 2.3 | E149: =IF(DTA!H9="","",DTA!H9) ->  | F149: =IF(DTA!I9="","",DTA!I9) ->  | G149: =IF(DTA!J9="","",DTA!J9) ->  | H149: =IF(DTA!K9="","",DTA!K9) ->  | I149: =IF(DTA!L9="","",DTA!L9) ->  | J149: =IF(DTA!M9="","",DTA!M9) ->  | K149: =IF(DTA!N9="","",DTA!N9) ->  | L149: =IF(DTA!O9="","",DTA!O9) ->  | M149: =IF(DTA!P9="","",DTA!P9) ->  | N149: =IF(DTA!Q9="","",DTA!Q9) ->  | O149: =IF(DTA!R9="","",DTA!R9) ->  | P149: =IF(DTA!S9="","",DTA!S9) ->  | Q149: =IF(DTA!T9="","",DTA!T9) ->  | R149: =IF(DTA!U9="","",DTA!U9) ->  | S149: =IF(DTA!V9="","",DTA!V9) ->  | T149: =IF(DTA!W9="","",DTA!W9) ->  | U149: =IF(DTA!X9="","",DTA!X9) ->  | V149: =IF(DTA!Y9="","",DTA!Y9) ->  | W149: =IF(DTA!Z9="","",DTA!Z9) ->  | X149: =IF(DTA!AA9="","",DTA!AA9) ->  | Y149: =IF(DTA!AB9="","",DTA!AB9) ->  | Z149: =IF(DTA!AC9="","",DTA!AC9) ->  | AA149: =IF(DTA!AD9="","",DTA!AD9) ->  | AB149: =IF(DTA!AE9="","",DTA!AE9) ->  | AC149: =IF(DTA!AF9="","",DTA!AF9) ->  | AD149: =IF(DTA!AG9="","",DTA!AG9) ->  | AE149: =IF(DTA!AH9="","",DTA!AH9) ->  | AF149: =IF(DTA!AI9="","",DTA!AI9) ->  | AG149: =IF(DTA!AJ9="","",DTA!AJ9) ->  | AH149: =IF(DTA!AK9="","",DTA!AK9) ->  | AI149: =IF(DTA!AL9="","",DTA!AL9) ->  | AJ149: =IF(DTA!AM9="","",DTA!AM9) ->  | AK149: =IF(DTA!AN9="","",DTA!AN9) ->  | AL149: =IF(DTA!AO9="","",DTA!AO9) ->  | AM149: =IF(DTA!AP9="","",DTA!AP9) -> 
D150: Criterio Evaluación 2.4 | E150: =IF(DTA!H10="","",DTA!H10) ->  | F150: =IF(DTA!I10="","",DTA!I10) ->  | G150: =IF(DTA!J10="","",DTA!J10) ->  | H150: =IF(DTA!K10="","",DTA!K10) ->  | I150: =IF(DTA!L10="","",DTA!L10) ->  | J150: =IF(DTA!M10="","",DTA!M10) ->  | K150: =IF(DTA!N10="","",DTA!N10) ->  | L150: =IF(DTA!O10="","",DTA!O10) ->  | M150: =IF(DTA!P10="","",DTA!P10) ->  | N150: =IF(DTA!Q10="","",DTA!Q10) ->  | O150: =IF(DTA!R10="","",DTA!R10) ->  | P150: =IF(DTA!S10="","",DTA!S10) ->  | Q150: =IF(DTA!T10="","",DTA!T10) ->  | R150: =IF(DTA!U10="","",DTA!U10) ->  | S150: =IF(DTA!V10="","",DTA!V10) ->  | T150: =IF(DTA!W10="","",DTA!W10) ->  | U150: =IF(DTA!X10="","",DTA!X10) ->  | V150: =IF(DTA!Y10="","",DTA!Y10) ->  | W150: =IF(DTA!Z10="","",DTA!Z10) ->  | X150: =IF(DTA!AA10="","",DTA!AA10) ->  | Y150: =IF(DTA!AB10="","",DTA!AB10) ->  | Z150: =IF(DTA!AC10="","",DTA!AC10) ->  | AA150: =IF(DTA!AD10="","",DTA!AD10) ->  | AB150: =IF(DTA!AE10="","",DTA!AE10) ->  | AC150: =IF(DTA!AF10="","",DTA!AF10) ->  | AD150: =IF(DTA!AG10="","",DTA!AG10) ->  | AE150: =IF(DTA!AH10="","",DTA!AH10) ->  | AF150: =IF(DTA!AI10="","",DTA!AI10) ->  | AG150: =IF(DTA!AJ10="","",DTA!AJ10) ->  | AH150: =IF(DTA!AK10="","",DTA!AK10) ->  | AI150: =IF(DTA!AL10="","",DTA!AL10) ->  | AJ150: =IF(DTA!AM10="","",DTA!AM10) ->  | AK150: =IF(DTA!AN10="","",DTA!AN10) ->  | AL150: =IF(DTA!AO10="","",DTA!AO10) ->  | AM150: =IF(DTA!AP10="","",DTA!AP10) -> 
C151: Comp. Esp. 3 | D151: Criterio Evaluación 3.1 | E151: =IF(DTA!H11="","",DTA!H11) ->  | F151: =IF(DTA!I11="","",DTA!I11) ->  | G151: =IF(DTA!J11="","",DTA!J11) ->  | H151: =IF(DTA!K11="","",DTA!K11) ->  | I151: =IF(DTA!L11="","",DTA!L11) ->  | J151: =IF(DTA!M11="","",DTA!M11) ->  | K151: =IF(DTA!N11="","",DTA!N11) ->  | L151: =IF(DTA!O11="","",DTA!O11) ->  | M151: =IF(DTA!P11="","",DTA!P11) ->  | N151: =IF(DTA!Q11="","",DTA!Q11) ->  | O151: =IF(DTA!R11="","",DTA!R11) ->  | P151: =IF(DTA!S11="","",DTA!S11) ->  | Q151: =IF(DTA!T11="","",DTA!T11) ->  | R151: =IF(DTA!U11="","",DTA!U11) ->  | S151: =IF(DTA!V11="","",DTA!V11) ->  | T151: =IF(DTA!W11="","",DTA!W11) ->  | U151: =IF(DTA!X11="","",DTA!X11) ->  | V151: =IF(DTA!Y11="","",DTA!Y11) ->  | W151: =IF(DTA!Z11="","",DTA!Z11) ->  | X151: =IF(DTA!AA11="","",DTA!AA11) ->  | Y151: =IF(DTA!AB11="","",DTA!AB11) ->  | Z151: =IF(DTA!AC11="","",DTA!AC11) ->  | AA151: =IF(DTA!AD11="","",DTA!AD11) ->  | AB151: =IF(DTA!AE11="","",DTA!AE11) ->  | AC151: =IF(DTA!AF11="","",DTA!AF11) ->  | AD151: =IF(DTA!AG11="","",DTA!AG11) ->  | AE151: =IF(DTA!AH11="","",DTA!AH11) ->  | AF151: =IF(DTA!AI11="","",DTA!AI11) ->  | AG151: =IF(DTA!AJ11="","",DTA!AJ11) ->  | AH151: =IF(DTA!AK11="","",DTA!AK11) ->  | AI151: =IF(DTA!AL11="","",DTA!AL11) ->  | AJ151: =IF(DTA!AM11="","",DTA!AM11) ->  | AK151: =IF(DTA!AN11="","",DTA!AN11) ->  | AL151: =IF(DTA!AO11="","",DTA!AO11) ->  | AM151: =IF(DTA!AP11="","",DTA!AP11) -> 
D152: Criterio Evaluación 3.2 | E152: =IF(DTA!H12="","",DTA!H12) ->  | F152: =IF(DTA!I12="","",DTA!I12) ->  | G152: =IF(DTA!J12="","",DTA!J12) ->  | H152: =IF(DTA!K12="","",DTA!K12) ->  | I152: =IF(DTA!L12="","",DTA!L12) ->  | J152: =IF(DTA!M12="","",DTA!M12) ->  | K152: =IF(DTA!N12="","",DTA!N12) ->  | L152: =IF(DTA!O12="","",DTA!O12) ->  | M152: =IF(DTA!P12="","",DTA!P12) ->  | N152: =IF(DTA!Q12="","",DTA!Q12) ->  | O152: =IF(DTA!R12="","",DTA!R12) ->  | P152: =IF(DTA!S12="","",DTA!S12) ->  | Q152: =IF(DTA!T12="","",DTA!T12) ->  | R152: =IF(DTA!U12="","",DTA!U12) ->  | S152: =IF(DTA!V12="","",DTA!V12) ->  | T152: =IF(DTA!W12="","",DTA!W12) ->  | U152: =IF(DTA!X12="","",DTA!X12) ->  | V152: =IF(DTA!Y12="","",DTA!Y12) ->  | W152: =IF(DTA!Z12="","",DTA!Z12) ->  | X152: =IF(DTA!AA12="","",DTA!AA12) ->  | Y152: =IF(DTA!AB12="","",DTA!AB12) ->  | Z152: =IF(DTA!AC12="","",DTA!AC12) ->  | AA152: =IF(DTA!AD12="","",DTA!AD12) ->  | AB152: =IF(DTA!AE12="","",DTA!AE12) ->  | AC152: =IF(DTA!AF12="","",DTA!AF12) ->  | AD152: =IF(DTA!AG12="","",DTA!AG12) ->  | AE152: =IF(DTA!AH12="","",DTA!AH12) ->  | AF152: =IF(DTA!AI12="","",DTA!AI12) ->  | AG152: =IF(DTA!AJ12="","",DTA!AJ12) ->  | AH152: =IF(DTA!AK12="","",DTA!AK12) ->  | AI152: =IF(DTA!AL12="","",DTA!AL12) ->  | AJ152: =IF(DTA!AM12="","",DTA!AM12) ->  | AK152: =IF(DTA!AN12="","",DTA!AN12) ->  | AL152: =IF(DTA!AO12="","",DTA!AO12) ->  | AM152: =IF(DTA!AP12="","",DTA!AP12) -> 
D153: Criterio Evaluación 3.3 | E153: =IF(DTA!H13="","",DTA!H13) ->  | F153: =IF(DTA!I13="","",DTA!I13) ->  | G153: =IF(DTA!J13="","",DTA!J13) ->  | H153: =IF(DTA!K13="","",DTA!K13) ->  | I153: =IF(DTA!L13="","",DTA!L13) ->  | J153: =IF(DTA!M13="","",DTA!M13) ->  | K153: =IF(DTA!N13="","",DTA!N13) ->  | L153: =IF(DTA!O13="","",DTA!O13) ->  | M153: =IF(DTA!P13="","",DTA!P13) ->  | N153: =IF(DTA!Q13="","",DTA!Q13) ->  | O153: =IF(DTA!R13="","",DTA!R13) ->  | P153: =IF(DTA!S13="","",DTA!S13) ->  | Q153: =IF(DTA!T13="","",DTA!T13) ->  | R153: =IF(DTA!U13="","",DTA!U13) ->  | S153: =IF(DTA!V13="","",DTA!V13) ->  | T153: =IF(DTA!W13="","",DTA!W13) ->  | U153: =IF(DTA!X13="","",DTA!X13) ->  | V153: =IF(DTA!Y13="","",DTA!Y13) ->  | W153: =IF(DTA!Z13="","",DTA!Z13) ->  | X153: =IF(DTA!AA13="","",DTA!AA13) ->  | Y153: =IF(DTA!AB13="","",DTA!AB13) ->  | Z153: =IF(DTA!AC13="","",DTA!AC13) ->  | AA153: =IF(DTA!AD13="","",DTA!AD13) ->  | AB153: =IF(DTA!AE13="","",DTA!AE13) ->  | AC153: =IF(DTA!AF13="","",DTA!AF13) ->  | AD153: =IF(DTA!AG13="","",DTA!AG13) ->  | AE153: =IF(DTA!AH13="","",DTA!AH13) ->  | AF153: =IF(DTA!AI13="","",DTA!AI13) ->  | AG153: =IF(DTA!AJ13="","",DTA!AJ13) ->  | AH153: =IF(DTA!AK13="","",DTA!AK13) ->  | AI153: =IF(DTA!AL13="","",DTA!AL13) ->  | AJ153: =IF(DTA!AM13="","",DTA!AM13) ->  | AK153: =IF(DTA!AN13="","",DTA!AN13) ->  | AL153: =IF(DTA!AO13="","",DTA!AO13) ->  | AM153: =IF(DTA!AP13="","",DTA!AP13) -> 
D154: Criterio Evaluación 3.4 | E154: =IF(DTA!H14="","",DTA!H14) ->  | F154: =IF(DTA!I14="","",DTA!I14) ->  | G154: =IF(DTA!J14="","",DTA!J14) ->  | H154: =IF(DTA!K14="","",DTA!K14) ->  | I154: =IF(DTA!L14="","",DTA!L14) ->  | J154: =IF(DTA!M14="","",DTA!M14) ->  | K154: =IF(DTA!N14="","",DTA!N14) ->  | L154: =IF(DTA!O14="","",DTA!O14) ->  | M154: =IF(DTA!P14="","",DTA!P14) ->  | N154: =IF(DTA!Q14="","",DTA!Q14) ->  | O154: =IF(DTA!R14="","",DTA!R14) ->  | P154: =IF(DTA!S14="","",DTA!S14) ->  | Q154: =IF(DTA!T14="","",DTA!T14) ->  | R154: =IF(DTA!U14="","",DTA!U14) ->  | S154: =IF(DTA!V14="","",DTA!V14) ->  | T154: =IF(DTA!W14="","",DTA!W14) ->  | U154: =IF(DTA!X14="","",DTA!X14) ->  | V154: =IF(DTA!Y14="","",DTA!Y14) ->  | W154: =IF(DTA!Z14="","",DTA!Z14) ->  | X154: =IF(DTA!AA14="","",DTA!AA14) ->  | Y154: =IF(DTA!AB14="","",DTA!AB14) ->  | Z154: =IF(DTA!AC14="","",DTA!AC14) ->  | AA154: =IF(DTA!AD14="","",DTA!AD14) ->  | AB154: =IF(DTA!AE14="","",DTA!AE14) ->  | AC154: =IF(DTA!AF14="","",DTA!AF14) ->  | AD154: =IF(DTA!AG14="","",DTA!AG14) ->  | AE154: =IF(DTA!AH14="","",DTA!AH14) ->  | AF154: =IF(DTA!AI14="","",DTA!AI14) ->  | AG154: =IF(DTA!AJ14="","",DTA!AJ14) ->  | AH154: =IF(DTA!AK14="","",DTA!AK14) ->  | AI154: =IF(DTA!AL14="","",DTA!AL14) ->  | AJ154: =IF(DTA!AM14="","",DTA!AM14) ->  | AK154: =IF(DTA!AN14="","",DTA!AN14) ->  | AL154: =IF(DTA!AO14="","",DTA!AO14) ->  | AM154: =IF(DTA!AP14="","",DTA!AP14) -> 
D155: Criterio Evaluación 3.5 | E155: =IF(DTA!H15="","",DTA!H15) ->  | F155: =IF(DTA!I15="","",DTA!I15) ->  | G155: =IF(DTA!J15="","",DTA!J15) ->  | H155: =IF(DTA!K15="","",DTA!K15) ->  | I155: =IF(DTA!L15="","",DTA!L15) ->  | J155: =IF(DTA!M15="","",DTA!M15) ->  | K155: =IF(DTA!N15="","",DTA!N15) ->  | L155: =IF(DTA!O15="","",DTA!O15) ->  | M155: =IF(DTA!P15="","",DTA!P15) ->  | N155: =IF(DTA!Q15="","",DTA!Q15) ->  | O155: =IF(DTA!R15="","",DTA!R15) ->  | P155: =IF(DTA!S15="","",DTA!S15) ->  | Q155: =IF(DTA!T15="","",DTA!T15) ->  | R155: =IF(DTA!U15="","",DTA!U15) ->  | S155: =IF(DTA!V15="","",DTA!V15) ->  | T155: =IF(DTA!W15="","",DTA!W15) ->  | U155: =IF(DTA!X15="","",DTA!X15) ->  | V155: =IF(DTA!Y15="","",DTA!Y15) ->  | W155: =IF(DTA!Z15="","",DTA!Z15) ->  | X155: =IF(DTA!AA15="","",DTA!AA15) ->  | Y155: =IF(DTA!AB15="","",DTA!AB15) ->  | Z155: =IF(DTA!AC15="","",DTA!AC15) ->  | AA155: =IF(DTA!AD15="","",DTA!AD15) ->  | AB155: =IF(DTA!AE15="","",DTA!AE15) ->  | AC155: =IF(DTA!AF15="","",DTA!AF15) ->  | AD155: =IF(DTA!AG15="","",DTA!AG15) ->  | AE155: =IF(DTA!AH15="","",DTA!AH15) ->  | AF155: =IF(DTA!AI15="","",DTA!AI15) ->  | AG155: =IF(DTA!AJ15="","",DTA!AJ15) ->  | AH155: =IF(DTA!AK15="","",DTA!AK15) ->  | AI155: =IF(DTA!AL15="","",DTA!AL15) ->  | AJ155: =IF(DTA!AM15="","",DTA!AM15) ->  | AK155: =IF(DTA!AN15="","",DTA!AN15) ->  | AL155: =IF(DTA!AO15="","",DTA!AO15) ->  | AM155: =IF(DTA!AP15="","",DTA!AP15) -> 
D156: Criterio Evaluación 3.6 | E156: =IF(DTA!H16="","",DTA!H16) ->  | F156: =IF(DTA!I16="","",DTA!I16) ->  | G156: =IF(DTA!J16="","",DTA!J16) ->  | H156: =IF(DTA!K16="","",DTA!K16) ->  | I156: =IF(DTA!L16="","",DTA!L16) ->  | J156: =IF(DTA!M16="","",DTA!M16) ->  | K156: =IF(DTA!N16="","",DTA!N16) ->  | L156: =IF(DTA!O16="","",DTA!O16) ->  | M156: =IF(DTA!P16="","",DTA!P16) ->  | N156: =IF(DTA!Q16="","",DTA!Q16) ->  | O156: =IF(DTA!R16="","",DTA!R16) ->  | P156: =IF(DTA!S16="","",DTA!S16) ->  | Q156: =IF(DTA!T16="","",DTA!T16) ->  | R156: =IF(DTA!U16="","",DTA!U16) ->  | S156: =IF(DTA!V16="","",DTA!V16) ->  | T156: =IF(DTA!W16="","",DTA!W16) ->  | U156: =IF(DTA!X16="","",DTA!X16) ->  | V156: =IF(DTA!Y16="","",DTA!Y16) ->  | W156: =IF(DTA!Z16="","",DTA!Z16) ->  | X156: =IF(DTA!AA16="","",DTA!AA16) ->  | Y156: =IF(DTA!AB16="","",DTA!AB16) ->  | Z156: =IF(DTA!AC16="","",DTA!AC16) ->  | AA156: =IF(DTA!AD16="","",DTA!AD16) ->  | AB156: =IF(DTA!AE16="","",DTA!AE16) ->  | AC156: =IF(DTA!AF16="","",DTA!AF16) ->  | AD156: =IF(DTA!AG16="","",DTA!AG16) ->  | AE156: =IF(DTA!AH16="","",DTA!AH16) ->  | AF156: =IF(DTA!AI16="","",DTA!AI16) ->  | AG156: =IF(DTA!AJ16="","",DTA!AJ16) ->  | AH156: =IF(DTA!AK16="","",DTA!AK16) ->  | AI156: =IF(DTA!AL16="","",DTA!AL16) ->  | AJ156: =IF(DTA!AM16="","",DTA!AM16) ->  | AK156: =IF(DTA!AN16="","",DTA!AN16) ->  | AL156: =IF(DTA!AO16="","",DTA!AO16) ->  | AM156: =IF(DTA!AP16="","",DTA!AP16) -> 
D157: Criterio Evaluación 3.7 | E157: =IF(DTA!H17="","",DTA!H17) ->  | F157: =IF(DTA!I17="","",DTA!I17) ->  | G157: =IF(DTA!J17="","",DTA!J17) ->  | H157: =IF(DTA!K17="","",DTA!K17) ->  | I157: =IF(DTA!L17="","",DTA!L17) ->  | J157: =IF(DTA!M17="","",DTA!M17) ->  | K157: =IF(DTA!N17="","",DTA!N17) ->  | L157: =IF(DTA!O17="","",DTA!O17) ->  | M157: =IF(DTA!P17="","",DTA!P17) ->  | N157: =IF(DTA!Q17="","",DTA!Q17) ->  | O157: =IF(DTA!R17="","",DTA!R17) ->  | P157: =IF(DTA!S17="","",DTA!S17) ->  | Q157: =IF(DTA!T17="","",DTA!T17) ->  | R157: =IF(DTA!U17="","",DTA!U17) ->  | S157: =IF(DTA!V17="","",DTA!V17) ->  | T157: =IF(DTA!W17="","",DTA!W17) ->  | U157: =IF(DTA!X17="","",DTA!X17) ->  | V157: =IF(DTA!Y17="","",DTA!Y17) ->  | W157: =IF(DTA!Z17="","",DTA!Z17) ->  | X157: =IF(DTA!AA17="","",DTA!AA17) ->  | Y157: =IF(DTA!AB17="","",DTA!AB17) ->  | Z157: =IF(DTA!AC17="","",DTA!AC17) ->  | AA157: =IF(DTA!AD17="","",DTA!AD17) ->  | AB157: =IF(DTA!AE17="","",DTA!AE17) ->  | AC157: =IF(DTA!AF17="","",DTA!AF17) ->  | AD157: =IF(DTA!AG17="","",DTA!AG17) ->  | AE157: =IF(DTA!AH17="","",DTA!AH17) ->  | AF157: =IF(DTA!AI17="","",DTA!AI17) ->  | AG157: =IF(DTA!AJ17="","",DTA!AJ17) ->  | AH157: =IF(DTA!AK17="","",DTA!AK17) ->  | AI157: =IF(DTA!AL17="","",DTA!AL17) ->  | AJ157: =IF(DTA!AM17="","",DTA!AM17) ->  | AK157: =IF(DTA!AN17="","",DTA!AN17) ->  | AL157: =IF(DTA!AO17="","",DTA!AO17) ->  | AM157: =IF(DTA!AP17="","",DTA!AP17) -> 
C158: Comp. Esp. 4 | D158: Criterio Evaluación 4.1 | E158: =IF(DTA!H18="","",DTA!H18) ->  | F158: =IF(DTA!I18="","",DTA!I18) ->  | G158: =IF(DTA!J18="","",DTA!J18) ->  | H158: =IF(DTA!K18="","",DTA!K18) ->  | I158: =IF(DTA!L18="","",DTA!L18) ->  | J158: =IF(DTA!M18="","",DTA!M18) ->  | K158: =IF(DTA!N18="","",DTA!N18) ->  | L158: =IF(DTA!O18="","",DTA!O18) ->  | M158: =IF(DTA!P18="","",DTA!P18) ->  | N158: =IF(DTA!Q18="","",DTA!Q18) ->  | O158: =IF(DTA!R18="","",DTA!R18) ->  | P158: =IF(DTA!S18="","",DTA!S18) ->  | Q158: =IF(DTA!T18="","",DTA!T18) ->  | R158: =IF(DTA!U18="","",DTA!U18) ->  | S158: =IF(DTA!V18="","",DTA!V18) ->  | T158: =IF(DTA!W18="","",DTA!W18) ->  | U158: =IF(DTA!X18="","",DTA!X18) ->  | V158: =IF(DTA!Y18="","",DTA!Y18) ->  | W158: =IF(DTA!Z18="","",DTA!Z18) ->  | X158: =IF(DTA!AA18="","",DTA!AA18) ->  | Y158: =IF(DTA!AB18="","",DTA!AB18) ->  | Z158: =IF(DTA!AC18="","",DTA!AC18) ->  | AA158: =IF(DTA!AD18="","",DTA!AD18) ->  | AB158: =IF(DTA!AE18="","",DTA!AE18) ->  | AC158: =IF(DTA!AF18="","",DTA!AF18) ->  | AD158: =IF(DTA!AG18="","",DTA!AG18) ->  | AE158: =IF(DTA!AH18="","",DTA!AH18) ->  | AF158: =IF(DTA!AI18="","",DTA!AI18) ->  | AG158: =IF(DTA!AJ18="","",DTA!AJ18) ->  | AH158: =IF(DTA!AK18="","",DTA!AK18) ->  | AI158: =IF(DTA!AL18="","",DTA!AL18) ->  | AJ158: =IF(DTA!AM18="","",DTA!AM18) ->  | AK158: =IF(DTA!AN18="","",DTA!AN18) ->  | AL158: =IF(DTA!AO18="","",DTA!AO18) ->  | AM158: =IF(DTA!AP18="","",DTA!AP18) -> 
D159: Criterio Evaluación 4.2 | E159: =IF(DTA!H19="","",DTA!H19) ->  | F159: =IF(DTA!I19="","",DTA!I19) ->  | G159: =IF(DTA!J19="","",DTA!J19) ->  | H159: =IF(DTA!K19="","",DTA!K19) ->  | I159: =IF(DTA!L19="","",DTA!L19) ->  | J159: =IF(DTA!M19="","",DTA!M19) ->  | K159: =IF(DTA!N19="","",DTA!N19) ->  | L159: =IF(DTA!O19="","",DTA!O19) ->  | M159: =IF(DTA!P19="","",DTA!P19) ->  | N159: =IF(DTA!Q19="","",DTA!Q19) ->  | O159: =IF(DTA!R19="","",DTA!R19) ->  | P159: =IF(DTA!S19="","",DTA!S19) ->  | Q159: =IF(DTA!T19="","",DTA!T19) ->  | R159: =IF(DTA!U19="","",DTA!U19) ->  | S159: =IF(DTA!V19="","",DTA!V19) ->  | T159: =IF(DTA!W19="","",DTA!W19) ->  | U159: =IF(DTA!X19="","",DTA!X19) ->  | V159: =IF(DTA!Y19="","",DTA!Y19) ->  | W159: =IF(DTA!Z19="","",DTA!Z19) ->  | X159: =IF(DTA!AA19="","",DTA!AA19) ->  | Y159: =IF(DTA!AB19="","",DTA!AB19) ->  | Z159: =IF(DTA!AC19="","",DTA!AC19) ->  | AA159: =IF(DTA!AD19="","",DTA!AD19) ->  | AB159: =IF(DTA!AE19="","",DTA!AE19) ->  | AC159: =IF(DTA!AF19="","",DTA!AF19) ->  | AD159: =IF(DTA!AG19="","",DTA!AG19) ->  | AE159: =IF(DTA!AH19="","",DTA!AH19) ->  | AF159: =IF(DTA!AI19="","",DTA!AI19) ->  | AG159: =IF(DTA!AJ19="","",DTA!AJ19) ->  | AH159: =IF(DTA!AK19="","",DTA!AK19) ->  | AI159: =IF(DTA!AL19="","",DTA!AL19) ->  | AJ159: =IF(DTA!AM19="","",DTA!AM19) ->  | AK159: =IF(DTA!AN19="","",DTA!AN19) ->  | AL159: =IF(DTA!AO19="","",DTA!AO19) ->  | AM159: =IF(DTA!AP19="","",DTA!AP19) -> 
D160: Criterio Evaluación 4.3 | E160: =IF(DTA!H20="","",DTA!H20) ->  | F160: =IF(DTA!I20="","",DTA!I20) ->  | G160: =IF(DTA!J20="","",DTA!J20) ->  | H160: =IF(DTA!K20="","",DTA!K20) ->  | I160: =IF(DTA!L20="","",DTA!L20) ->  | J160: =IF(DTA!M20="","",DTA!M20) ->  | K160: =IF(DTA!N20="","",DTA!N20) ->  | L160: =IF(DTA!O20="","",DTA!O20) ->  | M160: =IF(DTA!P20="","",DTA!P20) ->  | N160: =IF(DTA!Q20="","",DTA!Q20) ->  | O160: =IF(DTA!R20="","",DTA!R20) ->  | P160: =IF(DTA!S20="","",DTA!S20) ->  | Q160: =IF(DTA!T20="","",DTA!T20) ->  | R160: =IF(DTA!U20="","",DTA!U20) ->  | S160: =IF(DTA!V20="","",DTA!V20) ->  | T160: =IF(DTA!W20="","",DTA!W20) ->  | U160: =IF(DTA!X20="","",DTA!X20) ->  | V160: =IF(DTA!Y20="","",DTA!Y20) ->  | W160: =IF(DTA!Z20="","",DTA!Z20) ->  | X160: =IF(DTA!AA20="","",DTA!AA20) ->  | Y160: =IF(DTA!AB20="","",DTA!AB20) ->  | Z160: =IF(DTA!AC20="","",DTA!AC20) ->  | AA160: =IF(DTA!AD20="","",DTA!AD20) ->  | AB160: =IF(DTA!AE20="","",DTA!AE20) ->  | AC160: =IF(DTA!AF20="","",DTA!AF20) ->  | AD160: =IF(DTA!AG20="","",DTA!AG20) ->  | AE160: =IF(DTA!AH20="","",DTA!AH20) ->  | AF160: =IF(DTA!AI20="","",DTA!AI20) ->  | AG160: =IF(DTA!AJ20="","",DTA!AJ20) ->  | AH160: =IF(DTA!AK20="","",DTA!AK20) ->  | AI160: =IF(DTA!AL20="","",DTA!AL20) ->  | AJ160: =IF(DTA!AM20="","",DTA!AM20) ->  | AK160: =IF(DTA!AN20="","",DTA!AN20) ->  | AL160: =IF(DTA!AO20="","",DTA!AO20) ->  | AM160: =IF(DTA!AP20="","",DTA!AP20) -> 
C161: Comp. Esp. 5 | D161: Criterio Evaluación 5.1 | E161: =IF(DTA!H21="","",DTA!H21) ->  | F161: =IF(DTA!I21="","",DTA!I21) ->  | G161: =IF(DTA!J21="","",DTA!J21) ->  | H161: =IF(DTA!K21="","",DTA!K21) ->  | I161: =IF(DTA!L21="","",DTA!L21) ->  | J161: =IF(DTA!M21="","",DTA!M21) ->  | K161: =IF(DTA!N21="","",DTA!N21) ->  | L161: =IF(DTA!O21="","",DTA!O21) ->  | M161: =IF(DTA!P21="","",DTA!P21) ->  | N161: =IF(DTA!Q21="","",DTA!Q21) ->  | O161: =IF(DTA!R21="","",DTA!R21) ->  | P161: =IF(DTA!S21="","",DTA!S21) ->  | Q161: =IF(DTA!T21="","",DTA!T21) ->  | R161: =IF(DTA!U21="","",DTA!U21) ->  | S161: =IF(DTA!V21="","",DTA!V21) ->  | T161: =IF(DTA!W21="","",DTA!W21) ->  | U161: =IF(DTA!X21="","",DTA!X21) ->  | V161: =IF(DTA!Y21="","",DTA!Y21) ->  | W161: =IF(DTA!Z21="","",DTA!Z21) ->  | X161: =IF(DTA!AA21="","",DTA!AA21) ->  | Y161: =IF(DTA!AB21="","",DTA!AB21) ->  | Z161: =IF(DTA!AC21="","",DTA!AC21) ->  | AA161: =IF(DTA!AD21="","",DTA!AD21) ->  | AB161: =IF(DTA!AE21="","",DTA!AE21) ->  | AC161: =IF(DTA!AF21="","",DTA!AF21) ->  | AD161: =IF(DTA!AG21="","",DTA!AG21) ->  | AE161: =IF(DTA!AH21="","",DTA!AH21) ->  | AF161: =IF(DTA!AI21="","",DTA!AI21) ->  | AG161: =IF(DTA!AJ21="","",DTA!AJ21) ->  | AH161: =IF(DTA!AK21="","",DTA!AK21) ->  | AI161: =IF(DTA!AL21="","",DTA!AL21) ->  | AJ161: =IF(DTA!AM21="","",DTA!AM21) ->  | AK161: =IF(DTA!AN21="","",DTA!AN21) ->  | AL161: =IF(DTA!AO21="","",DTA!AO21) ->  | AM161: =IF(DTA!AP21="","",DTA!AP21) -> 
D162: Criterio Evaluación 5.2 | E162: =IF(DTA!H22="","",DTA!H22) ->  | F162: =IF(DTA!I22="","",DTA!I22) ->  | G162: =IF(DTA!J22="","",DTA!J22) ->  | H162: =IF(DTA!K22="","",DTA!K22) ->  | I162: =IF(DTA!L22="","",DTA!L22) ->  | J162: =IF(DTA!M22="","",DTA!M22) ->  | K162: =IF(DTA!N22="","",DTA!N22) ->  | L162: =IF(DTA!O22="","",DTA!O22) ->  | M162: =IF(DTA!P22="","",DTA!P22) ->  | N162: =IF(DTA!Q22="","",DTA!Q22) ->  | O162: =IF(DTA!R22="","",DTA!R22) ->  | P162: =IF(DTA!S22="","",DTA!S22) ->  | Q162: =IF(DTA!T22="","",DTA!T22) ->  | R162: =IF(DTA!U22="","",DTA!U22) ->  | S162: =IF(DTA!V22="","",DTA!V22) ->  | T162: =IF(DTA!W22="","",DTA!W22) ->  | U162: =IF(DTA!X22="","",DTA!X22) ->  | V162: =IF(DTA!Y22="","",DTA!Y22) ->  | W162: =IF(DTA!Z22="","",DTA!Z22) ->  | X162: =IF(DTA!AA22="","",DTA!AA22) ->  | Y162: =IF(DTA!AB22="","",DTA!AB22) ->  | Z162: =IF(DTA!AC22="","",DTA!AC22) ->  | AA162: =IF(DTA!AD22="","",DTA!AD22) ->  | AB162: =IF(DTA!AE22="","",DTA!AE22) ->  | AC162: =IF(DTA!AF22="","",DTA!AF22) ->  | AD162: =IF(DTA!AG22="","",DTA!AG22) ->  | AE162: =IF(DTA!AH22="","",DTA!AH22) ->  | AF162: =IF(DTA!AI22="","",DTA!AI22) ->  | AG162: =IF(DTA!AJ22="","",DTA!AJ22) ->  | AH162: =IF(DTA!AK22="","",DTA!AK22) ->  | AI162: =IF(DTA!AL22="","",DTA!AL22) ->  | AJ162: =IF(DTA!AM22="","",DTA!AM22) ->  | AK162: =IF(DTA!AN22="","",DTA!AN22) ->  | AL162: =IF(DTA!AO22="","",DTA!AO22) ->  | AM162: =IF(DTA!AP22="","",DTA!AP22) -> 
D163: Criterio Evaluación 5.3 | E163: =IF(DTA!H23="","",DTA!H23) ->  | F163: =IF(DTA!I23="","",DTA!I23) ->  | G163: =IF(DTA!J23="","",DTA!J23) ->  | H163: =IF(DTA!K23="","",DTA!K23) ->  | I163: =IF(DTA!L23="","",DTA!L23) ->  | J163: =IF(DTA!M23="","",DTA!M23) ->  | K163: =IF(DTA!N23="","",DTA!N23) ->  | L163: =IF(DTA!O23="","",DTA!O23) ->  | M163: =IF(DTA!P23="","",DTA!P23) ->  | N163: =IF(DTA!Q23="","",DTA!Q23) ->  | O163: =IF(DTA!R23="","",DTA!R23) ->  | P163: =IF(DTA!S23="","",DTA!S23) ->  | Q163: =IF(DTA!T23="","",DTA!T23) ->  | R163: =IF(DTA!U23="","",DTA!U23) ->  | S163: =IF(DTA!V23="","",DTA!V23) ->  | T163: =IF(DTA!W23="","",DTA!W23) ->  | U163: =IF(DTA!X23="","",DTA!X23) ->  | V163: =IF(DTA!Y23="","",DTA!Y23) ->  | W163: =IF(DTA!Z23="","",DTA!Z23) ->  | X163: =IF(DTA!AA23="","",DTA!AA23) ->  | Y163: =IF(DTA!AB23="","",DTA!AB23) ->  | Z163: =IF(DTA!AC23="","",DTA!AC23) ->  | AA163: =IF(DTA!AD23="","",DTA!AD23) ->  | AB163: =IF(DTA!AE23="","",DTA!AE23) ->  | AC163: =IF(DTA!AF23="","",DTA!AF23) ->  | AD163: =IF(DTA!AG23="","",DTA!AG23) ->  | AE163: =IF(DTA!AH23="","",DTA!AH23) ->  | AF163: =IF(DTA!AI23="","",DTA!AI23) ->  | AG163: =IF(DTA!AJ23="","",DTA!AJ23) ->  | AH163: =IF(DTA!AK23="","",DTA!AK23) ->  | AI163: =IF(DTA!AL23="","",DTA!AL23) ->  | AJ163: =IF(DTA!AM23="","",DTA!AM23) ->  | AK163: =IF(DTA!AN23="","",DTA!AN23) ->  | AL163: =IF(DTA!AO23="","",DTA!AO23) ->  | AM163: =IF(DTA!AP23="","",DTA!AP23) -> 
B164: Economía | C164: Comp. Esp. 1 | D164: Criterio Evaluación 1.1 | E164: =IF(ECO!H4="","",ECO!H4) ->  | F164: =IF(ECO!I4="","",ECO!I4) ->  | G164: =IF(ECO!J4="","",ECO!J4) ->  | H164: =IF(ECO!K4="","",ECO!K4) ->  | I164: =IF(ECO!L4="","",ECO!L4) ->  | J164: =IF(ECO!M4="","",ECO!M4) ->  | K164: =IF(ECO!N4="","",ECO!N4) ->  | L164: =IF(ECO!O4="","",ECO!O4) ->  | M164: =IF(ECO!P4="","",ECO!P4) ->  | N164: =IF(ECO!Q4="","",ECO!Q4) ->  | O164: =IF(ECO!R4="","",ECO!R4) ->  | P164: =IF(ECO!S4="","",ECO!S4) ->  | Q164: =IF(ECO!T4="","",ECO!T4) ->  | R164: =IF(ECO!U4="","",ECO!U4) ->  | S164: =IF(ECO!V4="","",ECO!V4) ->  | T164: =IF(ECO!W4="","",ECO!W4) ->  | U164: =IF(ECO!X4="","",ECO!X4) ->  | V164: =IF(ECO!Y4="","",ECO!Y4) ->  | W164: =IF(ECO!Z4="","",ECO!Z4) ->  | X164: =IF(ECO!AA4="","",ECO!AA4) ->  | Y164: =IF(ECO!AB4="","",ECO!AB4) ->  | Z164: =IF(ECO!AC4="","",ECO!AC4) ->  | AA164: =IF(ECO!AD4="","",ECO!AD4) ->  | AB164: =IF(ECO!AE4="","",ECO!AE4) ->  | AC164: =IF(ECO!AF4="","",ECO!AF4) ->  | AD164: =IF(ECO!AG4="","",ECO!AG4) ->  | AE164: =IF(ECO!AH4="","",ECO!AH4) ->  | AF164: =IF(ECO!AI4="","",ECO!AI4) ->  | AG164: =IF(ECO!AJ4="","",ECO!AJ4) ->  | AH164: =IF(ECO!AK4="","",ECO!AK4) ->  | AI164: =IF(ECO!AL4="","",ECO!AL4) ->  | AJ164: =IF(ECO!AM4="","",ECO!AM4) ->  | AK164: =IF(ECO!AN4="","",ECO!AN4) ->  | AL164: =IF(ECO!AO4="","",ECO!AO4) ->  | AM164: =IF(ECO!AP4="","",ECO!AP4) -> 
D165: Criterio Evaluación 1.2 | E165: =IF(ECO!H5="","",ECO!H5) ->  | F165: =IF(ECO!I5="","",ECO!I5) ->  | G165: =IF(ECO!J5="","",ECO!J5) ->  | H165: =IF(ECO!K5="","",ECO!K5) ->  | I165: =IF(ECO!L5="","",ECO!L5) ->  | J165: =IF(ECO!M5="","",ECO!M5) ->  | K165: =IF(ECO!N5="","",ECO!N5) ->  | L165: =IF(ECO!O5="","",ECO!O5) ->  | M165: =IF(ECO!P5="","",ECO!P5) ->  | N165: =IF(ECO!Q5="","",ECO!Q5) ->  | O165: =IF(ECO!R5="","",ECO!R5) ->  | P165: =IF(ECO!S5="","",ECO!S5) ->  | Q165: =IF(ECO!T5="","",ECO!T5) ->  | R165: =IF(ECO!U5="","",ECO!U5) ->  | S165: =IF(ECO!V5="","",ECO!V5) ->  | T165: =IF(ECO!W5="","",ECO!W5) ->  | U165: =IF(ECO!X5="","",ECO!X5) ->  | V165: =IF(ECO!Y5="","",ECO!Y5) ->  | W165: =IF(ECO!Z5="","",ECO!Z5) ->  | X165: =IF(ECO!AA5="","",ECO!AA5) ->  | Y165: =IF(ECO!AB5="","",ECO!AB5) ->  | Z165: =IF(ECO!AC5="","",ECO!AC5) ->  | AA165: =IF(ECO!AD5="","",ECO!AD5) ->  | AB165: =IF(ECO!AE5="","",ECO!AE5) ->  | AC165: =IF(ECO!AF5="","",ECO!AF5) ->  | AD165: =IF(ECO!AG5="","",ECO!AG5) ->  | AE165: =IF(ECO!AH5="","",ECO!AH5) ->  | AF165: =IF(ECO!AI5="","",ECO!AI5) ->  | AG165: =IF(ECO!AJ5="","",ECO!AJ5) ->  | AH165: =IF(ECO!AK5="","",ECO!AK5) ->  | AI165: =IF(ECO!AL5="","",ECO!AL5) ->  | AJ165: =IF(ECO!AM5="","",ECO!AM5) ->  | AK165: =IF(ECO!AN5="","",ECO!AN5) ->  | AL165: =IF(ECO!AO5="","",ECO!AO5) ->  | AM165: =IF(ECO!AP5="","",ECO!AP5) -> 
D166: Criterio Evaluación 1.3 | E166: =IF(ECO!H6="","",ECO!H6) ->  | F166: =IF(ECO!I6="","",ECO!I6) ->  | G166: =IF(ECO!J6="","",ECO!J6) ->  | H166: =IF(ECO!K6="","",ECO!K6) ->  | I166: =IF(ECO!L6="","",ECO!L6) ->  | J166: =IF(ECO!M6="","",ECO!M6) ->  | K166: =IF(ECO!N6="","",ECO!N6) ->  | L166: =IF(ECO!O6="","",ECO!O6) ->  | M166: =IF(ECO!P6="","",ECO!P6) ->  | N166: =IF(ECO!Q6="","",ECO!Q6) ->  | O166: =IF(ECO!R6="","",ECO!R6) ->  | P166: =IF(ECO!S6="","",ECO!S6) ->  | Q166: =IF(ECO!T6="","",ECO!T6) ->  | R166: =IF(ECO!U6="","",ECO!U6) ->  | S166: =IF(ECO!V6="","",ECO!V6) ->  | T166: =IF(ECO!W6="","",ECO!W6) ->  | U166: =IF(ECO!X6="","",ECO!X6) ->  | V166: =IF(ECO!Y6="","",ECO!Y6) ->  | W166: =IF(ECO!Z6="","",ECO!Z6) ->  | X166: =IF(ECO!AA6="","",ECO!AA6) ->  | Y166: =IF(ECO!AB6="","",ECO!AB6) ->  | Z166: =IF(ECO!AC6="","",ECO!AC6) ->  | AA166: =IF(ECO!AD6="","",ECO!AD6) ->  | AB166: =IF(ECO!AE6="","",ECO!AE6) ->  | AC166: =IF(ECO!AF6="","",ECO!AF6) ->  | AD166: =IF(ECO!AG6="","",ECO!AG6) ->  | AE166: =IF(ECO!AH6="","",ECO!AH6) ->  | AF166: =IF(ECO!AI6="","",ECO!AI6) ->  | AG166: =IF(ECO!AJ6="","",ECO!AJ6) ->  | AH166: =IF(ECO!AK6="","",ECO!AK6) ->  | AI166: =IF(ECO!AL6="","",ECO!AL6) ->  | AJ166: =IF(ECO!AM6="","",ECO!AM6) ->  | AK166: =IF(ECO!AN6="","",ECO!AN6) ->  | AL166: =IF(ECO!AO6="","",ECO!AO6) ->  | AM166: =IF(ECO!AP6="","",ECO!AP6) -> 
C167: Comp. Esp. 2 | D167: Criterio Evaluación 2.1 | E167: =IF(ECO!H7="","",ECO!H7) ->  | F167: =IF(ECO!I7="","",ECO!I7) ->  | G167: =IF(ECO!J7="","",ECO!J7) ->  | H167: =IF(ECO!K7="","",ECO!K7) ->  | I167: =IF(ECO!L7="","",ECO!L7) ->  | J167: =IF(ECO!M7="","",ECO!M7) ->  | K167: =IF(ECO!N7="","",ECO!N7) ->  | L167: =IF(ECO!O7="","",ECO!O7) ->  | M167: =IF(ECO!P7="","",ECO!P7) ->  | N167: =IF(ECO!Q7="","",ECO!Q7) ->  | O167: =IF(ECO!R7="","",ECO!R7) ->  | P167: =IF(ECO!S7="","",ECO!S7) ->  | Q167: =IF(ECO!T7="","",ECO!T7) ->  | R167: =IF(ECO!U7="","",ECO!U7) ->  | S167: =IF(ECO!V7="","",ECO!V7) ->  | T167: =IF(ECO!W7="","",ECO!W7) ->  | U167: =IF(ECO!X7="","",ECO!X7) ->  | V167: =IF(ECO!Y7="","",ECO!Y7) ->  | W167: =IF(ECO!Z7="","",ECO!Z7) ->  | X167: =IF(ECO!AA7="","",ECO!AA7) ->  | Y167: =IF(ECO!AB7="","",ECO!AB7) ->  | Z167: =IF(ECO!AC7="","",ECO!AC7) ->  | AA167: =IF(ECO!AD7="","",ECO!AD7) ->  | AB167: =IF(ECO!AE7="","",ECO!AE7) ->  | AC167: =IF(ECO!AF7="","",ECO!AF7) ->  | AD167: =IF(ECO!AG7="","",ECO!AG7) ->  | AE167: =IF(ECO!AH7="","",ECO!AH7) ->  | AF167: =IF(ECO!AI7="","",ECO!AI7) ->  | AG167: =IF(ECO!AJ7="","",ECO!AJ7) ->  | AH167: =IF(ECO!AK7="","",ECO!AK7) ->  | AI167: =IF(ECO!AL7="","",ECO!AL7) ->  | AJ167: =IF(ECO!AM7="","",ECO!AM7) ->  | AK167: =IF(ECO!AN7="","",ECO!AN7) ->  | AL167: =IF(ECO!AO7="","",ECO!AO7) ->  | AM167: =IF(ECO!AP7="","",ECO!AP7) -> 
D168: Criterio Evaluación 2.2 | E168: =IF(ECO!H8="","",ECO!H8) ->  | F168: =IF(ECO!I8="","",ECO!I8) ->  | G168: =IF(ECO!J8="","",ECO!J8) ->  | H168: =IF(ECO!K8="","",ECO!K8) ->  | I168: =IF(ECO!L8="","",ECO!L8) ->  | J168: =IF(ECO!M8="","",ECO!M8) ->  | K168: =IF(ECO!N8="","",ECO!N8) ->  | L168: =IF(ECO!O8="","",ECO!O8) ->  | M168: =IF(ECO!P8="","",ECO!P8) ->  | N168: =IF(ECO!Q8="","",ECO!Q8) ->  | O168: =IF(ECO!R8="","",ECO!R8) ->  | P168: =IF(ECO!S8="","",ECO!S8) ->  | Q168: =IF(ECO!T8="","",ECO!T8) ->  | R168: =IF(ECO!U8="","",ECO!U8) ->  | S168: =IF(ECO!V8="","",ECO!V8) ->  | T168: =IF(ECO!W8="","",ECO!W8) ->  | U168: =IF(ECO!X8="","",ECO!X8) ->  | V168: =IF(ECO!Y8="","",ECO!Y8) ->  | W168: =IF(ECO!Z8="","",ECO!Z8) ->  | X168: =IF(ECO!AA8="","",ECO!AA8) ->  | Y168: =IF(ECO!AB8="","",ECO!AB8) ->  | Z168: =IF(ECO!AC8="","",ECO!AC8) ->  | AA168: =IF(ECO!AD8="","",ECO!AD8) ->  | AB168: =IF(ECO!AE8="","",ECO!AE8) ->  | AC168: =IF(ECO!AF8="","",ECO!AF8) ->  | AD168: =IF(ECO!AG8="","",ECO!AG8) ->  | AE168: =IF(ECO!AH8="","",ECO!AH8) ->  | AF168: =IF(ECO!AI8="","",ECO!AI8) ->  | AG168: =IF(ECO!AJ8="","",ECO!AJ8) ->  | AH168: =IF(ECO!AK8="","",ECO!AK8) ->  | AI168: =IF(ECO!AL8="","",ECO!AL8) ->  | AJ168: =IF(ECO!AM8="","",ECO!AM8) ->  | AK168: =IF(ECO!AN8="","",ECO!AN8) ->  | AL168: =IF(ECO!AO8="","",ECO!AO8) ->  | AM168: =IF(ECO!AP8="","",ECO!AP8) -> 
D169: Criterio Evaluación 2.3 | E169: =IF(ECO!H9="","",ECO!H9) ->  | F169: =IF(ECO!I9="","",ECO!I9) ->  | G169: =IF(ECO!J9="","",ECO!J9) ->  | H169: =IF(ECO!K9="","",ECO!K9) ->  | I169: =IF(ECO!L9="","",ECO!L9) ->  | J169: =IF(ECO!M9="","",ECO!M9) ->  | K169: =IF(ECO!N9="","",ECO!N9) ->  | L169: =IF(ECO!O9="","",ECO!O9) ->  | M169: =IF(ECO!P9="","",ECO!P9) ->  | N169: =IF(ECO!Q9="","",ECO!Q9) ->  | O169: =IF(ECO!R9="","",ECO!R9) ->  | P169: =IF(ECO!S9="","",ECO!S9) ->  | Q169: =IF(ECO!T9="","",ECO!T9) ->  | R169: =IF(ECO!U9="","",ECO!U9) ->  | S169: =IF(ECO!V9="","",ECO!V9) ->  | T169: =IF(ECO!W9="","",ECO!W9) ->  | U169: =IF(ECO!X9="","",ECO!X9) ->  | V169: =IF(ECO!Y9="","",ECO!Y9) ->  | W169: =IF(ECO!Z9="","",ECO!Z9) ->  | X169: =IF(ECO!AA9="","",ECO!AA9) ->  | Y169: =IF(ECO!AB9="","",ECO!AB9) ->  | Z169: =IF(ECO!AC9="","",ECO!AC9) ->  | AA169: =IF(ECO!AD9="","",ECO!AD9) ->  | AB169: =IF(ECO!AE9="","",ECO!AE9) ->  | AC169: =IF(ECO!AF9="","",ECO!AF9) ->  | AD169: =IF(ECO!AG9="","",ECO!AG9) ->  | AE169: =IF(ECO!AH9="","",ECO!AH9) ->  | AF169: =IF(ECO!AI9="","",ECO!AI9) ->  | AG169: =IF(ECO!AJ9="","",ECO!AJ9) ->  | AH169: =IF(ECO!AK9="","",ECO!AK9) ->  | AI169: =IF(ECO!AL9="","",ECO!AL9) ->  | AJ169: =IF(ECO!AM9="","",ECO!AM9) ->  | AK169: =IF(ECO!AN9="","",ECO!AN9) ->  | AL169: =IF(ECO!AO9="","",ECO!AO9) ->  | AM169: =IF(ECO!AP9="","",ECO!AP9) -> 
C170: Comp. Esp. 3 | D170: Criterio Evaluación 3.1 | E170: =IF(ECO!H10="","",ECO!H10) ->  | F170: =IF(ECO!I10="","",ECO!I10) ->  | G170: =IF(ECO!J10="","",ECO!J10) ->  | H170: =IF(ECO!K10="","",ECO!K10) ->  | I170: =IF(ECO!L10="","",ECO!L10) ->  | J170: =IF(ECO!M10="","",ECO!M10) ->  | K170: =IF(ECO!N10="","",ECO!N10) ->  | L170: =IF(ECO!O10="","",ECO!O10) ->  | M170: =IF(ECO!P10="","",ECO!P10) ->  | N170: =IF(ECO!Q10="","",ECO!Q10) ->  | O170: =IF(ECO!R10="","",ECO!R10) ->  | P170: =IF(ECO!S10="","",ECO!S10) ->  | Q170: =IF(ECO!T10="","",ECO!T10) ->  | R170: =IF(ECO!U10="","",ECO!U10) ->  | S170: =IF(ECO!V10="","",ECO!V10) ->  | T170: =IF(ECO!W10="","",ECO!W10) ->  | U170: =IF(ECO!X10="","",ECO!X10) ->  | V170: =IF(ECO!Y10="","",ECO!Y10) ->  | W170: =IF(ECO!Z10="","",ECO!Z10) ->  | X170: =IF(ECO!AA10="","",ECO!AA10) ->  | Y170: =IF(ECO!AB10="","",ECO!AB10) ->  | Z170: =IF(ECO!AC10="","",ECO!AC10) ->  | AA170: =IF(ECO!AD10="","",ECO!AD10) ->  | AB170: =IF(ECO!AE10="","",ECO!AE10) ->  | AC170: =IF(ECO!AF10="","",ECO!AF10) ->  | AD170: =IF(ECO!AG10="","",ECO!AG10) ->  | AE170: =IF(ECO!AH10="","",ECO!AH10) ->  | AF170: =IF(ECO!AI10="","",ECO!AI10) ->  | AG170: =IF(ECO!AJ10="","",ECO!AJ10) ->  | AH170: =IF(ECO!AK10="","",ECO!AK10) ->  | AI170: =IF(ECO!AL10="","",ECO!AL10) ->  | AJ170: =IF(ECO!AM10="","",ECO!AM10) ->  | AK170: =IF(ECO!AN10="","",ECO!AN10) ->  | AL170: =IF(ECO!AO10="","",ECO!AO10) ->  | AM170: =IF(ECO!AP10="","",ECO!AP10) -> 
D171: Criterio Evaluación 3.2 | E171: =IF(ECO!H11="","",ECO!H11) ->  | F171: =IF(ECO!I11="","",ECO!I11) ->  | G171: =IF(ECO!J11="","",ECO!J11) ->  | H171: =IF(ECO!K11="","",ECO!K11) ->  | I171: =IF(ECO!L11="","",ECO!L11) ->  | J171: =IF(ECO!M11="","",ECO!M11) ->  | K171: =IF(ECO!N11="","",ECO!N11) ->  | L171: =IF(ECO!O11="","",ECO!O11) ->  | M171: =IF(ECO!P11="","",ECO!P11) ->  | N171: =IF(ECO!Q11="","",ECO!Q11) ->  | O171: =IF(ECO!R11="","",ECO!R11) ->  | P171: =IF(ECO!S11="","",ECO!S11) ->  | Q171: =IF(ECO!T11="","",ECO!T11) ->  | R171: =IF(ECO!U11="","",ECO!U11) ->  | S171: =IF(ECO!V11="","",ECO!V11) ->  | T171: =IF(ECO!W11="","",ECO!W11) ->  | U171: =IF(ECO!X11="","",ECO!X11) ->  | V171: =IF(ECO!Y11="","",ECO!Y11) ->  | W171: =IF(ECO!Z11="","",ECO!Z11) ->  | X171: =IF(ECO!AA11="","",ECO!AA11) ->  | Y171: =IF(ECO!AB11="","",ECO!AB11) ->  | Z171: =IF(ECO!AC11="","",ECO!AC11) ->  | AA171: =IF(ECO!AD11="","",ECO!AD11) ->  | AB171: =IF(ECO!AE11="","",ECO!AE11) ->  | AC171: =IF(ECO!AF11="","",ECO!AF11) ->  | AD171: =IF(ECO!AG11="","",ECO!AG11) ->  | AE171: =IF(ECO!AH11="","",ECO!AH11) ->  | AF171: =IF(ECO!AI11="","",ECO!AI11) ->  | AG171: =IF(ECO!AJ11="","",ECO!AJ11) ->  | AH171: =IF(ECO!AK11="","",ECO!AK11) ->  | AI171: =IF(ECO!AL11="","",ECO!AL11) ->  | AJ171: =IF(ECO!AM11="","",ECO!AM11) ->  | AK171: =IF(ECO!AN11="","",ECO!AN11) ->  | AL171: =IF(ECO!AO11="","",ECO!AO11) ->  | AM171: =IF(ECO!AP11="","",ECO!AP11) -> 
C172: Comp. Esp. 4 | D172: Criterio Evaluación 4.1 | E172: =IF(ECO!H12="","",ECO!H12) ->  | F172: =IF(ECO!I12="","",ECO!I12) ->  | G172: =IF(ECO!J12="","",ECO!J12) ->  | H172: =IF(ECO!K12="","",ECO!K12) ->  | I172: =IF(ECO!L12="","",ECO!L12) ->  | J172: =IF(ECO!M12="","",ECO!M12) ->  | K172: =IF(ECO!N12="","",ECO!N12) ->  | L172: =IF(ECO!O12="","",ECO!O12) ->  | M172: =IF(ECO!P12="","",ECO!P12) ->  | N172: =IF(ECO!Q12="","",ECO!Q12) ->  | O172: =IF(ECO!R12="","",ECO!R12) ->  | P172: =IF(ECO!S12="","",ECO!S12) ->  | Q172: =IF(ECO!T12="","",ECO!T12) ->  | R172: =IF(ECO!U12="","",ECO!U12) ->  | S172: =IF(ECO!V12="","",ECO!V12) ->  | T172: =IF(ECO!W12="","",ECO!W12) ->  | U172: =IF(ECO!X12="","",ECO!X12) ->  | V172: =IF(ECO!Y12="","",ECO!Y12) ->  | W172: =IF(ECO!Z12="","",ECO!Z12) ->  | X172: =IF(ECO!AA12="","",ECO!AA12) ->  | Y172: =IF(ECO!AB12="","",ECO!AB12) ->  | Z172: =IF(ECO!AC12="","",ECO!AC12) ->  | AA172: =IF(ECO!AD12="","",ECO!AD12) ->  | AB172: =IF(ECO!AE12="","",ECO!AE12) ->  | AC172: =IF(ECO!AF12="","",ECO!AF12) ->  | AD172: =IF(ECO!AG12="","",ECO!AG12) ->  | AE172: =IF(ECO!AH12="","",ECO!AH12) ->  | AF172: =IF(ECO!AI12="","",ECO!AI12) ->  | AG172: =IF(ECO!AJ12="","",ECO!AJ12) ->  | AH172: =IF(ECO!AK12="","",ECO!AK12) ->  | AI172: =IF(ECO!AL12="","",ECO!AL12) ->  | AJ172: =IF(ECO!AM12="","",ECO!AM12) ->  | AK172: =IF(ECO!AN12="","",ECO!AN12) ->  | AL172: =IF(ECO!AO12="","",ECO!AO12) ->  | AM172: =IF(ECO!AP12="","",ECO!AP12) -> 
D173: Criterio Evaluación 4.2 | E173: =IF(ECO!H13="","",ECO!H13) ->  | F173: =IF(ECO!I13="","",ECO!I13) ->  | G173: =IF(ECO!J13="","",ECO!J13) ->  | H173: =IF(ECO!K13="","",ECO!K13) ->  | I173: =IF(ECO!L13="","",ECO!L13) ->  | J173: =IF(ECO!M13="","",ECO!M13) ->  | K173: =IF(ECO!N13="","",ECO!N13) ->  | L173: =IF(ECO!O13="","",ECO!O13) ->  | M173: =IF(ECO!P13="","",ECO!P13) ->  | N173: =IF(ECO!Q13="","",ECO!Q13) ->  | O173: =IF(ECO!R13="","",ECO!R13) ->  | P173: =IF(ECO!S13="","",ECO!S13) ->  | Q173: =IF(ECO!T13="","",ECO!T13) ->  | R173: =IF(ECO!U13="","",ECO!U13) ->  | S173: =IF(ECO!V13="","",ECO!V13) ->  | T173: =IF(ECO!W13="","",ECO!W13) ->  | U173: =IF(ECO!X13="","",ECO!X13) ->  | V173: =IF(ECO!Y13="","",ECO!Y13) ->  | W173: =IF(ECO!Z13="","",ECO!Z13) ->  | X173: =IF(ECO!AA13="","",ECO!AA13) ->  | Y173: =IF(ECO!AB13="","",ECO!AB13) ->  | Z173: =IF(ECO!AC13="","",ECO!AC13) ->  | AA173: =IF(ECO!AD13="","",ECO!AD13) ->  | AB173: =IF(ECO!AE13="","",ECO!AE13) ->  | AC173: =IF(ECO!AF13="","",ECO!AF13) ->  | AD173: =IF(ECO!AG13="","",ECO!AG13) ->  | AE173: =IF(ECO!AH13="","",ECO!AH13) ->  | AF173: =IF(ECO!AI13="","",ECO!AI13) ->  | AG173: =IF(ECO!AJ13="","",ECO!AJ13) ->  | AH173: =IF(ECO!AK13="","",ECO!AK13) ->  | AI173: =IF(ECO!AL13="","",ECO!AL13) ->  | AJ173: =IF(ECO!AM13="","",ECO!AM13) ->  | AK173: =IF(ECO!AN13="","",ECO!AN13) ->  | AL173: =IF(ECO!AO13="","",ECO!AO13) ->  | AM173: =IF(ECO!AP13="","",ECO!AP13) -> 
D174: Criterio Evaluación 4.3 | E174: =IF(ECO!H14="","",ECO!H14) ->  | F174: =IF(ECO!I14="","",ECO!I14) ->  | G174: =IF(ECO!J14="","",ECO!J14) ->  | H174: =IF(ECO!K14="","",ECO!K14) ->  | I174: =IF(ECO!L14="","",ECO!L14) ->  | J174: =IF(ECO!M14="","",ECO!M14) ->  | K174: =IF(ECO!N14="","",ECO!N14) ->  | L174: =IF(ECO!O14="","",ECO!O14) ->  | M174: =IF(ECO!P14="","",ECO!P14) ->  | N174: =IF(ECO!Q14="","",ECO!Q14) ->  | O174: =IF(ECO!R14="","",ECO!R14) ->  | P174: =IF(ECO!S14="","",ECO!S14) ->  | Q174: =IF(ECO!T14="","",ECO!T14) ->  | R174: =IF(ECO!U14="","",ECO!U14) ->  | S174: =IF(ECO!V14="","",ECO!V14) ->  | T174: =IF(ECO!W14="","",ECO!W14) ->  | U174: =IF(ECO!X14="","",ECO!X14) ->  | V174: =IF(ECO!Y14="","",ECO!Y14) ->  | W174: =IF(ECO!Z14="","",ECO!Z14) ->  | X174: =IF(ECO!AA14="","",ECO!AA14) ->  | Y174: =IF(ECO!AB14="","",ECO!AB14) ->  | Z174: =IF(ECO!AC14="","",ECO!AC14) ->  | AA174: =IF(ECO!AD14="","",ECO!AD14) ->  | AB174: =IF(ECO!AE14="","",ECO!AE14) ->  | AC174: =IF(ECO!AF14="","",ECO!AF14) ->  | AD174: =IF(ECO!AG14="","",ECO!AG14) ->  | AE174: =IF(ECO!AH14="","",ECO!AH14) ->  | AF174: =IF(ECO!AI14="","",ECO!AI14) ->  | AG174: =IF(ECO!AJ14="","",ECO!AJ14) ->  | AH174: =IF(ECO!AK14="","",ECO!AK14) ->  | AI174: =IF(ECO!AL14="","",ECO!AL14) ->  | AJ174: =IF(ECO!AM14="","",ECO!AM14) ->  | AK174: =IF(ECO!AN14="","",ECO!AN14) ->  | AL174: =IF(ECO!AO14="","",ECO!AO14) ->  | AM174: =IF(ECO!AP14="","",ECO!AP14) -> 
C175: Comp. Esp. 5 | D175: Criterio Evaluación 5.1 | E175: =IF(ECO!H15="","",ECO!H15) ->  | F175: =IF(ECO!I15="","",ECO!I15) ->  | G175: =IF(ECO!J15="","",ECO!J15) ->  | H175: =IF(ECO!K15="","",ECO!K15) ->  | I175: =IF(ECO!L15="","",ECO!L15) ->  | J175: =IF(ECO!M15="","",ECO!M15) ->  | K175: =IF(ECO!N15="","",ECO!N15) ->  | L175: =IF(ECO!O15="","",ECO!O15) ->  | M175: =IF(ECO!P15="","",ECO!P15) ->  | N175: =IF(ECO!Q15="","",ECO!Q15) ->  | O175: =IF(ECO!R15="","",ECO!R15) ->  | P175: =IF(ECO!S15="","",ECO!S15) ->  | Q175: =IF(ECO!T15="","",ECO!T15) ->  | R175: =IF(ECO!U15="","",ECO!U15) ->  | S175: =IF(ECO!V15="","",ECO!V15) ->  | T175: =IF(ECO!W15="","",ECO!W15) ->  | U175: =IF(ECO!X15="","",ECO!X15) ->  | V175: =IF(ECO!Y15="","",ECO!Y15) ->  | W175: =IF(ECO!Z15="","",ECO!Z15) ->  | X175: =IF(ECO!AA15="","",ECO!AA15) ->  | Y175: =IF(ECO!AB15="","",ECO!AB15) ->  | Z175: =IF(ECO!AC15="","",ECO!AC15) ->  | AA175: =IF(ECO!AD15="","",ECO!AD15) ->  | AB175: =IF(ECO!AE15="","",ECO!AE15) ->  | AC175: =IF(ECO!AF15="","",ECO!AF15) ->  | AD175: =IF(ECO!AG15="","",ECO!AG15) ->  | AE175: =IF(ECO!AH15="","",ECO!AH15) ->  | AF175: =IF(ECO!AI15="","",ECO!AI15) ->  | AG175: =IF(ECO!AJ15="","",ECO!AJ15) ->  | AH175: =IF(ECO!AK15="","",ECO!AK15) ->  | AI175: =IF(ECO!AL15="","",ECO!AL15) ->  | AJ175: =IF(ECO!AM15="","",ECO!AM15) ->  | AK175: =IF(ECO!AN15="","",ECO!AN15) ->  | AL175: =IF(ECO!AO15="","",ECO!AO15) ->  | AM175: =IF(ECO!AP15="","",ECO!AP15) -> 
D176: Criterio Evaluación 5.2 | E176: =IF(ECO!H16="","",ECO!H16) ->  | F176: =IF(ECO!I16="","",ECO!I16) ->  | G176: =IF(ECO!J16="","",ECO!J16) ->  | H176: =IF(ECO!K16="","",ECO!K16) ->  | I176: =IF(ECO!L16="","",ECO!L16) ->  | J176: =IF(ECO!M16="","",ECO!M16) ->  | K176: =IF(ECO!N16="","",ECO!N16) ->  | L176: =IF(ECO!O16="","",ECO!O16) ->  | M176: =IF(ECO!P16="","",ECO!P16) ->  | N176: =IF(ECO!Q16="","",ECO!Q16) ->  | O176: =IF(ECO!R16="","",ECO!R16) ->  | P176: =IF(ECO!S16="","",ECO!S16) ->  | Q176: =IF(ECO!T16="","",ECO!T16) ->  | R176: =IF(ECO!U16="","",ECO!U16) ->  | S176: =IF(ECO!V16="","",ECO!V16) ->  | T176: =IF(ECO!W16="","",ECO!W16) ->  | U176: =IF(ECO!X16="","",ECO!X16) ->  | V176: =IF(ECO!Y16="","",ECO!Y16) ->  | W176: =IF(ECO!Z16="","",ECO!Z16) ->  | X176: =IF(ECO!AA16="","",ECO!AA16) ->  | Y176: =IF(ECO!AB16="","",ECO!AB16) ->  | Z176: =IF(ECO!AC16="","",ECO!AC16) ->  | AA176: =IF(ECO!AD16="","",ECO!AD16) ->  | AB176: =IF(ECO!AE16="","",ECO!AE16) ->  | AC176: =IF(ECO!AF16="","",ECO!AF16) ->  | AD176: =IF(ECO!AG16="","",ECO!AG16) ->  | AE176: =IF(ECO!AH16="","",ECO!AH16) ->  | AF176: =IF(ECO!AI16="","",ECO!AI16) ->  | AG176: =IF(ECO!AJ16="","",ECO!AJ16) ->  | AH176: =IF(ECO!AK16="","",ECO!AK16) ->  | AI176: =IF(ECO!AL16="","",ECO!AL16) ->  | AJ176: =IF(ECO!AM16="","",ECO!AM16) ->  | AK176: =IF(ECO!AN16="","",ECO!AN16) ->  | AL176: =IF(ECO!AO16="","",ECO!AO16) ->  | AM176: =IF(ECO!AP16="","",ECO!AP16) -> 
C177: Comp. Esp. 6 | D177: Criterio Evaluación 6.1 | E177: =IF(ECO!H17="","",ECO!H17) ->  | F177: =IF(ECO!I17="","",ECO!I17) ->  | G177: =IF(ECO!J17="","",ECO!J17) ->  | H177: =IF(ECO!K17="","",ECO!K17) ->  | I177: =IF(ECO!L17="","",ECO!L17) ->  | J177: =IF(ECO!M17="","",ECO!M17) ->  | K177: =IF(ECO!N17="","",ECO!N17) ->  | L177: =IF(ECO!O17="","",ECO!O17) ->  | M177: =IF(ECO!P17="","",ECO!P17) ->  | N177: =IF(ECO!Q17="","",ECO!Q17) ->  | O177: =IF(ECO!R17="","",ECO!R17) ->  | P177: =IF(ECO!S17="","",ECO!S17) ->  | Q177: =IF(ECO!T17="","",ECO!T17) ->  | R177: =IF(ECO!U17="","",ECO!U17) ->  | S177: =IF(ECO!V17="","",ECO!V17) ->  | T177: =IF(ECO!W17="","",ECO!W17) ->  | U177: =IF(ECO!X17="","",ECO!X17) ->  | V177: =IF(ECO!Y17="","",ECO!Y17) ->  | W177: =IF(ECO!Z17="","",ECO!Z17) ->  | X177: =IF(ECO!AA17="","",ECO!AA17) ->  | Y177: =IF(ECO!AB17="","",ECO!AB17) ->  | Z177: =IF(ECO!AC17="","",ECO!AC17) ->  | AA177: =IF(ECO!AD17="","",ECO!AD17) ->  | AB177: =IF(ECO!AE17="","",ECO!AE17) ->  | AC177: =IF(ECO!AF17="","",ECO!AF17) ->  | AD177: =IF(ECO!AG17="","",ECO!AG17) ->  | AE177: =IF(ECO!AH17="","",ECO!AH17) ->  | AF177: =IF(ECO!AI17="","",ECO!AI17) ->  | AG177: =IF(ECO!AJ17="","",ECO!AJ17) ->  | AH177: =IF(ECO!AK17="","",ECO!AK17) ->  | AI177: =IF(ECO!AL17="","",ECO!AL17) ->  | AJ177: =IF(ECO!AM17="","",ECO!AM17) ->  | AK177: =IF(ECO!AN17="","",ECO!AN17) ->  | AL177: =IF(ECO!AO17="","",ECO!AO17) ->  | AM177: =IF(ECO!AP17="","",ECO!AP17) -> 
B178: Economía, Emprendimiento y Actividad Empresarial | C178: Comp. Esp. 1 | D178: Criterio Evaluación 1.1 | E178: =IF(EEYAE!H4="","",EEYAE!H4) ->  | F178: =IF(EEYAE!I4="","",EEYAE!I4) ->  | G178: =IF(EEYAE!J4="","",EEYAE!J4) ->  | H178: =IF(EEYAE!K4="","",EEYAE!K4) ->  | I178: =IF(EEYAE!L4="","",EEYAE!L4) ->  | J178: =IF(EEYAE!M4="","",EEYAE!M4) ->  | K178: =IF(EEYAE!N4="","",EEYAE!N4) ->  | L178: =IF(EEYAE!O4="","",EEYAE!O4) ->  | M178: =IF(EEYAE!P4="","",EEYAE!P4) ->  | N178: =IF(EEYAE!Q4="","",EEYAE!Q4) ->  | O178: =IF(EEYAE!R4="","",EEYAE!R4) ->  | P178: =IF(EEYAE!S4="","",EEYAE!S4) ->  | Q178: =IF(EEYAE!T4="","",EEYAE!T4) ->  | R178: =IF(EEYAE!U4="","",EEYAE!U4) ->  | S178: =IF(EEYAE!V4="","",EEYAE!V4) ->  | T178: =IF(EEYAE!W4="","",EEYAE!W4) ->  | U178: =IF(EEYAE!X4="","",EEYAE!X4) ->  | V178: =IF(EEYAE!Y4="","",EEYAE!Y4) ->  | W178: =IF(EEYAE!Z4="","",EEYAE!Z4) ->  | X178: =IF(EEYAE!AA4="","",EEYAE!AA4) ->  | Y178: =IF(EEYAE!AB4="","",EEYAE!AB4) ->  | Z178: =IF(EEYAE!AC4="","",EEYAE!AC4) ->  | AA178: =IF(EEYAE!AD4="","",EEYAE!AD4) ->  | AB178: =IF(EEYAE!AE4="","",EEYAE!AE4) ->  | AC178: =IF(EEYAE!AF4="","",EEYAE!AF4) ->  | AD178: =IF(EEYAE!AG4="","",EEYAE!AG4) ->  | AE178: =IF(EEYAE!AH4="","",EEYAE!AH4) ->  | AF178: =IF(EEYAE!AI4="","",EEYAE!AI4) ->  | AG178: =IF(EEYAE!AJ4="","",EEYAE!AJ4) ->  | AH178: =IF(EEYAE!AK4="","",EEYAE!AK4) ->  | AI178: =IF(EEYAE!AL4="","",EEYAE!AL4) ->  | AJ178: =IF(EEYAE!AM4="","",EEYAE!AM4) ->  | AK178: =IF(EEYAE!AN4="","",EEYAE!AN4) ->  | AL178: =IF(EEYAE!AO4="","",EEYAE!AO4) ->  | AM178: =IF(EEYAE!AP4="","",EEYAE!AP4) -> 
C179: Comp. Esp. 2 | D179: Criterio Evaluación 2.1 | E179: =IF(EEYAE!H5="","",EEYAE!H5) ->  | F179: =IF(EEYAE!I5="","",EEYAE!I5) ->  | G179: =IF(EEYAE!J5="","",EEYAE!J5) ->  | H179: =IF(EEYAE!K5="","",EEYAE!K5) ->  | I179: =IF(EEYAE!L5="","",EEYAE!L5) ->  | J179: =IF(EEYAE!M5="","",EEYAE!M5) ->  | K179: =IF(EEYAE!N5="","",EEYAE!N5) ->  | L179: =IF(EEYAE!O5="","",EEYAE!O5) ->  | M179: =IF(EEYAE!P5="","",EEYAE!P5) ->  | N179: =IF(EEYAE!Q5="","",EEYAE!Q5) ->  | O179: =IF(EEYAE!R5="","",EEYAE!R5) ->  | P179: =IF(EEYAE!S5="","",EEYAE!S5) ->  | Q179: =IF(EEYAE!T5="","",EEYAE!T5) ->  | R179: =IF(EEYAE!U5="","",EEYAE!U5) ->  | S179: =IF(EEYAE!V5="","",EEYAE!V5) ->  | T179: =IF(EEYAE!W5="","",EEYAE!W5) ->  | U179: =IF(EEYAE!X5="","",EEYAE!X5) ->  | V179: =IF(EEYAE!Y5="","",EEYAE!Y5) ->  | W179: =IF(EEYAE!Z5="","",EEYAE!Z5) ->  | X179: =IF(EEYAE!AA5="","",EEYAE!AA5) ->  | Y179: =IF(EEYAE!AB5="","",EEYAE!AB5) ->  | Z179: =IF(EEYAE!AC5="","",EEYAE!AC5) ->  | AA179: =IF(EEYAE!AD5="","",EEYAE!AD5) ->  | AB179: =IF(EEYAE!AE5="","",EEYAE!AE5) ->  | AC179: =IF(EEYAE!AF5="","",EEYAE!AF5) ->  | AD179: =IF(EEYAE!AG5="","",EEYAE!AG5) ->  | AE179: =IF(EEYAE!AH5="","",EEYAE!AH5) ->  | AF179: =IF(EEYAE!AI5="","",EEYAE!AI5) ->  | AG179: =IF(EEYAE!AJ5="","",EEYAE!AJ5) ->  | AH179: =IF(EEYAE!AK5="","",EEYAE!AK5) ->  | AI179: =IF(EEYAE!AL5="","",EEYAE!AL5) ->  | AJ179: =IF(EEYAE!AM5="","",EEYAE!AM5) ->  | AK179: =IF(EEYAE!AN5="","",EEYAE!AN5) ->  | AL179: =IF(EEYAE!AO5="","",EEYAE!AO5) ->  | AM179: =IF(EEYAE!AP5="","",EEYAE!AP5) -> 
C180: Comp. Esp. 3 | D180: Criterio Evaluación 3.1 | E180: =IF(EEYAE!H6="","",EEYAE!H6) ->  | F180: =IF(EEYAE!I6="","",EEYAE!I6) ->  | G180: =IF(EEYAE!J6="","",EEYAE!J6) ->  | H180: =IF(EEYAE!K6="","",EEYAE!K6) ->  | I180: =IF(EEYAE!L6="","",EEYAE!L6) ->  | J180: =IF(EEYAE!M6="","",EEYAE!M6) ->  | K180: =IF(EEYAE!N6="","",EEYAE!N6) ->  | L180: =IF(EEYAE!O6="","",EEYAE!O6) ->  | M180: =IF(EEYAE!P6="","",EEYAE!P6) ->  | N180: =IF(EEYAE!Q6="","",EEYAE!Q6) ->  | O180: =IF(EEYAE!R6="","",EEYAE!R6) ->  | P180: =IF(EEYAE!S6="","",EEYAE!S6) ->  | Q180: =IF(EEYAE!T6="","",EEYAE!T6) ->  | R180: =IF(EEYAE!U6="","",EEYAE!U6) ->  | S180: =IF(EEYAE!V6="","",EEYAE!V6) ->  | T180: =IF(EEYAE!W6="","",EEYAE!W6) ->  | U180: =IF(EEYAE!X6="","",EEYAE!X6) ->  | V180: =IF(EEYAE!Y6="","",EEYAE!Y6) ->  | W180: =IF(EEYAE!Z6="","",EEYAE!Z6) ->  | X180: =IF(EEYAE!AA6="","",EEYAE!AA6) ->  | Y180: =IF(EEYAE!AB6="","",EEYAE!AB6) ->  | Z180: =IF(EEYAE!AC6="","",EEYAE!AC6) ->  | AA180: =IF(EEYAE!AD6="","",EEYAE!AD6) ->  | AB180: =IF(EEYAE!AE6="","",EEYAE!AE6) ->  | AC180: =IF(EEYAE!AF6="","",EEYAE!AF6) ->  | AD180: =IF(EEYAE!AG6="","",EEYAE!AG6) ->  | AE180: =IF(EEYAE!AH6="","",EEYAE!AH6) ->  | AF180: =IF(EEYAE!AI6="","",EEYAE!AI6) ->  | AG180: =IF(EEYAE!AJ6="","",EEYAE!AJ6) ->  | AH180: =IF(EEYAE!AK6="","",EEYAE!AK6) ->  | AI180: =IF(EEYAE!AL6="","",EEYAE!AL6) ->  | AJ180: =IF(EEYAE!AM6="","",EEYAE!AM6) ->  | AK180: =IF(EEYAE!AN6="","",EEYAE!AN6) ->  | AL180: =IF(EEYAE!AO6="","",EEYAE!AO6) ->  | AM180: =IF(EEYAE!AP6="","",EEYAE!AP6) -> 
D181: Criterio Evaluación 3.2 | E181: =IF(EEYAE!H7="","",EEYAE!H7) ->  | F181: =IF(EEYAE!I7="","",EEYAE!I7) ->  | G181: =IF(EEYAE!J7="","",EEYAE!J7) ->  | H181: =IF(EEYAE!K7="","",EEYAE!K7) ->  | I181: =IF(EEYAE!L7="","",EEYAE!L7) ->  | J181: =IF(EEYAE!M7="","",EEYAE!M7) ->  | K181: =IF(EEYAE!N7="","",EEYAE!N7) ->  | L181: =IF(EEYAE!O7="","",EEYAE!O7) ->  | M181: =IF(EEYAE!P7="","",EEYAE!P7) ->  | N181: =IF(EEYAE!Q7="","",EEYAE!Q7) ->  | O181: =IF(EEYAE!R7="","",EEYAE!R7) ->  | P181: =IF(EEYAE!S7="","",EEYAE!S7) ->  | Q181: =IF(EEYAE!T7="","",EEYAE!T7) ->  | R181: =IF(EEYAE!U7="","",EEYAE!U7) ->  | S181: =IF(EEYAE!V7="","",EEYAE!V7) ->  | T181: =IF(EEYAE!W7="","",EEYAE!W7) ->  | U181: =IF(EEYAE!X7="","",EEYAE!X7) ->  | V181: =IF(EEYAE!Y7="","",EEYAE!Y7) ->  | W181: =IF(EEYAE!Z7="","",EEYAE!Z7) ->  | X181: =IF(EEYAE!AA7="","",EEYAE!AA7) ->  | Y181: =IF(EEYAE!AB7="","",EEYAE!AB7) ->  | Z181: =IF(EEYAE!AC7="","",EEYAE!AC7) ->  | AA181: =IF(EEYAE!AD7="","",EEYAE!AD7) ->  | AB181: =IF(EEYAE!AE7="","",EEYAE!AE7) ->  | AC181: =IF(EEYAE!AF7="","",EEYAE!AF7) ->  | AD181: =IF(EEYAE!AG7="","",EEYAE!AG7) ->  | AE181: =IF(EEYAE!AH7="","",EEYAE!AH7) ->  | AF181: =IF(EEYAE!AI7="","",EEYAE!AI7) ->  | AG181: =IF(EEYAE!AJ7="","",EEYAE!AJ7) ->  | AH181: =IF(EEYAE!AK7="","",EEYAE!AK7) ->  | AI181: =IF(EEYAE!AL7="","",EEYAE!AL7) ->  | AJ181: =IF(EEYAE!AM7="","",EEYAE!AM7) ->  | AK181: =IF(EEYAE!AN7="","",EEYAE!AN7) ->  | AL181: =IF(EEYAE!AO7="","",EEYAE!AO7) ->  | AM181: =IF(EEYAE!AP7="","",EEYAE!AP7) -> 
C182: Comp. Esp. 4 | D182: Criterio Evaluación 4.1 | E182: =IF(EEYAE!H8="","",EEYAE!H8) ->  | F182: =IF(EEYAE!I8="","",EEYAE!I8) ->  | G182: =IF(EEYAE!J8="","",EEYAE!J8) ->  | H182: =IF(EEYAE!K8="","",EEYAE!K8) ->  | I182: =IF(EEYAE!L8="","",EEYAE!L8) ->  | J182: =IF(EEYAE!M8="","",EEYAE!M8) ->  | K182: =IF(EEYAE!N8="","",EEYAE!N8) ->  | L182: =IF(EEYAE!O8="","",EEYAE!O8) ->  | M182: =IF(EEYAE!P8="","",EEYAE!P8) ->  | N182: =IF(EEYAE!Q8="","",EEYAE!Q8) ->  | O182: =IF(EEYAE!R8="","",EEYAE!R8) ->  | P182: =IF(EEYAE!S8="","",EEYAE!S8) ->  | Q182: =IF(EEYAE!T8="","",EEYAE!T8) ->  | R182: =IF(EEYAE!U8="","",EEYAE!U8) ->  | S182: =IF(EEYAE!V8="","",EEYAE!V8) ->  | T182: =IF(EEYAE!W8="","",EEYAE!W8) ->  | U182: =IF(EEYAE!X8="","",EEYAE!X8) ->  | V182: =IF(EEYAE!Y8="","",EEYAE!Y8) ->  | W182: =IF(EEYAE!Z8="","",EEYAE!Z8) ->  | X182: =IF(EEYAE!AA8="","",EEYAE!AA8) ->  | Y182: =IF(EEYAE!AB8="","",EEYAE!AB8) ->  | Z182: =IF(EEYAE!AC8="","",EEYAE!AC8) ->  | AA182: =IF(EEYAE!AD8="","",EEYAE!AD8) ->  | AB182: =IF(EEYAE!AE8="","",EEYAE!AE8) ->  | AC182: =IF(EEYAE!AF8="","",EEYAE!AF8) ->  | AD182: =IF(EEYAE!AG8="","",EEYAE!AG8) ->  | AE182: =IF(EEYAE!AH8="","",EEYAE!AH8) ->  | AF182: =IF(EEYAE!AI8="","",EEYAE!AI8) ->  | AG182: =IF(EEYAE!AJ8="","",EEYAE!AJ8) ->  | AH182: =IF(EEYAE!AK8="","",EEYAE!AK8) ->  | AI182: =IF(EEYAE!AL8="","",EEYAE!AL8) ->  | AJ182: =IF(EEYAE!AM8="","",EEYAE!AM8) ->  | AK182: =IF(EEYAE!AN8="","",EEYAE!AN8) ->  | AL182: =IF(EEYAE!AO8="","",EEYAE!AO8) ->  | AM182: =IF(EEYAE!AP8="","",EEYAE!AP8) -> 
D183: Criterio Evaluación 4.2 | E183: =IF(EEYAE!H9="","",EEYAE!H9) ->  | F183: =IF(EEYAE!I9="","",EEYAE!I9) ->  | G183: =IF(EEYAE!J9="","",EEYAE!J9) ->  | H183: =IF(EEYAE!K9="","",EEYAE!K9) ->  | I183: =IF(EEYAE!L9="","",EEYAE!L9) ->  | J183: =IF(EEYAE!M9="","",EEYAE!M9) ->  | K183: =IF(EEYAE!N9="","",EEYAE!N9) ->  | L183: =IF(EEYAE!O9="","",EEYAE!O9) ->  | M183: =IF(EEYAE!P9="","",EEYAE!P9) ->  | N183: =IF(EEYAE!Q9="","",EEYAE!Q9) ->  | O183: =IF(EEYAE!R9="","",EEYAE!R9) ->  | P183: =IF(EEYAE!S9="","",EEYAE!S9) ->  | Q183: =IF(EEYAE!T9="","",EEYAE!T9) ->  | R183: =IF(EEYAE!U9="","",EEYAE!U9) ->  | S183: =IF(EEYAE!V9="","",EEYAE!V9) ->  | T183: =IF(EEYAE!W9="","",EEYAE!W9) ->  | U183: =IF(EEYAE!X9="","",EEYAE!X9) ->  | V183: =IF(EEYAE!Y9="","",EEYAE!Y9) ->  | W183: =IF(EEYAE!Z9="","",EEYAE!Z9) ->  | X183: =IF(EEYAE!AA9="","",EEYAE!AA9) ->  | Y183: =IF(EEYAE!AB9="","",EEYAE!AB9) ->  | Z183: =IF(EEYAE!AC9="","",EEYAE!AC9) ->  | AA183: =IF(EEYAE!AD9="","",EEYAE!AD9) ->  | AB183: =IF(EEYAE!AE9="","",EEYAE!AE9) ->  | AC183: =IF(EEYAE!AF9="","",EEYAE!AF9) ->  | AD183: =IF(EEYAE!AG9="","",EEYAE!AG9) ->  | AE183: =IF(EEYAE!AH9="","",EEYAE!AH9) ->  | AF183: =IF(EEYAE!AI9="","",EEYAE!AI9) ->  | AG183: =IF(EEYAE!AJ9="","",EEYAE!AJ9) ->  | AH183: =IF(EEYAE!AK9="","",EEYAE!AK9) ->  | AI183: =IF(EEYAE!AL9="","",EEYAE!AL9) ->  | AJ183: =IF(EEYAE!AM9="","",EEYAE!AM9) ->  | AK183: =IF(EEYAE!AN9="","",EEYAE!AN9) ->  | AL183: =IF(EEYAE!AO9="","",EEYAE!AO9) ->  | AM183: =IF(EEYAE!AP9="","",EEYAE!AP9) -> 
C184: Comp. Esp. 5 | D184: Criterio Evaluación 5.1 | E184: =IF(EEYAE!H10="","",EEYAE!H10) ->  | F184: =IF(EEYAE!I10="","",EEYAE!I10) ->  | G184: =IF(EEYAE!J10="","",EEYAE!J10) ->  | H184: =IF(EEYAE!K10="","",EEYAE!K10) ->  | I184: =IF(EEYAE!L10="","",EEYAE!L10) ->  | J184: =IF(EEYAE!M10="","",EEYAE!M10) ->  | K184: =IF(EEYAE!N10="","",EEYAE!N10) ->  | L184: =IF(EEYAE!O10="","",EEYAE!O10) ->  | M184: =IF(EEYAE!P10="","",EEYAE!P10) ->  | N184: =IF(EEYAE!Q10="","",EEYAE!Q10) ->  | O184: =IF(EEYAE!R10="","",EEYAE!R10) ->  | P184: =IF(EEYAE!S10="","",EEYAE!S10) ->  | Q184: =IF(EEYAE!T10="","",EEYAE!T10) ->  | R184: =IF(EEYAE!U10="","",EEYAE!U10) ->  | S184: =IF(EEYAE!V10="","",EEYAE!V10) ->  | T184: =IF(EEYAE!W10="","",EEYAE!W10) ->  | U184: =IF(EEYAE!X10="","",EEYAE!X10) ->  | V184: =IF(EEYAE!Y10="","",EEYAE!Y10) ->  | W184: =IF(EEYAE!Z10="","",EEYAE!Z10) ->  | X184: =IF(EEYAE!AA10="","",EEYAE!AA10) ->  | Y184: =IF(EEYAE!AB10="","",EEYAE!AB10) ->  | Z184: =IF(EEYAE!AC10="","",EEYAE!AC10) ->  | AA184: =IF(EEYAE!AD10="","",EEYAE!AD10) ->  | AB184: =IF(EEYAE!AE10="","",EEYAE!AE10) ->  | AC184: =IF(EEYAE!AF10="","",EEYAE!AF10) ->  | AD184: =IF(EEYAE!AG10="","",EEYAE!AG10) ->  | AE184: =IF(EEYAE!AH10="","",EEYAE!AH10) ->  | AF184: =IF(EEYAE!AI10="","",EEYAE!AI10) ->  | AG184: =IF(EEYAE!AJ10="","",EEYAE!AJ10) ->  | AH184: =IF(EEYAE!AK10="","",EEYAE!AK10) ->  | AI184: =IF(EEYAE!AL10="","",EEYAE!AL10) ->  | AJ184: =IF(EEYAE!AM10="","",EEYAE!AM10) ->  | AK184: =IF(EEYAE!AN10="","",EEYAE!AN10) ->  | AL184: =IF(EEYAE!AO10="","",EEYAE!AO10) ->  | AM184: =IF(EEYAE!AP10="","",EEYAE!AP10) -> 
D185: Criterio Evaluación 5.2 | E185: =IF(EEYAE!H11="","",EEYAE!H11) ->  | F185: =IF(EEYAE!I11="","",EEYAE!I11) ->  | G185: =IF(EEYAE!J11="","",EEYAE!J11) ->  | H185: =IF(EEYAE!K11="","",EEYAE!K11) ->  | I185: =IF(EEYAE!L11="","",EEYAE!L11) ->  | J185: =IF(EEYAE!M11="","",EEYAE!M11) ->  | K185: =IF(EEYAE!N11="","",EEYAE!N11) ->  | L185: =IF(EEYAE!O11="","",EEYAE!O11) ->  | M185: =IF(EEYAE!P11="","",EEYAE!P11) ->  | N185: =IF(EEYAE!Q11="","",EEYAE!Q11) ->  | O185: =IF(EEYAE!R11="","",EEYAE!R11) ->  | P185: =IF(EEYAE!S11="","",EEYAE!S11) ->  | Q185: =IF(EEYAE!T11="","",EEYAE!T11) ->  | R185: =IF(EEYAE!U11="","",EEYAE!U11) ->  | S185: =IF(EEYAE!V11="","",EEYAE!V11) ->  | T185: =IF(EEYAE!W11="","",EEYAE!W11) ->  | U185: =IF(EEYAE!X11="","",EEYAE!X11) ->  | V185: =IF(EEYAE!Y11="","",EEYAE!Y11) ->  | W185: =IF(EEYAE!Z11="","",EEYAE!Z11) ->  | X185: =IF(EEYAE!AA11="","",EEYAE!AA11) ->  | Y185: =IF(EEYAE!AB11="","",EEYAE!AB11) ->  | Z185: =IF(EEYAE!AC11="","",EEYAE!AC11) ->  | AA185: =IF(EEYAE!AD11="","",EEYAE!AD11) ->  | AB185: =IF(EEYAE!AE11="","",EEYAE!AE11) ->  | AC185: =IF(EEYAE!AF11="","",EEYAE!AF11) ->  | AD185: =IF(EEYAE!AG11="","",EEYAE!AG11) ->  | AE185: =IF(EEYAE!AH11="","",EEYAE!AH11) ->  | AF185: =IF(EEYAE!AI11="","",EEYAE!AI11) ->  | AG185: =IF(EEYAE!AJ11="","",EEYAE!AJ11) ->  | AH185: =IF(EEYAE!AK11="","",EEYAE!AK11) ->  | AI185: =IF(EEYAE!AL11="","",EEYAE!AL11) ->  | AJ185: =IF(EEYAE!AM11="","",EEYAE!AM11) ->  | AK185: =IF(EEYAE!AN11="","",EEYAE!AN11) ->  | AL185: =IF(EEYAE!AO11="","",EEYAE!AO11) ->  | AM185: =IF(EEYAE!AP11="","",EEYAE!AP11) -> 
D186: Criterio Evaluación 5.3 | E186: =IF(EEYAE!H12="","",EEYAE!H12) ->  | F186: =IF(EEYAE!I12="","",EEYAE!I12) ->  | G186: =IF(EEYAE!J12="","",EEYAE!J12) ->  | H186: =IF(EEYAE!K12="","",EEYAE!K12) ->  | I186: =IF(EEYAE!L12="","",EEYAE!L12) ->  | J186: =IF(EEYAE!M12="","",EEYAE!M12) ->  | K186: =IF(EEYAE!N12="","",EEYAE!N12) ->  | L186: =IF(EEYAE!O12="","",EEYAE!O12) ->  | M186: =IF(EEYAE!P12="","",EEYAE!P12) ->  | N186: =IF(EEYAE!Q12="","",EEYAE!Q12) ->  | O186: =IF(EEYAE!R12="","",EEYAE!R12) ->  | P186: =IF(EEYAE!S12="","",EEYAE!S12) ->  | Q186: =IF(EEYAE!T12="","",EEYAE!T12) ->  | R186: =IF(EEYAE!U12="","",EEYAE!U12) ->  | S186: =IF(EEYAE!V12="","",EEYAE!V12) ->  | T186: =IF(EEYAE!W12="","",EEYAE!W12) ->  | U186: =IF(EEYAE!X12="","",EEYAE!X12) ->  | V186: =IF(EEYAE!Y12="","",EEYAE!Y12) ->  | W186: =IF(EEYAE!Z12="","",EEYAE!Z12) ->  | X186: =IF(EEYAE!AA12="","",EEYAE!AA12) ->  | Y186: =IF(EEYAE!AB12="","",EEYAE!AB12) ->  | Z186: =IF(EEYAE!AC12="","",EEYAE!AC12) ->  | AA186: =IF(EEYAE!AD12="","",EEYAE!AD12) ->  | AB186: =IF(EEYAE!AE12="","",EEYAE!AE12) ->  | AC186: =IF(EEYAE!AF12="","",EEYAE!AF12) ->  | AD186: =IF(EEYAE!AG12="","",EEYAE!AG12) ->  | AE186: =IF(EEYAE!AH12="","",EEYAE!AH12) ->  | AF186: =IF(EEYAE!AI12="","",EEYAE!AI12) ->  | AG186: =IF(EEYAE!AJ12="","",EEYAE!AJ12) ->  | AH186: =IF(EEYAE!AK12="","",EEYAE!AK12) ->  | AI186: =IF(EEYAE!AL12="","",EEYAE!AL12) ->  | AJ186: =IF(EEYAE!AM12="","",EEYAE!AM12) ->  | AK186: =IF(EEYAE!AN12="","",EEYAE!AN12) ->  | AL186: =IF(EEYAE!AO12="","",EEYAE!AO12) ->  | AM186: =IF(EEYAE!AP12="","",EEYAE!AP12) -> 
